Workbook

Sheet Projects
A1: Niles-Cass-Buchanan Transportaton Study 2017-2020 TIP efile
A2: 2018-03-13
A3: Required Fields | Z3: Optional Fields | AE3: ='MDOT FTA Detail'!B1 -> E-File v. 5.1 (01.15.15)
A4: Fiscal Year | B4: County | C4: Respon-sible Agency | D4: Project Name | E4: Limits | F4: Length | G4: Primary Work Type | H4: Project Description | I4: Phase | J4: Advance Construct | K4: Federal Cost ($1000s) | L4: Federal Fund Source | M4: State Cost ($1000s) | N4: State Fund Source | O4: Local Cost ($1000s) | P4: Local Fund Source | Q4: Total Phase Cost ($1000s) | R4: MDOT Job No. | S4: Local ID No. | T4: MPO/ Rural Action Date | U4: Amend-ment Type | V4: Air Quality | W4: Comments | X4: Total Project Cost ($1000s) | Y4: x | Z4: Local Priority | AA4: EJ | AB4: Federal Approval Date | AC4: Capped Federal Cost ($1000s) | AD4: Date Obligated | AE4: Amount Obligated ($1000s) | AF4: Let Date | AG4: MPO
A5: 2017 | B5: Berrien | C5: Berrien County Road Commission | D5: Dayton, Orange, Third, Fulkerson and Ontario | E5: Dayton from US 12 to State Line; Orange from Bertrand to State Line; 3rd from Bell to Fulkerson; Fulkerson from 3rd to S 11th. Ontario: Third to Cass County | F5: 5.5 | G5: Restore & rehabilitate | H5: Hot Patching and Seal, Single Chip | I5: CON | K5: 69210 | L5: STU | O5: 24742 | P5: CNTY | Q5: =K5+M5+O5 -> 93952 | R5: 120683 | T5: 2016-06-28 | V5: Exempt | X5: 93952
A6: 2017 | B6: Berrien | C6: Berrien County Road Commission | D6: Red Bud Trail and Niles Buchanan Road | E6: Red Bud Trail: City of Buchanan to US 12 AND Niles Buchanan Road Niles to Buchanan | F6: 4 | G6: Resurface | H6: Hot mix asphalt and seal coat | I6: CON | K6: 69210 | L6: STU | O6: 24742 | P6: CNTY | Q6: 93952 | R6: 120684 | T6: 2016-06-28 | V6: Exempt | X6: 93952
A7: 2017 | B7: Berrien | C7: Berrien County Road Commission | D7: Upgrading Guardrails on Various Primary Roads | E7: North Main Street: City of Buchanan to Andrews Road | F7: 0.2 | G7: Traffic ops/safety | H7: Upgrading guardrails | I7: CON | K7: 54000 | L7: HSIP | O7: 6000 | P7: CNTY | Q7: 60000 | R7: 130875 | T7: 2017-02-28 | V7: Exempt | W7: Part of a countywide safety grant. Added to the TIP 2/27/17 | X7: 600000
A8: 2017 | B8: Berrien | C8: City of Niles | D8: Sycamore St | E8: 13th to 17th | F8: 0.826 | G8: Resurface | H8: Mill existing pavement 1.5 deep Repave with 165/SYD HMA 5E1 Construct ADA sidewalk ramps | I8: CON | K8: 100100 | L8: STU | O8: 35785 | P8: CITY | Q8: 135885 | R8: 120692 | T8: 2016-06-28 | V8: Exempt | X8: 135885
A9: 2017 | B9: Berrien | C9: MDOT | D9: M-139 | E9: 1. On M-63 in the City of St. Joseph, from Winchester Avenue to S. JCT I-94 BL. 2. On M-139 in the City of Niles, from the turn at Front St. to Marmont St. (s. of NCL Niles). | F9: 1.127 | G9: Resurface | H9: Cold Milling and HMA One Course Overlay | I9: CON | K9: 80525 | L9: ST | M9: 17856 | N9: M | Q9: 98381 | R9: 127563 | T9: 2016-06-28 | V9: Exempt | W9: Added to TIP 6/28/16- Portion of the project is in NATS and other portion is in TwinCATS. | X9: 439785
A10: 2017 | B10: Berrien | C10: Niles Dial-A-Ride | D10: Public Transit Operations | E10: City of Niles and Niles Township | G10: Transit operations | H10: Regular Public Transit Operating Funds | I10: T-Ops | K10: 159000 | L10: 5307 | M10: 139000 | N10: CTF | O10: 93000 | P10: CITY | Q10: 391000 | T10: 2016-06-28 | V10: Exempt | X10: 391000
A11: 2017 | B11: Berrien | C11: Niles Dial-A-Ride | D11: Preventative Maintenance | E11: City of Niles and Niles Township | G11: Transit maintenance equipment and parts | H11: Preventative Maintenance | I11: T-Cap | K11: 132000 | L11: 5307 | M11: 33000 | N11: CTF | Q11: 165000 | T11: 2016-06-28 | V11: Exempt | X11: 165000
A12: 2017 | B12: Berrien | C12: Niles Dial-A-Ride | D12: Bus Replacement | E12: City of Niles and Niles Township | G12: Transit vehicle additions/replacements | H12: Replace one cutaway bus that has met its age or mileage requirements with a new cutaway bus. | I12: T-Cap | K12: 56000 | L12: 5339 | M12: 14000 | N12: CTF | Q12: 70000 | T12: 2016-06-28 | V12: Exempt | X12: 70000
A13: 2017 | B13: Berrien & Cass | C13: MDOT | D13: M 60 (Traffic Signal Modernization) | E13: Multiple Locatiion in Berrien, Cass, and Kalamazoo Counties | G13: GPA | H13: Signal Modernization with connected vehicles instalations | I13: PE | K13: 128000 | L13: STG | Q13: 128000 | R13: 200366 | T13: 2017-08-22 | V13: Exempt | W13: Part of a GPA; See GPA tab for specific locations. | AB13: 2017-08-31
A14: 2017 | B14: Berrien & Cass | C14: MDOT | D14: M 60 (Traffic Signal Modernization) | E14: Multiple Locatiion in Berrien, Cass, and Kalamazoo Counties | G14: GPA | H14: Signal Modernization with connected vehicles instalations | I14: ROW | K14: 5000 | L14: STG | Q14: 5000 | R14: 200366 | T14: 2018-02-27 | V14: Exempt | W14: Part of a GPA: see GPA tab for specific locations | AB14: 2017-08-31
A15: 2017 | B15: Cass | C15: Cass County Road Commission | D15: Redfield Rd | E15: Township Line - Cassopolis | F15: 0.872 | G15: Resurface | H15: Resurface | I15: CON | R15: 120116 | T15: 2016-01-20 | V15: Exempt | W15: RTF 1/20/16- RTF 4 Approved | X15: 84600 | AB15: 2016-02-11
A16: 2017 | B16: Cass | C16: Cass County Road Commission | D16: Redfield Rd | E16: Conrad - M-62 | F16: 1 | G16: Resurface | H16: Resurface | I16: CON | R16: 120117 | T16: 2017-03-13 | V16: Exempt | W16: RTF - 1/20/16- RTF 4 Approved | X16: 93600 | AB16: 2016-02-11
A17: 2017 | B17: CASS | C17: Cass County Road Commission | D17: Redfield St | E17: Brande Creek to Oak | F17: 1.132 | G17: Reconstruct | H17: Mill and structural overlay with shoulders, signs and striping | I17: CON | K17: 276300 | L17: STU | O17: 98700 | P17: CNTY | Q17: =K17+M17+O17 -> 375000 | R17: 120691 | T17: 2016-06-28 | V17: Exempt | X17: 374500
A18: 2017 | B18: Cass | C18: Cass County Road Commission | D18: Fir Road | E18: Redfield o US 12 | F18: 1.023 | G18: Resurface | H18: 1-1/2 inch HMA overlay with aggregate shoulders | I18: CON | R18: 133108 | T18: 2016-11-21 | V18: Exempt | W18: RTF - 11/21/16 RTF 4 Approved | X18: 94000 | AB18: 2016-12-01
A19: 2017 | B19: Cass | C19: MDOT | D19: US-12 | E19: West Village Limits of Edwardsburg to M-62 | F19: 0.84 | G19: Resurface | H19: Cold Milling and Multiple Course HMA Overlay | I19: ROW | K19: 16370 | L19: STL | M19: 3630 | N19: M | Q19: 20000 | R19: 128723 | T19: 2017-08-22 | V19: Exempt | W19: Moved from 2016 to 2017 | X19: 0 | AB19: 2017-08-31
A20: 2017 | B20: CASS | C20: Southwest Michigan Planning Commission | D20: Countywide | E20: Cass County | G20: Miscellaneous | H20: Southwest Michigan Planning Comm Rideshare Program | I20: EPE | K20: 12000 | L20: CMG | O20: 0 | Q20: =K20+M20+O20 -> 12000 | R20: 124478 | T20: 2016-06-28 | V20: Exempt | X20: 12000
A21: 2017 | B21: Various | C21: MDOT | D21: Various | E21: 1. I-196 NB, Coloma Rd to Central Ave and I-196 SB, Coloma Rd to N. of CR 378 2. M-63, I-94 to Midway Ave, St. Joseph 3. US-12, Red Arrow Hwy to Galien River 4. I-196 BL & M-140, I-196 to Blue Star Hwy 5. M-40, N. of CR 669 to SVL Lawton 6. M-60, W. of End Divided; UAL Niles to S. of SVL Cassopolis 7. M-331, Kilgore Rd to M-43 8. Kilgore Rd Park & Ride Lot at the Southwest Region Office 9. M-89, 42nd St to W. Michigan Ave, Richland 10. M-89, 12th St to 8th St, Plainwell | F21: 38.4433 | G21: Restore & rehabilitate | H21: Overband Crack Fill | I21: CON | K21: 53196.0369 | L21: ST | M21: 11796.0915 | N21: M | Q21: =K21+M21+O21 -> 64992.1284 | R21: 128736 | T21: 2016-06-28 | V21: Exempt | W21: Added to TIP 6/28/16. 62.04% rural; 5.56% TwinCATS; 22.00% KATS; 10.41% NATS; total phase cost $511,009 federal ST, $113,315 state M, $624,324 total | X21: 649324
A22: 2018 | B22: Berrien | C22: Berrien County Road Commission | D22: Indiana Michigan River Valley Trail | E22: Brandywine Creek Nature Preserve to Fort St | F22: 1.2 | G22: Roadside facility | H22: Shared-Use Path | I22: CON | K22: 501299 | L22: TA | O22: 311600 | P22: CNTY | Q22: =K22+O22+M22 -> 812899 | R22: 131063 | T22: 2018-01-23 | U22: Add | V22: Exempt | AB22: 2018-03-27
A23: 2018 | B23: BERRIEN | C23: Buchanan Dial-A-Ride | D23: Public transit Operations | E23: City of Nuchanan & Buchanan Township | G23: Transit operations | H23: Regular Public Transit Operating Funds | I23: T-Ops | K23: 31927 | L23: 5311 | M23: 78256 | N23: CTF | O23: 98315 | P23: CITY | Q23: =K23+M23+O23 -> 208498 | T23: 2017-02-28 | V23: Exempt | W23: Added to TIP 2/28/17
A24: 2018 | B24: BERRIEN | C24: Buchanan Dial-A-Ride | D24: Bus Cameras | E24: City of Buchanan and Buchanan Township | G24: Transit capital | H24: Purchase three bus cameras to improve safety for passengers and drivers | I24: T-Cap | K24: 7200 | L24: 5339 | M24: 1800 | N24: CTF | Q24: 9000 | T24: 2016-06-28 | V24: Exempt | X24: 9000
A25: 2018 | B25: BERRIEN | C25: City of Buchanan | D25: River Road Signal Project | E25: at Red Bud Trail | G25: Traffic ops/safety | H25: Signal replacement and video detection equipment | I25: CON | K25: 203200 | L25: STU | O25: 50800 | P25: CITY | Q25: 254000 | R25: 130766 | T25: 2016-06-28 | V25: Exempt | X25: 254000
A26: 2018 | B26: BERRIEN | C26: City of Niles | D26: 17th St | E26: Broadway to Main | F26: 0.568 | G26: Resurface | H26: Mill 1.5" deep and repave | I26: CON | K26: 159327 | L26: STU | O26: 91000 | P26: CITY | Q26: 250327 | R26: 130866 | T26: 2018-02-27 | U26: Cost | V26: Exempt | W26: 2/27/18: Increase in local cost | X26: 194657 | AB26: 2018-03-27
A27: 2018 | B27: BERRIEN | C27: MDOT | D27: US-31 | E27: over US-12 | F27: 0.41 | G27: Restore & rehabilitate | H27: Shallow Overlay, Full Paint, Pin and Hangers | I27: PE | K27: 41265 | L27: NH | M27: 9150 | N27: M | O27: 0 | Q27: 50415 | R27: 129876 | T27: 2016-06-28 | V27: Exempt | X27: 3784000
A28: 2018 | B28: BERRIEN | C28: MDOT | D28: US-31 | E28: over US-12 | F28: 0.41 | G28: Restore & rehabilitate | H28: Shallow Overlay, Full Paint, Pin and Hangers | I28: SUB | K28: 331972 | L28: NH | M28: 73613 | N28: M | O28: 0 | Q28: 405585 | R28: 129876 | T28: 2016-06-28 | V28: Exempt | X28: 3784000
A29: 2018 | B29: Berrien | C29: MDOT | D29: M-51 | E29: Indiana State Line to M-60BR and US-12 Interchange | F29: 7.144 | G29: Studies | H29: Road Scoping and Interchange Study | I29: EPE | K29: 0 | M29: 600000 | N29: M | Q29: =K29+O29+M29 -> 600000 | R29: 131024 | T29: 2018-02-27 | U29: Add | V29: Exempt | AB29: 2018-03-27
A30: 2018 | B30: BERRIEN | C30: Niles Dial-A-Ride | D30: Public Transit Operations | E30: City of Niles and Niles Township | G30: Transit operations | H30: Regular Public Transit Operating Funds | I30: T-Ops | K30: 159000 | L30: 5307 | M30: 139000 | N30: CTF | O30: 93000 | P30: CITY | Q30: =K30+M30+O30 -> 391000 | T30: 2016-06-28 | V30: Exempt | X30: 391000
A31: 2018 | B31: BERRIEN | C31: Niles Dial-A-Ride | D31: Preventative Maintenance | E31: City of Niles and Niles Township | G31: Transit maintenance equipment and parts | H31: Preventative Maintenance | I31: T-Cap | K31: 132000 | L31: 5307 | M31: 33000 | N31: CTF | Q31: =K31+M31+O31 -> 165000 | T31: 2016-06-28 | V31: Exempt | X31: 165000
A32: 2018 | B32: BERRIEN | C32: Niles Dial-A-Ride | D32: Bus Replacement | E32: City of Niles and Niles Township | G32: Transit vehicle additions/replacements | H32: Replace one cutaway bus that has met its age or mileage requirements with a new cutaway bus. | I32: T-Cap | K32: 56000 | L32: 5339 | M32: 14000 | N32: CTF | Q32: =K32+M32+O32 -> 70000 | T32: 2016-06-28 | V32: Exempt | X32: 70000
A33: 2018 | B33: CASS | C33: Cass County Road Commission | D33: US-12 | E33: from Clair Street westbound to ESC | F33: 8.019 | G33: Roadside facility | H33: Construction of a 10 ft Multi-Use Pathway to Connect to Edwardsburg Sports Complex | I33: CON | K33: 148260 | L33: CM | O33: 37065 | P33: CITY | Q33: =K33+M33+O33 -> 185325 | R33: 127757 | T33: 2016-06-28 | V33: Exempt | X33: 201425
A34: 2018 | B34: CASS | C34: Cass County Road Commission | D34: Mason St | E34: Cassopolis Road to Calvin Center Road | F34: 2.146 | G34: Resurface | H34: HMA overlay, shoulders, signage, pavement markings | I34: CON | J34: AC | K34: 128000 | L34: STU | O34: 68918 | P34: CNTY | Q34: =K34+M34+O34 -> 196918 | R34: 130776 | T34: 2016-06-28 | V34: Exempt | W34: Added to TIP 6/28/16-Partial Advance Construct; $28,081 being Advance Constructed. Converting in 2020. | X34: 224999
A35: 2018 | B35: Cass | C35: Cass County Road Commission | D35: Gumwood road Phase 3 | E35: North of Indiana State line to 0.1 miles south of Redfield | F35: 0.2 | G35: Intermodal/multimodal | H35: Non-motorized, multi use path | I35: CON | K35: 80514 | L35: TAU | O35: 17854 | P35: CNTY | Q35: =K35+O35 -> 98368 | R35: 200409 | T35: 2018-01-23 | U35: Year | V35: Exempt | W35: 1/23/18: Cost and year change Added on3/28/17 | X35: 98368 | AB35: 2018-03-27
A36: 2018 | B36: Cass | C36: Cass County Road Commission | D36: Yankee Street | E36: On Yankee Street east of M 60 in Howard Township | G36: Traffic ops/safety | H36: Upgrading guardrails | I36: CON | K36: 20464 | L36: HSIP | O36: 2274 | P36: CNTY | Q36: =K36+M36+O36 -> 22738 | T36: 2017-05-23 | V36: Exempt | W36: Adminstrative Mod - Added to TIP 6/6/17 | X36: 22738
A37: 2018 | B37: CASS | C37: MDOT | D37: US-12 | E37: West Village Limits of Edwardsburg to M-62 | F37: 0.84 | G37: Resurface | H37: Cold Milling and Multiple Course HMA Overlay | I37: CON | K37: 1456930 | L37: ST | M37: 302370 | N37: M | Q37: =K37+M37+O37 -> 1759300 | R37: 128723 | T37: 2016-06-28 | W37: This project includes the cost for improvments to a rail crossing (JN 202211) $36,960 is being transferred from this job to a force acount to pay for job # 202211. | X37: 2000000
A38: 2018 | B38: CASS | C38: MDOT | D38: M-60 | E38: M-60 near Pine Lake Road | F38: 0.74 | G38: Traffic ops/safety | H38: High Friction Surface Treatment | I38: CON | K38: 301119 | L38: HSIP | M38: 33458 | N38: M | Q38: =K38+O38+M38 -> 334577 | R38: 132633 | T38: 2018-02-27 | U38: Add | V38: exempt | AB38: 2018-03-27
A39: 2018 | B39: CASS | C39: MDOT | D39: M-60 | E39: M-60 near Pine Lake Road | F39: 0.74 | G39: Traffic ops/safety | H39: High Friction Surface Treatment | I39: PE | K39: 52920 | L39: HSIP | M39: 5880 | N39: M | Q39: =K39+O39+M39 -> 58800 | R39: 132633 | T39: 2018-02-27 | U39: Add | V39: Exempt | AB39: 2018-03-27
A40: 2018 | B40: Cass | C40: MDOT | D40: M-62 | E40: M-62 from US-12 (in Edwardsburg) to Hilton Steet (in Village of Cassopolis) | F40: 9.452 | G40: Resurface | H40: Mill and One Course Hot Mix Asphalt Overlay | I40: CON | M40: 2347325 | N40: M | Q40: =K40+O40+M40 -> 2347325 | R40: 200483 | T40: 2018-02-27 | U40: Add | V40: Exempt | AB40: 2018-03-27
A41: 2018 | B41: CASS | C41: MDOT | D41: US-12 Rail corssing | E41: CN (Grand Trunk Western) crossing of US-12 in Edwardsburg | F41: 0 | G41: Rail | H41: The eastern railroad crossing of the double track will be raised so that it is in alignment with the western track | I41: CON | R41: 202211 | T41: 2017-08-31 | V41: Exempt | W41: Adminstative Modification: $36,960 is being transferred from Job# 128723 in to a force acount to pay for this portion of the US-12 resurfacing project. | X41: 2000000
A42: 2019 | B42: BERRIEN | C42: Berrien County | D42: N Main St | E42: City limits to 400 feet South of Reed | F42: 1.11 | G42: Resurface | H42: 2" HMA overlay | I42: CON | J42: AC | K42: 115536 | L42: STU | O42: 79732 | P42: CNTY | Q42: =K42+M42+O42 -> 195268 | R42: 130684 | T42: 2016-06-28 | V42: Exempt | W42: Added to TIP 6/28/16 Partial Advance Construct; $37,732 being converted. Converted in 2020 | X42: 233000
A43: 2019 | B43: BERRIEN | C43: Berrien County | D43: Bertrand Rd | E43: Portage to Copp | F43: 1.15 | G43: Resurface | H43: 2" HMA overlay and gravel shoulders | I43: CON | K43: 191000 | L43: STU | O43: 43000 | P43: CNTY | Q43: =K43+M43+O43 -> 234000 | R43: 130775 | T43: 2016-06-28 | V43: Exempt | X43: 234000
A44: 2019 | B44: Berrien | C44: Buchanan Dial-A-Ride | D44: Public transit Operations | E44: City of Nuchanan & Buchanan Township | G44: Transit operations | H44: Regular Public Transit Operating Funds | I44: T-Ops | K44: 24629 | L44: 5311 | M44: 81365 | N44: CTF | O44: 101579 | P44: TRAL | Q44: =K44+O44+M44 -> 207573 | T44: 2018-02-27 | U44: Add | V44: Exempt | AB44: 2018-03-27
A45: 2019 | B45: Berrien | C45: MDOT | D45: US-12 | E45: Dayton Lake Road to Mayflower Road | F45: 6.854 | G45: Restore & rehabilitate | H45: Mill & Two Course HMA Overlay | I45: ROW | K45: 0 | M45: 41700 | N45: M | Q45: =K45+O45+M45 -> 41700 | R45: 127449 | T45: 2018-02-27 | U45: Add | V45: exempt | AB45: 2018-03-27
A46: 2019 | B46: BERRIEN | C46: Niles Dial-A-Ride | D46: Public Transit Operations | E46: City of Niles and Niles Township | G46: Transit operations | H46: Regular Public Transit Operating Funds | I46: T-Ops | K46: 159000 | L46: 5307 | M46: 139000 | N46: CTF | O46: 93000 | P46: CITY | Q46: =K46+M46+O46 -> 391000 | T46: 2016-06-28 | V46: Exempt | X46: 391000
A47: 2019 | B47: BERRIEN | C47: Niles Dial-A-Ride | D47: Preventative Maintenance | E47: City of Niles and Niles Township | G47: Transit maintenance equipment and parts | H47: Preventative Maintenance | I47: T-Cap | K47: 132000 | L47: 5307 | M47: 33000 | N47: CTF | Q47: =K47+M47+O47 -> 165000 | T47: 2016-06-28 | V47: Exempt | X47: 165000
A48: 2019 | B48: Berrien | C48: Niles Dial-A-Ride | D48: Mobile Data System | E48: City of Niles and Niles Township | G48: Transit operations equipment | H48: Tablets and dispatch software for on-board mobile data system | I48: T-Ops | K48: 9000 | L48: 5339 | M48: 2400 | N48: CTF | Q48: =K48+O48+M48 -> 11400 | T48: 2018-01-23 | U48: Add | V48: Exempt | AB48: 2018-03-27
A49: 2019 | B49: Berrien | C49: Niles Dial-A-Ride | D49: Electronic Door Locks | E49: City of Niles and Niles Township | G49: Transit facility | H49: electronic door locsk for the front enterance to the DART facility | I49: T-Cap | K49: 7040 | L49: 5339 | M49: 1750 | N49: CTF | Q49: =K49+O49+M49 -> 8790 | T49: 2018-01-23 | U49: Add | V49: exempt | AB49: 2018-03-27
A50: 2019 | B50: CASS | C50: Cass County | D50: Redfield St | E50: Conrad Road to M-62 | F50: 1.035 | G50: Resurface | H50: Mill and replace HMA | I50: CON | K50: 174340 | L50: STU | O50: 38660 | P50: CNTY | Q50: =K50+M50+O50 -> 213000 | R50: 130772 | T50: 2016-06-28 | V50: Exempt | X50: 213000
A51: 2019 | B51: Cass | C51: MDOT | D51: M-51 | E51: City of Niles to City of Dowagiac | F51: 11.18 | G51: Resurface | H51: Mill and One Course Hot Mix Asphalt Overlay | I51: PE | K51: 0 | M51: 110673 | N51: M | Q51: =K51+O51+M51 -> 110673 | R51: 200642 | T51: 2018-02-27 | U51: Add | V51: exempt | AB51: 2018-03-27
A52: 2019 | B52: Cass | C52: MDOT | D52: M-62 | E52: M-62 at May Street | F52: 0.163 | G52: Widen - minor | H52: Offset Right Turn Lane | I52: PE | K52: 53100 | L52: HSIP | M52: 5900 | N52: M | Q52: =K52+O52+M52 -> 59000 | R52: 202018 | T52: 2018-02-27 | U52: Add | V52: Exempt | AB52: 2018-03-27
A53: 2020 | B53: BERRIEN | C53: Berrien County | D53: N Main St | E53: City limits to 400 feet South of Reed | F53: 1.11 | G53: Resurface | H53: 2" HMA overlay | I53: CON | J53: ACC | K53: 37732 | L53: STU | O53: 0 | P53: CNTY | Q53: =K53+M53+O53 -> 37732 | R53: 130684 | T53: 2016-06-28 | V53: Exempt | W53: Added to TIP 6/28/16 Partial Advance Construct; Conversion | X53: 233000
A54: 2020 | B54: BERRIEN | C54: Berrien County | D54: 3rd St | E54: US-12 to Fulkerson Road | F54: 1.229 | G54: Resurface | H54: 2" HMA overlay with gravel shoulders | I54: CON | K54: 231800 | L54: STU | O54: 51401 | P54: CNTY | Q54: =K54+M54+O54 -> 283201 | R54: 130769 | T54: 2016-06-28 | V54: Exempt | X54: 283201
A55: 2020 | B55: BERRIEN | C55: MDOT | D55: US-31 | E55: over US-12 | F55: 0.41 | G55: Restore & rehabilitate | H55: Shallow Overlay, Full Paint, Pin and Hangers | I55: CON | K55: 2723968 | L55: NH | M55: 604032 | N55: M | O55: 0 | Q55: =K55+M55+O55 -> 3328000 | R55: 129876 | T55: 2016-06-28 | V55: Exempt | X55: 3784000
A56: 2020 | B56: Berrien | C56: MDOT | D56: US-12 E | E56: US-12 over St. Joseph River | F56: 0 | G56: Bridge - other | H56: Epoxy Ovly, Full Pt, Steel Beam Repairs, Pin & Hanger Rplc, Micropiles | I56: PE | M56: 23619 | N56: M | Q56: =K56+O56+M56 -> 23619 | R56: 201224 | T56: 2018-02-27 | U56: Add | V56: exempt | AB56: 2018-03-27
A57: 2020 | B57: Berrien | C57: MDOT | D57: US-12 E | E57: US-12 over St. Joseph River | F57: 0 | G57: Bridge - other | H57: Epoxy Ovly, Full Pt, Steel Beam Repairs, Pin & Hanger Rplc, Micropiles | I57: SUB | M57: 578670 | N57: M | Q57: =K57+O57+M57 -> 578670 | R57: 201224 | T57: 2018-02-27 | U57: Add | V57: Exempt | AB57: 2018-03-27
A58: 2020 | B58: Berrien | C58: MDOT | D58: US-31 N | E58: US-12 (Exit 3) to Walton Road (Exit 7) | F58: 4.368 | G58: Resurface | H58: Hot Mix Asphalt Overlay | I58: PE | M58: 1400000 | N58: M | Q58: =K58+O58+M58 -> 1400000 | R58: 201984 | T58: 2018-02-27 | U58: Add | V58: exempt | AB58: 2018-03-27
A59: 2020 | B59: Berrien | C59: MDOT | D59: US-12 E | E59: M-51 Interchange | F59: 1.045 | G59: Reconstruct | H59: Bridge Replacement and Interchange Reconstruction | I59: PE | M59: 1400000 | N59: M | Q59: =K59+O59+M59 -> 1400000 | R59: 202003 | T59: 2018-02-27 | U59: Add | V59: Exempt | AB59: 2018-03-27
A60: 2020 | B60: Berrien | C60: MDOT | D60: US-12 E | E60: M-51 Interchange | F60: 1.045 | G60: Reconstruct | H60: Bridge Replacement and Interchange Reconstruction | I60: SUB | M60: 850000 | N60: M | Q60: =K60+O60+M60 -> 850000 | R60: 202003 | T60: 2018-02-27 | U60: Add | V60: exempt | AB60: 2018-03-27
A61: 2020 | B61: BERRIEN | C61: Niles Dial-A-Ride | D61: Public Transit Operations | E61: City of Niles and Niles Township | G61: Transit operations | H61: Regular Public Transit Operating Funds | I61: T-Ops | K61: 159000 | L61: 5307 | M61: 139000 | N61: CTF | O61: 93000 | P61: CITY | Q61: =K61+M61+O61 -> 391000 | T61: 2016-06-28 | V61: Exempt | X61: 391000
A62: 2020 | B62: BERRIEN | C62: Niles Dial-A-Ride | D62: Preventative Maintenance | E62: City of Niles and Niles Township | G62: Transit maintenance equipment and parts | H62: Preventative Maintenance | I62: T-Cap | K62: 111000 | L62: 5307 | M62: 28000 | N62: CTF | Q62: 139000 | T62: 2016-06-28 | V62: Exempt | X62: 139000
A63: 2020 | B63: BERRIEN | C63: Niles Dial-A-Ride | D63: Computers | E63: City of Niles and Niles Township | G63: Transit capital | H63: Purchase up to five (5) computers for use at Niles Dial-A-Ride Transportation | I63: T-Cap | K63: 6400 | L63: 5307 | M63: 1600 | N63: CTF | Q63: 8000 | T63: 2016-06-28 | V63: Exempt | X63: 8000
A64: 2020 | B64: BERRIEN | C64: Niles Dial-A-Ride | D64: Bus Replacement | E64: City of Niles and Niles Township | G64: Transit vehicle additions/replacements | H64: Replace one cutaway bus that has met its age or mileage requirements with a new cutaway bus. | I64: T-Cap | K64: 56000 | L64: 5339 | M64: 14000 | N64: CTF | Q64: 70000 | T64: 2016-06-28 | V64: Exempt | X64: 70000
A65: 2020 | B65: CASS | C65: Cass County | D65: Lake St | E65: Airport Road to Huntly | F65: 1.514 | G65: Resurface | H65: Mill and Fill | I65: CON | K65: 220995 | L65: STU | O65: 49005 | P65: CNTY | Q65: 270000 | R65: 130763 | T65: 2016-06-28 | V65: Exempt | X65: 270000
A66: 2020 | B66: CASS | C66: Cass County | D66: Mason St | E66: Cassopolis Road to Calvin Center Road | F66: 2.15 | G66: Resurface | H66: HMA overlay, shoulders, signage, pavement markings | I66: CON | J66: ACC | K66: 28081 | L66: STU | O66: 0 | P66: CNTY | Q66: 28081 | R66: 130776 | T66: 2016-06-28 | V66: Exempt | W66: Added to TIP 6/28/16 Partial Advance Construct Conversion. | X66: 224999
A67: 2020 | B67: Cass | C67: Cass County Road Commission | D67: Ontwa Township Complete Streets Phase 2 | E67: US-12 and Claire Street | F67: 0.1 | G67: Traffic ops/safety | H67: HAWK Signal and Bicyle/Pedestrial Pathway | I67: CON | K67: 130777 | L67: TAU | O67: 87120 | P67: CNTY | Q67: =K67+O67 -> 217897 | T67: 2017-03-28 | V67: exempt | W67: Approved 3/28/17 | X67: 217897
A68: 2020 | B68: CASS | C68: MDOT | D68: M-51 | E68: City of Niles to City of Dowagiac | F68: 11.18 | G68: Resurface | H68: Mill and One Course Hot Mix Asphalt Overlay | I68: CON | K68: 0 | M68: 2988161 | N68: M | Q68: =K68+O68+M68 -> 2988161 | R68: 200642 | T68: 2018-02-27 | U68: Add | V68: Exempt | AB68: 2018-03-27

Sheet FY 2017
B1: FY 2017
A2: Highway Program | B2: Estimated Federal Commitments | C2: Estimated Non-Federal Commitments | D2: Total Proposed Commitments
A3: MDOT AC & M Program | C3: =D3 -> 0 | D3: =SUM('MDOT FTA Detail'!F135:F169)+'MDOT FTA Detail'!F171 -> 0
A4: MDOT FA Program | B4: =SUM('MDOT FTA Detail'!D6:D109) -> 283091.0369 | C4: =SUM('MDOT FTA Detail'!E6:E109) -> 33282.0915 | D4: =SUM('MDOT FTA Detail'!F6:F109) -> 316373.1284
A5: Sub-Total MDOT | B5: =B4 -> 283091.0369 | C5: =C3+C4 -> 33282.0915 | D5: =D3+D4 -> 316373.1284
A6: Local STP | B6: =SUM('Local Detail'!D78,'Local Detail'!D79,'Local Detail'!D82:D97,'Local Detail'!D72:D73,'Local Detail'!D53:D54,'Local Detail'!D24) -> 514820 | C6: =D6-B6 -> 183969 | D6: =SUM('Local Detail'!F78,'Local Detail'!F79,'Local Detail'!F82:F97,'Local Detail'!F72:F73,'Local Detail'!F53:F54,'Local Detail'!F24) -> 698789
A7: Local Bridge | B7: =SUM('Local Detail'!D6:D9,'Local Detail'!D13:D16,'Local Detail'!D102,'Local Detail'!D11:D11,'Local Detail'!D43) -> 0 | C7: 0 | D7: =SUM('Local Detail'!F6:F9,'Local Detail'!F13:F16,'Local Detail'!F102,'Local Detail'!F11:F11,'Local Detail'!F43) -> 0
A8: Local CMAQ | B8: =SUM('Local Detail'!D20:D23) -> 12000 | C8: 0 | D8: =SUM('Local Detail'!F20:F23) -> 12000
A9: Local Safety | B9: =SUM('Local Detail'!D46,'Local Detail'!D48,'Local Detail'!D80:D81) -> 54000 | C9: 6000 | D9: =SUM('Local Detail'!F46,'Local Detail'!F48,'Local Detail'!F80:F81) -> 60000
A10: Local Equity Bonus (TEDF) | B10: =SUM('Local Detail'!D31:D38) -> 0 | C10: 0 | D10: =SUM('Local Detail'!F31:F38) -> 0
A11: Local Other FHWA | B11: =SUM('Local Detail'!D10,'Local Detail'!D12,'Local Detail'!D17:D19,'Local Detail'!D25:D30,'Local Detail'!D39:D42,'Local Detail'!D44:D45,'Local Detail'!D47,'Local Detail'!D49:D52,'Local Detail'!D55:D71,'Local Detail'!D103:D109,'Local Detail'!D98:D101,'Local Detail'!D74:D77) -> 0 | C11: 0 | D11: =SUM('Local Detail'!F10,'Local Detail'!F12,'Local Detail'!F17:F19,'Local Detail'!F25:F30,'Local Detail'!F39:F42,'Local Detail'!F44:F45,'Local Detail'!F47,'Local Detail'!F49:F52,'Local Detail'!F55:F71,'Local Detail'!F103:F109,'Local Detail'!F98:F101,'Local Detail'!F74:F77) -> 0
A12: Local AC Starts | C12: =D12 -> 0 | D12: ='Local Detail'!F147 -> 0
A13: Local Non-Federal | C13: =D13 -> 0 | D13: =SUM('Local Detail'!F111:F145) -> 0
A14: Sub-Total Local | B14: =SUM(B6:B11) -> 580820 | C14: =SUM(C6:C13) -> 189969 | D14: =SUM(D6:D13) -> 770789
A15: Total Highway | B15: =B14+B5 -> 863911.0369 | C15: =C14+C5 -> 223251.0915 | D15: =D14+D5 -> 1087162.128
A18: Transit Fund Source | B18: Estimated Federal Commitments | C18: Estimated Non-Federal Commitments | D18: Total Proposed Commitments
A19: CTF - Comprehensive Transit Fund | B19: ='MDOT FTA Detail'!D110 -> 0 | C19: =IF(B19>0,D19-B19,'MDOT FTA Detail'!E134+'Local Detail'!E110) -> 0 | D19: ='Local Detail'!F110+'MDOT FTA Detail'!F134+'MDOT FTA Detail'!F110 -> 0
A20: Section 3038 - Over the Road Bus Program | B20: ='MDOT FTA Detail'!D111 -> 0 | C20: =D20-B20 -> 0 | D20: ='MDOT FTA Detail'!F111 -> 0
A21: Section 3045 - National Fuel Cell Technology Development Program | B21: ='MDOT FTA Detail'!D112 -> 0 | C21: =D21-B21 -> 0 | D21: ='MDOT FTA Detail'!F112 -> 0
A22: Section 5303 - Metropolitan Transportation Planning | B22: ='MDOT FTA Detail'!D113 -> 0 | C22: 0 | D22: ='MDOT FTA Detail'!F113 -> 0
A23: Section 5304 - Statewide Transportation Planning | B23: ='MDOT FTA Detail'!D114 -> 0 | C23: 0 | D23: ='MDOT FTA Detail'!F114 -> 0
A24: Section 5305 - Metropolitan and Statewide Planning | B24: ='MDOT FTA Detail'!D115 -> 0 | C24: 0 | D24: ='MDOT FTA Detail'!F115 -> 0
A25: Section 5307 - UZA Formula | B25: ='MDOT FTA Detail'!D116 -> 291000 | C25: 265000 | D25: ='MDOT FTA Detail'!F116 -> 556000
A26: Section 5308 - Clean Fuels Program | B26: ='MDOT FTA Detail'!D117 -> 0 | C26: 0 | D26: ='MDOT FTA Detail'!F117 -> 0
A27: Section 5309 - Fixed Guideway Capital Investment Grant | B27: ='MDOT FTA Detail'!D118 -> 0 | C27: 0 | D27: ='MDOT FTA Detail'!F118 -> 0
A28: Section 5310 - Enhanced Mobility of Seniors and Individuals with Disabilities | B28: ='MDOT FTA Detail'!D119 -> 0 | C28: 0 | D28: ='MDOT FTA Detail'!F119 -> 0
A29: Section 5311 - Non-UZA | B29: ='MDOT FTA Detail'!D120 -> 0 | C29: 0 | D29: ='MDOT FTA Detail'!F120 -> 0
A30: Section 5312 - Research, Development, Demonstration, and Deployment | B30: ='MDOT FTA Detail'!D121 -> 0 | C30: =D30-B30 -> 0 | D30: ='MDOT FTA Detail'!F121 -> 0
A31: Section 5313 - Transit Cooperative Research Program | B31: ='MDOT FTA Detail'!D122 -> 0 | C31: 0 | D31: ='MDOT FTA Detail'!F122 -> 0
A32: Section 5314 - Technical Assistance and Standards | B32: ='MDOT FTA Detail'!D123 -> 0 | C32: 0 | D32: ='MDOT FTA Detail'!F123 -> 0
A33: Section 5316 - Transit - Section 5316 - Job Access/Reverse Commute | B33: ='MDOT FTA Detail'!D124 -> 0 | C33: 0 | D33: ='MDOT FTA Detail'!F124 -> 0
A34: Section 5317 - Transit - Section 5317 - New Freedom Initiative | B34: ='MDOT FTA Detail'!D125 -> 0 | C34: 0 | D34: ='MDOT FTA Detail'!F125 -> 0
A35: Section 5320 - Alternative Transportation in Parks and Public Lands | B35: ='MDOT FTA Detail'!D126 -> 0 | C35: 0 | D35: ='MDOT FTA Detail'!F126 -> 0
A36: Section 5322 - Human Resources and Training | B36: ='MDOT FTA Detail'!D127 -> 0 | C36: =D36-B36 -> 0 | D36: ='MDOT FTA Detail'!F127 -> 0
A37: Section 5324 - Emergency Relief | B37: ='MDOT FTA Detail'!D128 -> 0 | C37: =D37-B37 -> 0 | D37: ='MDOT FTA Detail'!F128 -> 0
A38: Section 5326 - Asset Management Provisions | B38: ='MDOT FTA Detail'!D129 -> 0 | C38: =D38-B38 -> 0 | D38: ='MDOT FTA Detail'!F129 -> 0
A39: Section 5329 - Safety | B39: ='MDOT FTA Detail'!D130 -> 0 | C39: =D39-B39 -> 0 | D39: ='MDOT FTA Detail'!F130 -> 0
A40: Section 5337 - State of Good Repair Grants | B40: ='MDOT FTA Detail'!D131 -> 0 | C40: =D40-B40 -> 0 | D40: ='MDOT FTA Detail'!F131 -> 0
A41: Section 5339 - Bus and Bus Facilities | B41: ='MDOT FTA Detail'!D132 -> 56000 | C41: 14000 | D41: ='MDOT FTA Detail'!F132 -> 70000
A42: Section 5505 - University Transportation Centers Program | B42: ='MDOT FTA Detail'!D133 -> 0 | C42: 0 | D42: ='MDOT FTA Detail'!F133 -> 0
A43: Total Transit | B43: =SUM(B19:B42) -> 347000 | C43: =SUM(C19:C42) -> 279000 | D43: =SUM(D19:D42) -> 626000
A44: Grand Total | B44: =B43+B15 -> 1210911.037 | C44: =C43+C15 -> 502251.0915 | D44: =D43+D15 -> 1713162.128

Sheet FY 2018
B1: FY 2018
A2: Highway Program | B2: Estimated Federal Commitments | C2: Estimated Non-Federal Commitments | D2: Total Proposed Commitments
A3: MDOT AC & M Program | C3: =D3 -> 2947325 | D3: =SUM('MDOT FTA Detail'!I135:I169)+'MDOT FTA Detail'!I171 -> 2947325
A4: MDOT FA Program | B4: =SUM('MDOT FTA Detail'!G6:G109) -> 2184206 | C4: =D4-B4 -> 424471 | D4: =SUM('MDOT FTA Detail'!I6:I109) -> 2608677
A5: Sub-Total MDOT | B5: =B4 -> 2184206 | C5: =C3+C4 -> 3371796 | D5: =D3+D4 -> 5556002
A6: Local STP | B6: =SUM('Local Detail'!G78,'Local Detail'!G79,'Local Detail'!G82:G97,'Local Detail'!G72:G73,'Local Detail'!G53:G54,'Local Detail'!G24) -> 490527 | C6: =D6-B6 -> 141800 | D6: =SUM('Local Detail'!I78,'Local Detail'!I79,'Local Detail'!I82:I97,'Local Detail'!I72:I73,'Local Detail'!I53:I54,'Local Detail'!I24) -> 632327
A7: Local Bridge | B7: =SUM('Local Detail'!G6:G9,'Local Detail'!G13:G16,'Local Detail'!G102,'Local Detail'!G11:G11,'Local Detail'!G43) -> 0 | C7: 0 | D7: =SUM('Local Detail'!I6:I9,'Local Detail'!I13:I16,'Local Detail'!I102,'Local Detail'!I11:I11,'Local Detail'!I43) -> 0
A8: Local CMAQ | B8: =SUM('Local Detail'!G20:G23) -> 148260 | C8: 37065 | D8: =SUM('Local Detail'!I20:I23) -> 185325
A9: Local Safety | B9: =SUM('Local Detail'!G46,'Local Detail'!G48,'Local Detail'!G80:G81) -> 20464 | C9: 2274 | D9: =SUM('Local Detail'!I46,'Local Detail'!I48,'Local Detail'!I80:I81) -> 22738
A10: Local Equity Bonus (TEDF) | B10: =SUM('Local Detail'!G31:G38) -> 0 | C10: 0 | D10: =SUM('Local Detail'!I31:I38) -> 0
A11: Local Other FHWA | B11: =SUM('Local Detail'!G10,'Local Detail'!G12,'Local Detail'!G17:G19,'Local Detail'!G25:G30,'Local Detail'!G39:G42,'Local Detail'!G44:G45,'Local Detail'!G47,'Local Detail'!G49:G52,'Local Detail'!G55:G71,'Local Detail'!G103:G109,'Local Detail'!G98:G101,'Local Detail'!G74:G77) -> 581813 | C11: 329454 | D11: =SUM('Local Detail'!I10,'Local Detail'!I12,'Local Detail'!I17:I19,'Local Detail'!I25:I30,'Local Detail'!I39:I42,'Local Detail'!I44:I45,'Local Detail'!I47,'Local Detail'!I49:I52,'Local Detail'!I55:I71,'Local Detail'!I103:I109,'Local Detail'!I98:I101,'Local Detail'!I74:I77) -> 911267
A12: Local AC Starts | C12: =D12 -> 68918 | D12: ='Local Detail'!I147 -> 68918
A13: Local Non-Federal | C13: =D13 -> 0 | D13: =SUM('Local Detail'!I111:I145) -> 0
A14: Sub-Total Local | B14: =SUM(B6:B11) -> 1241064 | C14: =SUM(C6:C13) -> 579511 | D14: =SUM(D6:D13) -> 1820575
A15: Total Highway | B15: =B14+B5 -> 3425270 | C15: =C14+C5 -> 3951307 | D15: =D14+D5 -> 7376577
A18: Transit Fund Source | B18: Estimated Federal Commitments | C18: Estimated Non-Federal Commitments | D18: Total Proposed Commitments
A19: CTF - Comprehensive Transit Fund | B19: ='MDOT FTA Detail'!G110 -> 0 | C19: =IF(B19>0,D19-B19,'MDOT FTA Detail'!H134+'Local Detail'!H110) -> 0 | D19: ='MDOT FTA Detail'!I110+'MDOT FTA Detail'!I134+'Local Detail'!I110 -> 0
A20: Section 3038 - Over the Road Bus Program | B20: ='MDOT FTA Detail'!G111 -> 0 | C20: =D20-B20 -> 0 | D20: ='MDOT FTA Detail'!I111 -> 0
A21: Section 3045 - National Fuel Cell Technology Development Program | B21: ='MDOT FTA Detail'!G112 -> 0 | C21: =D21-B21 -> 0 | D21: ='MDOT FTA Detail'!I112 -> 0
A22: Section 5303 - Metropolitan Transportation Planning | B22: ='MDOT FTA Detail'!G113 -> 0 | C22: 0 | D22: ='MDOT FTA Detail'!I113 -> 0
A23: Section 5304 - Statewide Transportation Planning | B23: ='MDOT FTA Detail'!G114 -> 0 | C23: 0 | D23: ='MDOT FTA Detail'!I114 -> 0
A24: Section 5305 - Metropolitan and Statewide Planning | B24: ='MDOT FTA Detail'!G115 -> 0 | C24: 0 | D24: ='MDOT FTA Detail'!I115 -> 0
A25: Section 5307 - UZA Formula | B25: ='MDOT FTA Detail'!G116 -> 291000 | C25: 265000 | D25: ='MDOT FTA Detail'!I116 -> 556000
A26: Section 5308 - Clean Fuels Program | B26: ='MDOT FTA Detail'!G117 -> 0 | C26: 0 | D26: ='MDOT FTA Detail'!I117 -> 0
A27: Section 5309 - Fixed Guideway Capital Investment Grant | B27: ='MDOT FTA Detail'!G118 -> 0 | C27: 0 | D27: ='MDOT FTA Detail'!I118 -> 0
A28: Section 5310 - Enhanced Mobility of Seniors and Individuals with Disabilities | B28: ='MDOT FTA Detail'!G119 -> 0 | C28: 0 | D28: ='MDOT FTA Detail'!I119 -> 0
A29: Section 5311 - Non-UZA | B29: ='MDOT FTA Detail'!G120 -> 31927 | C29: 176571 | D29: ='MDOT FTA Detail'!I120 -> 208498
A30: Section 5312 - Research, Development, Demonstration, and Deployment | B30: ='MDOT FTA Detail'!G121 -> 0 | C30: =D30-B30 -> 0 | D30: ='MDOT FTA Detail'!I121 -> 0
A31: Section 5313 - Transit Cooperative Research Program | B31: ='MDOT FTA Detail'!G122 -> 0 | C31: 0 | D31: ='MDOT FTA Detail'!I122 -> 0
A32: Section 5314 - Technical Assistance and Standards | B32: ='MDOT FTA Detail'!G123 -> 0 | C32: 0 | D32: ='MDOT FTA Detail'!I123 -> 0
A33: Section 5316 - Transit - Section 5316 - Job Access/Reverse Commute | B33: ='MDOT FTA Detail'!G124 -> 0 | C33: 0 | D33: ='MDOT FTA Detail'!I124 -> 0
A34: Section 5317 - Transit - Section 5317 - New Freedom Initiative | B34: ='MDOT FTA Detail'!G125 -> 0 | C34: 0 | D34: ='MDOT FTA Detail'!I125 -> 0
A35: Section 5320 - Alternative Transportation in Parks and Public Lands | B35: ='MDOT FTA Detail'!G126 -> 0 | C35: 0 | D35: ='MDOT FTA Detail'!I126 -> 0
A36: Section 5322 - Human Resources and Training | B36: ='MDOT FTA Detail'!G127 -> 0 | C36: =D36-B36 -> 0 | D36: ='MDOT FTA Detail'!I127 -> 0
A37: Section 5324 - Emergency Relief | B37: ='MDOT FTA Detail'!G128 -> 0 | C37: =D37-B37 -> 0 | D37: ='MDOT FTA Detail'!I128 -> 0
A38: Section 5326 - Asset Management Provisions | B38: ='MDOT FTA Detail'!G129 -> 0 | C38: =D38-B38 -> 0 | D38: ='MDOT FTA Detail'!I129 -> 0
A39: Section 5329 - Safety | B39: ='MDOT FTA Detail'!G130 -> 0 | C39: =D39-B39 -> 0 | D39: ='MDOT FTA Detail'!I130 -> 0
A40: Section 5337 - State of Good Repair Grants | B40: ='MDOT FTA Detail'!G131 -> 0 | C40: =D40-B40 -> 0 | D40: ='MDOT FTA Detail'!I131 -> 0
A41: Section 5339 - Bus and Bus Facilities | B41: ='MDOT FTA Detail'!G132 -> 63200 | C41: 15800 | D41: ='MDOT FTA Detail'!I132 -> 79000
A42: Section 5505 - University Transportation Centers Program | B42: ='MDOT FTA Detail'!G133 -> 0 | C42: 0 | D42: ='MDOT FTA Detail'!I133 -> 0
A43: Total Transit | B43: =SUM(B19:B42) -> 386127 | C43: =SUM(C19:C42) -> 457371 | D43: =SUM(D19:D42) -> 843498
A44: Grand Total | B44: =B43+B15 -> 3811397 | C44: =C43+C15 -> 4408678 | D44: =D43+D15 -> 8220075

Sheet FY 2019
B1: FY 2019
A2: Highway Program | B2: Estimated Federal Commitments | C2: Estimated Non-Federal Commitments | D2: Total Proposed Commitments
A3: MDOT AC & M Program | C3: =D3 -> 152373 | D3: =SUM('MDOT FTA Detail'!L135:L169)+'MDOT FTA Detail'!L171 -> 152373
A4: MDOT FA Program | B4: =SUM('MDOT FTA Detail'!J6:J109) -> 53100 | C4: =D4-B4 -> 5900 | D4: =SUM('MDOT FTA Detail'!L6:L109) -> 59000
A5: Sub-Total MDOT | B5: =B4 -> 53100 | C5: =C3+C4 -> 158273 | D5: =D3+D4 -> 211373
A6: Local STP | B6: =SUM('Local Detail'!J78,'Local Detail'!J79,'Local Detail'!J82:J97,'Local Detail'!J72:J73,'Local Detail'!J53:J54,'Local Detail'!J24) -> 480876 | C6: =D6-B6 -> 81660 | D6: =SUM('Local Detail'!L78,'Local Detail'!L79,'Local Detail'!L82:L97,'Local Detail'!L72:L73,'Local Detail'!L53:L54,'Local Detail'!L24) -> 562536
A7: Local Bridge | B7: =SUM('Local Detail'!J6:J9,'Local Detail'!J13:J16,'Local Detail'!J102,'Local Detail'!J11:J11,'Local Detail'!J43) -> 0 | C7: 0 | D7: =SUM('Local Detail'!L6:L9,'Local Detail'!L13:L16,'Local Detail'!L102,'Local Detail'!L11:L11,'Local Detail'!L43) -> 0
A8: Local CMAQ | B8: =SUM('Local Detail'!J20:J23) -> 0 | C8: 0 | D8: =SUM('Local Detail'!L20:L23) -> 0
A9: Local Safety | B9: =SUM('Local Detail'!J46,'Local Detail'!J48,'Local Detail'!J80:J81) -> 0 | C9: 0 | D9: =SUM('Local Detail'!L46,'Local Detail'!L48,'Local Detail'!L80:L81) -> 0
A10: Local Equity Bonus (TEDF) | B10: =SUM('Local Detail'!J31:J38) -> 0 | C10: 0 | D10: =SUM('Local Detail'!L31:L38) -> 0
A11: Local Other FHWA | B11: =SUM('Local Detail'!J10,'Local Detail'!J12,'Local Detail'!J17:J19,'Local Detail'!J25:J30,'Local Detail'!J39:J42,'Local Detail'!J44:J45,'Local Detail'!J47,'Local Detail'!J49:J52,'Local Detail'!J55:J71,'Local Detail'!J103:J109,'Local Detail'!J98:J101,'Local Detail'!J74:J77) -> 0 | C11: 0 | D11: =SUM('Local Detail'!L10,'Local Detail'!L12,'Local Detail'!L17:L19,'Local Detail'!L25:L30,'Local Detail'!L39:L42,'Local Detail'!L44:L45,'Local Detail'!L47,'Local Detail'!L49:L52,'Local Detail'!L55:L71,'Local Detail'!L103:L109,'Local Detail'!L98:L101,'Local Detail'!L74:L77) -> 0
A12: Local AC Starts | C12: =D12 -> 79732 | D12: ='Local Detail'!L147 -> 79732
A13: Local Non-Federal | C13: =D13 -> 0 | D13: =SUM('Local Detail'!L111:L145) -> 0
A14: Sub-Total Local | B14: =SUM(B6:B11) -> 480876 | C14: =SUM(C6:C13) -> 161392 | D14: =SUM(D6:D13) -> 642268
A15: Total Highway | B15: =B14+B5 -> 533976 | C15: =C14+C5 -> 319665 | D15: =D14+D5 -> 853641
A18: Transit Fund Source | B18: Estimated Federal Commitments | C18: Estimated Non-Federal Commitments | D18: Total Proposed Commitments
A19: CTF - Comprehensive Transit Fund | B19: ='MDOT FTA Detail'!J110 -> 0 | C19: =IF(B19>0,D19-B19,'MDOT FTA Detail'!K134+'Local Detail'!K110) -> 0 | D19: ='MDOT FTA Detail'!L110+'MDOT FTA Detail'!L134+'Local Detail'!L110 -> 0
A20: Section 3038 - Over the Road Bus Program | B20: ='MDOT FTA Detail'!J111 -> 0 | C20: =D20-B20 -> 0 | D20: ='MDOT FTA Detail'!L111 -> 0
A21: Section 3045 - National Fuel Cell Technology Development Program | B21: ='MDOT FTA Detail'!J112 -> 0 | C21: =D21-B21 -> 0 | D21: ='MDOT FTA Detail'!L112 -> 0
A22: Section 5303 - Metropolitan Transportation Planning | B22: ='MDOT FTA Detail'!J113 -> 0 | C22: 0 | D22: ='MDOT FTA Detail'!L113 -> 0
A23: Section 5304 - Statewide Transportation Planning | B23: ='MDOT FTA Detail'!J114 -> 0 | C23: 0 | D23: ='MDOT FTA Detail'!L114 -> 0
A24: Section 5305 - Metropolitan and Statewide Planning | B24: ='MDOT FTA Detail'!J115 -> 0 | C24: 0 | D24: ='MDOT FTA Detail'!L115 -> 0
A25: Section 5307 - UZA Formula | B25: ='MDOT FTA Detail'!J116 -> 291000 | C25: 265000 | D25: ='MDOT FTA Detail'!L116 -> 556000
A26: Section 5308 - Clean Fuels Program | B26: ='MDOT FTA Detail'!J117 -> 0 | C26: 0 | D26: ='MDOT FTA Detail'!L117 -> 0
A27: Section 5309 - Fixed Guideway Capital Investment Grant | B27: ='MDOT FTA Detail'!J118 -> 0 | C27: 0 | D27: ='MDOT FTA Detail'!L118 -> 0
A28: Section 5310 - Enhanced Mobility of Seniors and Individuals with Disabilities | B28: ='MDOT FTA Detail'!J119 -> 0 | C28: 0 | D28: ='MDOT FTA Detail'!L119 -> 0
A29: Section 5311 - Non-UZA | B29: ='MDOT FTA Detail'!J120 -> 24629 | C29: 182944 | D29: ='MDOT FTA Detail'!L120 -> 207573
A30: Section 5312 - Research, Development, Demonstration, and Deployment | B30: ='MDOT FTA Detail'!J121 -> 0 | C30: =D30-B30 -> 0 | D30: ='MDOT FTA Detail'!L121 -> 0
A31: Section 5313 - Transit Cooperative Research Program | B31: ='MDOT FTA Detail'!J122 -> 0 | C31: 0 | D31: ='MDOT FTA Detail'!L122 -> 0
A32: Section 5314 - Technical Assistance and Standards | B32: ='MDOT FTA Detail'!J123 -> 0 | C32: 0 | D32: ='MDOT FTA Detail'!L123 -> 0
A33: Section 5316 - Transit - Section 5316 - Job Access/Reverse Commute | B33: ='MDOT FTA Detail'!J124 -> 0 | C33: 0 | D33: ='MDOT FTA Detail'!L124 -> 0
A34: Section 5317 - Transit - Section 5317 - New Freedom Initiative | B34: ='MDOT FTA Detail'!J125 -> 0 | C34: 0 | D34: ='MDOT FTA Detail'!L125 -> 0
A35: Section 5320 - Alternative Transportation in Parks and Public Lands | B35: ='MDOT FTA Detail'!J126 -> 0 | C35: 0 | D35: ='MDOT FTA Detail'!L126 -> 0
A36: Section 5322 - Human Resources and Training | B36: ='MDOT FTA Detail'!J127 -> 0 | C36: =D36-B36 -> 0 | D36: ='MDOT FTA Detail'!L127 -> 0
A37: Section 5324 - Emergency Relief | B37: ='MDOT FTA Detail'!J128 -> 0 | C37: =D37-B37 -> 0 | D37: ='MDOT FTA Detail'!L128 -> 0
A38: Section 5326 - Asset Management Provisions | B38: ='MDOT FTA Detail'!J129 -> 0 | C38: =D38-B38 -> 0 | D38: ='MDOT FTA Detail'!L129 -> 0
A39: Section 5329 - Safety | B39: ='MDOT FTA Detail'!J130 -> 0 | C39: =D39-B39 -> 0 | D39: ='MDOT FTA Detail'!L130 -> 0
A40: Section 5337 - State of Good Repair Grants | B40: ='MDOT FTA Detail'!J131 -> 0 | C40: =D40-B40 -> 0 | D40: ='MDOT FTA Detail'!L131 -> 0
A41: Section 5339 - Bus and Bus Facilities | B41: ='MDOT FTA Detail'!J132 -> 16040 | C41: 4150 | D41: ='MDOT FTA Detail'!L132 -> 20190
A42: Section 5505 - University Transportation Centers Program | B42: ='MDOT FTA Detail'!J133 -> 0 | C42: 0 | D42: ='MDOT FTA Detail'!L133 -> 0
A43: Total Transit | B43: =SUM(B19:B42) -> 331669 | C43: =SUM(C19:C42) -> 452094 | D43: =SUM(D19:D42) -> 783763
A44: Grand Total | B44: =B43+B15 -> 865645 | C44: =C43+C15 -> 771759 | D44: =D43+D15 -> 1637404

Sheet FY 2020
B1: FY 2020
A2: Highway Program | B2: Estimated Federal Commitments | C2: Estimated Non-Federal Commitments | D2: Total Proposed Commitments
A3: MDOT AC & M Program | C3: =D3 -> 7240450 | D3: =SUM('MDOT FTA Detail'!O135:O169)+'MDOT FTA Detail'!O171 -> 7240450
A4: MDOT FA Program | B4: =SUM('MDOT FTA Detail'!M6:M109) -> 2723968 | C4: =D4-B4 -> 604032 | D4: =SUM('MDOT FTA Detail'!O6:O109) -> 3328000
A5: Sub-Total MDOT | B5: =B3+B4 -> 2723968 | C5: =D5-B5 -> 7844482 | D5: =D3+D4 -> 10568450
A6: Local STP | B6: =SUM('Local Detail'!M78,'Local Detail'!M79,'Local Detail'!M82:M97,'Local Detail'!M72:M73,'Local Detail'!M53:M54,'Local Detail'!M24) -> 518608 | C6: 100406 | D6: =SUM('Local Detail'!O78,'Local Detail'!O79,'Local Detail'!O82:O97,'Local Detail'!O72:O73,'Local Detail'!O53:O54,'Local Detail'!O24) -> 619014
A7: Local Bridge | B7: =SUM('Local Detail'!M6:M9,'Local Detail'!M13:M16,'Local Detail'!M102,'Local Detail'!M11:M11,'Local Detail'!M43) -> 0 | C7: 0 | D7: =SUM('Local Detail'!O6:O9,'Local Detail'!O13:O16,'Local Detail'!O102,'Local Detail'!O11:O11,'Local Detail'!O43) -> 0
A8: Local CMAQ | B8: =SUM('Local Detail'!M20:M23) -> 0 | C8: 0 | D8: =SUM('Local Detail'!O20:O23) -> 0
A9: Local Safety | B9: =SUM('Local Detail'!M46,'Local Detail'!M48,'Local Detail'!M80:M81) -> 0 | C9: 0 | D9: =SUM('Local Detail'!O46,'Local Detail'!O48,'Local Detail'!O80:O81) -> 0
A10: Local Equity Bonus (TEDF) | B10: =SUM('Local Detail'!M31:M38) -> 0 | C10: 0 | D10: =SUM('Local Detail'!O31:O38) -> 0
A11: Local Other FHWA | B11: =SUM('Local Detail'!M10,'Local Detail'!M12,'Local Detail'!M17:M19,'Local Detail'!M25:M30,'Local Detail'!M39:M42,'Local Detail'!M44:M45,'Local Detail'!M47,'Local Detail'!M49:M52,'Local Detail'!M55:M71,'Local Detail'!M103:M109,'Local Detail'!M98:M101,'Local Detail'!M74:M77) -> 130777 | C11: 87120 | D11: =SUM('Local Detail'!O10,'Local Detail'!O12,'Local Detail'!O17:O19,'Local Detail'!O25:O30,'Local Detail'!O39:O42,'Local Detail'!O44:O45,'Local Detail'!O47,'Local Detail'!O49:O52,'Local Detail'!O55:O71,'Local Detail'!O103:O109,'Local Detail'!O98:O101,'Local Detail'!O74:O77) -> 217897
A12: Local AC Starts | C12: =D12 -> 0 | D12: ='Local Detail'!O147 -> 0
A13: Local Non-Federal | C13: =D13 -> 0 | D13: =SUM('Local Detail'!O111:O145) -> 0
A14: Sub-Total Local | B14: =SUM(B6:B11) -> 649385 | C14: =SUM(C6:C13) -> 187526 | D14: =SUM(D6:D13) -> 836911
A15: Total Highway | B15: =B14+B5 -> 3373353 | C15: =C14+C5 -> 8032008 | D15: =D14+D5 -> 11405361
A18: Transit Fund Source | B18: Estimated Federal Commitments | C18: Estimated Non-Federal Commitments | D18: Total Proposed Commitments
A19: CTF - Comprehensive Transit Fund | B19: ='MDOT FTA Detail'!M110 -> 0 | C19: =IF(B19>0,D19-B19,'MDOT FTA Detail'!N134+'Local Detail'!N110) -> 0 | D19: ='MDOT FTA Detail'!O110+'MDOT FTA Detail'!O134+'Local Detail'!O110 -> 0
A20: Section 3038 - Over the Road Bus Program | B20: ='MDOT FTA Detail'!M111 -> 0 | C20: =D20-B20 -> 0 | D20: ='MDOT FTA Detail'!O111 -> 0
A21: Section 3045 - National Fuel Cell Technology Development Program | B21: ='MDOT FTA Detail'!M112 -> 0 | C21: =D21-B21 -> 0 | D21: ='MDOT FTA Detail'!O112 -> 0
A22: Section 5303 - Metropolitan Transportation Planning | B22: ='MDOT FTA Detail'!M113 -> 0 | C22: 0 | D22: ='MDOT FTA Detail'!O113 -> 0
A23: Section 5304 - Statewide Transportation Planning | B23: ='MDOT FTA Detail'!M114 -> 0 | C23: 0 | D23: ='MDOT FTA Detail'!O114 -> 0
A24: Section 5305 - Metropolitan and Statewide Planning | B24: ='MDOT FTA Detail'!M115 -> 0 | C24: 0 | D24: ='MDOT FTA Detail'!O115 -> 0
A25: Section 5307 - UZA Formula | B25: ='MDOT FTA Detail'!M116 -> 276400 | C25: 261600 | D25: ='MDOT FTA Detail'!O116 -> 538000
A26: Section 5308 - Clean Fuels Program | B26: ='MDOT FTA Detail'!M117 -> 0 | C26: 0 | D26: ='MDOT FTA Detail'!O117 -> 0
A27: Section 5309 - Fixed Guideway Capital Investment Grant | B27: ='MDOT FTA Detail'!M118 -> 0 | C27: 0 | D27: ='MDOT FTA Detail'!O118 -> 0
A28: Section 5310 - Enhanced Mobility of Seniors and Individuals with Disabilities | B28: ='MDOT FTA Detail'!M119 -> 0 | C28: 0 | D28: ='MDOT FTA Detail'!O119 -> 0
A29: Section 5311 - Non-UZA | B29: ='MDOT FTA Detail'!M120 -> 0 | C29: 0 | D29: ='MDOT FTA Detail'!O120 -> 0
A30: Section 5312 - Research, Development, Demonstration, and Deployment | B30: ='MDOT FTA Detail'!M121 -> 0 | C30: =D30-B30 -> 0 | D30: ='MDOT FTA Detail'!O121 -> 0
A31: Section 5313 - Transit Cooperative Research Program | B31: ='MDOT FTA Detail'!M122 -> 0 | C31: 0 | D31: ='MDOT FTA Detail'!O122 -> 0
A32: Section 5314 - Technical Assistance and Standards | B32: ='MDOT FTA Detail'!M123 -> 0 | C32: 0 | D32: ='MDOT FTA Detail'!O123 -> 0
A33: Section 5316 - Transit - Section 5316 - Job Access/Reverse Commute | B33: ='MDOT FTA Detail'!M124 -> 0 | C33: 0 | D33: ='MDOT FTA Detail'!O124 -> 0
A34: Section 5317 - Transit - Section 5317 - New Freedom Initiative | B34: ='MDOT FTA Detail'!M125 -> 0 | C34: 0 | D34: ='MDOT FTA Detail'!O125 -> 0
A35: Section 5320 - Alternative Transportation in Parks and Public Lands | B35: ='MDOT FTA Detail'!M126 -> 0 | C35: 0 | D35: ='MDOT FTA Detail'!O126 -> 0
A36: Section 5322 - Human Resources and Training | B36: ='MDOT FTA Detail'!M127 -> 0 | C36: =D36-B36 -> 0 | D36: ='MDOT FTA Detail'!O127 -> 0
A37: Section 5324 - Emergency Relief | B37: ='MDOT FTA Detail'!M128 -> 0 | C37: =D37-B37 -> 0 | D37: ='MDOT FTA Detail'!O128 -> 0
A38: Section 5326 - Asset Management Provisions | B38: ='MDOT FTA Detail'!M129 -> 0 | C38: =D38-B38 -> 0 | D38: ='MDOT FTA Detail'!O129 -> 0
A39: Section 5329 - Safety | B39: ='MDOT FTA Detail'!M130 -> 0 | C39: =D39-B39 -> 0 | D39: ='MDOT FTA Detail'!O130 -> 0
A40: Section 5337 - State of Good Repair Grants | B40: ='MDOT FTA Detail'!M131 -> 0 | C40: =D40-B40 -> 0 | D40: ='MDOT FTA Detail'!O131 -> 0
A41: Section 5339 - Bus and Bus Facilities | B41: ='MDOT FTA Detail'!M132 -> 56000 | C41: 14000 | D41: ='MDOT FTA Detail'!O132 -> 70000
A42: Section 5505 - University Transportation Centers Program | B42: ='MDOT FTA Detail'!M133 -> 0 | C42: 0 | D42: ='MDOT FTA Detail'!O133 -> 0
A43: Total Transit | B43: =SUM(B19:B42) -> 332400 | C43: =SUM(C19:C42) -> 275600 | D43: =SUM(D19:D42) -> 608000
A44: Grand Total | B44: =B43+B15 -> 3705753 | C44: =C43+C15 -> 8307608 | D44: =D43+D15 -> 12013361

Sheet Constraint
A1: 2016-07-08 | B1: 2017 | F1: 2018 | J1: 2019 | N1: 2020
A2: Highway Program | B2: Estimated Federal Revenue | C2: Estimated Non-Federal Revenue | D2: Estimated Total Revenue | E2: Total Proposed Commitments | F2: Estimated Federal Revenue | G2: Estimated Non-Federal Revenue | H2: Estimated Total Revenue | I2: Total Proposed Commitments | J2: Estimated Federal Revenue | K2: Estimated Non-Federal Revenue | L2: Estimated Total Revenue | M2: Total Proposed Commitments | N2: Estimated Federal Revenue | O2: Estimated Non-Federal Revenue | P2: Estimated Total Revenue | Q2: Total Proposed Commitments
A3: MDOT AC & M Program | C3: 0 | D3: =C3 -> 0 | E3: ='FY 2017'!D3 -> 0 | G3: 2947325 | H3: =G3 -> 2947325 | I3: ='FY 2018'!D3 -> 2947325 | K3: 152373 | L3: =K3 -> 152373 | M3: ='FY 2019'!D3 -> 152373 | O3: 7240450 | P3: =O3 -> 7240450 | Q3: ='FY 2020'!D3 -> 7240450
A4: MDOT FA Program | B4: =SUM('MDOT FTA Detail'!D6:D109) -> 283091.0369 | C4: =SUM('MDOT FTA Detail'!E6:E109) -> 33282.0915 | D4: =B4+C4 -> 316373.1284 | E4: ='FY 2017'!D4 -> 316373.1284 | F4: 2184206 | G4: 424471 | H4: =F4+G4 -> 2608677 | I4: ='FY 2018'!D4 -> 2608677 | J4: 53100 | K4: 5900 | L4: =J4+K4 -> 59000 | M4: ='FY 2019'!D4 -> 59000 | N4: 3580128 | O4: 604032 | P4: =N4+O4 -> 4184160 | Q4: ='FY 2020'!D4 -> 3328000
A5: Sub-Total MDOT | B5: =B3+B4 -> 283091.0369 | C5: =C3+C4 -> 33282.0915 | D5: =D3+D4 -> 316373.1284 | E5: ='FY 2017'!D5 -> 316373.1284 | F5: =F3+F4 -> 2184206 | G5: =G3+G4 -> 3371796 | H5: =H3+H4 -> 5556002 | I5: ='FY 2018'!D5 -> 5556002 | J5: =J3+J4 -> 53100 | K5: =K3+K4 -> 158273 | L5: =L3+L4 -> 211373 | M5: ='FY 2019'!D5 -> 211373 | N5: =N3+N4 -> 3580128 | O5: =O3+O4 -> 7844482 | P5: =P3+P4 -> 11424610 | Q5: ='FY 2020'!D5 -> 10568450
A6: Local STP | B6: 518608 | C6: 183969 | D6: =B6+C6 -> 702577 | E6: ='FY 2017'!D6 -> 698789 | F6: 534650 | G6: 141800 | H6: =F6+G6 -> 676450 | I6: ='FY 2018'!D6 -> 632327 | J6: 518608 | K6: 81660 | L6: =J6+K6 -> 600268 | M6: ='FY 2019'!D6 -> 562536 | N6: 518608 | O6: 100406 | P6: =N6+O6 -> 619014 | Q6: ='FY 2020'!D6 -> 619014
A7: Local Bridge | B7: 0 | C7: 0 | D7: =B7+C7 -> 0 | E7: ='FY 2017'!D7 -> 0 | F7: 0 | G7: 0 | H7: =F7+G7 -> 0 | I7: ='FY 2018'!D7 -> 0 | J7: 0 | K7: 0 | L7: =J7+K7 -> 0 | M7: ='FY 2019'!D7 -> 0 | N7: 0 | O7: 0 | P7: =N7+O7 -> 0 | Q7: ='FY 2020'!D7 -> 0
A8: Local CMAQ | B8: 12000 | C8: 0 | D8: 12000 | E8: ='FY 2017'!D8 -> 12000 | F8: 148260 | G8: 37065 | H8: 185325 | I8: ='FY 2018'!D8 -> 185325 | J8: 0 | K8: 0 | L8: 0 | M8: ='FY 2019'!D8 -> 0 | N8: 0 | O8: 0 | P8: 0 | Q8: ='FY 2020'!D8 -> 0
A9: Local Safety | B9: 54000 | C9: 6000 | D9: 60000 | E9: ='FY 2017'!D9 -> 60000 | F9: 20464 | G9: 2274 | H9: 22738 | I9: ='FY 2018'!D9 -> 22738 | J9: 0 | K9: 0 | L9: 0 | M9: ='FY 2019'!D9 -> 0 | N9: 0 | O9: 0 | P9: 0 | Q9: ='FY 2020'!D9 -> 0
A10: Local Equity Bonus (TEDF) | B10: 0 | C10: 0 | D10: 0 | E10: ='FY 2017'!D10 -> 0 | F10: 0 | G10: 0 | H10: 0 | I10: ='FY 2018'!D10 -> 0 | J10: 0 | K10: 0 | L10: 0 | M10: ='FY 2019'!D10 -> 0 | N10: 0 | O10: 0 | P10: 0 | Q10: ='FY 2020'!D10 -> 0
A11: Local Other FHWA | D11: 0 | E11: ='FY 2017'!D11 -> 0 | F11: 581813 | G11: 329454 | H11: 911267 | I11: ='FY 2018'!D11 -> 911267 | J11: 0 | K11: 0 | L11: 0 | M11: ='FY 2019'!D11 -> 0 | N11: 130777 | O11: 87120 | P11: 217897 | Q11: ='FY 2020'!D11 -> 217897
A12: Local AC Starts | C12: 0 | D12: 0 | E12: ='FY 2017'!D12 -> 0 | G12: 68918 | H12: 68918 | I12: ='FY 2018'!D12 -> 68918 | K12: 79732 | L12: 79732 | M12: ='FY 2019'!D12 -> 79732 | O12: 0 | P12: 0 | Q12: ='FY 2020'!D12 -> 0
A13: Local Non-Federal | C13: 0 | D13: 0 | E13: ='FY 2017'!D13 -> 0 | I13: ='FY 2018'!D13 -> 0 | K13: 0 | L13: 0 | M13: ='FY 2019'!D13 -> 0 | O13: 0 | P13: 0 | Q13: ='FY 2020'!D13 -> 0
A14: Sub-Total Local | B14: =SUM(B6:B11) -> 584608 | C14: =SUM(C6:C13) -> 189969 | D14: =SUM(D6:D13) -> 774577 | E14: ='FY 2017'!D14 -> 770789 | F14: =SUM(F6:F11) -> 1285187 | G14: =SUM(G6:G13) -> 579511 | H14: =SUM(H6:H13) -> 1864698 | I14: ='FY 2018'!D14 -> 1820575 | J14: =SUM(J6:J11) -> 518608 | K14: =SUM(K6:K13) -> 161392 | L14: =SUM(L6:L13) -> 680000 | M14: ='FY 2019'!D14 -> 642268 | N14: =SUM(N6:N11) -> 649385 | O14: =SUM(O6:O13) -> 187526 | P14: =SUM(P6:P13) -> 836911 | Q14: ='FY 2020'!D14 -> 836911
A15: Total Highway | B15: =B14+B5 -> 867699.0369 | C15: =C14+C5 -> 223251.0915 | D15: =D14+D5 -> 1090950.128 | E15: ='FY 2017'!D15 -> 1087162.128 | F15: =F14+F5 -> 3469393 | G15: =G14+G5 -> 3951307 | H15: =H14+H5 -> 7420700 | I15: ='FY 2018'!D15 -> 7376577 | J15: =J14+J5 -> 571708 | K15: =K14+K5 -> 319665 | L15: =L14+L5 -> 891373 | M15: ='FY 2019'!D15 -> 853641 | N15: =N14+N5 -> 4229513 | O15: =O14+O5 -> 8032008 | P15: =P14+P5 -> 12261521 | Q15: ='FY 2020'!D15 -> 11405361
A18: Transit Fund Source | B18: Estimated Federal Revenue | C18: Estimated Non-Federal Revenue | D18: Estimated Total Revenue | E18: Total Proposed Commitments | F18: Estimated Federal Revenue | G18: Estimated Non-Federal Revenue | H18: Estimated Total Revenue | I18: Total Proposed Commitments | J18: Estimated Federal Revenue | K18: Estimated Non-Federal Revenue | L18: Estimated Total Revenue | M18: Total Proposed Commitments | N18: Estimated Federal Revenue | O18: Estimated Non-Federal Revenue | P18: Estimated Total Revenue | Q18: Total Proposed Commitments
A19: CTF - Comprehensive Transit Fund | B19: 0 | C19: 0 | D19: =B19+C19 -> 0 | E19: ='FY 2017'!D19 -> 0 | F19: 0 | G19: 0 | H19: =F19+G19 -> 0 | I19: ='FY 2018'!D19 -> 0 | J19: 0 | K19: 0 | L19: =J19+K19 -> 0 | M19: ='FY 2019'!D19 -> 0 | N19: 0 | O19: 0 | P19: =N19+O19 -> 0 | Q19: ='FY 2020'!D19 -> 0
A20: Section 3038 - Over the Road Bus Program | B20: 0 | C20: 0 | D20: =B20+C20 -> 0 | E20: ='FY 2017'!D20 -> 0 | F20: 0 | G20: 0 | H20: =F20+G20 -> 0 | I20: ='FY 2018'!D20 -> 0 | J20: 0 | K20: 0 | L20: =J20+K20 -> 0 | M20: ='FY 2019'!D20 -> 0 | N20: 0 | O20: 0 | P20: =N20+O20 -> 0 | Q20: ='FY 2020'!D20 -> 0
A21: Section 3045 - National Fuel Cell Technology Development Program | B21: 0 | C21: 0 | D21: =B21+C21 -> 0 | E21: ='FY 2017'!D21 -> 0 | F21: 0 | G21: 0 | H21: =F21+G21 -> 0 | I21: ='FY 2018'!D21 -> 0 | J21: 0 | K21: 0 | L21: =J21+K21 -> 0 | M21: ='FY 2019'!D21 -> 0 | N21: 0 | O21: 0 | P21: =N21+O21 -> 0 | Q21: ='FY 2020'!D21 -> 0
A22: Section 5303 - Metropolitan Transportation Planning | B22: 0 | C22: 0 | D22: 0 | E22: ='FY 2017'!D22 -> 0 | F22: 0 | G22: 0 | H22: 0 | I22: ='FY 2018'!D22 -> 0 | J22: 0 | K22: 0 | L22: 0 | M22: ='FY 2019'!D22 -> 0 | N22: 0 | O22: 0 | P22: 0 | Q22: ='FY 2020'!D22 -> 0
A23: Section 5304 - Statewide Transportation Planning | B23: 0 | C23: 0 | D23: 0 | E23: ='FY 2017'!D23 -> 0 | F23: 0 | G23: 0 | H23: 0 | I23: ='FY 2018'!D23 -> 0 | J23: 0 | K23: 0 | L23: 0 | M23: ='FY 2019'!D23 -> 0 | N23: 0 | O23: 0 | P23: 0 | Q23: ='FY 2020'!D23 -> 0
A24: Section 5305 - Metropolitan and Statewide Planning | B24: 0 | C24: 0 | D24: 0 | E24: ='FY 2017'!D24 -> 0 | F24: 0 | G24: 0 | H24: 0 | I24: ='FY 2018'!D24 -> 0 | J24: 0 | K24: 0 | L24: 0 | M24: ='FY 2019'!D24 -> 0 | N24: 0 | O24: 0 | P24: 0 | Q24: ='FY 2020'!D24 -> 0
A25: Section 5307 - UZA Formula | B25: 291000 | C25: 265000 | D25: 556000 | E25: ='FY 2017'!D25 -> 556000 | F25: 291000 | G25: 265000 | H25: 556000 | I25: ='FY 2018'!D25 -> 556000 | J25: 291000 | K25: 265000 | L25: 556000 | M25: ='FY 2019'!D25 -> 556000 | N25: 276400 | O25: 261600 | P25: 538000 | Q25: ='FY 2020'!D25 -> 538000
A26: Section 5308 - Clean Fuels Program | B26: 0 | C26: 0 | D26: 0 | E26: ='FY 2017'!D26 -> 0 | F26: 0 | G26: 0 | H26: 0 | I26: ='FY 2018'!D26 -> 0 | J26: 0 | K26: 0 | L26: 0 | M26: ='FY 2019'!D26 -> 0 | N26: 0 | O26: 0 | P26: 0 | Q26: ='FY 2020'!D26 -> 0
A27: Section 5309 - Capital Bus and Capital New Starts | B27: 0 | C27: 0 | D27: 0 | E27: ='FY 2017'!D27 -> 0 | F27: 0 | G27: 0 | H27: 0 | I27: ='FY 2018'!D27 -> 0 | J27: 0 | K27: 0 | L27: 0 | M27: ='FY 2019'!D27 -> 0 | N27: 0 | O27: 0 | P27: 0 | Q27: ='FY 2020'!D27 -> 0
A28: Section 5310 - Elderly & Disabled | B28: 0 | C28: 0 | D28: 0 | E28: ='FY 2017'!D28 -> 0 | F28: 0 | G28: 0 | H28: 0 | I28: ='FY 2018'!D28 -> 0 | J28: 0 | K28: 0 | L28: 0 | M28: ='FY 2019'!D28 -> 0 | N28: 0 | O28: 0 | P28: 0 | Q28: ='FY 2020'!D28 -> 0
A29: Section 5311 - Non-UZA | B29: 0 | C29: 0 | D29: 0 | E29: ='FY 2017'!D29 -> 0 | F29: =31927 -> 31927 | G29: 176571 | H29: 208498 | I29: ='FY 2018'!D29 -> 208498 | J29: 24629 | K29: 182944 | L29: 207573 | M29: ='FY 2019'!D29 -> 207573 | N29: 0 | O29: 0 | P29: 0 | Q29: ='FY 2020'!D29 -> 0
A30: Section 5312 - Research, Development, Demonstration, and Deployment | B30: 0 | C30: 0 | D30: =B30+C30 -> 0 | E30: ='FY 2017'!D30 -> 0 | F30: 0 | G30: 0 | H30: =F30+G30 -> 0 | I30: ='FY 2018'!D30 -> 0 | J30: 0 | K30: 0 | L30: =J30+K30 -> 0 | M30: ='FY 2019'!D30 -> 0 | N30: 0 | O30: 0 | P30: =N30+O30 -> 0 | Q30: ='FY 2020'!D30 -> 0
A31: Section 5313 - Transit Cooperative Research Program | B31: 0 | C31: 0 | D31: 0 | E31: ='FY 2017'!D31 -> 0 | F31: 0 | G31: 0 | H31: 0 | I31: ='FY 2018'!D31 -> 0 | J31: 0 | K31: 0 | L31: 0 | M31: ='FY 2019'!D31 -> 0 | N31: 0 | O31: 0 | P31: 0 | Q31: ='FY 2020'!D31 -> 0
A32: Section 5314 - National Research and Technology Program | B32: 0 | C32: 0 | D32: 0 | E32: ='FY 2017'!D32 -> 0 | F32: 0 | G32: 0 | H32: 0 | I32: ='FY 2018'!D32 -> 0 | J32: 0 | K32: 0 | L32: 0 | M32: ='FY 2019'!D32 -> 0 | N32: 0 | O32: 0 | P32: 0 | Q32: ='FY 2020'!D32 -> 0
A33: Section 5316 - Job Access/Reverse Commute | B33: 0 | C33: 0 | D33: 0 | E33: ='FY 2017'!D33 -> 0 | F33: 0 | G33: 0 | H33: 0 | I33: ='FY 2018'!D33 -> 0 | J33: 0 | K33: 0 | L33: 0 | M33: ='FY 2019'!D33 -> 0 | N33: 0 | O33: 0 | P33: 0 | Q33: ='FY 2020'!D33 -> 0
A34: Section 5317 - New Freedom Initiative | B34: 0 | C34: 0 | D34: 0 | E34: ='FY 2017'!D34 -> 0 | F34: 0 | G34: 0 | H34: 0 | I34: ='FY 2018'!D34 -> 0 | J34: 0 | K34: 0 | L34: 0 | M34: ='FY 2019'!D34 -> 0 | N34: 0 | O34: 0 | P34: 0 | Q34: ='FY 2020'!D34 -> 0
A35: Section 5320 - Alternative Transportation in Parks and Public Lands | B35: 0 | C35: 0 | D35: 0 | E35: ='FY 2017'!D35 -> 0 | F35: 0 | G35: 0 | H35: 0 | I35: ='FY 2018'!D35 -> 0 | J35: 0 | K35: 0 | L35: 0 | M35: ='FY 2019'!D35 -> 0 | N35: 0 | O35: 0 | P35: 0 | Q35: ='FY 2020'!D35 -> 0
A36: Section 5322 - Human Resources and Training | B36: 0 | C36: 0 | D36: =B36+C36 -> 0 | E36: ='FY 2017'!D36 -> 0 | F36: 0 | G36: 0 | H36: =F36+G36 -> 0 | I36: ='FY 2018'!D36 -> 0 | J36: 0 | K36: 0 | L36: =J36+K36 -> 0 | M36: ='FY 2019'!D36 -> 0 | N36: 0 | O36: 0 | P36: =N36+O36 -> 0 | Q36: ='FY 2020'!D36 -> 0
A37: Section 5324 - Emergency Relief | B37: 0 | C37: 0 | D37: =B37+C37 -> 0 | E37: ='FY 2017'!D37 -> 0 | F37: 0 | G37: 0 | H37: =F37+G37 -> 0 | I37: ='FY 2018'!D37 -> 0 | J37: 0 | K37: 0 | L37: =J37+K37 -> 0 | M37: ='FY 2019'!D37 -> 0 | N37: 0 | O37: 0 | P37: =N37+O37 -> 0 | Q37: ='FY 2020'!D37 -> 0
A38: Section 5326 - Asset Management Provisions | B38: 0 | C38: 0 | D38: =B38+C38 -> 0 | E38: ='FY 2017'!D38 -> 0 | F38: 0 | G38: 0 | H38: =F38+G38 -> 0 | I38: ='FY 2018'!D38 -> 0 | J38: 0 | K38: 0 | L38: =J38+K38 -> 0 | M38: ='FY 2019'!D38 -> 0 | N38: 0 | O38: 0 | P38: =N38+O38 -> 0 | Q38: ='FY 2020'!D38 -> 0
A39: Section 5329 - Safety | B39: 0 | C39: 0 | D39: =B39+C39 -> 0 | E39: ='FY 2017'!D39 -> 0 | F39: 0 | G39: 0 | H39: =F39+G39 -> 0 | I39: ='FY 2018'!D39 -> 0 | J39: 0 | K39: 0 | L39: =J39+K39 -> 0 | M39: ='FY 2019'!D39 -> 0 | N39: 0 | O39: 0 | P39: =N39+O39 -> 0 | Q39: ='FY 2020'!D39 -> 0
A40: Section 5337 - State of Good Repair Grants | B40: 0 | C40: 0 | D40: =B40+C40 -> 0 | E40: ='FY 2017'!D40 -> 0 | F40: 0 | G40: 0 | H40: =F40+G40 -> 0 | I40: ='FY 2018'!D40 -> 0 | J40: 0 | K40: 0 | L40: =J40+K40 -> 0 | M40: ='FY 2019'!D40 -> 0 | N40: 0 | O40: 0 | P40: =N40+O40 -> 0 | Q40: ='FY 2020'!D40 -> 0
A41: Section 5339 - Bus and Bus Facilities | B41: 56000 | C41: 14000 | D41: 70000 | E41: ='FY 2017'!D41 -> 70000 | F41: 63200 | G41: 15800 | H41: 79000 | I41: ='FY 2018'!D41 -> 79000 | J41: 16040 | K41: 4150 | L41: 20190 | M41: ='FY 2019'!D41 -> 20190 | N41: 56000 | O41: 14000 | P41: 70000 | Q41: ='FY 2020'!D41 -> 70000
A42: Section 5505 - University Transportation Centers Program | B42: 0 | C42: 0 | D42: 0 | E42: ='FY 2017'!D42 -> 0 | F42: 0 | G42: 0 | H42: 0 | I42: ='FY 2018'!D42 -> 0 | J42: 0 | K42: 0 | L42: 0 | M42: ='FY 2019'!D42 -> 0 | N42: 0 | O42: 0 | P42: 0 | Q42: ='FY 2020'!D42 -> 0
A43: Total Transit | B43: =SUM(B19:B42) -> 347000 | C43: =SUM(C19:C42) -> 279000 | D43: =SUM(D19:D42) -> 626000 | E43: ='FY 2017'!D43 -> 626000 | F43: =SUM(F19:F42) -> 386127 | G43: =SUM(G19:G42) -> 457371 | H43: =SUM(H19:H42) -> 843498 | I43: ='FY 2018'!D43 -> 843498 | J43: =SUM(J19:J42) -> 331669 | K43: =SUM(K19:K42) -> 452094 | L43: =SUM(L19:L42) -> 783763 | M43: ='FY 2019'!D43 -> 783763 | N43: =SUM(N19:N42) -> 332400 | O43: =SUM(O19:O42) -> 275600 | P43: =SUM(P19:P42) -> 608000 | Q43: ='FY 2020'!D43 -> 608000
A44: Grand Total | B44: =B43+B15 -> 1214699.037 | C44: =C43+C15 -> 502251.0915 | D44: =D43+D15 -> 1716950.128 | E44: ='FY 2017'!D44 -> 1713162.128 | F44: =F43+F15 -> 3855520 | G44: =G43+G15 -> 4408678 | H44: =H43+H15 -> 8264198 | I44: ='FY 2018'!D44 -> 8220075 | J44: =J43+J15 -> 903377 | K44: =K43+K15 -> 771759 | L44: =L43+L15 -> 1675136 | M44: ='FY 2019'!D44 -> 1637404 | N44: =N43+N15 -> 4561913 | O44: =O43+O15 -> 8307608 | P44: =P43+P15 -> 12869521 | Q44: ='FY 2020'!D44 -> 12013361

Sheet FHWA GPA
A1: GPA Projects
A3: Required Fields | Z3: Optional Fields
A4: Fiscal Year | B4: County | C4: Respon-sible Agency | D4: Project Name | E4: Limits | F4: Length | G4: Primary Work Type | H4: Project Description | I4: Phase | J4: Advance Construct | K4: Federal Cost ($1000s) | L4: Federal Fund Source | M4: State Cost ($1000s) | N4: State Fund Source | O4: Local Cost ($1000s) | P4: Local Fund Source | Q4: Total Cost ($1000s) | R4: MDOT Job No. | S4: Local ID No. | T4: MPO/ Rural Approval Date | U4: Amend-ment Type | V4: Air Quality | W4: Comments | X4: Total Project Cost ($1000s) | Y4: x | Z4: Local Priority | AA4: EJ | AB4: Federal Approval Date | AC4: Capped Federal Cost ($1000s) | AD4: Date Obligated | AE4: Amount Obligated ($1000s) | AF4: Let Date | AG4: GPA
A5: 2017 | B5: Berrien | C5: MDOT | D5: Traffic Signal Modernization | E5: M-60 BR (Main St.) at US 12BR (12th St.) | G5: Traffic ops/safety | H5: Signal Modernization with connected vehicles instalations | I5: PE | K5: 32000 | L5: STG | R5: 200366 | W5: 5 locations in TwinCATS, 4 in NATS, 1 in KATS
A6: 2017 | B6: Berrien | C6: MDOT | D6: Traffic Signal Modernization | E6: M-51 (11th st.) at Ontatio Rd. | G6: Traffic ops/safety | H6: Signal Modernization with connected vehicles instalations | I6: PE | K6: 32000 | L6: STG | R6: 200366 | W6: 5 locations in TwinCATS, 4 in NATS, 1 in KATS
A7: 2017 | B7: Berrien | C7: MDOT | D7: Traffic Signal Modernization | E7: M-60 (oak St.) at Main ST/13th St. | G7: Traffic ops/safety | H7: Signal Modernization with connected vehicles instalations | I7: PE | K7: 32000 | L7: STG | R7: 200366 | W7: 5 locations in TwinCATS, 4 in NATS, 1 in KATS
A8: 2017 | B8: Cass | C8: MDOT | D8: Traffic Signal Modernization | E8: M-60 at Yankee St | G8: Traffic ops/safety | H8: Signal Modernization with connected vehicles instalations | I8: PE | K8: 32000 | L8: STG | R8: 200366 | W8: 5 locations in TwinCATS, 4 in NATS, 1 in KATS
A9: 2017 | B9: Berrien | C9: MDOT | D9: Traffic Signal Modernization | E9: M-60 BR (Main St.) at US 12BR (12th St.) | G9: Traffic ops/safety | H9: Signal Modernization with connected vehicles instalations | I9: ROW | K9: =5000/4 -> 1250 | L9: STG | R9: 200366 | W9: 5 locations in TwinCATS, 4 in NATS, 1 in KATS
A10: 2017 | B10: Berrien | C10: MDOT | D10: Traffic Signal Modernization | E10: M-51 (11th st.) at Ontatio Rd. | G10: Traffic ops/safety | H10: Signal Modernization with connected vehicles instalations | I10: ROW | K10: =5000/4 -> 1250 | L10: STG | R10: 200366 | W10: 5 locations in TwinCATS, 4 in NATS, 1 in KATS
A11: 2017 | B11: Berrien | C11: MDOT | D11: Traffic Signal Modernization | E11: M-60 (oak St.) at Main ST/13th St. | G11: Traffic ops/safety | H11: Signal Modernization with connected vehicles instalations | I11: ROW | K11: 1250 | L11: STG | R11: 200366 | W11: 5 locations in TwinCATS, 4 in NATS, 1 in KATS
A12: 2017 | B12: Cass | C12: MDOT | D12: Traffic Signal Modernization | E12: M-60 at Yankee St | G12: Traffic ops/safety | H12: Signal Modernization with connected vehicles instalations | I12: ROW | K12: 1250 | L12: STG | R12: 200366 | W12: 5 locations in TwinCATS, 4 in NATS, 1 in KATS

Sheet FTA GPA
A1: GPA Projects
A3: Required Fields | Z3: Optional Fields
A4: Fiscal Year | B4: County | C4: Respon-sible Agency | D4: Project Name | E4: Limits | F4: Length | G4: Primary Work Type | H4: Project Description | I4: Phase | J4: Advance Construct | K4: Federal Cost ($1000s) | L4: Federal Fund Source | M4: State Cost ($1000s) | N4: State Fund Source | O4: Local Cost ($1000s) | P4: Local Fund Source | Q4: Total Cost ($1000s) | R4: MDOT Job No. | S4: Local ID No. | T4: MPO/ Rural Approval Date | U4: Amend-ment Type | V4: Air Quality | W4: Comments | X4: Total Project Cost ($1000s) | Y4: x | Z4: Local Priority | AA4: EJ | AB4: Federal Approval Date | AC4: Capped Federal Cost ($1000s) | AD4: Date Obligated | AE4: Amount Obligated ($1000s) | AF4: Let Date

Sheet FTA Candidate Projects
A1: GPA Projects
A3: Required Fields | Z3: Optional Fields
A4: Fiscal Year | B4: County | C4: Respon-sible Agency | D4: Project Name | E4: Limits | F4: Length | G4: Primary Work Type | H4: Project Description | I4: Phase | J4: Advance Construct | K4: Federal Cost ($1000s) | L4: Federal Fund Source | M4: State Cost ($1000s) | N4: State Fund Source | O4: Local Cost ($1000s) | P4: Local Fund Source | Q4: Total Cost ($1000s) | R4: MDOT Job No. | S4: Local ID No. | T4: MPO/ Rural Approval Date | U4: Amend-ment Type | V4: Air Quality | W4: Comments | X4: Total Project Cost ($1000s) | Y4: x | Z4: Local Priority | AA4: EJ | AB4: Federal Approval Date | AC4: Capped Federal Cost ($1000s) | AD4: Date Obligated | AE4: Amount Obligated ($1000s) | AF4: Let Date

Sheet Illustrative
A1: Illustrative Projects
A3: Required Fields | Z3: Optional Fields
A4: Fiscal Year | B4: County | C4: Respon-sible Agency | D4: Project Name | E4: Limits | F4: Length | G4: Primary Work Type | H4: Project Description | I4: Phase | J4: Advance Construct | K4: Federal Cost ($1000s) | L4: Federal Fund Source | M4: State Cost ($1000s) | N4: State Fund Source | O4: Local Cost ($1000s) | P4: Local Fund Source | Q4: Total Cost ($1000s) | R4: MDOT Job No. | S4: Local ID No. | T4: MPO/ Rural Approval Date | U4: Amend-ment Type | V4: Air Quality | W4: Comments | X4: Total Project Cost ($1000s) | Y4: x | Z4: Local Priority | AA4: EJ | AB4: Federal Approval Date | AC4: Capped Federal Cost ($1000s) | AD4: Date Obligated | AE4: Amount Obligated ($1000s) | AF4: Let Date

Sheet NonFHWA_NonFTA
A1: Non FHWA/FTA Projects FY 2014 - 2017 (Optional)
A2: 2013-01-02
A3: Required Fields | Z3: Optional Fields
A4: Fiscal Year | B4: County | C4: Respon-sible Agency | D4: Project Name | E4: Limits | F4: Length | G4: Primary Work Type | H4: Project Description | I4: Phase | J4: Advance Construct | K4: Federal Cost ($1000s) | L4: Federal Fund Source | M4: State Cost ($1000s) | N4: State Fund Source | O4: Local Cost ($1000s) | P4: Local Fund Source | Q4: Total Cost ($1000s) | R4: MDOT Job No. | S4: Local ID No. | T4: MPO/ Rural Approval Date | U4: Amend-ment Type | V4: Air Quality | W4: Comments | X4: Total Project Cost ($1000s) | Y4: x | Z4: Local Priority | AA4: EJ | AB4: Federal Approval Date | AC4: Capped Federal Cost ($1000s) | AD4: Date Obligated | AE4: Amount Obligated ($1000s) | AF4: Let Date

Sheet MDOT FTA Detail
B1: E-File v. 5.1 (01.15.15)
D3: 2017 | G3: 2018 | J3: 2019 | M3: 2020
A4: Fund | B4: Fund Sources | C4: MDOT | D4: Proposed Federal Commitments | E4: Proposed Non-Federal Commitments | F4: Total Proposed Commitments | G4: Proposed Federal Commitments | H4: Proposed Non-Federal Commitments | I4: Total Proposed Commitments | J4: Proposed Federal Commitments | K4: Proposed Non-Federal Commitments | L4: Total Proposed Commitments | M4: Proposed Federal Commitments | N4: Proposed Non-Federal Commitments | O4: Total Proposed Commitments
A6: BHI | B6: Bridge Rehabilitation - Prior 1991 - Interstate | C6: MDOT FA | D6: =SUMPRODUCT((Projects!$A$5:$A$2413='MDOT FTA Detail'!$D$3)*(Projects!$C$5:$C$2413='MDOT FTA Detail'!$C$4)*(Projects!$L$5:$L$2413='MDOT FTA Detail'!$A6)*(Projects!$J$5:$J$2413<>'MDOT FTA Detail'!$A$171)*(Projects!$K$5:K$2413)) -> 0 | E6: =F6-D6 -> 0 | F6: =SUMPRODUCT((Projects!$A$5:$A$2413='MDOT FTA Detail'!$D$3)*(Projects!$C$5:$C$2413='MDOT FTA Detail'!$C$4)*(Projects!$L$5:$L$2413='MDOT FTA Detail'!$A6)*(Projects!$J$5:$J$2413<>'MDOT FTA Detail'!$A$171)*(Projects!$Q$5:Q$2413)) -> 0 | G6: =SUMPRODUCT((Projects!$A$5:$A$2413='MDOT FTA Detail'!$G$3)*(Projects!$C$5:$C$2413='MDOT FTA Detail'!$C$4)*(Projects!$L$5:$L$2413='MDOT FTA Detail'!$A6)*(Projects!$J$5:$J$2413<>'MDOT FTA Detail'!$A$171)*(Projects!$K$5:K$2413)) -> 0 | H6: =I6-G6 -> 0 | I6: =SUMPRODUCT((Projects!$A$5:$A$2413='MDOT FTA Detail'!$G$3)*(Projects!$C$5:$C$2413='MDOT FTA Detail'!$C$4)*(Projects!$L$5:$L$2413='MDOT FTA Detail'!$A6)*(Projects!$J$5:$J$2413<>'MDOT FTA Detail'!$A$171)*(Projects!$Q$5:Q$2413)) -> 0 | J6: =SUMPRODUCT((Projects!$A$5:$A$2413='MDOT FTA Detail'!$J$3)*(Projects!$C$5:$C$2413='MDOT FTA Detail'!$C$4)*(Projects!$L$5:$L$2413='MDOT FTA Detail'!$A6)*(Projects!$J$5:$J$2413<>'MDOT FTA Detail'!$A$171)*(Projects!$K$5:$K$2413)) -> 0 | K6: =L6-J6 -> 0 | L6: =SUMPRODUCT((Projects!$A$5:$A$2413='MDOT FTA Detail'!$J$3)*(Projects!$C$5:$C$2413='MDOT FTA Detail'!$C$4)*(Projects!$L$5:$L$2413='MDOT FTA Detail'!$A6)*(Projects!$J$5:$J$2413<>'MDOT FTA Detail'!$A$171)*(Projects!$Q$5:$Q$2413)) -> 0 | M6: =SUMPRODUCT((Projects!$A$5:$A$2413='MDOT FTA Detail'!$M$3)*(Projects!$C$5:$C$2413='MDOT FTA Detail'!$C$4)*(Projects!$L$5:$L$2413='MDOT FTA Detail'!$A6)*(Projects!$J$5:$J$2413<>'MDOT FTA Detail'!$A$171)*(Projects!$K$5:$K$2413)) -> 0 | N6: =O6-M6 -> 0 | O6: =SUMPRODUCT((Projects!$A$5:$A$2413='MDOT FTA Detail'!$M$3)*(Projects!$C$5:$C$2413='MDOT FTA Detail'!$C$4)*(Projects!$L$5:$L$2413='MDOT FTA Detail'!$A6)*(Projects!$J$5:$J$2413<>'MDOT FTA Detail'!$A$171)*(Projects!$Q$5:$Q$2413)) -> 0
A7: BHN | B7: Bridge Rehabilitation - National Highway System (NHS) | C7: MDOT FA | D7: =SUMPRODUCT((Projects!$A$5:$A$2413='MDOT FTA Detail'!$D$3)*(Projects!$C$5:$C$2413='MDOT FTA Detail'!$C$4)*(Projects!$L$5:$L$2413='MDOT FTA Detail'!$A7)*(Projects!$J$5:$J$2413<>'MDOT FTA Detail'!$A$171)*(Projects!$K$5:K$2413)) -> 0 | E7: 0 | F7: =SUMPRODUCT((Projects!$A$5:$A$2413='MDOT FTA Detail'!$D$3)*(Projects!$C$5:$C$2413='MDOT FTA Detail'!$C$4)*(Projects!$L$5:$L$2413='MDOT FTA Detail'!$A7)*(Projects!$J$5:$J$2413<>'MDOT FTA Detail'!$A$171)*(Projects!$Q$5:Q$2413)) -> 0 | G7: =SUMPRODUCT((Projects!$A$5:$A$2413='MDOT FTA Detail'!$G$3)*(Projects!$C$5:$C$2413='MDOT FTA Detail'!$C$4)*(Projects!$L$5:$L$2413='MDOT FTA Detail'!$A7)*(Projects!$J$5:$J$2413<>'MDOT FTA Detail'!$A$171)*(Projects!$K$5:K$2413)) -> 0 | H7: 0 | I7: =SUMPRODUCT((Projects!$A$5:$A$2413='MDOT FTA Detail'!$G$3)*(Projects!$C$5:$C$2413='MDOT FTA Detail'!$C$4)*(Projects!$L$5:$L$2413='MDOT FTA Detail'!$A7)*(Projects!$J$5:$J$2413<>'MDOT FTA Detail'!$A$171)*(Projects!$Q$5:Q$2413)) -> 0 | J7: =SUMPRODUCT((Projects!$A$5:$A$2413='MDOT FTA Detail'!$J$3)*(Projects!$C$5:$C$2413='MDOT FTA Detail'!$C$4)*(Projects!$L$5:$L$2413='MDOT FTA Detail'!$A7)*(Projects!$J$5:$J$2413<>'MDOT FTA Detail'!$A$171)*(Projects!$K$5:$K$2413)) -> 0 | K7: 0 | L7: =SUMPRODUCT((Projects!$A$5:$A$2413='MDOT FTA Detail'!$J$3)*(Projects!$C$5:$C$2413='MDOT FTA Detail'!$C$4)*(Projects!$L$5:$L$2413='MDOT FTA Detail'!$A7)*(Projects!$J$5:$J$2413<>'MDOT FTA Detail'!$A$171)*(Projects!$Q$5:$Q$2413)) -> 0 | M7: =SUMPRODUCT((Projects!$A$5:$A$2413='MDOT FTA Detail'!$M$3)*(Projects!$C$5:$C$2413='MDOT FTA Detail'!$C$4)*(Projects!$L$5:$L$2413='MDOT FTA Detail'!$A7)*(Projects!$J$5:$J$2413<>'MDOT FTA Detail'!$A$171)*(Projects!$K$5:$K$2413)) -> 0 | N7: 0 | O7: =SUMPRODUCT((Projects!$A$5:$A$2413='MDOT FTA Detail'!$M$3)*(Projects!$C$5:$C$2413='MDOT FTA Detail'!$C$4)*(Projects!$L$5:$L$2413='MDOT FTA Detail'!$A7)*(Projects!$J$5:$J$2413<>'MDOT FTA Detail'!$A$171)*(Projects!$Q$5:$Q$2413)) -> 0
A8: BHO | B8: Bridge Rehabilitation - Not Classified, Off System | C8: MDOT FA | D8: =SUMPRODUCT((Projects!$A$5:$A$2413='MDOT FTA Detail'!$D$3)*(Projects!$C$5:$C$2413='MDOT FTA Detail'!$C$4)*(Projects!$L$5:$L$2413='MDOT FTA Detail'!$A8)*(Projects!$J$5:$J$2413<>'MDOT FTA Detail'!$A$171)*(Projects!$K$5:K$2413)) -> 0 | E8: 0 | F8: =SUMPRODUCT((Projects!$A$5:$A$2413='MDOT FTA Detail'!$D$3)*(Projects!$C$5:$C$2413='MDOT FTA Detail'!$C$4)*(Projects!$L$5:$L$2413='MDOT FTA Detail'!$A8)*(Projects!$J$5:$J$2413<>'MDOT FTA Detail'!$A$171)*(Projects!$Q$5:Q$2413)) -> 0 | G8: =SUMPRODUCT((Projects!$A$5:$A$2413='MDOT FTA Detail'!$G$3)*(Projects!$C$5:$C$2413='MDOT FTA Detail'!$C$4)*(Projects!$L$5:$L$2413='MDOT FTA Detail'!$A8)*(Projects!$J$5:$J$2413<>'MDOT FTA Detail'!$A$171)*(Projects!$K$5:K$2413)) -> 0 | H8: 0 | I8: =SUMPRODUCT((Projects!$A$5:$A$2413='MDOT FTA Detail'!$G$3)*(Projects!$C$5:$C$2413='MDOT FTA Detail'!$C$4)*(Projects!$L$5:$L$2413='MDOT FTA Detail'!$A8)*(Projects!$J$5:$J$2413<>'MDOT FTA Detail'!$A$171)*(Projects!$Q$5:Q$2413)) -> 0 | J8: =SUMPRODUCT((Projects!$A$5:$A$2413='MDOT FTA Detail'!$J$3)*(Projects!$C$5:$C$2413='MDOT FTA Detail'!$C$4)*(Projects!$L$5:$L$2413='MDOT FTA Detail'!$A8)*(Projects!$J$5:$J$2413<>'MDOT FTA Detail'!$A$171)*(Projects!$K$5:$K$2413)) -> 0 | K8: 0 | L8: =SUMPRODUCT((Projects!$A$5:$A$2413='MDOT FTA Detail'!$J$3)*(Projects!$C$5:$C$2413='MDOT FTA Detail'!$C$4)*(Projects!$L$5:$L$2413='MDOT FTA Detail'!$A8)*(Projects!$J$5:$J$2413<>'MDOT FTA Detail'!$A$171)*(Projects!$Q$5:$Q$2413)) -> 0 | M8: =SUMPRODUCT((Projects!$A$5:$A$2413='MDOT FTA Detail'!$M$3)*(Projects!$C$5:$C$2413='MDOT FTA Detail'!$C$4)*(Projects!$L$5:$L$2413='MDOT FTA Detail'!$A8)*(Projects!$J$5:$J$2413<>'MDOT FTA Detail'!$A$171)*(Projects!$K$5:$K$2413)) -> 0 | N8: 0 | O8: =SUMPRODUCT((Projects!$A$5:$A$2413='MDOT FTA Detail'!$M$3)*(Projects!$C$5:$C$2413='MDOT FTA Detail'!$C$4)*(Projects!$L$5:$L$2413='MDOT FTA Detail'!$A8)*(Projects!$J$5:$J$2413<>'MDOT FTA Detail'!$A$171)*(Projects!$Q$5:$Q$2413)) -> 0
A9: BHT | B9: Bridge Rehabilitation - Surface Transportation Program (STP) | C9: MDOT FA | D9: =SUMPRODUCT((Projects!$A$5:$A$2413='MDOT FTA Detail'!$D$3)*(Projects!$C$5:$C$2413='MDOT FTA Detail'!$C$4)*(Projects!$L$5:$L$2413='MDOT FTA Detail'!$A9)*(Projects!$J$5:$J$2413<>'MDOT FTA Detail'!$A$171)*(Projects!$K$5:K$2413)) -> 0 | E9: 0 | F9: =SUMPRODUCT((Projects!$A$5:$A$2413='MDOT FTA Detail'!$D$3)*(Projects!$C$5:$C$2413='MDOT FTA Detail'!$C$4)*(Projects!$L$5:$L$2413='MDOT FTA Detail'!$A9)*(Projects!$J$5:$J$2413<>'MDOT FTA Detail'!$A$171)*(Projects!$Q$5:Q$2413)) -> 0 | G9: =SUMPRODUCT((Projects!$A$5:$A$2413='MDOT FTA Detail'!$G$3)*(Projects!$C$5:$C$2413='MDOT FTA Detail'!$C$4)*(Projects!$L$5:$L$2413='MDOT FTA Detail'!$A9)*(Projects!$J$5:$J$2413<>'MDOT FTA Detail'!$A$171)*(Projects!$K$5:K$2413)) -> 0 | H9: 0 | I9: =SUMPRODUCT((Projects!$A$5:$A$2413='MDOT FTA Detail'!$G$3)*(Projects!$C$5:$C$2413='MDOT FTA Detail'!$C$4)*(Projects!$L$5:$L$2413='MDOT FTA Detail'!$A9)*(Projects!$J$5:$J$2413<>'MDOT FTA Detail'!$A$171)*(Projects!$Q$5:Q$2413)) -> 0 | J9: =SUMPRODUCT((Projects!$A$5:$A$2413='MDOT FTA Detail'!$J$3)*(Projects!$C$5:$C$2413='MDOT FTA Detail'!$C$4)*(Projects!$L$5:$L$2413='MDOT FTA Detail'!$A9)*(Projects!$J$5:$J$2413<>'MDOT FTA Detail'!$A$171)*(Projects!$K$5:$K$2413)) -> 0 | K9: 0 | L9: =SUMPRODUCT((Projects!$A$5:$A$2413='MDOT FTA Detail'!$J$3)*(Projects!$C$5:$C$2413='MDOT FTA Detail'!$C$4)*(Projects!$L$5:$L$2413='MDOT FTA Detail'!$A9)*(Projects!$J$5:$J$2413<>'MDOT FTA Detail'!$A$171)*(Projects!$Q$5:$Q$2413)) -> 0 | M9: =SUMPRODUCT((Projects!$A$5:$A$2413='MDOT FTA Detail'!$M$3)*(Projects!$C$5:$C$2413='MDOT FTA Detail'!$C$4)*(Projects!$L$5:$L$2413='MDOT FTA Detail'!$A9)*(Projects!$J$5:$J$2413<>'MDOT FTA Detail'!$A$171)*(Projects!$K$5:$K$2413)) -> 0 | N9: 0 | O9: =SUMPRODUCT((Projects!$A$5:$A$2413='MDOT FTA Detail'!$M$3)*(Projects!$C$5:$C$2413='MDOT FTA Detail'!$C$4)*(Projects!$L$5:$L$2413='MDOT FTA Detail'!$A9)*(Projects!$J$5:$J$2413<>'MDOT FTA Detail'!$A$171)*(Projects!$Q$5:$Q$2413)) -> 0
A10: BI08 | B10: Build Michigan FY08 | C10: MDOT FA | D10: =SUMPRODUCT((Projects!$A$5:$A$2413='MDOT FTA Detail'!$D$3)*(Projects!$C$5:$C$2413='MDOT FTA Detail'!$C$4)*(Projects!$L$5:$L$2413='MDOT FTA Detail'!$A10)*(Projects!$J$5:$J$2413<>'MDOT FTA Detail'!$A$171)*(Projects!$K$5:K$2413)) -> 0 | E10: 0 | F10: =SUMPRODUCT((Projects!$A$5:$A$2413='MDOT FTA Detail'!$D$3)*(Projects!$C$5:$C$2413='MDOT FTA Detail'!$C$4)*(Projects!$L$5:$L$2413='MDOT FTA Detail'!$A10)*(Projects!$J$5:$J$2413<>'MDOT FTA Detail'!$A$171)*(Projects!$Q$5:Q$2413)) -> 0 | G10: =SUMPRODUCT((Projects!$A$5:$A$2413='MDOT FTA Detail'!$G$3)*(Projects!$C$5:$C$2413='MDOT FTA Detail'!$C$4)*(Projects!$L$5:$L$2413='MDOT FTA Detail'!$A10)*(Projects!$J$5:$J$2413<>'MDOT FTA Detail'!$A$171)*(Projects!$K$5:K$2413)) -> 0 | H10: 0 | I10: =SUMPRODUCT((Projects!$A$5:$A$2413='MDOT FTA Detail'!$G$3)*(Projects!$C$5:$C$2413='MDOT FTA Detail'!$C$4)*(Projects!$L$5:$L$2413='MDOT FTA Detail'!$A10)*(Projects!$J$5:$J$2413<>'MDOT FTA Detail'!$A$171)*(Projects!$Q$5:Q$2413)) -> 0 | J10: =SUMPRODUCT((Projects!$A$5:$A$2413='MDOT FTA Detail'!$J$3)*(Projects!$C$5:$C$2413='MDOT FTA Detail'!$C$4)*(Projects!$L$5:$L$2413='MDOT FTA Detail'!$A10)*(Projects!$J$5:$J$2413<>'MDOT FTA Detail'!$A$171)*(Projects!$K$5:$K$2413)) -> 0 | K10: 0 | L10: =SUMPRODUCT((Projects!$A$5:$A$2413='MDOT FTA Detail'!$J$3)*(Projects!$C$5:$C$2413='MDOT FTA Detail'!$C$4)*(Projects!$L$5:$L$2413='MDOT FTA Detail'!$A10)*(Projects!$J$5:$J$2413<>'MDOT FTA Detail'!$A$171)*(Projects!$Q$5:$Q$2413)) -> 0 | M10: =SUMPRODUCT((Projects!$A$5:$A$2413='MDOT FTA Detail'!$M$3)*(Projects!$C$5:$C$2413='MDOT FTA Detail'!$C$4)*(Projects!$L$5:$L$2413='MDOT FTA Detail'!$A10)*(Projects!$J$5:$J$2413<>'MDOT FTA Detail'!$A$171)*(Projects!$K$5:$K$2413)) -> 0 | N10: 0 | O10: =SUMPRODUCT((Projects!$A$5:$A$2413='MDOT FTA Detail'!$M$3)*(Projects!$C$5:$C$2413='MDOT FTA Detail'!$C$4)*(Projects!$L$5:$L$2413='MDOT FTA Detail'!$A10)*(Projects!$J$5:$J$2413<>'MDOT FTA Detail'!$A$171)*(Projects!$Q$5:$Q$2413)) -> 0
A11: BO | B11: Bridge Not Classified Off System | C11: MDOT FA | D11: =SUMPRODUCT((Projects!$A$5:$A$2413='MDOT FTA Detail'!$D$3)*(Projects!$C$5:$C$2413='MDOT FTA Detail'!$C$4)*(Projects!$L$5:$L$2413='MDOT FTA Detail'!$A11)*(Projects!$J$5:$J$2413<>'MDOT FTA Detail'!$A$171)*(Projects!$K$5:K$2413)) -> 0 | E11: =F11-D11 -> 0 | F11: =SUMPRODUCT((Projects!$A$5:$A$2413='MDOT FTA Detail'!$D$3)*(Projects!$C$5:$C$2413='MDOT FTA Detail'!$C$4)*(Projects!$L$5:$L$2413='MDOT FTA Detail'!$A11)*(Projects!$J$5:$J$2413<>'MDOT FTA Detail'!$A$171)*(Projects!$Q$5:Q$2413)) -> 0 | G11: =SUMPRODUCT((Projects!$A$5:$A$2413='MDOT FTA Detail'!$G$3)*(Projects!$C$5:$C$2413='MDOT FTA Detail'!$C$4)*(Projects!$L$5:$L$2413='MDOT FTA Detail'!$A11)*(Projects!$J$5:$J$2413<>'MDOT FTA Detail'!$A$171)*(Projects!$K$5:K$2413)) -> 0 | H11: =I11-G11 -> 0 | I11: =SUMPRODUCT((Projects!$A$5:$A$2413='MDOT FTA Detail'!$G$3)*(Projects!$C$5:$C$2413='MDOT FTA Detail'!$C$4)*(Projects!$L$5:$L$2413='MDOT FTA Detail'!$A11)*(Projects!$J$5:$J$2413<>'MDOT FTA Detail'!$A$171)*(Projects!$Q$5:Q$2413)) -> 0 | J11: =SUMPRODUCT((Projects!$A$5:$A$2413='MDOT FTA Detail'!$J$3)*(Projects!$C$5:$C$2413='MDOT FTA Detail'!$C$4)*(Projects!$L$5:$L$2413='MDOT FTA Detail'!$A11)*(Projects!$J$5:$J$2413<>'MDOT FTA Detail'!$A$171)*(Projects!$K$5:$K$2413)) -> 0 | K11: =L11-J11 -> 0 | L11: =SUMPRODUCT((Projects!$A$5:$A$2413='MDOT FTA Detail'!$J$3)*(Projects!$C$5:$C$2413='MDOT FTA Detail'!$C$4)*(Projects!$L$5:$L$2413='MDOT FTA Detail'!$A11)*(Projects!$J$5:$J$2413<>'MDOT FTA Detail'!$A$171)*(Projects!$Q$5:$Q$2413)) -> 0 | M11: =SUMPRODUCT((Projects!$A$5:$A$2413='MDOT FTA Detail'!$M$3)*(Projects!$C$5:$C$2413='MDOT FTA Detail'!$C$4)*(Projects!$L$5:$L$2413='MDOT FTA Detail'!$A11)*(Projects!$J$5:$J$2413<>'MDOT FTA Detail'!$A$171)*(Projects!$K$5:$K$2413)) -> 0 | N11: =O11-M11 -> 0 | O11: =SUMPRODUCT((Projects!$A$5:$A$2413='MDOT FTA Detail'!$M$3)*(Projects!$C$5:$C$2413='MDOT FTA Detail'!$C$4)*(Projects!$L$5:$L$2413='MDOT FTA Detail'!$A11)*(Projects!$J$5:$J$2413<>'MDOT FTA Detail'!$A$171)*(Projects!$Q$5:$Q$2413)) -> 0
A12: BOWD | B12: Business Opportunity & Workforce Development Center | C12: MDOT FA | D12: =SUMPRODUCT((Projects!$A$5:$A$2413='MDOT FTA Detail'!$D$3)*(Projects!$C$5:$C$2413='MDOT FTA Detail'!$C$4)*(Projects!$L$5:$L$2413='MDOT FTA Detail'!$A12)*(Projects!$J$5:$J$2413<>'MDOT FTA Detail'!$A$171)*(Projects!$K$5:K$2413)) -> 0 | E12: 0 | F12: =SUMPRODUCT((Projects!$A$5:$A$2413='MDOT FTA Detail'!$D$3)*(Projects!$C$5:$C$2413='MDOT FTA Detail'!$C$4)*(Projects!$L$5:$L$2413='MDOT FTA Detail'!$A12)*(Projects!$J$5:$J$2413<>'MDOT FTA Detail'!$A$171)*(Projects!$Q$5:Q$2413)) -> 0 | G12: =SUMPRODUCT((Projects!$A$5:$A$2413='MDOT FTA Detail'!$G$3)*(Projects!$C$5:$C$2413='MDOT FTA Detail'!$C$4)*(Projects!$L$5:$L$2413='MDOT FTA Detail'!$A12)*(Projects!$J$5:$J$2413<>'MDOT FTA Detail'!$A$171)*(Projects!$K$5:K$2413)) -> 0 | H12: 0 | I12: =SUMPRODUCT((Projects!$A$5:$A$2413='MDOT FTA Detail'!$G$3)*(Projects!$C$5:$C$2413='MDOT FTA Detail'!$C$4)*(Projects!$L$5:$L$2413='MDOT FTA Detail'!$A12)*(Projects!$J$5:$J$2413<>'MDOT FTA Detail'!$A$171)*(Projects!$Q$5:Q$2413)) -> 0 | J12: =SUMPRODUCT((Projects!$A$5:$A$2413='MDOT FTA Detail'!$J$3)*(Projects!$C$5:$C$2413='MDOT FTA Detail'!$C$4)*(Projects!$L$5:$L$2413='MDOT FTA Detail'!$A12)*(Projects!$J$5:$J$2413<>'MDOT FTA Detail'!$A$171)*(Projects!$K$5:$K$2413)) -> 0 | K12: 0 | L12: =SUMPRODUCT((Projects!$A$5:$A$2413='MDOT FTA Detail'!$J$3)*(Projects!$C$5:$C$2413='MDOT FTA Detail'!$C$4)*(Projects!$L$5:$L$2413='MDOT FTA Detail'!$A12)*(Projects!$J$5:$J$2413<>'MDOT FTA Detail'!$A$171)*(Projects!$Q$5:$Q$2413)) -> 0 | M12: =SUMPRODUCT((Projects!$A$5:$A$2413='MDOT FTA Detail'!$M$3)*(Projects!$C$5:$C$2413='MDOT FTA Detail'!$C$4)*(Projects!$L$5:$L$2413='MDOT FTA Detail'!$A12)*(Projects!$J$5:$J$2413<>'MDOT FTA Detail'!$A$171)*(Projects!$K$5:$K$2413)) -> 0 | N12: 0 | O12: =SUMPRODUCT((Projects!$A$5:$A$2413='MDOT FTA Detail'!$M$3)*(Projects!$C$5:$C$2413='MDOT FTA Detail'!$C$4)*(Projects!$L$5:$L$2413='MDOT FTA Detail'!$A12)*(Projects!$J$5:$J$2413<>'MDOT FTA Detail'!$A$171)*(Projects!$Q$5:$Q$2413)) -> 0
A13: BRI | B13: Bridge Replacement - Pre 1991 Interstate | C13: MDOT FA | D13: =SUMPRODUCT((Projects!$A$5:$A$2413='MDOT FTA Detail'!$D$3)*(Projects!$C$5:$C$2413='MDOT FTA Detail'!$C$4)*(Projects!$L$5:$L$2413='MDOT FTA Detail'!$A13)*(Projects!$J$5:$J$2413<>'MDOT FTA Detail'!$A$171)*(Projects!$K$5:K$2413)) -> 0 | E13: 0 | F13: =SUMPRODUCT((Projects!$A$5:$A$2413='MDOT FTA Detail'!$D$3)*(Projects!$C$5:$C$2413='MDOT FTA Detail'!$C$4)*(Projects!$L$5:$L$2413='MDOT FTA Detail'!$A13)*(Projects!$J$5:$J$2413<>'MDOT FTA Detail'!$A$171)*(Projects!$Q$5:Q$2413)) -> 0 | G13: =SUMPRODUCT((Projects!$A$5:$A$2413='MDOT FTA Detail'!$G$3)*(Projects!$C$5:$C$2413='MDOT FTA Detail'!$C$4)*(Projects!$L$5:$L$2413='MDOT FTA Detail'!$A13)*(Projects!$J$5:$J$2413<>'MDOT FTA Detail'!$A$171)*(Projects!$K$5:K$2413)) -> 0 | H13: 0 | I13: =SUMPRODUCT((Projects!$A$5:$A$2413='MDOT FTA Detail'!$G$3)*(Projects!$C$5:$C$2413='MDOT FTA Detail'!$C$4)*(Projects!$L$5:$L$2413='MDOT FTA Detail'!$A13)*(Projects!$J$5:$J$2413<>'MDOT FTA Detail'!$A$171)*(Projects!$Q$5:Q$2413)) -> 0 | J13: =SUMPRODUCT((Projects!$A$5:$A$2413='MDOT FTA Detail'!$J$3)*(Projects!$C$5:$C$2413='MDOT FTA Detail'!$C$4)*(Projects!$L$5:$L$2413='MDOT FTA Detail'!$A13)*(Projects!$J$5:$J$2413<>'MDOT FTA Detail'!$A$171)*(Projects!$K$5:$K$2413)) -> 0 | K13: 0 | L13: =SUMPRODUCT((Projects!$A$5:$A$2413='MDOT FTA Detail'!$J$3)*(Projects!$C$5:$C$2413='MDOT FTA Detail'!$C$4)*(Projects!$L$5:$L$2413='MDOT FTA Detail'!$A13)*(Projects!$J$5:$J$2413<>'MDOT FTA Detail'!$A$171)*(Projects!$Q$5:$Q$2413)) -> 0 | M13: =SUMPRODUCT((Projects!$A$5:$A$2413='MDOT FTA Detail'!$M$3)*(Projects!$C$5:$C$2413='MDOT FTA Detail'!$C$4)*(Projects!$L$5:$L$2413='MDOT FTA Detail'!$A13)*(Projects!$J$5:$J$2413<>'MDOT FTA Detail'!$A$171)*(Projects!$K$5:$K$2413)) -> 0 | N13: 0 | O13: =SUMPRODUCT((Projects!$A$5:$A$2413='MDOT FTA Detail'!$M$3)*(Projects!$C$5:$C$2413='MDOT FTA Detail'!$C$4)*(Projects!$L$5:$L$2413='MDOT FTA Detail'!$A13)*(Projects!$J$5:$J$2413<>'MDOT FTA Detail'!$A$171)*(Projects!$Q$5:$Q$2413)) -> 0
A14: BRN | B14: Bridge Replacement - National Highway System (NHS) | C14: MDOT FA | D14: =SUMPRODUCT((Projects!$A$5:$A$2413='MDOT FTA Detail'!$D$3)*(Projects!$C$5:$C$2413='MDOT FTA Detail'!$C$4)*(Projects!$L$5:$L$2413='MDOT FTA Detail'!$A14)*(Projects!$J$5:$J$2413<>'MDOT FTA Detail'!$A$171)*(Projects!$K$5:K$2413)) -> 0 | E14: 0 | F14: =SUMPRODUCT((Projects!$A$5:$A$2413='MDOT FTA Detail'!$D$3)*(Projects!$C$5:$C$2413='MDOT FTA Detail'!$C$4)*(Projects!$L$5:$L$2413='MDOT FTA Detail'!$A14)*(Projects!$J$5:$J$2413<>'MDOT FTA Detail'!$A$171)*(Projects!$Q$5:Q$2413)) -> 0 | G14: =SUMPRODUCT((Projects!$A$5:$A$2413='MDOT FTA Detail'!$G$3)*(Projects!$C$5:$C$2413='MDOT FTA Detail'!$C$4)*(Projects!$L$5:$L$2413='MDOT FTA Detail'!$A14)*(Projects!$J$5:$J$2413<>'MDOT FTA Detail'!$A$171)*(Projects!$K$5:K$2413)) -> 0 | H14: 0 | I14: =SUMPRODUCT((Projects!$A$5:$A$2413='MDOT FTA Detail'!$G$3)*(Projects!$C$5:$C$2413='MDOT FTA Detail'!$C$4)*(Projects!$L$5:$L$2413='MDOT FTA Detail'!$A14)*(Projects!$J$5:$J$2413<>'MDOT FTA Detail'!$A$171)*(Projects!$Q$5:Q$2413)) -> 0 | J14: =SUMPRODUCT((Projects!$A$5:$A$2413='MDOT FTA Detail'!$J$3)*(Projects!$C$5:$C$2413='MDOT FTA Detail'!$C$4)*(Projects!$L$5:$L$2413='MDOT FTA Detail'!$A14)*(Projects!$J$5:$J$2413<>'MDOT FTA Detail'!$A$171)*(Projects!$K$5:$K$2413)) -> 0 | K14: 0 | L14: =SUMPRODUCT((Projects!$A$5:$A$2413='MDOT FTA Detail'!$J$3)*(Projects!$C$5:$C$2413='MDOT FTA Detail'!$C$4)*(Projects!$L$5:$L$2413='MDOT FTA Detail'!$A14)*(Projects!$J$5:$J$2413<>'MDOT FTA Detail'!$A$171)*(Projects!$Q$5:$Q$2413)) -> 0 | M14: =SUMPRODUCT((Projects!$A$5:$A$2413='MDOT FTA Detail'!$M$3)*(Projects!$C$5:$C$2413='MDOT FTA Detail'!$C$4)*(Projects!$L$5:$L$2413='MDOT FTA Detail'!$A14)*(Projects!$J$5:$J$2413<>'MDOT FTA Detail'!$A$171)*(Projects!$K$5:$K$2413)) -> 0 | N14: 0 | O14: =SUMPRODUCT((Projects!$A$5:$A$2413='MDOT FTA Detail'!$M$3)*(Projects!$C$5:$C$2413='MDOT FTA Detail'!$C$4)*(Projects!$L$5:$L$2413='MDOT FTA Detail'!$A14)*(Projects!$J$5:$J$2413<>'MDOT FTA Detail'!$A$171)*(Projects!$Q$5:$Q$2413)) -> 0
A15: BRO | B15: Bridge Replacement - Not Classified, Off System | C15: MDOT FA | D15: =SUMPRODUCT((Projects!$A$5:$A$2413='MDOT FTA Detail'!$D$3)*(Projects!$C$5:$C$2413='MDOT FTA Detail'!$C$4)*(Projects!$L$5:$L$2413='MDOT FTA Detail'!$A15)*(Projects!$J$5:$J$2413<>'MDOT FTA Detail'!$A$171)*(Projects!$K$5:K$2413)) -> 0 | E15: 0 | F15: =SUMPRODUCT((Projects!$A$5:$A$2413='MDOT FTA Detail'!$D$3)*(Projects!$C$5:$C$2413='MDOT FTA Detail'!$C$4)*(Projects!$L$5:$L$2413='MDOT FTA Detail'!$A15)*(Projects!$J$5:$J$2413<>'MDOT FTA Detail'!$A$171)*(Projects!$Q$5:Q$2413)) -> 0 | G15: =SUMPRODUCT((Projects!$A$5:$A$2413='MDOT FTA Detail'!$G$3)*(Projects!$C$5:$C$2413='MDOT FTA Detail'!$C$4)*(Projects!$L$5:$L$2413='MDOT FTA Detail'!$A15)*(Projects!$J$5:$J$2413<>'MDOT FTA Detail'!$A$171)*(Projects!$K$5:K$2413)) -> 0 | H15: 0 | I15: =SUMPRODUCT((Projects!$A$5:$A$2413='MDOT FTA Detail'!$G$3)*(Projects!$C$5:$C$2413='MDOT FTA Detail'!$C$4)*(Projects!$L$5:$L$2413='MDOT FTA Detail'!$A15)*(Projects!$J$5:$J$2413<>'MDOT FTA Detail'!$A$171)*(Projects!$Q$5:Q$2413)) -> 0 | J15: =SUMPRODUCT((Projects!$A$5:$A$2413='MDOT FTA Detail'!$J$3)*(Projects!$C$5:$C$2413='MDOT FTA Detail'!$C$4)*(Projects!$L$5:$L$2413='MDOT FTA Detail'!$A15)*(Projects!$J$5:$J$2413<>'MDOT FTA Detail'!$A$171)*(Projects!$K$5:$K$2413)) -> 0 | K15: 0 | L15: =SUMPRODUCT((Projects!$A$5:$A$2413='MDOT FTA Detail'!$J$3)*(Projects!$C$5:$C$2413='MDOT FTA Detail'!$C$4)*(Projects!$L$5:$L$2413='MDOT FTA Detail'!$A15)*(Projects!$J$5:$J$2413<>'MDOT FTA Detail'!$A$171)*(Projects!$Q$5:$Q$2413)) -> 0 | M15: =SUMPRODUCT((Projects!$A$5:$A$2413='MDOT FTA Detail'!$M$3)*(Projects!$C$5:$C$2413='MDOT FTA Detail'!$C$4)*(Projects!$L$5:$L$2413='MDOT FTA Detail'!$A15)*(Projects!$J$5:$J$2413<>'MDOT FTA Detail'!$A$171)*(Projects!$K$5:$K$2413)) -> 0 | N15: 0 | O15: =SUMPRODUCT((Projects!$A$5:$A$2413='MDOT FTA Detail'!$M$3)*(Projects!$C$5:$C$2413='MDOT FTA Detail'!$C$4)*(Projects!$L$5:$L$2413='MDOT FTA Detail'!$A15)*(Projects!$J$5:$J$2413<>'MDOT FTA Detail'!$A$171)*(Projects!$Q$5:$Q$2413)) -> 0
A16: BRT | B16: Bridge Replacement - Surface Transportation Program (STP) | C16: MDOT FA | D16: =SUMPRODUCT((Projects!$A$5:$A$2413='MDOT FTA Detail'!$D$3)*(Projects!$C$5:$C$2413='MDOT FTA Detail'!$C$4)*(Projects!$L$5:$L$2413='MDOT FTA Detail'!$A16)*(Projects!$J$5:$J$2413<>'MDOT FTA Detail'!$A$171)*(Projects!$K$5:K$2413)) -> 0 | E16: 0 | F16: =SUMPRODUCT((Projects!$A$5:$A$2413='MDOT FTA Detail'!$D$3)*(Projects!$C$5:$C$2413='MDOT FTA Detail'!$C$4)*(Projects!$L$5:$L$2413='MDOT FTA Detail'!$A16)*(Projects!$J$5:$J$2413<>'MDOT FTA Detail'!$A$171)*(Projects!$Q$5:Q$2413)) -> 0 | G16: =SUMPRODUCT((Projects!$A$5:$A$2413='MDOT FTA Detail'!$G$3)*(Projects!$C$5:$C$2413='MDOT FTA Detail'!$C$4)*(Projects!$L$5:$L$2413='MDOT FTA Detail'!$A16)*(Projects!$J$5:$J$2413<>'MDOT FTA Detail'!$A$171)*(Projects!$K$5:K$2413)) -> 0 | H16: 0 | I16: =SUMPRODUCT((Projects!$A$5:$A$2413='MDOT FTA Detail'!$G$3)*(Projects!$C$5:$C$2413='MDOT FTA Detail'!$C$4)*(Projects!$L$5:$L$2413='MDOT FTA Detail'!$A16)*(Projects!$J$5:$J$2413<>'MDOT FTA Detail'!$A$171)*(Projects!$Q$5:Q$2413)) -> 0 | J16: =SUMPRODUCT((Projects!$A$5:$A$2413='MDOT FTA Detail'!$J$3)*(Projects!$C$5:$C$2413='MDOT FTA Detail'!$C$4)*(Projects!$L$5:$L$2413='MDOT FTA Detail'!$A16)*(Projects!$J$5:$J$2413<>'MDOT FTA Detail'!$A$171)*(Projects!$K$5:$K$2413)) -> 0 | K16: 0 | L16: =SUMPRODUCT((Projects!$A$5:$A$2413='MDOT FTA Detail'!$J$3)*(Projects!$C$5:$C$2413='MDOT FTA Detail'!$C$4)*(Projects!$L$5:$L$2413='MDOT FTA Detail'!$A16)*(Projects!$J$5:$J$2413<>'MDOT FTA Detail'!$A$171)*(Projects!$Q$5:$Q$2413)) -> 0 | M16: =SUMPRODUCT((Projects!$A$5:$A$2413='MDOT FTA Detail'!$M$3)*(Projects!$C$5:$C$2413='MDOT FTA Detail'!$C$4)*(Projects!$L$5:$L$2413='MDOT FTA Detail'!$A16)*(Projects!$J$5:$J$2413<>'MDOT FTA Detail'!$A$171)*(Projects!$K$5:$K$2413)) -> 0 | N16: 0 | O16: =SUMPRODUCT((Projects!$A$5:$A$2413='MDOT FTA Detail'!$M$3)*(Projects!$C$5:$C$2413='MDOT FTA Detail'!$C$4)*(Projects!$L$5:$L$2413='MDOT FTA Detail'!$A16)*(Projects!$J$5:$J$2413<>'MDOT FTA Detail'!$A$171)*(Projects!$Q$5:$Q$2413)) -> 0
A17: CANX | B17: Canadian Bridge Funds | C17: MDOT FA | D17: =SUMPRODUCT((Projects!$A$5:$A$2413='MDOT FTA Detail'!$D$3)*(Projects!$C$5:$C$2413='MDOT FTA Detail'!$C$4)*(Projects!$L$5:$L$2413='MDOT FTA Detail'!$A17)*(Projects!$J$5:$J$2413<>'MDOT FTA Detail'!$A$171)*(Projects!$K$5:K$2413)) -> 0 | E17: 0 | F17: =SUMPRODUCT((Projects!$A$5:$A$2413='MDOT FTA Detail'!$D$3)*(Projects!$C$5:$C$2413='MDOT FTA Detail'!$C$4)*(Projects!$L$5:$L$2413='MDOT FTA Detail'!$A17)*(Projects!$J$5:$J$2413<>'MDOT FTA Detail'!$A$171)*(Projects!$Q$5:Q$2413)) -> 0 | G17: =SUMPRODUCT((Projects!$A$5:$A$2413='MDOT FTA Detail'!$G$3)*(Projects!$C$5:$C$2413='MDOT FTA Detail'!$C$4)*(Projects!$L$5:$L$2413='MDOT FTA Detail'!$A17)*(Projects!$J$5:$J$2413<>'MDOT FTA Detail'!$A$171)*(Projects!$K$5:K$2413)) -> 0 | H17: 0 | I17: =SUMPRODUCT((Projects!$A$5:$A$2413='MDOT FTA Detail'!$G$3)*(Projects!$C$5:$C$2413='MDOT FTA Detail'!$C$4)*(Projects!$L$5:$L$2413='MDOT FTA Detail'!$A17)*(Projects!$J$5:$J$2413<>'MDOT FTA Detail'!$A$171)*(Projects!$Q$5:Q$2413)) -> 0 | J17: =SUMPRODUCT((Projects!$A$5:$A$2413='MDOT FTA Detail'!$J$3)*(Projects!$C$5:$C$2413='MDOT FTA Detail'!$C$4)*(Projects!$L$5:$L$2413='MDOT FTA Detail'!$A17)*(Projects!$J$5:$J$2413<>'MDOT FTA Detail'!$A$171)*(Projects!$K$5:$K$2413)) -> 0 | K17: 0 | L17: =SUMPRODUCT((Projects!$A$5:$A$2413='MDOT FTA Detail'!$J$3)*(Projects!$C$5:$C$2413='MDOT FTA Detail'!$C$4)*(Projects!$L$5:$L$2413='MDOT FTA Detail'!$A17)*(Projects!$J$5:$J$2413<>'MDOT FTA Detail'!$A$171)*(Projects!$Q$5:$Q$2413)) -> 0 | M17: =SUMPRODUCT((Projects!$A$5:$A$2413='MDOT FTA Detail'!$M$3)*(Projects!$C$5:$C$2413='MDOT FTA Detail'!$C$4)*(Projects!$L$5:$L$2413='MDOT FTA Detail'!$A17)*(Projects!$J$5:$J$2413<>'MDOT FTA Detail'!$A$171)*(Projects!$K$5:$K$2413)) -> 0 | N17: 0 | O17: =SUMPRODUCT((Projects!$A$5:$A$2413='MDOT FTA Detail'!$M$3)*(Projects!$C$5:$C$2413='MDOT FTA Detail'!$C$4)*(Projects!$L$5:$L$2413='MDOT FTA Detail'!$A17)*(Projects!$J$5:$J$2413<>'MDOT FTA Detail'!$A$171)*(Projects!$Q$5:$Q$2413)) -> 0
A18: CBCD | B18: Corridor & Border Crossing Discretionary | C18: MDOT FA | D18: =SUMPRODUCT((Projects!$A$5:$A$2413='MDOT FTA Detail'!$D$3)*(Projects!$C$5:$C$2413='MDOT FTA Detail'!$C$4)*(Projects!$L$5:$L$2413='MDOT FTA Detail'!$A18)*(Projects!$J$5:$J$2413<>'MDOT FTA Detail'!$A$171)*(Projects!$K$5:K$2413)) -> 0 | E18: 0 | F18: =SUMPRODUCT((Projects!$A$5:$A$2413='MDOT FTA Detail'!$D$3)*(Projects!$C$5:$C$2413='MDOT FTA Detail'!$C$4)*(Projects!$L$5:$L$2413='MDOT FTA Detail'!$A18)*(Projects!$J$5:$J$2413<>'MDOT FTA Detail'!$A$171)*(Projects!$Q$5:Q$2413)) -> 0 | G18: =SUMPRODUCT((Projects!$A$5:$A$2413='MDOT FTA Detail'!$G$3)*(Projects!$C$5:$C$2413='MDOT FTA Detail'!$C$4)*(Projects!$L$5:$L$2413='MDOT FTA Detail'!$A18)*(Projects!$J$5:$J$2413<>'MDOT FTA Detail'!$A$171)*(Projects!$K$5:K$2413)) -> 0 | H18: 0 | I18: =SUMPRODUCT((Projects!$A$5:$A$2413='MDOT FTA Detail'!$G$3)*(Projects!$C$5:$C$2413='MDOT FTA Detail'!$C$4)*(Projects!$L$5:$L$2413='MDOT FTA Detail'!$A18)*(Projects!$J$5:$J$2413<>'MDOT FTA Detail'!$A$171)*(Projects!$Q$5:Q$2413)) -> 0 | J18: =SUMPRODUCT((Projects!$A$5:$A$2413='MDOT FTA Detail'!$J$3)*(Projects!$C$5:$C$2413='MDOT FTA Detail'!$C$4)*(Projects!$L$5:$L$2413='MDOT FTA Detail'!$A18)*(Projects!$J$5:$J$2413<>'MDOT FTA Detail'!$A$171)*(Projects!$K$5:$K$2413)) -> 0 | K18: 0 | L18: =SUMPRODUCT((Projects!$A$5:$A$2413='MDOT FTA Detail'!$J$3)*(Projects!$C$5:$C$2413='MDOT FTA Detail'!$C$4)*(Projects!$L$5:$L$2413='MDOT FTA Detail'!$A18)*(Projects!$J$5:$J$2413<>'MDOT FTA Detail'!$A$171)*(Projects!$Q$5:$Q$2413)) -> 0 | M18: =SUMPRODUCT((Projects!$A$5:$A$2413='MDOT FTA Detail'!$M$3)*(Projects!$C$5:$C$2413='MDOT FTA Detail'!$C$4)*(Projects!$L$5:$L$2413='MDOT FTA Detail'!$A18)*(Projects!$J$5:$J$2413<>'MDOT FTA Detail'!$A$171)*(Projects!$K$5:$K$2413)) -> 0 | N18: 0 | O18: =SUMPRODUCT((Projects!$A$5:$A$2413='MDOT FTA Detail'!$M$3)*(Projects!$C$5:$C$2413='MDOT FTA Detail'!$C$4)*(Projects!$L$5:$L$2413='MDOT FTA Detail'!$A18)*(Projects!$J$5:$J$2413<>'MDOT FTA Detail'!$A$171)*(Projects!$Q$5:$Q$2413)) -> 0
A19: CBIP | B19: Coordinated Border Infrastructure Program - SAFETEA-LU | C19: MDOT FA | D19: =SUMPRODUCT((Projects!$A$5:$A$2413='MDOT FTA Detail'!$D$3)*(Projects!$C$5:$C$2413='MDOT FTA Detail'!$C$4)*(Projects!$L$5:$L$2413='MDOT FTA Detail'!$A19)*(Projects!$J$5:$J$2413<>'MDOT FTA Detail'!$A$171)*(Projects!$K$5:K$2413)) -> 0 | E19: 0 | F19: =SUMPRODUCT((Projects!$A$5:$A$2413='MDOT FTA Detail'!$D$3)*(Projects!$C$5:$C$2413='MDOT FTA Detail'!$C$4)*(Projects!$L$5:$L$2413='MDOT FTA Detail'!$A19)*(Projects!$J$5:$J$2413<>'MDOT FTA Detail'!$A$171)*(Projects!$Q$5:Q$2413)) -> 0 | G19: =SUMPRODUCT((Projects!$A$5:$A$2413='MDOT FTA Detail'!$G$3)*(Projects!$C$5:$C$2413='MDOT FTA Detail'!$C$4)*(Projects!$L$5:$L$2413='MDOT FTA Detail'!$A19)*(Projects!$J$5:$J$2413<>'MDOT FTA Detail'!$A$171)*(Projects!$K$5:K$2413)) -> 0 | H19: 0 | I19: =SUMPRODUCT((Projects!$A$5:$A$2413='MDOT FTA Detail'!$G$3)*(Projects!$C$5:$C$2413='MDOT FTA Detail'!$C$4)*(Projects!$L$5:$L$2413='MDOT FTA Detail'!$A19)*(Projects!$J$5:$J$2413<>'MDOT FTA Detail'!$A$171)*(Projects!$Q$5:Q$2413)) -> 0 | J19: =SUMPRODUCT((Projects!$A$5:$A$2413='MDOT FTA Detail'!$J$3)*(Projects!$C$5:$C$2413='MDOT FTA Detail'!$C$4)*(Projects!$L$5:$L$2413='MDOT FTA Detail'!$A19)*(Projects!$J$5:$J$2413<>'MDOT FTA Detail'!$A$171)*(Projects!$K$5:$K$2413)) -> 0 | K19: 0 | L19: =SUMPRODUCT((Projects!$A$5:$A$2413='MDOT FTA Detail'!$J$3)*(Projects!$C$5:$C$2413='MDOT FTA Detail'!$C$4)*(Projects!$L$5:$L$2413='MDOT FTA Detail'!$A19)*(Projects!$J$5:$J$2413<>'MDOT FTA Detail'!$A$171)*(Projects!$Q$5:$Q$2413)) -> 0 | M19: =SUMPRODUCT((Projects!$A$5:$A$2413='MDOT FTA Detail'!$M$3)*(Projects!$C$5:$C$2413='MDOT FTA Detail'!$C$4)*(Projects!$L$5:$L$2413='MDOT FTA Detail'!$A19)*(Projects!$J$5:$J$2413<>'MDOT FTA Detail'!$A$171)*(Projects!$K$5:$K$2413)) -> 0 | N19: 0 | O19: =SUMPRODUCT((Projects!$A$5:$A$2413='MDOT FTA Detail'!$M$3)*(Projects!$C$5:$C$2413='MDOT FTA Detail'!$C$4)*(Projects!$L$5:$L$2413='MDOT FTA Detail'!$A19)*(Projects!$J$5:$J$2413<>'MDOT FTA Detail'!$A$171)*(Projects!$Q$5:$Q$2413)) -> 0
A20: CM | B20: Congestion Mitigation & Air Quality | C20: MDOT FA | D20: =SUMPRODUCT((Projects!$A$5:$A$2413='MDOT FTA Detail'!$D$3)*(Projects!$C$5:$C$2413='MDOT FTA Detail'!$C$4)*(Projects!$L$5:$L$2413='MDOT FTA Detail'!$A20)*(Projects!$J$5:$J$2413<>'MDOT FTA Detail'!$A$171)*(Projects!$K$5:K$2413)) -> 0 | E20: 0 | F20: =SUMPRODUCT((Projects!$A$5:$A$2413='MDOT FTA Detail'!$D$3)*(Projects!$C$5:$C$2413='MDOT FTA Detail'!$C$4)*(Projects!$L$5:$L$2413='MDOT FTA Detail'!$A20)*(Projects!$J$5:$J$2413<>'MDOT FTA Detail'!$A$171)*(Projects!$Q$5:Q$2413)) -> 0 | G20: =SUMPRODUCT((Projects!$A$5:$A$2413='MDOT FTA Detail'!$G$3)*(Projects!$C$5:$C$2413='MDOT FTA Detail'!$C$4)*(Projects!$L$5:$L$2413='MDOT FTA Detail'!$A20)*(Projects!$J$5:$J$2413<>'MDOT FTA Detail'!$A$171)*(Projects!$K$5:K$2413)) -> 0 | H20: 0 | I20: =SUMPRODUCT((Projects!$A$5:$A$2413='MDOT FTA Detail'!$G$3)*(Projects!$C$5:$C$2413='MDOT FTA Detail'!$C$4)*(Projects!$L$5:$L$2413='MDOT FTA Detail'!$A20)*(Projects!$J$5:$J$2413<>'MDOT FTA Detail'!$A$171)*(Projects!$Q$5:Q$2413)) -> 0 | J20: =SUMPRODUCT((Projects!$A$5:$A$2413='MDOT FTA Detail'!$J$3)*(Projects!$C$5:$C$2413='MDOT FTA Detail'!$C$4)*(Projects!$L$5:$L$2413='MDOT FTA Detail'!$A20)*(Projects!$J$5:$J$2413<>'MDOT FTA Detail'!$A$171)*(Projects!$K$5:$K$2413)) -> 0 | K20: 0 | L20: =SUMPRODUCT((Projects!$A$5:$A$2413='MDOT FTA Detail'!$J$3)*(Projects!$C$5:$C$2413='MDOT FTA Detail'!$C$4)*(Projects!$L$5:$L$2413='MDOT FTA Detail'!$A20)*(Projects!$J$5:$J$2413<>'MDOT FTA Detail'!$A$171)*(Projects!$Q$5:$Q$2413)) -> 0 | M20: =SUMPRODUCT((Projects!$A$5:$A$2413='MDOT FTA Detail'!$M$3)*(Projects!$C$5:$C$2413='MDOT FTA Detail'!$C$4)*(Projects!$L$5:$L$2413='MDOT FTA Detail'!$A20)*(Projects!$J$5:$J$2413<>'MDOT FTA Detail'!$A$171)*(Projects!$K$5:$K$2413)) -> 0 | N20: 0 | O20: =SUMPRODUCT((Projects!$A$5:$A$2413='MDOT FTA Detail'!$M$3)*(Projects!$C$5:$C$2413='MDOT FTA Detail'!$C$4)*(Projects!$L$5:$L$2413='MDOT FTA Detail'!$A20)*(Projects!$J$5:$J$2413<>'MDOT FTA Detail'!$A$171)*(Projects!$Q$5:$Q$2413)) -> 0
A21: CMG | B21: Congestion Mitigation & Air Quality - 100% Federal | C21: MDOT FA | D21: =SUMPRODUCT((Projects!$A$5:$A$2413='MDOT FTA Detail'!$D$3)*(Projects!$C$5:$C$2413='MDOT FTA Detail'!$C$4)*(Projects!$L$5:$L$2413='MDOT FTA Detail'!$A21)*(Projects!$J$5:$J$2413<>'MDOT FTA Detail'!$A$171)*(Projects!$K$5:K$2413)) -> 0 | E21: 0 | F21: =SUMPRODUCT((Projects!$A$5:$A$2413='MDOT FTA Detail'!$D$3)*(Projects!$C$5:$C$2413='MDOT FTA Detail'!$C$4)*(Projects!$L$5:$L$2413='MDOT FTA Detail'!$A21)*(Projects!$J$5:$J$2413<>'MDOT FTA Detail'!$A$171)*(Projects!$Q$5:Q$2413)) -> 0 | G21: =SUMPRODUCT((Projects!$A$5:$A$2413='MDOT FTA Detail'!$G$3)*(Projects!$C$5:$C$2413='MDOT FTA Detail'!$C$4)*(Projects!$L$5:$L$2413='MDOT FTA Detail'!$A21)*(Projects!$J$5:$J$2413<>'MDOT FTA Detail'!$A$171)*(Projects!$K$5:K$2413)) -> 0 | H21: 0 | I21: =SUMPRODUCT((Projects!$A$5:$A$2413='MDOT FTA Detail'!$G$3)*(Projects!$C$5:$C$2413='MDOT FTA Detail'!$C$4)*(Projects!$L$5:$L$2413='MDOT FTA Detail'!$A21)*(Projects!$J$5:$J$2413<>'MDOT FTA Detail'!$A$171)*(Projects!$Q$5:Q$2413)) -> 0 | J21: =SUMPRODUCT((Projects!$A$5:$A$2413='MDOT FTA Detail'!$J$3)*(Projects!$C$5:$C$2413='MDOT FTA Detail'!$C$4)*(Projects!$L$5:$L$2413='MDOT FTA Detail'!$A21)*(Projects!$J$5:$J$2413<>'MDOT FTA Detail'!$A$171)*(Projects!$K$5:$K$2413)) -> 0 | K21: 0 | L21: =SUMPRODUCT((Projects!$A$5:$A$2413='MDOT FTA Detail'!$J$3)*(Projects!$C$5:$C$2413='MDOT FTA Detail'!$C$4)*(Projects!$L$5:$L$2413='MDOT FTA Detail'!$A21)*(Projects!$J$5:$J$2413<>'MDOT FTA Detail'!$A$171)*(Projects!$Q$5:$Q$2413)) -> 0 | M21: =SUMPRODUCT((Projects!$A$5:$A$2413='MDOT FTA Detail'!$M$3)*(Projects!$C$5:$C$2413='MDOT FTA Detail'!$C$4)*(Projects!$L$5:$L$2413='MDOT FTA Detail'!$A21)*(Projects!$J$5:$J$2413<>'MDOT FTA Detail'!$A$171)*(Projects!$K$5:$K$2413)) -> 0 | N21: 0 | O21: =SUMPRODUCT((Projects!$A$5:$A$2413='MDOT FTA Detail'!$M$3)*(Projects!$C$5:$C$2413='MDOT FTA Detail'!$C$4)*(Projects!$L$5:$L$2413='MDOT FTA Detail'!$A21)*(Projects!$J$5:$J$2413<>'MDOT FTA Detail'!$A$171)*(Projects!$Q$5:$Q$2413)) -> 0
A22: CPM | B22: Congestion Mititagion & Air Quality for PM 2.5 Emissions | C22: MDOT FA | D22: =SUMPRODUCT((Projects!$A$5:$A$2413='MDOT FTA Detail'!$D$3)*(Projects!$C$5:$C$2413='MDOT FTA Detail'!$C$4)*(Projects!$L$5:$L$2413='MDOT FTA Detail'!$A22)*(Projects!$J$5:$J$2413<>'MDOT FTA Detail'!$A$171)*(Projects!$K$5:K$2413)) -> 0 | E22: =F22-D22 -> 0 | F22: =SUMPRODUCT((Projects!$A$5:$A$2413='MDOT FTA Detail'!$D$3)*(Projects!$C$5:$C$2413='MDOT FTA Detail'!$C$4)*(Projects!$L$5:$L$2413='MDOT FTA Detail'!$A22)*(Projects!$J$5:$J$2413<>'MDOT FTA Detail'!$A$171)*(Projects!$Q$5:Q$2413)) -> 0 | G22: =SUMPRODUCT((Projects!$A$5:$A$2413='MDOT FTA Detail'!$G$3)*(Projects!$C$5:$C$2413='MDOT FTA Detail'!$C$4)*(Projects!$L$5:$L$2413='MDOT FTA Detail'!$A22)*(Projects!$J$5:$J$2413<>'MDOT FTA Detail'!$A$171)*(Projects!$K$5:K$2413)) -> 0 | H22: =I22-G22 -> 0 | I22: =SUMPRODUCT((Projects!$A$5:$A$2413='MDOT FTA Detail'!$G$3)*(Projects!$C$5:$C$2413='MDOT FTA Detail'!$C$4)*(Projects!$L$5:$L$2413='MDOT FTA Detail'!$A22)*(Projects!$J$5:$J$2413<>'MDOT FTA Detail'!$A$171)*(Projects!$Q$5:Q$2413)) -> 0 | J22: =SUMPRODUCT((Projects!$A$5:$A$2413='MDOT FTA Detail'!$J$3)*(Projects!$C$5:$C$2413='MDOT FTA Detail'!$C$4)*(Projects!$L$5:$L$2413='MDOT FTA Detail'!$A22)*(Projects!$J$5:$J$2413<>'MDOT FTA Detail'!$A$171)*(Projects!$K$5:$K$2413)) -> 0 | K22: =L22-J22 -> 0 | L22: =SUMPRODUCT((Projects!$A$5:$A$2413='MDOT FTA Detail'!$J$3)*(Projects!$C$5:$C$2413='MDOT FTA Detail'!$C$4)*(Projects!$L$5:$L$2413='MDOT FTA Detail'!$A22)*(Projects!$J$5:$J$2413<>'MDOT FTA Detail'!$A$171)*(Projects!$Q$5:$Q$2413)) -> 0 | M22: =SUMPRODUCT((Projects!$A$5:$A$2413='MDOT FTA Detail'!$M$3)*(Projects!$C$5:$C$2413='MDOT FTA Detail'!$C$4)*(Projects!$L$5:$L$2413='MDOT FTA Detail'!$A22)*(Projects!$J$5:$J$2413<>'MDOT FTA Detail'!$A$171)*(Projects!$K$5:$K$2413)) -> 0 | N22: =O22-M22 -> 0 | O22: =SUMPRODUCT((Projects!$A$5:$A$2413='MDOT FTA Detail'!$M$3)*(Projects!$C$5:$C$2413='MDOT FTA Detail'!$C$4)*(Projects!$L$5:$L$2413='MDOT FTA Detail'!$A22)*(Projects!$J$5:$J$2413<>'MDOT FTA Detail'!$A$171)*(Projects!$Q$5:$Q$2413)) -> 0
A23: CPMG | B23: Congestion Mititagion & Air Quality for PM 2.5 Emissions - 100% Federal | C23: MDOT FA | D23: =SUMPRODUCT((Projects!$A$5:$A$2413='MDOT FTA Detail'!$D$3)*(Projects!$C$5:$C$2413='MDOT FTA Detail'!$C$4)*(Projects!$L$5:$L$2413='MDOT FTA Detail'!$A23)*(Projects!$J$5:$J$2413<>'MDOT FTA Detail'!$A$171)*(Projects!$K$5:K$2413)) -> 0 | E23: 0 | F23: =SUMPRODUCT((Projects!$A$5:$A$2413='MDOT FTA Detail'!$D$3)*(Projects!$C$5:$C$2413='MDOT FTA Detail'!$C$4)*(Projects!$L$5:$L$2413='MDOT FTA Detail'!$A23)*(Projects!$J$5:$J$2413<>'MDOT FTA Detail'!$A$171)*(Projects!$Q$5:Q$2413)) -> 0 | G23: =SUMPRODUCT((Projects!$A$5:$A$2413='MDOT FTA Detail'!$G$3)*(Projects!$C$5:$C$2413='MDOT FTA Detail'!$C$4)*(Projects!$L$5:$L$2413='MDOT FTA Detail'!$A23)*(Projects!$J$5:$J$2413<>'MDOT FTA Detail'!$A$171)*(Projects!$K$5:K$2413)) -> 0 | H23: 0 | I23: =SUMPRODUCT((Projects!$A$5:$A$2413='MDOT FTA Detail'!$G$3)*(Projects!$C$5:$C$2413='MDOT FTA Detail'!$C$4)*(Projects!$L$5:$L$2413='MDOT FTA Detail'!$A23)*(Projects!$J$5:$J$2413<>'MDOT FTA Detail'!$A$171)*(Projects!$Q$5:Q$2413)) -> 0 | J23: =SUMPRODUCT((Projects!$A$5:$A$2413='MDOT FTA Detail'!$J$3)*(Projects!$C$5:$C$2413='MDOT FTA Detail'!$C$4)*(Projects!$L$5:$L$2413='MDOT FTA Detail'!$A23)*(Projects!$J$5:$J$2413<>'MDOT FTA Detail'!$A$171)*(Projects!$K$5:$K$2413)) -> 0 | K23: 0 | L23: =SUMPRODUCT((Projects!$A$5:$A$2413='MDOT FTA Detail'!$J$3)*(Projects!$C$5:$C$2413='MDOT FTA Detail'!$C$4)*(Projects!$L$5:$L$2413='MDOT FTA Detail'!$A23)*(Projects!$J$5:$J$2413<>'MDOT FTA Detail'!$A$171)*(Projects!$Q$5:$Q$2413)) -> 0 | M23: =SUMPRODUCT((Projects!$A$5:$A$2413='MDOT FTA Detail'!$M$3)*(Projects!$C$5:$C$2413='MDOT FTA Detail'!$C$4)*(Projects!$L$5:$L$2413='MDOT FTA Detail'!$A23)*(Projects!$J$5:$J$2413<>'MDOT FTA Detail'!$A$171)*(Projects!$K$5:$K$2413)) -> 0 | N23: 0 | O23: =SUMPRODUCT((Projects!$A$5:$A$2413='MDOT FTA Detail'!$M$3)*(Projects!$C$5:$C$2413='MDOT FTA Detail'!$C$4)*(Projects!$L$5:$L$2413='MDOT FTA Detail'!$A23)*(Projects!$J$5:$J$2413<>'MDOT FTA Detail'!$A$171)*(Projects!$Q$5:$Q$2413)) -> 0
A24: D129 | B24: Demonstration for Surface Transportation - Section 129 | C24: MDOT FA | D24: =SUMPRODUCT((Projects!$A$5:$A$2413='MDOT FTA Detail'!$D$3)*(Projects!$C$5:$C$2413='MDOT FTA Detail'!$C$4)*(Projects!$L$5:$L$2413='MDOT FTA Detail'!$A24)*(Projects!$J$5:$J$2413<>'MDOT FTA Detail'!$A$171)*(Projects!$K$5:K$2413)) -> 0 | E24: =F24-D24 -> 0 | F24: =SUMPRODUCT((Projects!$A$5:$A$2413='MDOT FTA Detail'!$D$3)*(Projects!$C$5:$C$2413='MDOT FTA Detail'!$C$4)*(Projects!$L$5:$L$2413='MDOT FTA Detail'!$A24)*(Projects!$J$5:$J$2413<>'MDOT FTA Detail'!$A$171)*(Projects!$Q$5:Q$2413)) -> 0 | G24: =SUMPRODUCT((Projects!$A$5:$A$2413='MDOT FTA Detail'!$G$3)*(Projects!$C$5:$C$2413='MDOT FTA Detail'!$C$4)*(Projects!$L$5:$L$2413='MDOT FTA Detail'!$A24)*(Projects!$J$5:$J$2413<>'MDOT FTA Detail'!$A$171)*(Projects!$K$5:K$2413)) -> 0 | H24: =I24-G24 -> 0 | I24: =SUMPRODUCT((Projects!$A$5:$A$2413='MDOT FTA Detail'!$G$3)*(Projects!$C$5:$C$2413='MDOT FTA Detail'!$C$4)*(Projects!$L$5:$L$2413='MDOT FTA Detail'!$A24)*(Projects!$J$5:$J$2413<>'MDOT FTA Detail'!$A$171)*(Projects!$Q$5:Q$2413)) -> 0 | J24: =SUMPRODUCT((Projects!$A$5:$A$2413='MDOT FTA Detail'!$J$3)*(Projects!$C$5:$C$2413='MDOT FTA Detail'!$C$4)*(Projects!$L$5:$L$2413='MDOT FTA Detail'!$A24)*(Projects!$J$5:$J$2413<>'MDOT FTA Detail'!$A$171)*(Projects!$K$5:$K$2413)) -> 0 | K24: =L24-J24 -> 0 | L24: =SUMPRODUCT((Projects!$A$5:$A$2413='MDOT FTA Detail'!$J$3)*(Projects!$C$5:$C$2413='MDOT FTA Detail'!$C$4)*(Projects!$L$5:$L$2413='MDOT FTA Detail'!$A24)*(Projects!$J$5:$J$2413<>'MDOT FTA Detail'!$A$171)*(Projects!$Q$5:$Q$2413)) -> 0 | M24: =SUMPRODUCT((Projects!$A$5:$A$2413='MDOT FTA Detail'!$M$3)*(Projects!$C$5:$C$2413='MDOT FTA Detail'!$C$4)*(Projects!$L$5:$L$2413='MDOT FTA Detail'!$A24)*(Projects!$J$5:$J$2413<>'MDOT FTA Detail'!$A$171)*(Projects!$K$5:$K$2413)) -> 0 | N24: =O24-M24 -> 0 | O24: =SUMPRODUCT((Projects!$A$5:$A$2413='MDOT FTA Detail'!$M$3)*(Projects!$C$5:$C$2413='MDOT FTA Detail'!$C$4)*(Projects!$L$5:$L$2413='MDOT FTA Detail'!$A24)*(Projects!$J$5:$J$2413<>'MDOT FTA Detail'!$A$171)*(Projects!$Q$5:$Q$2413)) -> 0
A25: DIG | B25: ISTEA Demonstration 100% Federal on Interstate | C25: MDOT FA | D25: =SUMPRODUCT((Projects!$A$5:$A$2413='MDOT FTA Detail'!$D$3)*(Projects!$C$5:$C$2413='MDOT FTA Detail'!$C$4)*(Projects!$L$5:$L$2413='MDOT FTA Detail'!$A25)*(Projects!$J$5:$J$2413<>'MDOT FTA Detail'!$A$171)*(Projects!$K$5:K$2413)) -> 0 | E25: 0 | F25: =SUMPRODUCT((Projects!$A$5:$A$2413='MDOT FTA Detail'!$D$3)*(Projects!$C$5:$C$2413='MDOT FTA Detail'!$C$4)*(Projects!$L$5:$L$2413='MDOT FTA Detail'!$A25)*(Projects!$J$5:$J$2413<>'MDOT FTA Detail'!$A$171)*(Projects!$Q$5:Q$2413)) -> 0 | G25: =SUMPRODUCT((Projects!$A$5:$A$2413='MDOT FTA Detail'!$G$3)*(Projects!$C$5:$C$2413='MDOT FTA Detail'!$C$4)*(Projects!$L$5:$L$2413='MDOT FTA Detail'!$A25)*(Projects!$J$5:$J$2413<>'MDOT FTA Detail'!$A$171)*(Projects!$K$5:K$2413)) -> 0 | H25: 0 | I25: =SUMPRODUCT((Projects!$A$5:$A$2413='MDOT FTA Detail'!$G$3)*(Projects!$C$5:$C$2413='MDOT FTA Detail'!$C$4)*(Projects!$L$5:$L$2413='MDOT FTA Detail'!$A25)*(Projects!$J$5:$J$2413<>'MDOT FTA Detail'!$A$171)*(Projects!$Q$5:Q$2413)) -> 0 | J25: =SUMPRODUCT((Projects!$A$5:$A$2413='MDOT FTA Detail'!$J$3)*(Projects!$C$5:$C$2413='MDOT FTA Detail'!$C$4)*(Projects!$L$5:$L$2413='MDOT FTA Detail'!$A25)*(Projects!$J$5:$J$2413<>'MDOT FTA Detail'!$A$171)*(Projects!$K$5:$K$2413)) -> 0 | K25: 0 | L25: =SUMPRODUCT((Projects!$A$5:$A$2413='MDOT FTA Detail'!$J$3)*(Projects!$C$5:$C$2413='MDOT FTA Detail'!$C$4)*(Projects!$L$5:$L$2413='MDOT FTA Detail'!$A25)*(Projects!$J$5:$J$2413<>'MDOT FTA Detail'!$A$171)*(Projects!$Q$5:$Q$2413)) -> 0 | M25: =SUMPRODUCT((Projects!$A$5:$A$2413='MDOT FTA Detail'!$M$3)*(Projects!$C$5:$C$2413='MDOT FTA Detail'!$C$4)*(Projects!$L$5:$L$2413='MDOT FTA Detail'!$A25)*(Projects!$J$5:$J$2413<>'MDOT FTA Detail'!$A$171)*(Projects!$K$5:$K$2413)) -> 0 | N25: 0 | O25: =SUMPRODUCT((Projects!$A$5:$A$2413='MDOT FTA Detail'!$M$3)*(Projects!$C$5:$C$2413='MDOT FTA Detail'!$C$4)*(Projects!$L$5:$L$2413='MDOT FTA Detail'!$A25)*(Projects!$J$5:$J$2413<>'MDOT FTA Detail'!$A$171)*(Projects!$Q$5:$Q$2413)) -> 0
A26: DOG | B26: ISTEA Demonstration 100% Federal Not Classified | C26: MDOT FA | D26: =SUMPRODUCT((Projects!$A$5:$A$2413='MDOT FTA Detail'!$D$3)*(Projects!$C$5:$C$2413='MDOT FTA Detail'!$C$4)*(Projects!$L$5:$L$2413='MDOT FTA Detail'!$A26)*(Projects!$J$5:$J$2413<>'MDOT FTA Detail'!$A$171)*(Projects!$K$5:K$2413)) -> 0 | E26: 0 | F26: =SUMPRODUCT((Projects!$A$5:$A$2413='MDOT FTA Detail'!$D$3)*(Projects!$C$5:$C$2413='MDOT FTA Detail'!$C$4)*(Projects!$L$5:$L$2413='MDOT FTA Detail'!$A26)*(Projects!$J$5:$J$2413<>'MDOT FTA Detail'!$A$171)*(Projects!$Q$5:Q$2413)) -> 0 | G26: =SUMPRODUCT((Projects!$A$5:$A$2413='MDOT FTA Detail'!$G$3)*(Projects!$C$5:$C$2413='MDOT FTA Detail'!$C$4)*(Projects!$L$5:$L$2413='MDOT FTA Detail'!$A26)*(Projects!$J$5:$J$2413<>'MDOT FTA Detail'!$A$171)*(Projects!$K$5:K$2413)) -> 0 | H26: 0 | I26: =SUMPRODUCT((Projects!$A$5:$A$2413='MDOT FTA Detail'!$G$3)*(Projects!$C$5:$C$2413='MDOT FTA Detail'!$C$4)*(Projects!$L$5:$L$2413='MDOT FTA Detail'!$A26)*(Projects!$J$5:$J$2413<>'MDOT FTA Detail'!$A$171)*(Projects!$Q$5:Q$2413)) -> 0 | J26: =SUMPRODUCT((Projects!$A$5:$A$2413='MDOT FTA Detail'!$J$3)*(Projects!$C$5:$C$2413='MDOT FTA Detail'!$C$4)*(Projects!$L$5:$L$2413='MDOT FTA Detail'!$A26)*(Projects!$J$5:$J$2413<>'MDOT FTA Detail'!$A$171)*(Projects!$K$5:$K$2413)) -> 0 | K26: 0 | L26: =SUMPRODUCT((Projects!$A$5:$A$2413='MDOT FTA Detail'!$J$3)*(Projects!$C$5:$C$2413='MDOT FTA Detail'!$C$4)*(Projects!$L$5:$L$2413='MDOT FTA Detail'!$A26)*(Projects!$J$5:$J$2413<>'MDOT FTA Detail'!$A$171)*(Projects!$Q$5:$Q$2413)) -> 0 | M26: =SUMPRODUCT((Projects!$A$5:$A$2413='MDOT FTA Detail'!$M$3)*(Projects!$C$5:$C$2413='MDOT FTA Detail'!$C$4)*(Projects!$L$5:$L$2413='MDOT FTA Detail'!$A26)*(Projects!$J$5:$J$2413<>'MDOT FTA Detail'!$A$171)*(Projects!$K$5:$K$2413)) -> 0 | N26: 0 | O26: =SUMPRODUCT((Projects!$A$5:$A$2413='MDOT FTA Detail'!$M$3)*(Projects!$C$5:$C$2413='MDOT FTA Detail'!$C$4)*(Projects!$L$5:$L$2413='MDOT FTA Detail'!$A26)*(Projects!$J$5:$J$2413<>'MDOT FTA Detail'!$A$171)*(Projects!$Q$5:$Q$2413)) -> 0
A27: DPN | B27: ISTEA Demonstration 80% Federal on NHS | C27: MDOT FA | D27: =SUMPRODUCT((Projects!$A$5:$A$2413='MDOT FTA Detail'!$D$3)*(Projects!$C$5:$C$2413='MDOT FTA Detail'!$C$4)*(Projects!$L$5:$L$2413='MDOT FTA Detail'!$A27)*(Projects!$J$5:$J$2413<>'MDOT FTA Detail'!$A$171)*(Projects!$K$5:K$2413)) -> 0 | E27: 0 | F27: =SUMPRODUCT((Projects!$A$5:$A$2413='MDOT FTA Detail'!$D$3)*(Projects!$C$5:$C$2413='MDOT FTA Detail'!$C$4)*(Projects!$L$5:$L$2413='MDOT FTA Detail'!$A27)*(Projects!$J$5:$J$2413<>'MDOT FTA Detail'!$A$171)*(Projects!$Q$5:Q$2413)) -> 0 | G27: =SUMPRODUCT((Projects!$A$5:$A$2413='MDOT FTA Detail'!$G$3)*(Projects!$C$5:$C$2413='MDOT FTA Detail'!$C$4)*(Projects!$L$5:$L$2413='MDOT FTA Detail'!$A27)*(Projects!$J$5:$J$2413<>'MDOT FTA Detail'!$A$171)*(Projects!$K$5:K$2413)) -> 0 | H27: 0 | I27: =SUMPRODUCT((Projects!$A$5:$A$2413='MDOT FTA Detail'!$G$3)*(Projects!$C$5:$C$2413='MDOT FTA Detail'!$C$4)*(Projects!$L$5:$L$2413='MDOT FTA Detail'!$A27)*(Projects!$J$5:$J$2413<>'MDOT FTA Detail'!$A$171)*(Projects!$Q$5:Q$2413)) -> 0 | J27: =SUMPRODUCT((Projects!$A$5:$A$2413='MDOT FTA Detail'!$J$3)*(Projects!$C$5:$C$2413='MDOT FTA Detail'!$C$4)*(Projects!$L$5:$L$2413='MDOT FTA Detail'!$A27)*(Projects!$J$5:$J$2413<>'MDOT FTA Detail'!$A$171)*(Projects!$K$5:$K$2413)) -> 0 | K27: 0 | L27: =SUMPRODUCT((Projects!$A$5:$A$2413='MDOT FTA Detail'!$J$3)*(Projects!$C$5:$C$2413='MDOT FTA Detail'!$C$4)*(Projects!$L$5:$L$2413='MDOT FTA Detail'!$A27)*(Projects!$J$5:$J$2413<>'MDOT FTA Detail'!$A$171)*(Projects!$Q$5:$Q$2413)) -> 0 | M27: =SUMPRODUCT((Projects!$A$5:$A$2413='MDOT FTA Detail'!$M$3)*(Projects!$C$5:$C$2413='MDOT FTA Detail'!$C$4)*(Projects!$L$5:$L$2413='MDOT FTA Detail'!$A27)*(Projects!$J$5:$J$2413<>'MDOT FTA Detail'!$A$171)*(Projects!$K$5:$K$2413)) -> 0 | N27: 0 | O27: =SUMPRODUCT((Projects!$A$5:$A$2413='MDOT FTA Detail'!$M$3)*(Projects!$C$5:$C$2413='MDOT FTA Detail'!$C$4)*(Projects!$L$5:$L$2413='MDOT FTA Detail'!$A27)*(Projects!$J$5:$J$2413<>'MDOT FTA Detail'!$A$171)*(Projects!$Q$5:$Q$2413)) -> 0
A28: DPO | B28: ISTEA Demonstration 80% Federal Not Classified | C28: MDOT FA | D28: =SUMPRODUCT((Projects!$A$5:$A$2413='MDOT FTA Detail'!$D$3)*(Projects!$C$5:$C$2413='MDOT FTA Detail'!$C$4)*(Projects!$L$5:$L$2413='MDOT FTA Detail'!$A28)*(Projects!$J$5:$J$2413<>'MDOT FTA Detail'!$A$171)*(Projects!$K$5:K$2413)) -> 0 | E28: 0 | F28: =SUMPRODUCT((Projects!$A$5:$A$2413='MDOT FTA Detail'!$D$3)*(Projects!$C$5:$C$2413='MDOT FTA Detail'!$C$4)*(Projects!$L$5:$L$2413='MDOT FTA Detail'!$A28)*(Projects!$J$5:$J$2413<>'MDOT FTA Detail'!$A$171)*(Projects!$Q$5:Q$2413)) -> 0 | G28: =SUMPRODUCT((Projects!$A$5:$A$2413='MDOT FTA Detail'!$G$3)*(Projects!$C$5:$C$2413='MDOT FTA Detail'!$C$4)*(Projects!$L$5:$L$2413='MDOT FTA Detail'!$A28)*(Projects!$J$5:$J$2413<>'MDOT FTA Detail'!$A$171)*(Projects!$K$5:K$2413)) -> 0 | H28: 0 | I28: =SUMPRODUCT((Projects!$A$5:$A$2413='MDOT FTA Detail'!$G$3)*(Projects!$C$5:$C$2413='MDOT FTA Detail'!$C$4)*(Projects!$L$5:$L$2413='MDOT FTA Detail'!$A28)*(Projects!$J$5:$J$2413<>'MDOT FTA Detail'!$A$171)*(Projects!$Q$5:Q$2413)) -> 0 | J28: =SUMPRODUCT((Projects!$A$5:$A$2413='MDOT FTA Detail'!$J$3)*(Projects!$C$5:$C$2413='MDOT FTA Detail'!$C$4)*(Projects!$L$5:$L$2413='MDOT FTA Detail'!$A28)*(Projects!$J$5:$J$2413<>'MDOT FTA Detail'!$A$171)*(Projects!$K$5:$K$2413)) -> 0 | K28: 0 | L28: =SUMPRODUCT((Projects!$A$5:$A$2413='MDOT FTA Detail'!$J$3)*(Projects!$C$5:$C$2413='MDOT FTA Detail'!$C$4)*(Projects!$L$5:$L$2413='MDOT FTA Detail'!$A28)*(Projects!$J$5:$J$2413<>'MDOT FTA Detail'!$A$171)*(Projects!$Q$5:$Q$2413)) -> 0 | M28: =SUMPRODUCT((Projects!$A$5:$A$2413='MDOT FTA Detail'!$M$3)*(Projects!$C$5:$C$2413='MDOT FTA Detail'!$C$4)*(Projects!$L$5:$L$2413='MDOT FTA Detail'!$A28)*(Projects!$J$5:$J$2413<>'MDOT FTA Detail'!$A$171)*(Projects!$K$5:$K$2413)) -> 0 | N28: 0 | O28: =SUMPRODUCT((Projects!$A$5:$A$2413='MDOT FTA Detail'!$M$3)*(Projects!$C$5:$C$2413='MDOT FTA Detail'!$C$4)*(Projects!$L$5:$L$2413='MDOT FTA Detail'!$A28)*(Projects!$J$5:$J$2413<>'MDOT FTA Detail'!$A$171)*(Projects!$Q$5:$Q$2413)) -> 0
A29: DPS | B29: ISTEA Demonstration 80% Federal on STP | C29: MDOT FA | D29: =SUMPRODUCT((Projects!$A$5:$A$2413='MDOT FTA Detail'!$D$3)*(Projects!$C$5:$C$2413='MDOT FTA Detail'!$C$4)*(Projects!$L$5:$L$2413='MDOT FTA Detail'!$A29)*(Projects!$J$5:$J$2413<>'MDOT FTA Detail'!$A$171)*(Projects!$K$5:K$2413)) -> 0 | E29: 0 | F29: =SUMPRODUCT((Projects!$A$5:$A$2413='MDOT FTA Detail'!$D$3)*(Projects!$C$5:$C$2413='MDOT FTA Detail'!$C$4)*(Projects!$L$5:$L$2413='MDOT FTA Detail'!$A29)*(Projects!$J$5:$J$2413<>'MDOT FTA Detail'!$A$171)*(Projects!$Q$5:Q$2413)) -> 0 | G29: =SUMPRODUCT((Projects!$A$5:$A$2413='MDOT FTA Detail'!$G$3)*(Projects!$C$5:$C$2413='MDOT FTA Detail'!$C$4)*(Projects!$L$5:$L$2413='MDOT FTA Detail'!$A29)*(Projects!$J$5:$J$2413<>'MDOT FTA Detail'!$A$171)*(Projects!$K$5:K$2413)) -> 0 | H29: 0 | I29: =SUMPRODUCT((Projects!$A$5:$A$2413='MDOT FTA Detail'!$G$3)*(Projects!$C$5:$C$2413='MDOT FTA Detail'!$C$4)*(Projects!$L$5:$L$2413='MDOT FTA Detail'!$A29)*(Projects!$J$5:$J$2413<>'MDOT FTA Detail'!$A$171)*(Projects!$Q$5:Q$2413)) -> 0 | J29: =SUMPRODUCT((Projects!$A$5:$A$2413='MDOT FTA Detail'!$J$3)*(Projects!$C$5:$C$2413='MDOT FTA Detail'!$C$4)*(Projects!$L$5:$L$2413='MDOT FTA Detail'!$A29)*(Projects!$J$5:$J$2413<>'MDOT FTA Detail'!$A$171)*(Projects!$K$5:$K$2413)) -> 0 | K29: 0 | L29: =SUMPRODUCT((Projects!$A$5:$A$2413='MDOT FTA Detail'!$J$3)*(Projects!$C$5:$C$2413='MDOT FTA Detail'!$C$4)*(Projects!$L$5:$L$2413='MDOT FTA Detail'!$A29)*(Projects!$J$5:$J$2413<>'MDOT FTA Detail'!$A$171)*(Projects!$Q$5:$Q$2413)) -> 0 | M29: =SUMPRODUCT((Projects!$A$5:$A$2413='MDOT FTA Detail'!$M$3)*(Projects!$C$5:$C$2413='MDOT FTA Detail'!$C$4)*(Projects!$L$5:$L$2413='MDOT FTA Detail'!$A29)*(Projects!$J$5:$J$2413<>'MDOT FTA Detail'!$A$171)*(Projects!$K$5:$K$2413)) -> 0 | N29: 0 | O29: =SUMPRODUCT((Projects!$A$5:$A$2413='MDOT FTA Detail'!$M$3)*(Projects!$C$5:$C$2413='MDOT FTA Detail'!$C$4)*(Projects!$L$5:$L$2413='MDOT FTA Detail'!$A29)*(Projects!$J$5:$J$2413<>'MDOT FTA Detail'!$A$171)*(Projects!$Q$5:$Q$2413)) -> 0
A30: DPSA | B30: Demonstration Project Section 112 Division A | C30: MDOT FA | D30: =SUMPRODUCT((Projects!$A$5:$A$2413='MDOT FTA Detail'!$D$3)*(Projects!$C$5:$C$2413='MDOT FTA Detail'!$C$4)*(Projects!$L$5:$L$2413='MDOT FTA Detail'!$A30)*(Projects!$J$5:$J$2413<>'MDOT FTA Detail'!$A$171)*(Projects!$K$5:K$2413)) -> 0 | E30: 0 | F30: =SUMPRODUCT((Projects!$A$5:$A$2413='MDOT FTA Detail'!$D$3)*(Projects!$C$5:$C$2413='MDOT FTA Detail'!$C$4)*(Projects!$L$5:$L$2413='MDOT FTA Detail'!$A30)*(Projects!$J$5:$J$2413<>'MDOT FTA Detail'!$A$171)*(Projects!$Q$5:Q$2413)) -> 0 | G30: =SUMPRODUCT((Projects!$A$5:$A$2413='MDOT FTA Detail'!$G$3)*(Projects!$C$5:$C$2413='MDOT FTA Detail'!$C$4)*(Projects!$L$5:$L$2413='MDOT FTA Detail'!$A30)*(Projects!$J$5:$J$2413<>'MDOT FTA Detail'!$A$171)*(Projects!$K$5:K$2413)) -> 0 | H30: 0 | I30: =SUMPRODUCT((Projects!$A$5:$A$2413='MDOT FTA Detail'!$G$3)*(Projects!$C$5:$C$2413='MDOT FTA Detail'!$C$4)*(Projects!$L$5:$L$2413='MDOT FTA Detail'!$A30)*(Projects!$J$5:$J$2413<>'MDOT FTA Detail'!$A$171)*(Projects!$Q$5:Q$2413)) -> 0 | J30: =SUMPRODUCT((Projects!$A$5:$A$2413='MDOT FTA Detail'!$J$3)*(Projects!$C$5:$C$2413='MDOT FTA Detail'!$C$4)*(Projects!$L$5:$L$2413='MDOT FTA Detail'!$A30)*(Projects!$J$5:$J$2413<>'MDOT FTA Detail'!$A$171)*(Projects!$K$5:$K$2413)) -> 0 | K30: 0 | L30: =SUMPRODUCT((Projects!$A$5:$A$2413='MDOT FTA Detail'!$J$3)*(Projects!$C$5:$C$2413='MDOT FTA Detail'!$C$4)*(Projects!$L$5:$L$2413='MDOT FTA Detail'!$A30)*(Projects!$J$5:$J$2413<>'MDOT FTA Detail'!$A$171)*(Projects!$Q$5:$Q$2413)) -> 0 | M30: =SUMPRODUCT((Projects!$A$5:$A$2413='MDOT FTA Detail'!$M$3)*(Projects!$C$5:$C$2413='MDOT FTA Detail'!$C$4)*(Projects!$L$5:$L$2413='MDOT FTA Detail'!$A30)*(Projects!$J$5:$J$2413<>'MDOT FTA Detail'!$A$171)*(Projects!$K$5:$K$2413)) -> 0 | N30: 0 | O30: =SUMPRODUCT((Projects!$A$5:$A$2413='MDOT FTA Detail'!$M$3)*(Projects!$C$5:$C$2413='MDOT FTA Detail'!$C$4)*(Projects!$L$5:$L$2413='MDOT FTA Detail'!$A30)*(Projects!$J$5:$J$2413<>'MDOT FTA Detail'!$A$171)*(Projects!$Q$5:$Q$2413)) -> 0
A31: DST | B31: Donor Bonus Surface Transportation | C31: MDOT FA | D31: =SUMPRODUCT((Projects!$A$5:$A$2413='MDOT FTA Detail'!$D$3)*(Projects!$C$5:$C$2413='MDOT FTA Detail'!$C$4)*(Projects!$L$5:$L$2413='MDOT FTA Detail'!$A31)*(Projects!$J$5:$J$2413<>'MDOT FTA Detail'!$A$171)*(Projects!$K$5:K$2413)) -> 0 | E31: 0 | F31: =SUMPRODUCT((Projects!$A$5:$A$2413='MDOT FTA Detail'!$D$3)*(Projects!$C$5:$C$2413='MDOT FTA Detail'!$C$4)*(Projects!$L$5:$L$2413='MDOT FTA Detail'!$A31)*(Projects!$J$5:$J$2413<>'MDOT FTA Detail'!$A$171)*(Projects!$Q$5:Q$2413)) -> 0 | G31: =SUMPRODUCT((Projects!$A$5:$A$2413='MDOT FTA Detail'!$G$3)*(Projects!$C$5:$C$2413='MDOT FTA Detail'!$C$4)*(Projects!$L$5:$L$2413='MDOT FTA Detail'!$A31)*(Projects!$J$5:$J$2413<>'MDOT FTA Detail'!$A$171)*(Projects!$K$5:K$2413)) -> 0 | H31: 0 | I31: =SUMPRODUCT((Projects!$A$5:$A$2413='MDOT FTA Detail'!$G$3)*(Projects!$C$5:$C$2413='MDOT FTA Detail'!$C$4)*(Projects!$L$5:$L$2413='MDOT FTA Detail'!$A31)*(Projects!$J$5:$J$2413<>'MDOT FTA Detail'!$A$171)*(Projects!$Q$5:Q$2413)) -> 0 | J31: =SUMPRODUCT((Projects!$A$5:$A$2413='MDOT FTA Detail'!$J$3)*(Projects!$C$5:$C$2413='MDOT FTA Detail'!$C$4)*(Projects!$L$5:$L$2413='MDOT FTA Detail'!$A31)*(Projects!$J$5:$J$2413<>'MDOT FTA Detail'!$A$171)*(Projects!$K$5:$K$2413)) -> 0 | K31: 0 | L31: =SUMPRODUCT((Projects!$A$5:$A$2413='MDOT FTA Detail'!$J$3)*(Projects!$C$5:$C$2413='MDOT FTA Detail'!$C$4)*(Projects!$L$5:$L$2413='MDOT FTA Detail'!$A31)*(Projects!$J$5:$J$2413<>'MDOT FTA Detail'!$A$171)*(Projects!$Q$5:$Q$2413)) -> 0 | M31: =SUMPRODUCT((Projects!$A$5:$A$2413='MDOT FTA Detail'!$M$3)*(Projects!$C$5:$C$2413='MDOT FTA Detail'!$C$4)*(Projects!$L$5:$L$2413='MDOT FTA Detail'!$A31)*(Projects!$J$5:$J$2413<>'MDOT FTA Detail'!$A$171)*(Projects!$K$5:$K$2413)) -> 0 | N31: 0 | O31: =SUMPRODUCT((Projects!$A$5:$A$2413='MDOT FTA Detail'!$M$3)*(Projects!$C$5:$C$2413='MDOT FTA Detail'!$C$4)*(Projects!$L$5:$L$2413='MDOT FTA Detail'!$A31)*(Projects!$J$5:$J$2413<>'MDOT FTA Detail'!$A$171)*(Projects!$Q$5:$Q$2413)) -> 0
A32: DSTU | B32: Donor Bonus Surface Transportation - (Urban > 2499,000) | C32: MDOT FA | D32: =SUMPRODUCT((Projects!$A$5:$A$2413='MDOT FTA Detail'!$D$3)*(Projects!$C$5:$C$2413='MDOT FTA Detail'!$C$4)*(Projects!$L$5:$L$2413='MDOT FTA Detail'!$A32)*(Projects!$J$5:$J$2413<>'MDOT FTA Detail'!$A$171)*(Projects!$K$5:K$2413)) -> 0 | E32: 0 | F32: =SUMPRODUCT((Projects!$A$5:$A$2413='MDOT FTA Detail'!$D$3)*(Projects!$C$5:$C$2413='MDOT FTA Detail'!$C$4)*(Projects!$L$5:$L$2413='MDOT FTA Detail'!$A32)*(Projects!$J$5:$J$2413<>'MDOT FTA Detail'!$A$171)*(Projects!$Q$5:Q$2413)) -> 0 | G32: =SUMPRODUCT((Projects!$A$5:$A$2413='MDOT FTA Detail'!$G$3)*(Projects!$C$5:$C$2413='MDOT FTA Detail'!$C$4)*(Projects!$L$5:$L$2413='MDOT FTA Detail'!$A32)*(Projects!$J$5:$J$2413<>'MDOT FTA Detail'!$A$171)*(Projects!$K$5:K$2413)) -> 0 | H32: 0 | I32: =SUMPRODUCT((Projects!$A$5:$A$2413='MDOT FTA Detail'!$G$3)*(Projects!$C$5:$C$2413='MDOT FTA Detail'!$C$4)*(Projects!$L$5:$L$2413='MDOT FTA Detail'!$A32)*(Projects!$J$5:$J$2413<>'MDOT FTA Detail'!$A$171)*(Projects!$Q$5:Q$2413)) -> 0 | J32: =SUMPRODUCT((Projects!$A$5:$A$2413='MDOT FTA Detail'!$J$3)*(Projects!$C$5:$C$2413='MDOT FTA Detail'!$C$4)*(Projects!$L$5:$L$2413='MDOT FTA Detail'!$A32)*(Projects!$J$5:$J$2413<>'MDOT FTA Detail'!$A$171)*(Projects!$K$5:$K$2413)) -> 0 | K32: 0 | L32: =SUMPRODUCT((Projects!$A$5:$A$2413='MDOT FTA Detail'!$J$3)*(Projects!$C$5:$C$2413='MDOT FTA Detail'!$C$4)*(Projects!$L$5:$L$2413='MDOT FTA Detail'!$A32)*(Projects!$J$5:$J$2413<>'MDOT FTA Detail'!$A$171)*(Projects!$Q$5:$Q$2413)) -> 0 | M32: =SUMPRODUCT((Projects!$A$5:$A$2413='MDOT FTA Detail'!$M$3)*(Projects!$C$5:$C$2413='MDOT FTA Detail'!$C$4)*(Projects!$L$5:$L$2413='MDOT FTA Detail'!$A32)*(Projects!$J$5:$J$2413<>'MDOT FTA Detail'!$A$171)*(Projects!$K$5:$K$2413)) -> 0 | N32: 0 | O32: =SUMPRODUCT((Projects!$A$5:$A$2413='MDOT FTA Detail'!$M$3)*(Projects!$C$5:$C$2413='MDOT FTA Detail'!$C$4)*(Projects!$L$5:$L$2413='MDOT FTA Detail'!$A32)*(Projects!$J$5:$J$2413<>'MDOT FTA Detail'!$A$171)*(Projects!$Q$5:$Q$2413)) -> 0
A33: DSTT | B33: Donor Bonus Surface Transportation - Rural - Trunkline | C33: MDOT FA | D33: =SUMPRODUCT((Projects!$A$5:$A$2413='MDOT FTA Detail'!$D$3)*(Projects!$C$5:$C$2413='MDOT FTA Detail'!$C$4)*(Projects!$L$5:$L$2413='MDOT FTA Detail'!$A33)*(Projects!$J$5:$J$2413<>'MDOT FTA Detail'!$A$171)*(Projects!$K$5:K$2413)) -> 0 | E33: 0 | F33: =SUMPRODUCT((Projects!$A$5:$A$2413='MDOT FTA Detail'!$D$3)*(Projects!$C$5:$C$2413='MDOT FTA Detail'!$C$4)*(Projects!$L$5:$L$2413='MDOT FTA Detail'!$A33)*(Projects!$J$5:$J$2413<>'MDOT FTA Detail'!$A$171)*(Projects!$Q$5:Q$2413)) -> 0 | G33: =SUMPRODUCT((Projects!$A$5:$A$2413='MDOT FTA Detail'!$G$3)*(Projects!$C$5:$C$2413='MDOT FTA Detail'!$C$4)*(Projects!$L$5:$L$2413='MDOT FTA Detail'!$A33)*(Projects!$J$5:$J$2413<>'MDOT FTA Detail'!$A$171)*(Projects!$K$5:K$2413)) -> 0 | H33: 0 | I33: =SUMPRODUCT((Projects!$A$5:$A$2413='MDOT FTA Detail'!$G$3)*(Projects!$C$5:$C$2413='MDOT FTA Detail'!$C$4)*(Projects!$L$5:$L$2413='MDOT FTA Detail'!$A33)*(Projects!$J$5:$J$2413<>'MDOT FTA Detail'!$A$171)*(Projects!$Q$5:Q$2413)) -> 0 | J33: =SUMPRODUCT((Projects!$A$5:$A$2413='MDOT FTA Detail'!$J$3)*(Projects!$C$5:$C$2413='MDOT FTA Detail'!$C$4)*(Projects!$L$5:$L$2413='MDOT FTA Detail'!$A33)*(Projects!$J$5:$J$2413<>'MDOT FTA Detail'!$A$171)*(Projects!$K$5:$K$2413)) -> 0 | K33: 0 | L33: =SUMPRODUCT((Projects!$A$5:$A$2413='MDOT FTA Detail'!$J$3)*(Projects!$C$5:$C$2413='MDOT FTA Detail'!$C$4)*(Projects!$L$5:$L$2413='MDOT FTA Detail'!$A33)*(Projects!$J$5:$J$2413<>'MDOT FTA Detail'!$A$171)*(Projects!$Q$5:$Q$2413)) -> 0 | M33: =SUMPRODUCT((Projects!$A$5:$A$2413='MDOT FTA Detail'!$M$3)*(Projects!$C$5:$C$2413='MDOT FTA Detail'!$C$4)*(Projects!$L$5:$L$2413='MDOT FTA Detail'!$A33)*(Projects!$J$5:$J$2413<>'MDOT FTA Detail'!$A$171)*(Projects!$K$5:$K$2413)) -> 0 | N33: 0 | O33: =SUMPRODUCT((Projects!$A$5:$A$2413='MDOT FTA Detail'!$M$3)*(Projects!$C$5:$C$2413='MDOT FTA Detail'!$C$4)*(Projects!$L$5:$L$2413='MDOT FTA Detail'!$A33)*(Projects!$J$5:$J$2413<>'MDOT FTA Detail'!$A$171)*(Projects!$Q$5:$Q$2413)) -> 0
A34: EBSL | B34: Equity Bonus - SAFETEA-LU | C34: MDOT FA | D34: =SUMPRODUCT((Projects!$A$5:$A$2413='MDOT FTA Detail'!$D$3)*(Projects!$C$5:$C$2413='MDOT FTA Detail'!$C$4)*(Projects!$L$5:$L$2413='MDOT FTA Detail'!$A34)*(Projects!$J$5:$J$2413<>'MDOT FTA Detail'!$A$171)*(Projects!$K$5:K$2413)) -> 0 | E34: 0 | F34: =SUMPRODUCT((Projects!$A$5:$A$2413='MDOT FTA Detail'!$D$3)*(Projects!$C$5:$C$2413='MDOT FTA Detail'!$C$4)*(Projects!$L$5:$L$2413='MDOT FTA Detail'!$A34)*(Projects!$J$5:$J$2413<>'MDOT FTA Detail'!$A$171)*(Projects!$Q$5:Q$2413)) -> 0 | G34: =SUMPRODUCT((Projects!$A$5:$A$2413='MDOT FTA Detail'!$G$3)*(Projects!$C$5:$C$2413='MDOT FTA Detail'!$C$4)*(Projects!$L$5:$L$2413='MDOT FTA Detail'!$A34)*(Projects!$J$5:$J$2413<>'MDOT FTA Detail'!$A$171)*(Projects!$K$5:K$2413)) -> 0 | H34: 0 | I34: =SUMPRODUCT((Projects!$A$5:$A$2413='MDOT FTA Detail'!$G$3)*(Projects!$C$5:$C$2413='MDOT FTA Detail'!$C$4)*(Projects!$L$5:$L$2413='MDOT FTA Detail'!$A34)*(Projects!$J$5:$J$2413<>'MDOT FTA Detail'!$A$171)*(Projects!$Q$5:Q$2413)) -> 0 | J34: =SUMPRODUCT((Projects!$A$5:$A$2413='MDOT FTA Detail'!$J$3)*(Projects!$C$5:$C$2413='MDOT FTA Detail'!$C$4)*(Projects!$L$5:$L$2413='MDOT FTA Detail'!$A34)*(Projects!$J$5:$J$2413<>'MDOT FTA Detail'!$A$171)*(Projects!$K$5:$K$2413)) -> 0 | K34: 0 | L34: =SUMPRODUCT((Projects!$A$5:$A$2413='MDOT FTA Detail'!$J$3)*(Projects!$C$5:$C$2413='MDOT FTA Detail'!$C$4)*(Projects!$L$5:$L$2413='MDOT FTA Detail'!$A34)*(Projects!$J$5:$J$2413<>'MDOT FTA Detail'!$A$171)*(Projects!$Q$5:$Q$2413)) -> 0 | M34: =SUMPRODUCT((Projects!$A$5:$A$2413='MDOT FTA Detail'!$M$3)*(Projects!$C$5:$C$2413='MDOT FTA Detail'!$C$4)*(Projects!$L$5:$L$2413='MDOT FTA Detail'!$A34)*(Projects!$J$5:$J$2413<>'MDOT FTA Detail'!$A$171)*(Projects!$K$5:$K$2413)) -> 0 | N34: 0 | O34: =SUMPRODUCT((Projects!$A$5:$A$2413='MDOT FTA Detail'!$M$3)*(Projects!$C$5:$C$2413='MDOT FTA Detail'!$C$4)*(Projects!$L$5:$L$2413='MDOT FTA Detail'!$A34)*(Projects!$J$5:$J$2413<>'MDOT FTA Detail'!$A$171)*(Projects!$Q$5:$Q$2413)) -> 0
A35: EDAF | B35: Economic Development - Category A with Federal Aid | C35: MDOT FA | D35: =SUMPRODUCT((Projects!$A$5:$A$2413='MDOT FTA Detail'!$D$3)*(Projects!$C$5:$C$2413='MDOT FTA Detail'!$C$4)*(Projects!$L$5:$L$2413='MDOT FTA Detail'!$A35)*(Projects!$J$5:$J$2413<>'MDOT FTA Detail'!$A$171)*(Projects!$K$5:K$2413)) -> 0 | E35: 0 | F35: =SUMPRODUCT((Projects!$A$5:$A$2413='MDOT FTA Detail'!$D$3)*(Projects!$C$5:$C$2413='MDOT FTA Detail'!$C$4)*(Projects!$L$5:$L$2413='MDOT FTA Detail'!$A35)*(Projects!$J$5:$J$2413<>'MDOT FTA Detail'!$A$171)*(Projects!$Q$5:Q$2413)) -> 0 | G35: =SUMPRODUCT((Projects!$A$5:$A$2413='MDOT FTA Detail'!$G$3)*(Projects!$C$5:$C$2413='MDOT FTA Detail'!$C$4)*(Projects!$L$5:$L$2413='MDOT FTA Detail'!$A35)*(Projects!$J$5:$J$2413<>'MDOT FTA Detail'!$A$171)*(Projects!$K$5:K$2413)) -> 0 | H35: 0 | I35: =SUMPRODUCT((Projects!$A$5:$A$2413='MDOT FTA Detail'!$G$3)*(Projects!$C$5:$C$2413='MDOT FTA Detail'!$C$4)*(Projects!$L$5:$L$2413='MDOT FTA Detail'!$A35)*(Projects!$J$5:$J$2413<>'MDOT FTA Detail'!$A$171)*(Projects!$Q$5:Q$2413)) -> 0 | J35: =SUMPRODUCT((Projects!$A$5:$A$2413='MDOT FTA Detail'!$J$3)*(Projects!$C$5:$C$2413='MDOT FTA Detail'!$C$4)*(Projects!$L$5:$L$2413='MDOT FTA Detail'!$A35)*(Projects!$J$5:$J$2413<>'MDOT FTA Detail'!$A$171)*(Projects!$K$5:$K$2413)) -> 0 | K35: 0 | L35: =SUMPRODUCT((Projects!$A$5:$A$2413='MDOT FTA Detail'!$J$3)*(Projects!$C$5:$C$2413='MDOT FTA Detail'!$C$4)*(Projects!$L$5:$L$2413='MDOT FTA Detail'!$A35)*(Projects!$J$5:$J$2413<>'MDOT FTA Detail'!$A$171)*(Projects!$Q$5:$Q$2413)) -> 0 | M35: =SUMPRODUCT((Projects!$A$5:$A$2413='MDOT FTA Detail'!$M$3)*(Projects!$C$5:$C$2413='MDOT FTA Detail'!$C$4)*(Projects!$L$5:$L$2413='MDOT FTA Detail'!$A35)*(Projects!$J$5:$J$2413<>'MDOT FTA Detail'!$A$171)*(Projects!$K$5:$K$2413)) -> 0 | N35: 0 | O35: =SUMPRODUCT((Projects!$A$5:$A$2413='MDOT FTA Detail'!$M$3)*(Projects!$C$5:$C$2413='MDOT FTA Detail'!$C$4)*(Projects!$L$5:$L$2413='MDOT FTA Detail'!$A35)*(Projects!$J$5:$J$2413<>'MDOT FTA Detail'!$A$171)*(Projects!$Q$5:$Q$2413)) -> 0
A36: EDCF | B36: Economic Development - Category C with Federal Aid | C36: MDOT FA | D36: =SUMPRODUCT((Projects!$A$5:$A$2413='MDOT FTA Detail'!$D$3)*(Projects!$C$5:$C$2413='MDOT FTA Detail'!$C$4)*(Projects!$L$5:$L$2413='MDOT FTA Detail'!$A36)*(Projects!$J$5:$J$2413<>'MDOT FTA Detail'!$A$171)*(Projects!$K$5:K$2413)) -> 0 | E36: 0 | F36: =SUMPRODUCT((Projects!$A$5:$A$2413='MDOT FTA Detail'!$D$3)*(Projects!$C$5:$C$2413='MDOT FTA Detail'!$C$4)*(Projects!$L$5:$L$2413='MDOT FTA Detail'!$A36)*(Projects!$J$5:$J$2413<>'MDOT FTA Detail'!$A$171)*(Projects!$Q$5:Q$2413)) -> 0 | G36: =SUMPRODUCT((Projects!$A$5:$A$2413='MDOT FTA Detail'!$G$3)*(Projects!$C$5:$C$2413='MDOT FTA Detail'!$C$4)*(Projects!$L$5:$L$2413='MDOT FTA Detail'!$A36)*(Projects!$J$5:$J$2413<>'MDOT FTA Detail'!$A$171)*(Projects!$K$5:K$2413)) -> 0 | H36: 0 | I36: =SUMPRODUCT((Projects!$A$5:$A$2413='MDOT FTA Detail'!$G$3)*(Projects!$C$5:$C$2413='MDOT FTA Detail'!$C$4)*(Projects!$L$5:$L$2413='MDOT FTA Detail'!$A36)*(Projects!$J$5:$J$2413<>'MDOT FTA Detail'!$A$171)*(Projects!$Q$5:Q$2413)) -> 0 | J36: =SUMPRODUCT((Projects!$A$5:$A$2413='MDOT FTA Detail'!$J$3)*(Projects!$C$5:$C$2413='MDOT FTA Detail'!$C$4)*(Projects!$L$5:$L$2413='MDOT FTA Detail'!$A36)*(Projects!$J$5:$J$2413<>'MDOT FTA Detail'!$A$171)*(Projects!$K$5:$K$2413)) -> 0 | K36: 0 | L36: =SUMPRODUCT((Projects!$A$5:$A$2413='MDOT FTA Detail'!$J$3)*(Projects!$C$5:$C$2413='MDOT FTA Detail'!$C$4)*(Projects!$L$5:$L$2413='MDOT FTA Detail'!$A36)*(Projects!$J$5:$J$2413<>'MDOT FTA Detail'!$A$171)*(Projects!$Q$5:$Q$2413)) -> 0 | M36: =SUMPRODUCT((Projects!$A$5:$A$2413='MDOT FTA Detail'!$M$3)*(Projects!$C$5:$C$2413='MDOT FTA Detail'!$C$4)*(Projects!$L$5:$L$2413='MDOT FTA Detail'!$A36)*(Projects!$J$5:$J$2413<>'MDOT FTA Detail'!$A$171)*(Projects!$K$5:$K$2413)) -> 0 | N36: 0 | O36: =SUMPRODUCT((Projects!$A$5:$A$2413='MDOT FTA Detail'!$M$3)*(Projects!$C$5:$C$2413='MDOT FTA Detail'!$C$4)*(Projects!$L$5:$L$2413='MDOT FTA Detail'!$A36)*(Projects!$J$5:$J$2413<>'MDOT FTA Detail'!$A$171)*(Projects!$Q$5:$Q$2413)) -> 0
A37: EDDF | B37: Economic Development - Category D with Federal Aid | C37: MDOT FA | D37: =SUMPRODUCT((Projects!$A$5:$A$2413='MDOT FTA Detail'!$D$3)*(Projects!$C$5:$C$2413='MDOT FTA Detail'!$C$4)*(Projects!$L$5:$L$2413='MDOT FTA Detail'!$A37)*(Projects!$J$5:$J$2413<>'MDOT FTA Detail'!$A$171)*(Projects!$K$5:K$2413)) -> 0 | E37: 0 | F37: =SUMPRODUCT((Projects!$A$5:$A$2413='MDOT FTA Detail'!$D$3)*(Projects!$C$5:$C$2413='MDOT FTA Detail'!$C$4)*(Projects!$L$5:$L$2413='MDOT FTA Detail'!$A37)*(Projects!$J$5:$J$2413<>'MDOT FTA Detail'!$A$171)*(Projects!$Q$5:Q$2413)) -> 0 | G37: =SUMPRODUCT((Projects!$A$5:$A$2413='MDOT FTA Detail'!$G$3)*(Projects!$C$5:$C$2413='MDOT FTA Detail'!$C$4)*(Projects!$L$5:$L$2413='MDOT FTA Detail'!$A37)*(Projects!$J$5:$J$2413<>'MDOT FTA Detail'!$A$171)*(Projects!$K$5:K$2413)) -> 0 | H37: 0 | I37: =SUMPRODUCT((Projects!$A$5:$A$2413='MDOT FTA Detail'!$G$3)*(Projects!$C$5:$C$2413='MDOT FTA Detail'!$C$4)*(Projects!$L$5:$L$2413='MDOT FTA Detail'!$A37)*(Projects!$J$5:$J$2413<>'MDOT FTA Detail'!$A$171)*(Projects!$Q$5:Q$2413)) -> 0 | J37: =SUMPRODUCT((Projects!$A$5:$A$2413='MDOT FTA Detail'!$J$3)*(Projects!$C$5:$C$2413='MDOT FTA Detail'!$C$4)*(Projects!$L$5:$L$2413='MDOT FTA Detail'!$A37)*(Projects!$J$5:$J$2413<>'MDOT FTA Detail'!$A$171)*(Projects!$K$5:$K$2413)) -> 0 | K37: 0 | L37: =SUMPRODUCT((Projects!$A$5:$A$2413='MDOT FTA Detail'!$J$3)*(Projects!$C$5:$C$2413='MDOT FTA Detail'!$C$4)*(Projects!$L$5:$L$2413='MDOT FTA Detail'!$A37)*(Projects!$J$5:$J$2413<>'MDOT FTA Detail'!$A$171)*(Projects!$Q$5:$Q$2413)) -> 0 | M37: =SUMPRODUCT((Projects!$A$5:$A$2413='MDOT FTA Detail'!$M$3)*(Projects!$C$5:$C$2413='MDOT FTA Detail'!$C$4)*(Projects!$L$5:$L$2413='MDOT FTA Detail'!$A37)*(Projects!$J$5:$J$2413<>'MDOT FTA Detail'!$A$171)*(Projects!$K$5:$K$2413)) -> 0 | N37: 0 | O37: =SUMPRODUCT((Projects!$A$5:$A$2413='MDOT FTA Detail'!$M$3)*(Projects!$C$5:$C$2413='MDOT FTA Detail'!$C$4)*(Projects!$L$5:$L$2413='MDOT FTA Detail'!$A37)*(Projects!$J$5:$J$2413<>'MDOT FTA Detail'!$A$171)*(Projects!$Q$5:$Q$2413)) -> 0
A38: EDFF | B38: Economic Development - Category F with Federal Aid | C38: MDOT FA | D38: =SUMPRODUCT((Projects!$A$5:$A$2413='MDOT FTA Detail'!$D$3)*(Projects!$C$5:$C$2413='MDOT FTA Detail'!$C$4)*(Projects!$L$5:$L$2413='MDOT FTA Detail'!$A38)*(Projects!$J$5:$J$2413<>'MDOT FTA Detail'!$A$171)*(Projects!$K$5:K$2413)) -> 0 | E38: 0 | F38: =SUMPRODUCT((Projects!$A$5:$A$2413='MDOT FTA Detail'!$D$3)*(Projects!$C$5:$C$2413='MDOT FTA Detail'!$C$4)*(Projects!$L$5:$L$2413='MDOT FTA Detail'!$A38)*(Projects!$J$5:$J$2413<>'MDOT FTA Detail'!$A$171)*(Projects!$Q$5:Q$2413)) -> 0 | G38: =SUMPRODUCT((Projects!$A$5:$A$2413='MDOT FTA Detail'!$G$3)*(Projects!$C$5:$C$2413='MDOT FTA Detail'!$C$4)*(Projects!$L$5:$L$2413='MDOT FTA Detail'!$A38)*(Projects!$J$5:$J$2413<>'MDOT FTA Detail'!$A$171)*(Projects!$K$5:K$2413)) -> 0 | H38: 0 | I38: =SUMPRODUCT((Projects!$A$5:$A$2413='MDOT FTA Detail'!$G$3)*(Projects!$C$5:$C$2413='MDOT FTA Detail'!$C$4)*(Projects!$L$5:$L$2413='MDOT FTA Detail'!$A38)*(Projects!$J$5:$J$2413<>'MDOT FTA Detail'!$A$171)*(Projects!$Q$5:Q$2413)) -> 0 | J38: =SUMPRODUCT((Projects!$A$5:$A$2413='MDOT FTA Detail'!$J$3)*(Projects!$C$5:$C$2413='MDOT FTA Detail'!$C$4)*(Projects!$L$5:$L$2413='MDOT FTA Detail'!$A38)*(Projects!$J$5:$J$2413<>'MDOT FTA Detail'!$A$171)*(Projects!$K$5:$K$2413)) -> 0 | K38: 0 | L38: =SUMPRODUCT((Projects!$A$5:$A$2413='MDOT FTA Detail'!$J$3)*(Projects!$C$5:$C$2413='MDOT FTA Detail'!$C$4)*(Projects!$L$5:$L$2413='MDOT FTA Detail'!$A38)*(Projects!$J$5:$J$2413<>'MDOT FTA Detail'!$A$171)*(Projects!$Q$5:$Q$2413)) -> 0 | M38: =SUMPRODUCT((Projects!$A$5:$A$2413='MDOT FTA Detail'!$M$3)*(Projects!$C$5:$C$2413='MDOT FTA Detail'!$C$4)*(Projects!$L$5:$L$2413='MDOT FTA Detail'!$A38)*(Projects!$J$5:$J$2413<>'MDOT FTA Detail'!$A$171)*(Projects!$K$5:$K$2413)) -> 0 | N38: 0 | O38: =SUMPRODUCT((Projects!$A$5:$A$2413='MDOT FTA Detail'!$M$3)*(Projects!$C$5:$C$2413='MDOT FTA Detail'!$C$4)*(Projects!$L$5:$L$2413='MDOT FTA Detail'!$A38)*(Projects!$J$5:$J$2413<>'MDOT FTA Detail'!$A$171)*(Projects!$Q$5:$Q$2413)) -> 0
A39: ER | B39: Emergency Relief | C39: MDOT FA | D39: =SUMPRODUCT((Projects!$A$5:$A$2413='MDOT FTA Detail'!$D$3)*(Projects!$C$5:$C$2413='MDOT FTA Detail'!$C$4)*(Projects!$L$5:$L$2413='MDOT FTA Detail'!$A39)*(Projects!$J$5:$J$2413<>'MDOT FTA Detail'!$A$171)*(Projects!$K$5:K$2413)) -> 0 | E39: 0 | F39: =SUMPRODUCT((Projects!$A$5:$A$2413='MDOT FTA Detail'!$D$3)*(Projects!$C$5:$C$2413='MDOT FTA Detail'!$C$4)*(Projects!$L$5:$L$2413='MDOT FTA Detail'!$A39)*(Projects!$J$5:$J$2413<>'MDOT FTA Detail'!$A$171)*(Projects!$Q$5:Q$2413)) -> 0 | G39: =SUMPRODUCT((Projects!$A$5:$A$2413='MDOT FTA Detail'!$G$3)*(Projects!$C$5:$C$2413='MDOT FTA Detail'!$C$4)*(Projects!$L$5:$L$2413='MDOT FTA Detail'!$A39)*(Projects!$J$5:$J$2413<>'MDOT FTA Detail'!$A$171)*(Projects!$K$5:K$2413)) -> 0 | H39: 0 | I39: =SUMPRODUCT((Projects!$A$5:$A$2413='MDOT FTA Detail'!$G$3)*(Projects!$C$5:$C$2413='MDOT FTA Detail'!$C$4)*(Projects!$L$5:$L$2413='MDOT FTA Detail'!$A39)*(Projects!$J$5:$J$2413<>'MDOT FTA Detail'!$A$171)*(Projects!$Q$5:Q$2413)) -> 0 | J39: =SUMPRODUCT((Projects!$A$5:$A$2413='MDOT FTA Detail'!$J$3)*(Projects!$C$5:$C$2413='MDOT FTA Detail'!$C$4)*(Projects!$L$5:$L$2413='MDOT FTA Detail'!$A39)*(Projects!$J$5:$J$2413<>'MDOT FTA Detail'!$A$171)*(Projects!$K$5:$K$2413)) -> 0 | K39: 0 | L39: =SUMPRODUCT((Projects!$A$5:$A$2413='MDOT FTA Detail'!$J$3)*(Projects!$C$5:$C$2413='MDOT FTA Detail'!$C$4)*(Projects!$L$5:$L$2413='MDOT FTA Detail'!$A39)*(Projects!$J$5:$J$2413<>'MDOT FTA Detail'!$A$171)*(Projects!$Q$5:$Q$2413)) -> 0 | M39: =SUMPRODUCT((Projects!$A$5:$A$2413='MDOT FTA Detail'!$M$3)*(Projects!$C$5:$C$2413='MDOT FTA Detail'!$C$4)*(Projects!$L$5:$L$2413='MDOT FTA Detail'!$A39)*(Projects!$J$5:$J$2413<>'MDOT FTA Detail'!$A$171)*(Projects!$K$5:$K$2413)) -> 0 | N39: 0 | O39: =SUMPRODUCT((Projects!$A$5:$A$2413='MDOT FTA Detail'!$M$3)*(Projects!$C$5:$C$2413='MDOT FTA Detail'!$C$4)*(Projects!$L$5:$L$2413='MDOT FTA Detail'!$A39)*(Projects!$J$5:$J$2413<>'MDOT FTA Detail'!$A$171)*(Projects!$Q$5:$Q$2413)) -> 0
A40: FBD | B40: Ferry Boat & Terminal Discretionary | C40: MDOT FA | D40: =SUMPRODUCT((Projects!$A$5:$A$2413='MDOT FTA Detail'!$D$3)*(Projects!$C$5:$C$2413='MDOT FTA Detail'!$C$4)*(Projects!$L$5:$L$2413='MDOT FTA Detail'!$A40)*(Projects!$J$5:$J$2413<>'MDOT FTA Detail'!$A$171)*(Projects!$K$5:K$2413)) -> 0 | E40: 0 | F40: =SUMPRODUCT((Projects!$A$5:$A$2413='MDOT FTA Detail'!$D$3)*(Projects!$C$5:$C$2413='MDOT FTA Detail'!$C$4)*(Projects!$L$5:$L$2413='MDOT FTA Detail'!$A40)*(Projects!$J$5:$J$2413<>'MDOT FTA Detail'!$A$171)*(Projects!$Q$5:Q$2413)) -> 0 | G40: =SUMPRODUCT((Projects!$A$5:$A$2413='MDOT FTA Detail'!$G$3)*(Projects!$C$5:$C$2413='MDOT FTA Detail'!$C$4)*(Projects!$L$5:$L$2413='MDOT FTA Detail'!$A40)*(Projects!$J$5:$J$2413<>'MDOT FTA Detail'!$A$171)*(Projects!$K$5:K$2413)) -> 0 | H40: 0 | I40: =SUMPRODUCT((Projects!$A$5:$A$2413='MDOT FTA Detail'!$G$3)*(Projects!$C$5:$C$2413='MDOT FTA Detail'!$C$4)*(Projects!$L$5:$L$2413='MDOT FTA Detail'!$A40)*(Projects!$J$5:$J$2413<>'MDOT FTA Detail'!$A$171)*(Projects!$Q$5:Q$2413)) -> 0 | J40: =SUMPRODUCT((Projects!$A$5:$A$2413='MDOT FTA Detail'!$J$3)*(Projects!$C$5:$C$2413='MDOT FTA Detail'!$C$4)*(Projects!$L$5:$L$2413='MDOT FTA Detail'!$A40)*(Projects!$J$5:$J$2413<>'MDOT FTA Detail'!$A$171)*(Projects!$K$5:$K$2413)) -> 0 | K40: 0 | L40: =SUMPRODUCT((Projects!$A$5:$A$2413='MDOT FTA Detail'!$J$3)*(Projects!$C$5:$C$2413='MDOT FTA Detail'!$C$4)*(Projects!$L$5:$L$2413='MDOT FTA Detail'!$A40)*(Projects!$J$5:$J$2413<>'MDOT FTA Detail'!$A$171)*(Projects!$Q$5:$Q$2413)) -> 0 | M40: =SUMPRODUCT((Projects!$A$5:$A$2413='MDOT FTA Detail'!$M$3)*(Projects!$C$5:$C$2413='MDOT FTA Detail'!$C$4)*(Projects!$L$5:$L$2413='MDOT FTA Detail'!$A40)*(Projects!$J$5:$J$2413<>'MDOT FTA Detail'!$A$171)*(Projects!$K$5:$K$2413)) -> 0 | N40: 0 | O40: =SUMPRODUCT((Projects!$A$5:$A$2413='MDOT FTA Detail'!$M$3)*(Projects!$C$5:$C$2413='MDOT FTA Detail'!$C$4)*(Projects!$L$5:$L$2413='MDOT FTA Detail'!$A40)*(Projects!$J$5:$J$2413<>'MDOT FTA Detail'!$A$171)*(Projects!$Q$5:$Q$2413)) -> 0
A41: FFH | B41: Federal Forest Highway | C41: MDOT FA | D41: =SUMPRODUCT((Projects!$A$5:$A$2413='MDOT FTA Detail'!$D$3)*(Projects!$C$5:$C$2413='MDOT FTA Detail'!$C$4)*(Projects!$L$5:$L$2413='MDOT FTA Detail'!$A41)*(Projects!$J$5:$J$2413<>'MDOT FTA Detail'!$A$171)*(Projects!$K$5:K$2413)) -> 0 | E41: 0 | F41: =SUMPRODUCT((Projects!$A$5:$A$2413='MDOT FTA Detail'!$D$3)*(Projects!$C$5:$C$2413='MDOT FTA Detail'!$C$4)*(Projects!$L$5:$L$2413='MDOT FTA Detail'!$A41)*(Projects!$J$5:$J$2413<>'MDOT FTA Detail'!$A$171)*(Projects!$Q$5:Q$2413)) -> 0 | G41: =SUMPRODUCT((Projects!$A$5:$A$2413='MDOT FTA Detail'!$G$3)*(Projects!$C$5:$C$2413='MDOT FTA Detail'!$C$4)*(Projects!$L$5:$L$2413='MDOT FTA Detail'!$A41)*(Projects!$J$5:$J$2413<>'MDOT FTA Detail'!$A$171)*(Projects!$K$5:K$2413)) -> 0 | H41: 0 | I41: =SUMPRODUCT((Projects!$A$5:$A$2413='MDOT FTA Detail'!$G$3)*(Projects!$C$5:$C$2413='MDOT FTA Detail'!$C$4)*(Projects!$L$5:$L$2413='MDOT FTA Detail'!$A41)*(Projects!$J$5:$J$2413<>'MDOT FTA Detail'!$A$171)*(Projects!$Q$5:Q$2413)) -> 0 | J41: =SUMPRODUCT((Projects!$A$5:$A$2413='MDOT FTA Detail'!$J$3)*(Projects!$C$5:$C$2413='MDOT FTA Detail'!$C$4)*(Projects!$L$5:$L$2413='MDOT FTA Detail'!$A41)*(Projects!$J$5:$J$2413<>'MDOT FTA Detail'!$A$171)*(Projects!$K$5:$K$2413)) -> 0 | K41: 0 | L41: =SUMPRODUCT((Projects!$A$5:$A$2413='MDOT FTA Detail'!$J$3)*(Projects!$C$5:$C$2413='MDOT FTA Detail'!$C$4)*(Projects!$L$5:$L$2413='MDOT FTA Detail'!$A41)*(Projects!$J$5:$J$2413<>'MDOT FTA Detail'!$A$171)*(Projects!$Q$5:$Q$2413)) -> 0 | M41: =SUMPRODUCT((Projects!$A$5:$A$2413='MDOT FTA Detail'!$M$3)*(Projects!$C$5:$C$2413='MDOT FTA Detail'!$C$4)*(Projects!$L$5:$L$2413='MDOT FTA Detail'!$A41)*(Projects!$J$5:$J$2413<>'MDOT FTA Detail'!$A$171)*(Projects!$K$5:$K$2413)) -> 0 | N41: 0 | O41: =SUMPRODUCT((Projects!$A$5:$A$2413='MDOT FTA Detail'!$M$3)*(Projects!$C$5:$C$2413='MDOT FTA Detail'!$C$4)*(Projects!$L$5:$L$2413='MDOT FTA Detail'!$A41)*(Projects!$J$5:$J$2413<>'MDOT FTA Detail'!$A$171)*(Projects!$Q$5:$Q$2413)) -> 0
A42: FLAP | B42: Federal Lands Access Program | C42: MDOT FA | D42: =SUMPRODUCT((Projects!$A$5:$A$2413='MDOT FTA Detail'!$D$3)*(Projects!$C$5:$C$2413='MDOT FTA Detail'!$C$4)*(Projects!$L$5:$L$2413='MDOT FTA Detail'!$A42)*(Projects!$J$5:$J$2413<>'MDOT FTA Detail'!$A$171)*(Projects!$K$5:K$2413)) -> 0 | E42: 0 | F42: =SUMPRODUCT((Projects!$A$5:$A$2413='MDOT FTA Detail'!$D$3)*(Projects!$C$5:$C$2413='MDOT FTA Detail'!$C$4)*(Projects!$L$5:$L$2413='MDOT FTA Detail'!$A42)*(Projects!$J$5:$J$2413<>'MDOT FTA Detail'!$A$171)*(Projects!$Q$5:Q$2413)) -> 0 | G42: =SUMPRODUCT((Projects!$A$5:$A$2413='MDOT FTA Detail'!$G$3)*(Projects!$C$5:$C$2413='MDOT FTA Detail'!$C$4)*(Projects!$L$5:$L$2413='MDOT FTA Detail'!$A42)*(Projects!$J$5:$J$2413<>'MDOT FTA Detail'!$A$171)*(Projects!$K$5:K$2413)) -> 0 | H42: 0 | I42: =SUMPRODUCT((Projects!$A$5:$A$2413='MDOT FTA Detail'!$G$3)*(Projects!$C$5:$C$2413='MDOT FTA Detail'!$C$4)*(Projects!$L$5:$L$2413='MDOT FTA Detail'!$A42)*(Projects!$J$5:$J$2413<>'MDOT FTA Detail'!$A$171)*(Projects!$Q$5:Q$2413)) -> 0 | J42: =SUMPRODUCT((Projects!$A$5:$A$2413='MDOT FTA Detail'!$J$3)*(Projects!$C$5:$C$2413='MDOT FTA Detail'!$C$4)*(Projects!$L$5:$L$2413='MDOT FTA Detail'!$A42)*(Projects!$J$5:$J$2413<>'MDOT FTA Detail'!$A$171)*(Projects!$K$5:$K$2413)) -> 0 | K42: 0 | L42: =SUMPRODUCT((Projects!$A$5:$A$2413='MDOT FTA Detail'!$J$3)*(Projects!$C$5:$C$2413='MDOT FTA Detail'!$C$4)*(Projects!$L$5:$L$2413='MDOT FTA Detail'!$A42)*(Projects!$J$5:$J$2413<>'MDOT FTA Detail'!$A$171)*(Projects!$Q$5:$Q$2413)) -> 0 | M42: =SUMPRODUCT((Projects!$A$5:$A$2413='MDOT FTA Detail'!$M$3)*(Projects!$C$5:$C$2413='MDOT FTA Detail'!$C$4)*(Projects!$L$5:$L$2413='MDOT FTA Detail'!$A42)*(Projects!$J$5:$J$2413<>'MDOT FTA Detail'!$A$171)*(Projects!$K$5:$K$2413)) -> 0 | N42: 0 | O42: =SUMPRODUCT((Projects!$A$5:$A$2413='MDOT FTA Detail'!$M$3)*(Projects!$C$5:$C$2413='MDOT FTA Detail'!$C$4)*(Projects!$L$5:$L$2413='MDOT FTA Detail'!$A42)*(Projects!$J$5:$J$2413<>'MDOT FTA Detail'!$A$171)*(Projects!$Q$5:$Q$2413)) -> 0
A43: HBOA | B43: Highway Bridge Obligation Authority | C43: MDOT FA | D43: =SUMPRODUCT((Projects!$A$5:$A$2413='MDOT FTA Detail'!$D$3)*(Projects!$C$5:$C$2413='MDOT FTA Detail'!$C$4)*(Projects!$L$5:$L$2413='MDOT FTA Detail'!$A43)*(Projects!$J$5:$J$2413<>'MDOT FTA Detail'!$A$171)*(Projects!$K$5:K$2413)) -> 0 | E43: 0 | F43: =SUMPRODUCT((Projects!$A$5:$A$2413='MDOT FTA Detail'!$D$3)*(Projects!$C$5:$C$2413='MDOT FTA Detail'!$C$4)*(Projects!$L$5:$L$2413='MDOT FTA Detail'!$A43)*(Projects!$J$5:$J$2413<>'MDOT FTA Detail'!$A$171)*(Projects!$Q$5:Q$2413)) -> 0 | G43: =SUMPRODUCT((Projects!$A$5:$A$2413='MDOT FTA Detail'!$G$3)*(Projects!$C$5:$C$2413='MDOT FTA Detail'!$C$4)*(Projects!$L$5:$L$2413='MDOT FTA Detail'!$A43)*(Projects!$J$5:$J$2413<>'MDOT FTA Detail'!$A$171)*(Projects!$K$5:K$2413)) -> 0 | H43: 0 | I43: =SUMPRODUCT((Projects!$A$5:$A$2413='MDOT FTA Detail'!$G$3)*(Projects!$C$5:$C$2413='MDOT FTA Detail'!$C$4)*(Projects!$L$5:$L$2413='MDOT FTA Detail'!$A43)*(Projects!$J$5:$J$2413<>'MDOT FTA Detail'!$A$171)*(Projects!$Q$5:Q$2413)) -> 0 | J43: =SUMPRODUCT((Projects!$A$5:$A$2413='MDOT FTA Detail'!$J$3)*(Projects!$C$5:$C$2413='MDOT FTA Detail'!$C$4)*(Projects!$L$5:$L$2413='MDOT FTA Detail'!$A43)*(Projects!$J$5:$J$2413<>'MDOT FTA Detail'!$A$171)*(Projects!$K$5:$K$2413)) -> 0 | K43: 0 | L43: =SUMPRODUCT((Projects!$A$5:$A$2413='MDOT FTA Detail'!$J$3)*(Projects!$C$5:$C$2413='MDOT FTA Detail'!$C$4)*(Projects!$L$5:$L$2413='MDOT FTA Detail'!$A43)*(Projects!$J$5:$J$2413<>'MDOT FTA Detail'!$A$171)*(Projects!$Q$5:$Q$2413)) -> 0 | M43: =SUMPRODUCT((Projects!$A$5:$A$2413='MDOT FTA Detail'!$M$3)*(Projects!$C$5:$C$2413='MDOT FTA Detail'!$C$4)*(Projects!$L$5:$L$2413='MDOT FTA Detail'!$A43)*(Projects!$J$5:$J$2413<>'MDOT FTA Detail'!$A$171)*(Projects!$K$5:$K$2413)) -> 0 | N43: 0 | O43: =SUMPRODUCT((Projects!$A$5:$A$2413='MDOT FTA Detail'!$M$3)*(Projects!$C$5:$C$2413='MDOT FTA Detail'!$C$4)*(Projects!$L$5:$L$2413='MDOT FTA Detail'!$A43)*(Projects!$J$5:$J$2413<>'MDOT FTA Detail'!$A$171)*(Projects!$Q$5:$Q$2413)) -> 0
A44: HPP | B44: High Priority Projects (Demo) | C44: MDOT FA | D44: =SUMPRODUCT((Projects!$A$5:$A$2413='MDOT FTA Detail'!$D$3)*(Projects!$C$5:$C$2413='MDOT FTA Detail'!$C$4)*(Projects!$L$5:$L$2413='MDOT FTA Detail'!$A44)*(Projects!$J$5:$J$2413<>'MDOT FTA Detail'!$A$171)*(Projects!$K$5:K$2413)) -> 0 | E44: 0 | F44: =SUMPRODUCT((Projects!$A$5:$A$2413='MDOT FTA Detail'!$D$3)*(Projects!$C$5:$C$2413='MDOT FTA Detail'!$C$4)*(Projects!$L$5:$L$2413='MDOT FTA Detail'!$A44)*(Projects!$J$5:$J$2413<>'MDOT FTA Detail'!$A$171)*(Projects!$Q$5:Q$2413)) -> 0 | G44: =SUMPRODUCT((Projects!$A$5:$A$2413='MDOT FTA Detail'!$G$3)*(Projects!$C$5:$C$2413='MDOT FTA Detail'!$C$4)*(Projects!$L$5:$L$2413='MDOT FTA Detail'!$A44)*(Projects!$J$5:$J$2413<>'MDOT FTA Detail'!$A$171)*(Projects!$K$5:K$2413)) -> 0 | H44: 0 | I44: =SUMPRODUCT((Projects!$A$5:$A$2413='MDOT FTA Detail'!$G$3)*(Projects!$C$5:$C$2413='MDOT FTA Detail'!$C$4)*(Projects!$L$5:$L$2413='MDOT FTA Detail'!$A44)*(Projects!$J$5:$J$2413<>'MDOT FTA Detail'!$A$171)*(Projects!$Q$5:Q$2413)) -> 0 | J44: =SUMPRODUCT((Projects!$A$5:$A$2413='MDOT FTA Detail'!$J$3)*(Projects!$C$5:$C$2413='MDOT FTA Detail'!$C$4)*(Projects!$L$5:$L$2413='MDOT FTA Detail'!$A44)*(Projects!$J$5:$J$2413<>'MDOT FTA Detail'!$A$171)*(Projects!$K$5:$K$2413)) -> 0 | K44: 0 | L44: =SUMPRODUCT((Projects!$A$5:$A$2413='MDOT FTA Detail'!$J$3)*(Projects!$C$5:$C$2413='MDOT FTA Detail'!$C$4)*(Projects!$L$5:$L$2413='MDOT FTA Detail'!$A44)*(Projects!$J$5:$J$2413<>'MDOT FTA Detail'!$A$171)*(Projects!$Q$5:$Q$2413)) -> 0 | M44: =SUMPRODUCT((Projects!$A$5:$A$2413='MDOT FTA Detail'!$M$3)*(Projects!$C$5:$C$2413='MDOT FTA Detail'!$C$4)*(Projects!$L$5:$L$2413='MDOT FTA Detail'!$A44)*(Projects!$J$5:$J$2413<>'MDOT FTA Detail'!$A$171)*(Projects!$K$5:$K$2413)) -> 0 | N44: 0 | O44: =SUMPRODUCT((Projects!$A$5:$A$2413='MDOT FTA Detail'!$M$3)*(Projects!$C$5:$C$2413='MDOT FTA Detail'!$C$4)*(Projects!$L$5:$L$2413='MDOT FTA Detail'!$A44)*(Projects!$J$5:$J$2413<>'MDOT FTA Detail'!$A$171)*(Projects!$Q$5:$Q$2413)) -> 0
A45: HPSL | B45: High Priority Projects - SAFETEA-LU | C45: MDOT FA | D45: =SUMPRODUCT((Projects!$A$5:$A$2413='MDOT FTA Detail'!$D$3)*(Projects!$C$5:$C$2413='MDOT FTA Detail'!$C$4)*(Projects!$L$5:$L$2413='MDOT FTA Detail'!$A45)*(Projects!$J$5:$J$2413<>'MDOT FTA Detail'!$A$171)*(Projects!$K$5:K$2413)) -> 0 | E45: 0 | F45: =SUMPRODUCT((Projects!$A$5:$A$2413='MDOT FTA Detail'!$D$3)*(Projects!$C$5:$C$2413='MDOT FTA Detail'!$C$4)*(Projects!$L$5:$L$2413='MDOT FTA Detail'!$A45)*(Projects!$J$5:$J$2413<>'MDOT FTA Detail'!$A$171)*(Projects!$Q$5:Q$2413)) -> 0 | G45: =SUMPRODUCT((Projects!$A$5:$A$2413='MDOT FTA Detail'!$G$3)*(Projects!$C$5:$C$2413='MDOT FTA Detail'!$C$4)*(Projects!$L$5:$L$2413='MDOT FTA Detail'!$A45)*(Projects!$J$5:$J$2413<>'MDOT FTA Detail'!$A$171)*(Projects!$K$5:K$2413)) -> 0 | H45: 0 | I45: =SUMPRODUCT((Projects!$A$5:$A$2413='MDOT FTA Detail'!$G$3)*(Projects!$C$5:$C$2413='MDOT FTA Detail'!$C$4)*(Projects!$L$5:$L$2413='MDOT FTA Detail'!$A45)*(Projects!$J$5:$J$2413<>'MDOT FTA Detail'!$A$171)*(Projects!$Q$5:Q$2413)) -> 0 | J45: =SUMPRODUCT((Projects!$A$5:$A$2413='MDOT FTA Detail'!$J$3)*(Projects!$C$5:$C$2413='MDOT FTA Detail'!$C$4)*(Projects!$L$5:$L$2413='MDOT FTA Detail'!$A45)*(Projects!$J$5:$J$2413<>'MDOT FTA Detail'!$A$171)*(Projects!$K$5:$K$2413)) -> 0 | K45: 0 | L45: =SUMPRODUCT((Projects!$A$5:$A$2413='MDOT FTA Detail'!$J$3)*(Projects!$C$5:$C$2413='MDOT FTA Detail'!$C$4)*(Projects!$L$5:$L$2413='MDOT FTA Detail'!$A45)*(Projects!$J$5:$J$2413<>'MDOT FTA Detail'!$A$171)*(Projects!$Q$5:$Q$2413)) -> 0 | M45: =SUMPRODUCT((Projects!$A$5:$A$2413='MDOT FTA Detail'!$M$3)*(Projects!$C$5:$C$2413='MDOT FTA Detail'!$C$4)*(Projects!$L$5:$L$2413='MDOT FTA Detail'!$A45)*(Projects!$J$5:$J$2413<>'MDOT FTA Detail'!$A$171)*(Projects!$K$5:$K$2413)) -> 0 | N45: 0 | O45: =SUMPRODUCT((Projects!$A$5:$A$2413='MDOT FTA Detail'!$M$3)*(Projects!$C$5:$C$2413='MDOT FTA Detail'!$C$4)*(Projects!$L$5:$L$2413='MDOT FTA Detail'!$A45)*(Projects!$J$5:$J$2413<>'MDOT FTA Detail'!$A$171)*(Projects!$Q$5:$Q$2413)) -> 0
A46: HRRR | B46: High Risk Rural Roads - SAFETEA-LU | C46: MDOT FA | D46: =SUMPRODUCT((Projects!$A$5:$A$2413='MDOT FTA Detail'!$D$3)*(Projects!$C$5:$C$2413='MDOT FTA Detail'!$C$4)*(Projects!$L$5:$L$2413='MDOT FTA Detail'!$A46)*(Projects!$J$5:$J$2413<>'MDOT FTA Detail'!$A$171)*(Projects!$K$5:K$2413)) -> 0 | E46: 0 | F46: =SUMPRODUCT((Projects!$A$5:$A$2413='MDOT FTA Detail'!$D$3)*(Projects!$C$5:$C$2413='MDOT FTA Detail'!$C$4)*(Projects!$L$5:$L$2413='MDOT FTA Detail'!$A46)*(Projects!$J$5:$J$2413<>'MDOT FTA Detail'!$A$171)*(Projects!$Q$5:Q$2413)) -> 0 | G46: =SUMPRODUCT((Projects!$A$5:$A$2413='MDOT FTA Detail'!$G$3)*(Projects!$C$5:$C$2413='MDOT FTA Detail'!$C$4)*(Projects!$L$5:$L$2413='MDOT FTA Detail'!$A46)*(Projects!$J$5:$J$2413<>'MDOT FTA Detail'!$A$171)*(Projects!$K$5:K$2413)) -> 0 | H46: 0 | I46: =SUMPRODUCT((Projects!$A$5:$A$2413='MDOT FTA Detail'!$G$3)*(Projects!$C$5:$C$2413='MDOT FTA Detail'!$C$4)*(Projects!$L$5:$L$2413='MDOT FTA Detail'!$A46)*(Projects!$J$5:$J$2413<>'MDOT FTA Detail'!$A$171)*(Projects!$Q$5:Q$2413)) -> 0 | J46: =SUMPRODUCT((Projects!$A$5:$A$2413='MDOT FTA Detail'!$J$3)*(Projects!$C$5:$C$2413='MDOT FTA Detail'!$C$4)*(Projects!$L$5:$L$2413='MDOT FTA Detail'!$A46)*(Projects!$J$5:$J$2413<>'MDOT FTA Detail'!$A$171)*(Projects!$K$5:$K$2413)) -> 0 | K46: 0 | L46: =SUMPRODUCT((Projects!$A$5:$A$2413='MDOT FTA Detail'!$J$3)*(Projects!$C$5:$C$2413='MDOT FTA Detail'!$C$4)*(Projects!$L$5:$L$2413='MDOT FTA Detail'!$A46)*(Projects!$J$5:$J$2413<>'MDOT FTA Detail'!$A$171)*(Projects!$Q$5:$Q$2413)) -> 0 | M46: =SUMPRODUCT((Projects!$A$5:$A$2413='MDOT FTA Detail'!$M$3)*(Projects!$C$5:$C$2413='MDOT FTA Detail'!$C$4)*(Projects!$L$5:$L$2413='MDOT FTA Detail'!$A46)*(Projects!$J$5:$J$2413<>'MDOT FTA Detail'!$A$171)*(Projects!$K$5:$K$2413)) -> 0 | N46: 0 | O46: =SUMPRODUCT((Projects!$A$5:$A$2413='MDOT FTA Detail'!$M$3)*(Projects!$C$5:$C$2413='MDOT FTA Detail'!$C$4)*(Projects!$L$5:$L$2413='MDOT FTA Detail'!$A46)*(Projects!$J$5:$J$2413<>'MDOT FTA Detail'!$A$171)*(Projects!$Q$5:$Q$2413)) -> 0
A47: HSG | B47: High Speed Raix Crossings - 100% Federal | C47: MDOT FA | D47: =SUMPRODUCT((Projects!$A$5:$A$2413='MDOT FTA Detail'!$D$3)*(Projects!$C$5:$C$2413='MDOT FTA Detail'!$C$4)*(Projects!$L$5:$L$2413='MDOT FTA Detail'!$A47)*(Projects!$J$5:$J$2413<>'MDOT FTA Detail'!$A$171)*(Projects!$K$5:K$2413)) -> 0 | E47: 0 | F47: =SUMPRODUCT((Projects!$A$5:$A$2413='MDOT FTA Detail'!$D$3)*(Projects!$C$5:$C$2413='MDOT FTA Detail'!$C$4)*(Projects!$L$5:$L$2413='MDOT FTA Detail'!$A47)*(Projects!$J$5:$J$2413<>'MDOT FTA Detail'!$A$171)*(Projects!$Q$5:Q$2413)) -> 0 | G47: =SUMPRODUCT((Projects!$A$5:$A$2413='MDOT FTA Detail'!$G$3)*(Projects!$C$5:$C$2413='MDOT FTA Detail'!$C$4)*(Projects!$L$5:$L$2413='MDOT FTA Detail'!$A47)*(Projects!$J$5:$J$2413<>'MDOT FTA Detail'!$A$171)*(Projects!$K$5:K$2413)) -> 0 | H47: 0 | I47: =SUMPRODUCT((Projects!$A$5:$A$2413='MDOT FTA Detail'!$G$3)*(Projects!$C$5:$C$2413='MDOT FTA Detail'!$C$4)*(Projects!$L$5:$L$2413='MDOT FTA Detail'!$A47)*(Projects!$J$5:$J$2413<>'MDOT FTA Detail'!$A$171)*(Projects!$Q$5:Q$2413)) -> 0 | J47: =SUMPRODUCT((Projects!$A$5:$A$2413='MDOT FTA Detail'!$J$3)*(Projects!$C$5:$C$2413='MDOT FTA Detail'!$C$4)*(Projects!$L$5:$L$2413='MDOT FTA Detail'!$A47)*(Projects!$J$5:$J$2413<>'MDOT FTA Detail'!$A$171)*(Projects!$K$5:$K$2413)) -> 0 | K47: 0 | L47: =SUMPRODUCT((Projects!$A$5:$A$2413='MDOT FTA Detail'!$J$3)*(Projects!$C$5:$C$2413='MDOT FTA Detail'!$C$4)*(Projects!$L$5:$L$2413='MDOT FTA Detail'!$A47)*(Projects!$J$5:$J$2413<>'MDOT FTA Detail'!$A$171)*(Projects!$Q$5:$Q$2413)) -> 0 | M47: =SUMPRODUCT((Projects!$A$5:$A$2413='MDOT FTA Detail'!$M$3)*(Projects!$C$5:$C$2413='MDOT FTA Detail'!$C$4)*(Projects!$L$5:$L$2413='MDOT FTA Detail'!$A47)*(Projects!$J$5:$J$2413<>'MDOT FTA Detail'!$A$171)*(Projects!$K$5:$K$2413)) -> 0 | N47: 0 | O47: =SUMPRODUCT((Projects!$A$5:$A$2413='MDOT FTA Detail'!$M$3)*(Projects!$C$5:$C$2413='MDOT FTA Detail'!$C$4)*(Projects!$L$5:$L$2413='MDOT FTA Detail'!$A47)*(Projects!$J$5:$J$2413<>'MDOT FTA Detail'!$A$171)*(Projects!$Q$5:$Q$2413)) -> 0
A48: HSIP | B48: Highway Safety Improvement Program - SAFETEA-LU | C48: MDOT FA | D48: =SUMPRODUCT((Projects!$A$5:$A$2413='MDOT FTA Detail'!$D$3)*(Projects!$C$5:$C$2413='MDOT FTA Detail'!$C$4)*(Projects!$L$5:$L$2413='MDOT FTA Detail'!$A48)*(Projects!$J$5:$J$2413<>'MDOT FTA Detail'!$A$171)*(Projects!$K$5:K$2413)) -> 0 | E48: 0 | F48: =SUMPRODUCT((Projects!$A$5:$A$2413='MDOT FTA Detail'!$D$3)*(Projects!$C$5:$C$2413='MDOT FTA Detail'!$C$4)*(Projects!$L$5:$L$2413='MDOT FTA Detail'!$A48)*(Projects!$J$5:$J$2413<>'MDOT FTA Detail'!$A$171)*(Projects!$Q$5:Q$2413)) -> 0 | G48: =SUMPRODUCT((Projects!$A$5:$A$2413='MDOT FTA Detail'!$G$3)*(Projects!$C$5:$C$2413='MDOT FTA Detail'!$C$4)*(Projects!$L$5:$L$2413='MDOT FTA Detail'!$A48)*(Projects!$J$5:$J$2413<>'MDOT FTA Detail'!$A$171)*(Projects!$K$5:K$2413)) -> 354039 | H48: 39338 | I48: =SUMPRODUCT((Projects!$A$5:$A$2413='MDOT FTA Detail'!$G$3)*(Projects!$C$5:$C$2413='MDOT FTA Detail'!$C$4)*(Projects!$L$5:$L$2413='MDOT FTA Detail'!$A48)*(Projects!$J$5:$J$2413<>'MDOT FTA Detail'!$A$171)*(Projects!$Q$5:Q$2413)) -> 393377 | J48: =SUMPRODUCT((Projects!$A$5:$A$2413='MDOT FTA Detail'!$J$3)*(Projects!$C$5:$C$2413='MDOT FTA Detail'!$C$4)*(Projects!$L$5:$L$2413='MDOT FTA Detail'!$A48)*(Projects!$J$5:$J$2413<>'MDOT FTA Detail'!$A$171)*(Projects!$K$5:$K$2413)) -> 53100 | K48: 5900 | L48: =SUMPRODUCT((Projects!$A$5:$A$2413='MDOT FTA Detail'!$J$3)*(Projects!$C$5:$C$2413='MDOT FTA Detail'!$C$4)*(Projects!$L$5:$L$2413='MDOT FTA Detail'!$A48)*(Projects!$J$5:$J$2413<>'MDOT FTA Detail'!$A$171)*(Projects!$Q$5:$Q$2413)) -> 59000 | M48: =SUMPRODUCT((Projects!$A$5:$A$2413='MDOT FTA Detail'!$M$3)*(Projects!$C$5:$C$2413='MDOT FTA Detail'!$C$4)*(Projects!$L$5:$L$2413='MDOT FTA Detail'!$A48)*(Projects!$J$5:$J$2413<>'MDOT FTA Detail'!$A$171)*(Projects!$K$5:$K$2413)) -> 0 | N48: 0 | O48: =SUMPRODUCT((Projects!$A$5:$A$2413='MDOT FTA Detail'!$M$3)*(Projects!$C$5:$C$2413='MDOT FTA Detail'!$C$4)*(Projects!$L$5:$L$2413='MDOT FTA Detail'!$A48)*(Projects!$J$5:$J$2413<>'MDOT FTA Detail'!$A$171)*(Projects!$Q$5:$Q$2413)) -> 0
A49: IM | B49: Interstate Maintenance - No Added Lanes | C49: MDOT FA | D49: =SUMPRODUCT((Projects!$A$5:$A$2413='MDOT FTA Detail'!$D$3)*(Projects!$C$5:$C$2413='MDOT FTA Detail'!$C$4)*(Projects!$L$5:$L$2413='MDOT FTA Detail'!$A49)*(Projects!$J$5:$J$2413<>'MDOT FTA Detail'!$A$171)*(Projects!$K$5:K$2413)) -> 0 | E49: 0 | F49: =SUMPRODUCT((Projects!$A$5:$A$2413='MDOT FTA Detail'!$D$3)*(Projects!$C$5:$C$2413='MDOT FTA Detail'!$C$4)*(Projects!$L$5:$L$2413='MDOT FTA Detail'!$A49)*(Projects!$J$5:$J$2413<>'MDOT FTA Detail'!$A$171)*(Projects!$Q$5:Q$2413)) -> 0 | G49: =SUMPRODUCT((Projects!$A$5:$A$2413='MDOT FTA Detail'!$G$3)*(Projects!$C$5:$C$2413='MDOT FTA Detail'!$C$4)*(Projects!$L$5:$L$2413='MDOT FTA Detail'!$A49)*(Projects!$J$5:$J$2413<>'MDOT FTA Detail'!$A$171)*(Projects!$K$5:K$2413)) -> 0 | H49: 0 | I49: =SUMPRODUCT((Projects!$A$5:$A$2413='MDOT FTA Detail'!$G$3)*(Projects!$C$5:$C$2413='MDOT FTA Detail'!$C$4)*(Projects!$L$5:$L$2413='MDOT FTA Detail'!$A49)*(Projects!$J$5:$J$2413<>'MDOT FTA Detail'!$A$171)*(Projects!$Q$5:Q$2413)) -> 0 | J49: =SUMPRODUCT((Projects!$A$5:$A$2413='MDOT FTA Detail'!$J$3)*(Projects!$C$5:$C$2413='MDOT FTA Detail'!$C$4)*(Projects!$L$5:$L$2413='MDOT FTA Detail'!$A49)*(Projects!$J$5:$J$2413<>'MDOT FTA Detail'!$A$171)*(Projects!$K$5:$K$2413)) -> 0 | K49: 0 | L49: =SUMPRODUCT((Projects!$A$5:$A$2413='MDOT FTA Detail'!$J$3)*(Projects!$C$5:$C$2413='MDOT FTA Detail'!$C$4)*(Projects!$L$5:$L$2413='MDOT FTA Detail'!$A49)*(Projects!$J$5:$J$2413<>'MDOT FTA Detail'!$A$171)*(Projects!$Q$5:$Q$2413)) -> 0 | M49: =SUMPRODUCT((Projects!$A$5:$A$2413='MDOT FTA Detail'!$M$3)*(Projects!$C$5:$C$2413='MDOT FTA Detail'!$C$4)*(Projects!$L$5:$L$2413='MDOT FTA Detail'!$A49)*(Projects!$J$5:$J$2413<>'MDOT FTA Detail'!$A$171)*(Projects!$K$5:$K$2413)) -> 0 | N49: 0 | O49: =SUMPRODUCT((Projects!$A$5:$A$2413='MDOT FTA Detail'!$M$3)*(Projects!$C$5:$C$2413='MDOT FTA Detail'!$C$4)*(Projects!$L$5:$L$2413='MDOT FTA Detail'!$A49)*(Projects!$J$5:$J$2413<>'MDOT FTA Detail'!$A$171)*(Projects!$Q$5:$Q$2413)) -> 0
A50: IMD | B50: Interstate Maintenance Discretionary | C50: MDOT FA | D50: =SUMPRODUCT((Projects!$A$5:$A$2413='MDOT FTA Detail'!$D$3)*(Projects!$C$5:$C$2413='MDOT FTA Detail'!$C$4)*(Projects!$L$5:$L$2413='MDOT FTA Detail'!$A50)*(Projects!$J$5:$J$2413<>'MDOT FTA Detail'!$A$171)*(Projects!$K$5:K$2413)) -> 0 | E50: 0 | F50: =SUMPRODUCT((Projects!$A$5:$A$2413='MDOT FTA Detail'!$D$3)*(Projects!$C$5:$C$2413='MDOT FTA Detail'!$C$4)*(Projects!$L$5:$L$2413='MDOT FTA Detail'!$A50)*(Projects!$J$5:$J$2413<>'MDOT FTA Detail'!$A$171)*(Projects!$Q$5:Q$2413)) -> 0 | G50: =SUMPRODUCT((Projects!$A$5:$A$2413='MDOT FTA Detail'!$G$3)*(Projects!$C$5:$C$2413='MDOT FTA Detail'!$C$4)*(Projects!$L$5:$L$2413='MDOT FTA Detail'!$A50)*(Projects!$J$5:$J$2413<>'MDOT FTA Detail'!$A$171)*(Projects!$K$5:K$2413)) -> 0 | H50: 0 | I50: =SUMPRODUCT((Projects!$A$5:$A$2413='MDOT FTA Detail'!$G$3)*(Projects!$C$5:$C$2413='MDOT FTA Detail'!$C$4)*(Projects!$L$5:$L$2413='MDOT FTA Detail'!$A50)*(Projects!$J$5:$J$2413<>'MDOT FTA Detail'!$A$171)*(Projects!$Q$5:Q$2413)) -> 0 | J50: =SUMPRODUCT((Projects!$A$5:$A$2413='MDOT FTA Detail'!$J$3)*(Projects!$C$5:$C$2413='MDOT FTA Detail'!$C$4)*(Projects!$L$5:$L$2413='MDOT FTA Detail'!$A50)*(Projects!$J$5:$J$2413<>'MDOT FTA Detail'!$A$171)*(Projects!$K$5:$K$2413)) -> 0 | K50: 0 | L50: =SUMPRODUCT((Projects!$A$5:$A$2413='MDOT FTA Detail'!$J$3)*(Projects!$C$5:$C$2413='MDOT FTA Detail'!$C$4)*(Projects!$L$5:$L$2413='MDOT FTA Detail'!$A50)*(Projects!$J$5:$J$2413<>'MDOT FTA Detail'!$A$171)*(Projects!$Q$5:$Q$2413)) -> 0 | M50: =SUMPRODUCT((Projects!$A$5:$A$2413='MDOT FTA Detail'!$M$3)*(Projects!$C$5:$C$2413='MDOT FTA Detail'!$C$4)*(Projects!$L$5:$L$2413='MDOT FTA Detail'!$A50)*(Projects!$J$5:$J$2413<>'MDOT FTA Detail'!$A$171)*(Projects!$K$5:$K$2413)) -> 0 | N50: 0 | O50: =SUMPRODUCT((Projects!$A$5:$A$2413='MDOT FTA Detail'!$M$3)*(Projects!$C$5:$C$2413='MDOT FTA Detail'!$C$4)*(Projects!$L$5:$L$2413='MDOT FTA Detail'!$A50)*(Projects!$J$5:$J$2413<>'MDOT FTA Detail'!$A$171)*(Projects!$Q$5:$Q$2413)) -> 0
A51: IMG | B51: Interstate Maintenance - Safety - 100% Federal | C51: MDOT FA | D51: =SUMPRODUCT((Projects!$A$5:$A$2413='MDOT FTA Detail'!$D$3)*(Projects!$C$5:$C$2413='MDOT FTA Detail'!$C$4)*(Projects!$L$5:$L$2413='MDOT FTA Detail'!$A51)*(Projects!$J$5:$J$2413<>'MDOT FTA Detail'!$A$171)*(Projects!$K$5:K$2413)) -> 0 | E51: 0 | F51: =SUMPRODUCT((Projects!$A$5:$A$2413='MDOT FTA Detail'!$D$3)*(Projects!$C$5:$C$2413='MDOT FTA Detail'!$C$4)*(Projects!$L$5:$L$2413='MDOT FTA Detail'!$A51)*(Projects!$J$5:$J$2413<>'MDOT FTA Detail'!$A$171)*(Projects!$Q$5:Q$2413)) -> 0 | G51: =SUMPRODUCT((Projects!$A$5:$A$2413='MDOT FTA Detail'!$G$3)*(Projects!$C$5:$C$2413='MDOT FTA Detail'!$C$4)*(Projects!$L$5:$L$2413='MDOT FTA Detail'!$A51)*(Projects!$J$5:$J$2413<>'MDOT FTA Detail'!$A$171)*(Projects!$K$5:K$2413)) -> 0 | H51: 0 | I51: =SUMPRODUCT((Projects!$A$5:$A$2413='MDOT FTA Detail'!$G$3)*(Projects!$C$5:$C$2413='MDOT FTA Detail'!$C$4)*(Projects!$L$5:$L$2413='MDOT FTA Detail'!$A51)*(Projects!$J$5:$J$2413<>'MDOT FTA Detail'!$A$171)*(Projects!$Q$5:Q$2413)) -> 0 | J51: =SUMPRODUCT((Projects!$A$5:$A$2413='MDOT FTA Detail'!$J$3)*(Projects!$C$5:$C$2413='MDOT FTA Detail'!$C$4)*(Projects!$L$5:$L$2413='MDOT FTA Detail'!$A51)*(Projects!$J$5:$J$2413<>'MDOT FTA Detail'!$A$171)*(Projects!$K$5:$K$2413)) -> 0 | K51: 0 | L51: =SUMPRODUCT((Projects!$A$5:$A$2413='MDOT FTA Detail'!$J$3)*(Projects!$C$5:$C$2413='MDOT FTA Detail'!$C$4)*(Projects!$L$5:$L$2413='MDOT FTA Detail'!$A51)*(Projects!$J$5:$J$2413<>'MDOT FTA Detail'!$A$171)*(Projects!$Q$5:$Q$2413)) -> 0 | M51: =SUMPRODUCT((Projects!$A$5:$A$2413='MDOT FTA Detail'!$M$3)*(Projects!$C$5:$C$2413='MDOT FTA Detail'!$C$4)*(Projects!$L$5:$L$2413='MDOT FTA Detail'!$A51)*(Projects!$J$5:$J$2413<>'MDOT FTA Detail'!$A$171)*(Projects!$K$5:$K$2413)) -> 0 | N51: 0 | O51: =SUMPRODUCT((Projects!$A$5:$A$2413='MDOT FTA Detail'!$M$3)*(Projects!$C$5:$C$2413='MDOT FTA Detail'!$C$4)*(Projects!$L$5:$L$2413='MDOT FTA Detail'!$A51)*(Projects!$J$5:$J$2413<>'MDOT FTA Detail'!$A$171)*(Projects!$Q$5:$Q$2413)) -> 0
A52: ITS | B52: Intelligent Transportation Systems | C52: MDOT FA | D52: =SUMPRODUCT((Projects!$A$5:$A$2413='MDOT FTA Detail'!$D$3)*(Projects!$C$5:$C$2413='MDOT FTA Detail'!$C$4)*(Projects!$L$5:$L$2413='MDOT FTA Detail'!$A52)*(Projects!$J$5:$J$2413<>'MDOT FTA Detail'!$A$171)*(Projects!$K$5:K$2413)) -> 0 | E52: 0 | F52: =SUMPRODUCT((Projects!$A$5:$A$2413='MDOT FTA Detail'!$D$3)*(Projects!$C$5:$C$2413='MDOT FTA Detail'!$C$4)*(Projects!$L$5:$L$2413='MDOT FTA Detail'!$A52)*(Projects!$J$5:$J$2413<>'MDOT FTA Detail'!$A$171)*(Projects!$Q$5:Q$2413)) -> 0 | G52: =SUMPRODUCT((Projects!$A$5:$A$2413='MDOT FTA Detail'!$G$3)*(Projects!$C$5:$C$2413='MDOT FTA Detail'!$C$4)*(Projects!$L$5:$L$2413='MDOT FTA Detail'!$A52)*(Projects!$J$5:$J$2413<>'MDOT FTA Detail'!$A$171)*(Projects!$K$5:K$2413)) -> 0 | H52: 0 | I52: =SUMPRODUCT((Projects!$A$5:$A$2413='MDOT FTA Detail'!$G$3)*(Projects!$C$5:$C$2413='MDOT FTA Detail'!$C$4)*(Projects!$L$5:$L$2413='MDOT FTA Detail'!$A52)*(Projects!$J$5:$J$2413<>'MDOT FTA Detail'!$A$171)*(Projects!$Q$5:Q$2413)) -> 0 | J52: =SUMPRODUCT((Projects!$A$5:$A$2413='MDOT FTA Detail'!$J$3)*(Projects!$C$5:$C$2413='MDOT FTA Detail'!$C$4)*(Projects!$L$5:$L$2413='MDOT FTA Detail'!$A52)*(Projects!$J$5:$J$2413<>'MDOT FTA Detail'!$A$171)*(Projects!$K$5:$K$2413)) -> 0 | K52: 0 | L52: =SUMPRODUCT((Projects!$A$5:$A$2413='MDOT FTA Detail'!$J$3)*(Projects!$C$5:$C$2413='MDOT FTA Detail'!$C$4)*(Projects!$L$5:$L$2413='MDOT FTA Detail'!$A52)*(Projects!$J$5:$J$2413<>'MDOT FTA Detail'!$A$171)*(Projects!$Q$5:$Q$2413)) -> 0 | M52: =SUMPRODUCT((Projects!$A$5:$A$2413='MDOT FTA Detail'!$M$3)*(Projects!$C$5:$C$2413='MDOT FTA Detail'!$C$4)*(Projects!$L$5:$L$2413='MDOT FTA Detail'!$A52)*(Projects!$J$5:$J$2413<>'MDOT FTA Detail'!$A$171)*(Projects!$K$5:$K$2413)) -> 0 | N52: 0 | O52: =SUMPRODUCT((Projects!$A$5:$A$2413='MDOT FTA Detail'!$M$3)*(Projects!$C$5:$C$2413='MDOT FTA Detail'!$C$4)*(Projects!$L$5:$L$2413='MDOT FTA Detail'!$A52)*(Projects!$J$5:$J$2413<>'MDOT FTA Detail'!$A$171)*(Projects!$Q$5:$Q$2413)) -> 0
A53: JST | B53: 85% Minimum Floor Surface Transportation | C53: MDOT FA | D53: =SUMPRODUCT((Projects!$A$5:$A$2413='MDOT FTA Detail'!$D$3)*(Projects!$C$5:$C$2413='MDOT FTA Detail'!$C$4)*(Projects!$L$5:$L$2413='MDOT FTA Detail'!$A53)*(Projects!$J$5:$J$2413<>'MDOT FTA Detail'!$A$171)*(Projects!$K$5:K$2413)) -> 0 | E53: 0 | F53: =SUMPRODUCT((Projects!$A$5:$A$2413='MDOT FTA Detail'!$D$3)*(Projects!$C$5:$C$2413='MDOT FTA Detail'!$C$4)*(Projects!$L$5:$L$2413='MDOT FTA Detail'!$A53)*(Projects!$J$5:$J$2413<>'MDOT FTA Detail'!$A$171)*(Projects!$Q$5:Q$2413)) -> 0 | G53: =SUMPRODUCT((Projects!$A$5:$A$2413='MDOT FTA Detail'!$G$3)*(Projects!$C$5:$C$2413='MDOT FTA Detail'!$C$4)*(Projects!$L$5:$L$2413='MDOT FTA Detail'!$A53)*(Projects!$J$5:$J$2413<>'MDOT FTA Detail'!$A$171)*(Projects!$K$5:K$2413)) -> 0 | H53: 0 | I53: =SUMPRODUCT((Projects!$A$5:$A$2413='MDOT FTA Detail'!$G$3)*(Projects!$C$5:$C$2413='MDOT FTA Detail'!$C$4)*(Projects!$L$5:$L$2413='MDOT FTA Detail'!$A53)*(Projects!$J$5:$J$2413<>'MDOT FTA Detail'!$A$171)*(Projects!$Q$5:Q$2413)) -> 0 | J53: =SUMPRODUCT((Projects!$A$5:$A$2413='MDOT FTA Detail'!$J$3)*(Projects!$C$5:$C$2413='MDOT FTA Detail'!$C$4)*(Projects!$L$5:$L$2413='MDOT FTA Detail'!$A53)*(Projects!$J$5:$J$2413<>'MDOT FTA Detail'!$A$171)*(Projects!$K$5:$K$2413)) -> 0 | K53: 0 | L53: =SUMPRODUCT((Projects!$A$5:$A$2413='MDOT FTA Detail'!$J$3)*(Projects!$C$5:$C$2413='MDOT FTA Detail'!$C$4)*(Projects!$L$5:$L$2413='MDOT FTA Detail'!$A53)*(Projects!$J$5:$J$2413<>'MDOT FTA Detail'!$A$171)*(Projects!$Q$5:$Q$2413)) -> 0 | M53: =SUMPRODUCT((Projects!$A$5:$A$2413='MDOT FTA Detail'!$M$3)*(Projects!$C$5:$C$2413='MDOT FTA Detail'!$C$4)*(Projects!$L$5:$L$2413='MDOT FTA Detail'!$A53)*(Projects!$J$5:$J$2413<>'MDOT FTA Detail'!$A$171)*(Projects!$K$5:$K$2413)) -> 0 | N53: 0 | O53: =SUMPRODUCT((Projects!$A$5:$A$2413='MDOT FTA Detail'!$M$3)*(Projects!$C$5:$C$2413='MDOT FTA Detail'!$C$4)*(Projects!$L$5:$L$2413='MDOT FTA Detail'!$A53)*(Projects!$J$5:$J$2413<>'MDOT FTA Detail'!$A$171)*(Projects!$Q$5:$Q$2413)) -> 0
A54: JSTU | B54: 85% Minimum Floor Surface Transportation (Urban Area > 2499,000) | C54: MDOT FA | D54: =SUMPRODUCT((Projects!$A$5:$A$2413='MDOT FTA Detail'!$D$3)*(Projects!$C$5:$C$2413='MDOT FTA Detail'!$C$4)*(Projects!$L$5:$L$2413='MDOT FTA Detail'!$A54)*(Projects!$J$5:$J$2413<>'MDOT FTA Detail'!$A$171)*(Projects!$K$5:K$2413)) -> 0 | E54: 0 | F54: =SUMPRODUCT((Projects!$A$5:$A$2413='MDOT FTA Detail'!$D$3)*(Projects!$C$5:$C$2413='MDOT FTA Detail'!$C$4)*(Projects!$L$5:$L$2413='MDOT FTA Detail'!$A54)*(Projects!$J$5:$J$2413<>'MDOT FTA Detail'!$A$171)*(Projects!$Q$5:Q$2413)) -> 0 | G54: =SUMPRODUCT((Projects!$A$5:$A$2413='MDOT FTA Detail'!$G$3)*(Projects!$C$5:$C$2413='MDOT FTA Detail'!$C$4)*(Projects!$L$5:$L$2413='MDOT FTA Detail'!$A54)*(Projects!$J$5:$J$2413<>'MDOT FTA Detail'!$A$171)*(Projects!$K$5:K$2413)) -> 0 | H54: 0 | I54: =SUMPRODUCT((Projects!$A$5:$A$2413='MDOT FTA Detail'!$G$3)*(Projects!$C$5:$C$2413='MDOT FTA Detail'!$C$4)*(Projects!$L$5:$L$2413='MDOT FTA Detail'!$A54)*(Projects!$J$5:$J$2413<>'MDOT FTA Detail'!$A$171)*(Projects!$Q$5:Q$2413)) -> 0 | J54: =SUMPRODUCT((Projects!$A$5:$A$2413='MDOT FTA Detail'!$J$3)*(Projects!$C$5:$C$2413='MDOT FTA Detail'!$C$4)*(Projects!$L$5:$L$2413='MDOT FTA Detail'!$A54)*(Projects!$J$5:$J$2413<>'MDOT FTA Detail'!$A$171)*(Projects!$K$5:$K$2413)) -> 0 | K54: 0 | L54: =SUMPRODUCT((Projects!$A$5:$A$2413='MDOT FTA Detail'!$J$3)*(Projects!$C$5:$C$2413='MDOT FTA Detail'!$C$4)*(Projects!$L$5:$L$2413='MDOT FTA Detail'!$A54)*(Projects!$J$5:$J$2413<>'MDOT FTA Detail'!$A$171)*(Projects!$Q$5:$Q$2413)) -> 0 | M54: =SUMPRODUCT((Projects!$A$5:$A$2413='MDOT FTA Detail'!$M$3)*(Projects!$C$5:$C$2413='MDOT FTA Detail'!$C$4)*(Projects!$L$5:$L$2413='MDOT FTA Detail'!$A54)*(Projects!$J$5:$J$2413<>'MDOT FTA Detail'!$A$171)*(Projects!$K$5:$K$2413)) -> 0 | N54: 0 | O54: =SUMPRODUCT((Projects!$A$5:$A$2413='MDOT FTA Detail'!$M$3)*(Projects!$C$5:$C$2413='MDOT FTA Detail'!$C$4)*(Projects!$L$5:$L$2413='MDOT FTA Detail'!$A54)*(Projects!$J$5:$J$2413<>'MDOT FTA Detail'!$A$171)*(Projects!$Q$5:$Q$2413)) -> 0
A55: LTA | B55: Local Technical Assistance Program | C55: MDOT FA | D55: =SUMPRODUCT((Projects!$A$5:$A$2413='MDOT FTA Detail'!$D$3)*(Projects!$C$5:$C$2413='MDOT FTA Detail'!$C$4)*(Projects!$L$5:$L$2413='MDOT FTA Detail'!$A55)*(Projects!$J$5:$J$2413<>'MDOT FTA Detail'!$A$171)*(Projects!$K$5:K$2413)) -> 0 | E55: 0 | F55: =SUMPRODUCT((Projects!$A$5:$A$2413='MDOT FTA Detail'!$D$3)*(Projects!$C$5:$C$2413='MDOT FTA Detail'!$C$4)*(Projects!$L$5:$L$2413='MDOT FTA Detail'!$A55)*(Projects!$J$5:$J$2413<>'MDOT FTA Detail'!$A$171)*(Projects!$Q$5:Q$2413)) -> 0 | G55: =SUMPRODUCT((Projects!$A$5:$A$2413='MDOT FTA Detail'!$G$3)*(Projects!$C$5:$C$2413='MDOT FTA Detail'!$C$4)*(Projects!$L$5:$L$2413='MDOT FTA Detail'!$A55)*(Projects!$J$5:$J$2413<>'MDOT FTA Detail'!$A$171)*(Projects!$K$5:K$2413)) -> 0 | H55: 0 | I55: =SUMPRODUCT((Projects!$A$5:$A$2413='MDOT FTA Detail'!$G$3)*(Projects!$C$5:$C$2413='MDOT FTA Detail'!$C$4)*(Projects!$L$5:$L$2413='MDOT FTA Detail'!$A55)*(Projects!$J$5:$J$2413<>'MDOT FTA Detail'!$A$171)*(Projects!$Q$5:Q$2413)) -> 0 | J55: =SUMPRODUCT((Projects!$A$5:$A$2413='MDOT FTA Detail'!$J$3)*(Projects!$C$5:$C$2413='MDOT FTA Detail'!$C$4)*(Projects!$L$5:$L$2413='MDOT FTA Detail'!$A55)*(Projects!$J$5:$J$2413<>'MDOT FTA Detail'!$A$171)*(Projects!$K$5:$K$2413)) -> 0 | K55: 0 | L55: =SUMPRODUCT((Projects!$A$5:$A$2413='MDOT FTA Detail'!$J$3)*(Projects!$C$5:$C$2413='MDOT FTA Detail'!$C$4)*(Projects!$L$5:$L$2413='MDOT FTA Detail'!$A55)*(Projects!$J$5:$J$2413<>'MDOT FTA Detail'!$A$171)*(Projects!$Q$5:$Q$2413)) -> 0 | M55: =SUMPRODUCT((Projects!$A$5:$A$2413='MDOT FTA Detail'!$M$3)*(Projects!$C$5:$C$2413='MDOT FTA Detail'!$C$4)*(Projects!$L$5:$L$2413='MDOT FTA Detail'!$A55)*(Projects!$J$5:$J$2413<>'MDOT FTA Detail'!$A$171)*(Projects!$K$5:$K$2413)) -> 0 | N55: 0 | O55: =SUMPRODUCT((Projects!$A$5:$A$2413='MDOT FTA Detail'!$M$3)*(Projects!$C$5:$C$2413='MDOT FTA Detail'!$C$4)*(Projects!$L$5:$L$2413='MDOT FTA Detail'!$A55)*(Projects!$J$5:$J$2413<>'MDOT FTA Detail'!$A$171)*(Projects!$Q$5:$Q$2413)) -> 0
A56: MG | B56: Minimum Guarantee | C56: MDOT FA | D56: =SUMPRODUCT((Projects!$A$5:$A$2413='MDOT FTA Detail'!$D$3)*(Projects!$C$5:$C$2413='MDOT FTA Detail'!$C$4)*(Projects!$L$5:$L$2413='MDOT FTA Detail'!$A56)*(Projects!$J$5:$J$2413<>'MDOT FTA Detail'!$A$171)*(Projects!$K$5:K$2413)) -> 0 | E56: 0 | F56: =SUMPRODUCT((Projects!$A$5:$A$2413='MDOT FTA Detail'!$D$3)*(Projects!$C$5:$C$2413='MDOT FTA Detail'!$C$4)*(Projects!$L$5:$L$2413='MDOT FTA Detail'!$A56)*(Projects!$J$5:$J$2413<>'MDOT FTA Detail'!$A$171)*(Projects!$Q$5:Q$2413)) -> 0 | G56: =SUMPRODUCT((Projects!$A$5:$A$2413='MDOT FTA Detail'!$G$3)*(Projects!$C$5:$C$2413='MDOT FTA Detail'!$C$4)*(Projects!$L$5:$L$2413='MDOT FTA Detail'!$A56)*(Projects!$J$5:$J$2413<>'MDOT FTA Detail'!$A$171)*(Projects!$K$5:K$2413)) -> 0 | H56: 0 | I56: =SUMPRODUCT((Projects!$A$5:$A$2413='MDOT FTA Detail'!$G$3)*(Projects!$C$5:$C$2413='MDOT FTA Detail'!$C$4)*(Projects!$L$5:$L$2413='MDOT FTA Detail'!$A56)*(Projects!$J$5:$J$2413<>'MDOT FTA Detail'!$A$171)*(Projects!$Q$5:Q$2413)) -> 0 | J56: =SUMPRODUCT((Projects!$A$5:$A$2413='MDOT FTA Detail'!$J$3)*(Projects!$C$5:$C$2413='MDOT FTA Detail'!$C$4)*(Projects!$L$5:$L$2413='MDOT FTA Detail'!$A56)*(Projects!$J$5:$J$2413<>'MDOT FTA Detail'!$A$171)*(Projects!$K$5:$K$2413)) -> 0 | K56: 0 | L56: =SUMPRODUCT((Projects!$A$5:$A$2413='MDOT FTA Detail'!$J$3)*(Projects!$C$5:$C$2413='MDOT FTA Detail'!$C$4)*(Projects!$L$5:$L$2413='MDOT FTA Detail'!$A56)*(Projects!$J$5:$J$2413<>'MDOT FTA Detail'!$A$171)*(Projects!$Q$5:$Q$2413)) -> 0 | M56: =SUMPRODUCT((Projects!$A$5:$A$2413='MDOT FTA Detail'!$M$3)*(Projects!$C$5:$C$2413='MDOT FTA Detail'!$C$4)*(Projects!$L$5:$L$2413='MDOT FTA Detail'!$A56)*(Projects!$J$5:$J$2413<>'MDOT FTA Detail'!$A$171)*(Projects!$K$5:$K$2413)) -> 0 | N56: 0 | O56: =SUMPRODUCT((Projects!$A$5:$A$2413='MDOT FTA Detail'!$M$3)*(Projects!$C$5:$C$2413='MDOT FTA Detail'!$C$4)*(Projects!$L$5:$L$2413='MDOT FTA Detail'!$A56)*(Projects!$J$5:$J$2413<>'MDOT FTA Detail'!$A$171)*(Projects!$Q$5:$Q$2413)) -> 0
A57: NCII | B57: National Corridor Infrastructure Improvement - SAFETEA-LU | C57: MDOT FA | D57: =SUMPRODUCT((Projects!$A$5:$A$2413='MDOT FTA Detail'!$D$3)*(Projects!$C$5:$C$2413='MDOT FTA Detail'!$C$4)*(Projects!$L$5:$L$2413='MDOT FTA Detail'!$A57)*(Projects!$J$5:$J$2413<>'MDOT FTA Detail'!$A$171)*(Projects!$K$5:K$2413)) -> 0 | E57: 0 | F57: =SUMPRODUCT((Projects!$A$5:$A$2413='MDOT FTA Detail'!$D$3)*(Projects!$C$5:$C$2413='MDOT FTA Detail'!$C$4)*(Projects!$L$5:$L$2413='MDOT FTA Detail'!$A57)*(Projects!$J$5:$J$2413<>'MDOT FTA Detail'!$A$171)*(Projects!$Q$5:Q$2413)) -> 0 | G57: =SUMPRODUCT((Projects!$A$5:$A$2413='MDOT FTA Detail'!$G$3)*(Projects!$C$5:$C$2413='MDOT FTA Detail'!$C$4)*(Projects!$L$5:$L$2413='MDOT FTA Detail'!$A57)*(Projects!$J$5:$J$2413<>'MDOT FTA Detail'!$A$171)*(Projects!$K$5:K$2413)) -> 0 | H57: 0 | I57: =SUMPRODUCT((Projects!$A$5:$A$2413='MDOT FTA Detail'!$G$3)*(Projects!$C$5:$C$2413='MDOT FTA Detail'!$C$4)*(Projects!$L$5:$L$2413='MDOT FTA Detail'!$A57)*(Projects!$J$5:$J$2413<>'MDOT FTA Detail'!$A$171)*(Projects!$Q$5:Q$2413)) -> 0 | J57: =SUMPRODUCT((Projects!$A$5:$A$2413='MDOT FTA Detail'!$J$3)*(Projects!$C$5:$C$2413='MDOT FTA Detail'!$C$4)*(Projects!$L$5:$L$2413='MDOT FTA Detail'!$A57)*(Projects!$J$5:$J$2413<>'MDOT FTA Detail'!$A$171)*(Projects!$K$5:$K$2413)) -> 0 | K57: 0 | L57: =SUMPRODUCT((Projects!$A$5:$A$2413='MDOT FTA Detail'!$J$3)*(Projects!$C$5:$C$2413='MDOT FTA Detail'!$C$4)*(Projects!$L$5:$L$2413='MDOT FTA Detail'!$A57)*(Projects!$J$5:$J$2413<>'MDOT FTA Detail'!$A$171)*(Projects!$Q$5:$Q$2413)) -> 0 | M57: =SUMPRODUCT((Projects!$A$5:$A$2413='MDOT FTA Detail'!$M$3)*(Projects!$C$5:$C$2413='MDOT FTA Detail'!$C$4)*(Projects!$L$5:$L$2413='MDOT FTA Detail'!$A57)*(Projects!$J$5:$J$2413<>'MDOT FTA Detail'!$A$171)*(Projects!$K$5:$K$2413)) -> 0 | N57: 0 | O57: =SUMPRODUCT((Projects!$A$5:$A$2413='MDOT FTA Detail'!$M$3)*(Projects!$C$5:$C$2413='MDOT FTA Detail'!$C$4)*(Projects!$L$5:$L$2413='MDOT FTA Detail'!$A57)*(Projects!$J$5:$J$2413<>'MDOT FTA Detail'!$A$171)*(Projects!$Q$5:$Q$2413)) -> 0
A58: NH | B58: National Highway System | C58: MDOT FA | D58: =SUMPRODUCT((Projects!$A$5:$A$2413='MDOT FTA Detail'!$D$3)*(Projects!$C$5:$C$2413='MDOT FTA Detail'!$C$4)*(Projects!$L$5:$L$2413='MDOT FTA Detail'!$A58)*(Projects!$J$5:$J$2413<>'MDOT FTA Detail'!$A$171)*(Projects!$K$5:K$2413)) -> 0 | E58: 0 | F58: =SUMPRODUCT((Projects!$A$5:$A$2413='MDOT FTA Detail'!$D$3)*(Projects!$C$5:$C$2413='MDOT FTA Detail'!$C$4)*(Projects!$L$5:$L$2413='MDOT FTA Detail'!$A58)*(Projects!$J$5:$J$2413<>'MDOT FTA Detail'!$A$171)*(Projects!$Q$5:Q$2413)) -> 0 | G58: =SUMPRODUCT((Projects!$A$5:$A$2413='MDOT FTA Detail'!$G$3)*(Projects!$C$5:$C$2413='MDOT FTA Detail'!$C$4)*(Projects!$L$5:$L$2413='MDOT FTA Detail'!$A58)*(Projects!$J$5:$J$2413<>'MDOT FTA Detail'!$A$171)*(Projects!$K$5:K$2413)) -> 373237 | H58: 82763 | I58: =SUMPRODUCT((Projects!$A$5:$A$2413='MDOT FTA Detail'!$G$3)*(Projects!$C$5:$C$2413='MDOT FTA Detail'!$C$4)*(Projects!$L$5:$L$2413='MDOT FTA Detail'!$A58)*(Projects!$J$5:$J$2413<>'MDOT FTA Detail'!$A$171)*(Projects!$Q$5:Q$2413)) -> 456000 | J58: =SUMPRODUCT((Projects!$A$5:$A$2413='MDOT FTA Detail'!$J$3)*(Projects!$C$5:$C$2413='MDOT FTA Detail'!$C$4)*(Projects!$L$5:$L$2413='MDOT FTA Detail'!$A58)*(Projects!$J$5:$J$2413<>'MDOT FTA Detail'!$A$171)*(Projects!$K$5:$K$2413)) -> 0 | K58: 0 | L58: =SUMPRODUCT((Projects!$A$5:$A$2413='MDOT FTA Detail'!$J$3)*(Projects!$C$5:$C$2413='MDOT FTA Detail'!$C$4)*(Projects!$L$5:$L$2413='MDOT FTA Detail'!$A58)*(Projects!$J$5:$J$2413<>'MDOT FTA Detail'!$A$171)*(Projects!$Q$5:$Q$2413)) -> 0 | M58: =SUMPRODUCT((Projects!$A$5:$A$2413='MDOT FTA Detail'!$M$3)*(Projects!$C$5:$C$2413='MDOT FTA Detail'!$C$4)*(Projects!$L$5:$L$2413='MDOT FTA Detail'!$A58)*(Projects!$J$5:$J$2413<>'MDOT FTA Detail'!$A$171)*(Projects!$K$5:$K$2413)) -> 2723968 | N58: 604032 | O58: =SUMPRODUCT((Projects!$A$5:$A$2413='MDOT FTA Detail'!$M$3)*(Projects!$C$5:$C$2413='MDOT FTA Detail'!$C$4)*(Projects!$L$5:$L$2413='MDOT FTA Detail'!$A58)*(Projects!$J$5:$J$2413<>'MDOT FTA Detail'!$A$171)*(Projects!$Q$5:$Q$2413)) -> 3328000
A59: NHG | B59: National Highway System - Safety - 100% Federal | C59: MDOT FA | D59: =SUMPRODUCT((Projects!$A$5:$A$2413='MDOT FTA Detail'!$D$3)*(Projects!$C$5:$C$2413='MDOT FTA Detail'!$C$4)*(Projects!$L$5:$L$2413='MDOT FTA Detail'!$A59)*(Projects!$J$5:$J$2413<>'MDOT FTA Detail'!$A$171)*(Projects!$K$5:K$2413)) -> 0 | E59: 0 | F59: =SUMPRODUCT((Projects!$A$5:$A$2413='MDOT FTA Detail'!$D$3)*(Projects!$C$5:$C$2413='MDOT FTA Detail'!$C$4)*(Projects!$L$5:$L$2413='MDOT FTA Detail'!$A59)*(Projects!$J$5:$J$2413<>'MDOT FTA Detail'!$A$171)*(Projects!$Q$5:Q$2413)) -> 0 | G59: =SUMPRODUCT((Projects!$A$5:$A$2413='MDOT FTA Detail'!$G$3)*(Projects!$C$5:$C$2413='MDOT FTA Detail'!$C$4)*(Projects!$L$5:$L$2413='MDOT FTA Detail'!$A59)*(Projects!$J$5:$J$2413<>'MDOT FTA Detail'!$A$171)*(Projects!$K$5:K$2413)) -> 0 | H59: 0 | I59: =SUMPRODUCT((Projects!$A$5:$A$2413='MDOT FTA Detail'!$G$3)*(Projects!$C$5:$C$2413='MDOT FTA Detail'!$C$4)*(Projects!$L$5:$L$2413='MDOT FTA Detail'!$A59)*(Projects!$J$5:$J$2413<>'MDOT FTA Detail'!$A$171)*(Projects!$Q$5:Q$2413)) -> 0 | J59: =SUMPRODUCT((Projects!$A$5:$A$2413='MDOT FTA Detail'!$J$3)*(Projects!$C$5:$C$2413='MDOT FTA Detail'!$C$4)*(Projects!$L$5:$L$2413='MDOT FTA Detail'!$A59)*(Projects!$J$5:$J$2413<>'MDOT FTA Detail'!$A$171)*(Projects!$K$5:$K$2413)) -> 0 | K59: 0 | L59: =SUMPRODUCT((Projects!$A$5:$A$2413='MDOT FTA Detail'!$J$3)*(Projects!$C$5:$C$2413='MDOT FTA Detail'!$C$4)*(Projects!$L$5:$L$2413='MDOT FTA Detail'!$A59)*(Projects!$J$5:$J$2413<>'MDOT FTA Detail'!$A$171)*(Projects!$Q$5:$Q$2413)) -> 0 | M59: =SUMPRODUCT((Projects!$A$5:$A$2413='MDOT FTA Detail'!$M$3)*(Projects!$C$5:$C$2413='MDOT FTA Detail'!$C$4)*(Projects!$L$5:$L$2413='MDOT FTA Detail'!$A59)*(Projects!$J$5:$J$2413<>'MDOT FTA Detail'!$A$171)*(Projects!$K$5:$K$2413)) -> 0 | N59: 0 | O59: =SUMPRODUCT((Projects!$A$5:$A$2413='MDOT FTA Detail'!$M$3)*(Projects!$C$5:$C$2413='MDOT FTA Detail'!$C$4)*(Projects!$L$5:$L$2413='MDOT FTA Detail'!$A59)*(Projects!$J$5:$J$2413<>'MDOT FTA Detail'!$A$171)*(Projects!$Q$5:$Q$2413)) -> 0
A60: NHI | B60: National Highway Funds on I (Does not Qualify for I) | C60: MDOT FA | D60: =SUMPRODUCT((Projects!$A$5:$A$2413='MDOT FTA Detail'!$D$3)*(Projects!$C$5:$C$2413='MDOT FTA Detail'!$C$4)*(Projects!$L$5:$L$2413='MDOT FTA Detail'!$A60)*(Projects!$J$5:$J$2413<>'MDOT FTA Detail'!$A$171)*(Projects!$K$5:K$2413)) -> 0 | E60: 0 | F60: =SUMPRODUCT((Projects!$A$5:$A$2413='MDOT FTA Detail'!$D$3)*(Projects!$C$5:$C$2413='MDOT FTA Detail'!$C$4)*(Projects!$L$5:$L$2413='MDOT FTA Detail'!$A60)*(Projects!$J$5:$J$2413<>'MDOT FTA Detail'!$A$171)*(Projects!$Q$5:Q$2413)) -> 0 | G60: =SUMPRODUCT((Projects!$A$5:$A$2413='MDOT FTA Detail'!$G$3)*(Projects!$C$5:$C$2413='MDOT FTA Detail'!$C$4)*(Projects!$L$5:$L$2413='MDOT FTA Detail'!$A60)*(Projects!$J$5:$J$2413<>'MDOT FTA Detail'!$A$171)*(Projects!$K$5:K$2413)) -> 0 | H60: 0 | I60: =SUMPRODUCT((Projects!$A$5:$A$2413='MDOT FTA Detail'!$G$3)*(Projects!$C$5:$C$2413='MDOT FTA Detail'!$C$4)*(Projects!$L$5:$L$2413='MDOT FTA Detail'!$A60)*(Projects!$J$5:$J$2413<>'MDOT FTA Detail'!$A$171)*(Projects!$Q$5:Q$2413)) -> 0 | J60: =SUMPRODUCT((Projects!$A$5:$A$2413='MDOT FTA Detail'!$J$3)*(Projects!$C$5:$C$2413='MDOT FTA Detail'!$C$4)*(Projects!$L$5:$L$2413='MDOT FTA Detail'!$A60)*(Projects!$J$5:$J$2413<>'MDOT FTA Detail'!$A$171)*(Projects!$K$5:$K$2413)) -> 0 | K60: 0 | L60: =SUMPRODUCT((Projects!$A$5:$A$2413='MDOT FTA Detail'!$J$3)*(Projects!$C$5:$C$2413='MDOT FTA Detail'!$C$4)*(Projects!$L$5:$L$2413='MDOT FTA Detail'!$A60)*(Projects!$J$5:$J$2413<>'MDOT FTA Detail'!$A$171)*(Projects!$Q$5:$Q$2413)) -> 0 | M60: =SUMPRODUCT((Projects!$A$5:$A$2413='MDOT FTA Detail'!$M$3)*(Projects!$C$5:$C$2413='MDOT FTA Detail'!$C$4)*(Projects!$L$5:$L$2413='MDOT FTA Detail'!$A60)*(Projects!$J$5:$J$2413<>'MDOT FTA Detail'!$A$171)*(Projects!$K$5:$K$2413)) -> 0 | N60: 0 | O60: =SUMPRODUCT((Projects!$A$5:$A$2413='MDOT FTA Detail'!$M$3)*(Projects!$C$5:$C$2413='MDOT FTA Detail'!$C$4)*(Projects!$L$5:$L$2413='MDOT FTA Detail'!$A60)*(Projects!$J$5:$J$2413<>'MDOT FTA Detail'!$A$171)*(Projects!$Q$5:$Q$2413)) -> 0
A61: NHIM | B61: National Highway Funds on I (Qualifies for IM) | C61: MDOT FA | D61: =SUMPRODUCT((Projects!$A$5:$A$2413='MDOT FTA Detail'!$D$3)*(Projects!$C$5:$C$2413='MDOT FTA Detail'!$C$4)*(Projects!$L$5:$L$2413='MDOT FTA Detail'!$A61)*(Projects!$J$5:$J$2413<>'MDOT FTA Detail'!$A$171)*(Projects!$K$5:K$2413)) -> 0 | E61: 0 | F61: =SUMPRODUCT((Projects!$A$5:$A$2413='MDOT FTA Detail'!$D$3)*(Projects!$C$5:$C$2413='MDOT FTA Detail'!$C$4)*(Projects!$L$5:$L$2413='MDOT FTA Detail'!$A61)*(Projects!$J$5:$J$2413<>'MDOT FTA Detail'!$A$171)*(Projects!$Q$5:Q$2413)) -> 0 | G61: =SUMPRODUCT((Projects!$A$5:$A$2413='MDOT FTA Detail'!$G$3)*(Projects!$C$5:$C$2413='MDOT FTA Detail'!$C$4)*(Projects!$L$5:$L$2413='MDOT FTA Detail'!$A61)*(Projects!$J$5:$J$2413<>'MDOT FTA Detail'!$A$171)*(Projects!$K$5:K$2413)) -> 0 | H61: 0 | I61: =SUMPRODUCT((Projects!$A$5:$A$2413='MDOT FTA Detail'!$G$3)*(Projects!$C$5:$C$2413='MDOT FTA Detail'!$C$4)*(Projects!$L$5:$L$2413='MDOT FTA Detail'!$A61)*(Projects!$J$5:$J$2413<>'MDOT FTA Detail'!$A$171)*(Projects!$Q$5:Q$2413)) -> 0 | J61: =SUMPRODUCT((Projects!$A$5:$A$2413='MDOT FTA Detail'!$J$3)*(Projects!$C$5:$C$2413='MDOT FTA Detail'!$C$4)*(Projects!$L$5:$L$2413='MDOT FTA Detail'!$A61)*(Projects!$J$5:$J$2413<>'MDOT FTA Detail'!$A$171)*(Projects!$K$5:$K$2413)) -> 0 | K61: 0 | L61: =SUMPRODUCT((Projects!$A$5:$A$2413='MDOT FTA Detail'!$J$3)*(Projects!$C$5:$C$2413='MDOT FTA Detail'!$C$4)*(Projects!$L$5:$L$2413='MDOT FTA Detail'!$A61)*(Projects!$J$5:$J$2413<>'MDOT FTA Detail'!$A$171)*(Projects!$Q$5:$Q$2413)) -> 0 | M61: =SUMPRODUCT((Projects!$A$5:$A$2413='MDOT FTA Detail'!$M$3)*(Projects!$C$5:$C$2413='MDOT FTA Detail'!$C$4)*(Projects!$L$5:$L$2413='MDOT FTA Detail'!$A61)*(Projects!$J$5:$J$2413<>'MDOT FTA Detail'!$A$171)*(Projects!$K$5:$K$2413)) -> 0 | N61: 0 | O61: =SUMPRODUCT((Projects!$A$5:$A$2413='MDOT FTA Detail'!$M$3)*(Projects!$C$5:$C$2413='MDOT FTA Detail'!$C$4)*(Projects!$L$5:$L$2413='MDOT FTA Detail'!$A61)*(Projects!$J$5:$J$2413<>'MDOT FTA Detail'!$A$171)*(Projects!$Q$5:$Q$2413)) -> 0
A62: NHS | B62: National Highway System - MDOT Safety Program | C62: MDOT FA | D62: =SUMPRODUCT((Projects!$A$5:$A$2413='MDOT FTA Detail'!$D$3)*(Projects!$C$5:$C$2413='MDOT FTA Detail'!$C$4)*(Projects!$L$5:$L$2413='MDOT FTA Detail'!$A62)*(Projects!$J$5:$J$2413<>'MDOT FTA Detail'!$A$171)*(Projects!$K$5:K$2413)) -> 0 | E62: 0 | F62: =SUMPRODUCT((Projects!$A$5:$A$2413='MDOT FTA Detail'!$D$3)*(Projects!$C$5:$C$2413='MDOT FTA Detail'!$C$4)*(Projects!$L$5:$L$2413='MDOT FTA Detail'!$A62)*(Projects!$J$5:$J$2413<>'MDOT FTA Detail'!$A$171)*(Projects!$Q$5:Q$2413)) -> 0 | G62: =SUMPRODUCT((Projects!$A$5:$A$2413='MDOT FTA Detail'!$G$3)*(Projects!$C$5:$C$2413='MDOT FTA Detail'!$C$4)*(Projects!$L$5:$L$2413='MDOT FTA Detail'!$A62)*(Projects!$J$5:$J$2413<>'MDOT FTA Detail'!$A$171)*(Projects!$K$5:K$2413)) -> 0 | H62: 0 | I62: =SUMPRODUCT((Projects!$A$5:$A$2413='MDOT FTA Detail'!$G$3)*(Projects!$C$5:$C$2413='MDOT FTA Detail'!$C$4)*(Projects!$L$5:$L$2413='MDOT FTA Detail'!$A62)*(Projects!$J$5:$J$2413<>'MDOT FTA Detail'!$A$171)*(Projects!$Q$5:Q$2413)) -> 0 | J62: =SUMPRODUCT((Projects!$A$5:$A$2413='MDOT FTA Detail'!$J$3)*(Projects!$C$5:$C$2413='MDOT FTA Detail'!$C$4)*(Projects!$L$5:$L$2413='MDOT FTA Detail'!$A62)*(Projects!$J$5:$J$2413<>'MDOT FTA Detail'!$A$171)*(Projects!$K$5:$K$2413)) -> 0 | K62: 0 | L62: =SUMPRODUCT((Projects!$A$5:$A$2413='MDOT FTA Detail'!$J$3)*(Projects!$C$5:$C$2413='MDOT FTA Detail'!$C$4)*(Projects!$L$5:$L$2413='MDOT FTA Detail'!$A62)*(Projects!$J$5:$J$2413<>'MDOT FTA Detail'!$A$171)*(Projects!$Q$5:$Q$2413)) -> 0 | M62: =SUMPRODUCT((Projects!$A$5:$A$2413='MDOT FTA Detail'!$M$3)*(Projects!$C$5:$C$2413='MDOT FTA Detail'!$C$4)*(Projects!$L$5:$L$2413='MDOT FTA Detail'!$A62)*(Projects!$J$5:$J$2413<>'MDOT FTA Detail'!$A$171)*(Projects!$K$5:$K$2413)) -> 0 | N62: 0 | O62: =SUMPRODUCT((Projects!$A$5:$A$2413='MDOT FTA Detail'!$M$3)*(Projects!$C$5:$C$2413='MDOT FTA Detail'!$C$4)*(Projects!$L$5:$L$2413='MDOT FTA Detail'!$A62)*(Projects!$J$5:$J$2413<>'MDOT FTA Detail'!$A$171)*(Projects!$Q$5:$Q$2413)) -> 0
A63: NRT | B63: National Recreational Trails | C63: MDOT FA | D63: =SUMPRODUCT((Projects!$A$5:$A$2413='MDOT FTA Detail'!$D$3)*(Projects!$C$5:$C$2413='MDOT FTA Detail'!$C$4)*(Projects!$L$5:$L$2413='MDOT FTA Detail'!$A63)*(Projects!$J$5:$J$2413<>'MDOT FTA Detail'!$A$171)*(Projects!$K$5:K$2413)) -> 0 | E63: 0 | F63: =SUMPRODUCT((Projects!$A$5:$A$2413='MDOT FTA Detail'!$D$3)*(Projects!$C$5:$C$2413='MDOT FTA Detail'!$C$4)*(Projects!$L$5:$L$2413='MDOT FTA Detail'!$A63)*(Projects!$J$5:$J$2413<>'MDOT FTA Detail'!$A$171)*(Projects!$Q$5:Q$2413)) -> 0 | G63: =SUMPRODUCT((Projects!$A$5:$A$2413='MDOT FTA Detail'!$G$3)*(Projects!$C$5:$C$2413='MDOT FTA Detail'!$C$4)*(Projects!$L$5:$L$2413='MDOT FTA Detail'!$A63)*(Projects!$J$5:$J$2413<>'MDOT FTA Detail'!$A$171)*(Projects!$K$5:K$2413)) -> 0 | H63: 0 | I63: =SUMPRODUCT((Projects!$A$5:$A$2413='MDOT FTA Detail'!$G$3)*(Projects!$C$5:$C$2413='MDOT FTA Detail'!$C$4)*(Projects!$L$5:$L$2413='MDOT FTA Detail'!$A63)*(Projects!$J$5:$J$2413<>'MDOT FTA Detail'!$A$171)*(Projects!$Q$5:Q$2413)) -> 0 | J63: =SUMPRODUCT((Projects!$A$5:$A$2413='MDOT FTA Detail'!$J$3)*(Projects!$C$5:$C$2413='MDOT FTA Detail'!$C$4)*(Projects!$L$5:$L$2413='MDOT FTA Detail'!$A63)*(Projects!$J$5:$J$2413<>'MDOT FTA Detail'!$A$171)*(Projects!$K$5:$K$2413)) -> 0 | K63: 0 | L63: =SUMPRODUCT((Projects!$A$5:$A$2413='MDOT FTA Detail'!$J$3)*(Projects!$C$5:$C$2413='MDOT FTA Detail'!$C$4)*(Projects!$L$5:$L$2413='MDOT FTA Detail'!$A63)*(Projects!$J$5:$J$2413<>'MDOT FTA Detail'!$A$171)*(Projects!$Q$5:$Q$2413)) -> 0 | M63: =SUMPRODUCT((Projects!$A$5:$A$2413='MDOT FTA Detail'!$M$3)*(Projects!$C$5:$C$2413='MDOT FTA Detail'!$C$4)*(Projects!$L$5:$L$2413='MDOT FTA Detail'!$A63)*(Projects!$J$5:$J$2413<>'MDOT FTA Detail'!$A$171)*(Projects!$K$5:$K$2413)) -> 0 | N63: 0 | O63: =SUMPRODUCT((Projects!$A$5:$A$2413='MDOT FTA Detail'!$M$3)*(Projects!$C$5:$C$2413='MDOT FTA Detail'!$C$4)*(Projects!$L$5:$L$2413='MDOT FTA Detail'!$A63)*(Projects!$J$5:$J$2413<>'MDOT FTA Detail'!$A$171)*(Projects!$Q$5:$Q$2413)) -> 0
A64: OFHWA | B64: Other FHWA Funds (Specify source in Comments) | C64: MDOT FA | D64: =SUMPRODUCT((Projects!$A$5:$A$2413='MDOT FTA Detail'!$D$3)*(Projects!$C$5:$C$2413='MDOT FTA Detail'!$C$4)*(Projects!$L$5:$L$2413='MDOT FTA Detail'!$A64)*(Projects!$J$5:$J$2413<>'MDOT FTA Detail'!$A$171)*(Projects!$K$5:K$2413)) -> 0 | E64: 0 | F64: =SUMPRODUCT((Projects!$A$5:$A$2413='MDOT FTA Detail'!$D$3)*(Projects!$C$5:$C$2413='MDOT FTA Detail'!$C$4)*(Projects!$L$5:$L$2413='MDOT FTA Detail'!$A64)*(Projects!$J$5:$J$2413<>'MDOT FTA Detail'!$A$171)*(Projects!$Q$5:Q$2413)) -> 0 | G64: =SUMPRODUCT((Projects!$A$5:$A$2413='MDOT FTA Detail'!$G$3)*(Projects!$C$5:$C$2413='MDOT FTA Detail'!$C$4)*(Projects!$L$5:$L$2413='MDOT FTA Detail'!$A64)*(Projects!$J$5:$J$2413<>'MDOT FTA Detail'!$A$171)*(Projects!$K$5:K$2413)) -> 0 | H64: 0 | I64: =SUMPRODUCT((Projects!$A$5:$A$2413='MDOT FTA Detail'!$G$3)*(Projects!$C$5:$C$2413='MDOT FTA Detail'!$C$4)*(Projects!$L$5:$L$2413='MDOT FTA Detail'!$A64)*(Projects!$J$5:$J$2413<>'MDOT FTA Detail'!$A$171)*(Projects!$Q$5:Q$2413)) -> 0 | J64: =SUMPRODUCT((Projects!$A$5:$A$2413='MDOT FTA Detail'!$J$3)*(Projects!$C$5:$C$2413='MDOT FTA Detail'!$C$4)*(Projects!$L$5:$L$2413='MDOT FTA Detail'!$A64)*(Projects!$J$5:$J$2413<>'MDOT FTA Detail'!$A$171)*(Projects!$K$5:$K$2413)) -> 0 | K64: 0 | L64: =SUMPRODUCT((Projects!$A$5:$A$2413='MDOT FTA Detail'!$J$3)*(Projects!$C$5:$C$2413='MDOT FTA Detail'!$C$4)*(Projects!$L$5:$L$2413='MDOT FTA Detail'!$A64)*(Projects!$J$5:$J$2413<>'MDOT FTA Detail'!$A$171)*(Projects!$Q$5:$Q$2413)) -> 0 | M64: =SUMPRODUCT((Projects!$A$5:$A$2413='MDOT FTA Detail'!$M$3)*(Projects!$C$5:$C$2413='MDOT FTA Detail'!$C$4)*(Projects!$L$5:$L$2413='MDOT FTA Detail'!$A64)*(Projects!$J$5:$J$2413<>'MDOT FTA Detail'!$A$171)*(Projects!$K$5:$K$2413)) -> 0 | N64: 0 | O64: =SUMPRODUCT((Projects!$A$5:$A$2413='MDOT FTA Detail'!$M$3)*(Projects!$C$5:$C$2413='MDOT FTA Detail'!$C$4)*(Projects!$L$5:$L$2413='MDOT FTA Detail'!$A64)*(Projects!$J$5:$J$2413<>'MDOT FTA Detail'!$A$171)*(Projects!$Q$5:$Q$2413)) -> 0
A65: PNRS | B65: Projects of National and Regional Significance | C65: MDOT FA | D65: =SUMPRODUCT((Projects!$A$5:$A$2413='MDOT FTA Detail'!$D$3)*(Projects!$C$5:$C$2413='MDOT FTA Detail'!$C$4)*(Projects!$L$5:$L$2413='MDOT FTA Detail'!$A65)*(Projects!$J$5:$J$2413<>'MDOT FTA Detail'!$A$171)*(Projects!$K$5:K$2413)) -> 0 | E65: 0 | F65: =SUMPRODUCT((Projects!$A$5:$A$2413='MDOT FTA Detail'!$D$3)*(Projects!$C$5:$C$2413='MDOT FTA Detail'!$C$4)*(Projects!$L$5:$L$2413='MDOT FTA Detail'!$A65)*(Projects!$J$5:$J$2413<>'MDOT FTA Detail'!$A$171)*(Projects!$Q$5:Q$2413)) -> 0 | G65: =SUMPRODUCT((Projects!$A$5:$A$2413='MDOT FTA Detail'!$G$3)*(Projects!$C$5:$C$2413='MDOT FTA Detail'!$C$4)*(Projects!$L$5:$L$2413='MDOT FTA Detail'!$A65)*(Projects!$J$5:$J$2413<>'MDOT FTA Detail'!$A$171)*(Projects!$K$5:K$2413)) -> 0 | H65: 0 | I65: =SUMPRODUCT((Projects!$A$5:$A$2413='MDOT FTA Detail'!$G$3)*(Projects!$C$5:$C$2413='MDOT FTA Detail'!$C$4)*(Projects!$L$5:$L$2413='MDOT FTA Detail'!$A65)*(Projects!$J$5:$J$2413<>'MDOT FTA Detail'!$A$171)*(Projects!$Q$5:Q$2413)) -> 0 | J65: =SUMPRODUCT((Projects!$A$5:$A$2413='MDOT FTA Detail'!$J$3)*(Projects!$C$5:$C$2413='MDOT FTA Detail'!$C$4)*(Projects!$L$5:$L$2413='MDOT FTA Detail'!$A65)*(Projects!$J$5:$J$2413<>'MDOT FTA Detail'!$A$171)*(Projects!$K$5:$K$2413)) -> 0 | K65: 0 | L65: =SUMPRODUCT((Projects!$A$5:$A$2413='MDOT FTA Detail'!$J$3)*(Projects!$C$5:$C$2413='MDOT FTA Detail'!$C$4)*(Projects!$L$5:$L$2413='MDOT FTA Detail'!$A65)*(Projects!$J$5:$J$2413<>'MDOT FTA Detail'!$A$171)*(Projects!$Q$5:$Q$2413)) -> 0 | M65: =SUMPRODUCT((Projects!$A$5:$A$2413='MDOT FTA Detail'!$M$3)*(Projects!$C$5:$C$2413='MDOT FTA Detail'!$C$4)*(Projects!$L$5:$L$2413='MDOT FTA Detail'!$A65)*(Projects!$J$5:$J$2413<>'MDOT FTA Detail'!$A$171)*(Projects!$K$5:$K$2413)) -> 0 | N65: 0 | O65: =SUMPRODUCT((Projects!$A$5:$A$2413='MDOT FTA Detail'!$M$3)*(Projects!$C$5:$C$2413='MDOT FTA Detail'!$C$4)*(Projects!$L$5:$L$2413='MDOT FTA Detail'!$A65)*(Projects!$J$5:$J$2413<>'MDOT FTA Detail'!$A$171)*(Projects!$Q$5:$Q$2413)) -> 0
A66: PRIP | B66: Priority Roads Investment Program | C66: MDOT FA | D66: =SUMPRODUCT((Projects!$A$5:$A$2413='MDOT FTA Detail'!$D$3)*(Projects!$C$5:$C$2413='MDOT FTA Detail'!$C$4)*(Projects!$L$5:$L$2413='MDOT FTA Detail'!$A66)*(Projects!$J$5:$J$2413<>'MDOT FTA Detail'!$A$171)*(Projects!$K$5:K$2413)) -> 0 | E66: =F66-D66 -> 0 | F66: =SUMPRODUCT((Projects!$A$5:$A$2413='MDOT FTA Detail'!$D$3)*(Projects!$C$5:$C$2413='MDOT FTA Detail'!$C$4)*(Projects!$L$5:$L$2413='MDOT FTA Detail'!$A66)*(Projects!$J$5:$J$2413<>'MDOT FTA Detail'!$A$171)*(Projects!$Q$5:Q$2413)) -> 0 | G66: =SUMPRODUCT((Projects!$A$5:$A$2413='MDOT FTA Detail'!$G$3)*(Projects!$C$5:$C$2413='MDOT FTA Detail'!$C$4)*(Projects!$L$5:$L$2413='MDOT FTA Detail'!$A66)*(Projects!$J$5:$J$2413<>'MDOT FTA Detail'!$A$171)*(Projects!$K$5:K$2413)) -> 0 | H66: =I66-G66 -> 0 | I66: =SUMPRODUCT((Projects!$A$5:$A$2413='MDOT FTA Detail'!$G$3)*(Projects!$C$5:$C$2413='MDOT FTA Detail'!$C$4)*(Projects!$L$5:$L$2413='MDOT FTA Detail'!$A66)*(Projects!$J$5:$J$2413<>'MDOT FTA Detail'!$A$171)*(Projects!$Q$5:Q$2413)) -> 0 | J66: =SUMPRODUCT((Projects!$A$5:$A$2413='MDOT FTA Detail'!$J$3)*(Projects!$C$5:$C$2413='MDOT FTA Detail'!$C$4)*(Projects!$L$5:$L$2413='MDOT FTA Detail'!$A66)*(Projects!$J$5:$J$2413<>'MDOT FTA Detail'!$A$171)*(Projects!$K$5:$K$2413)) -> 0 | K66: =L66-J66 -> 0 | L66: =SUMPRODUCT((Projects!$A$5:$A$2413='MDOT FTA Detail'!$J$3)*(Projects!$C$5:$C$2413='MDOT FTA Detail'!$C$4)*(Projects!$L$5:$L$2413='MDOT FTA Detail'!$A66)*(Projects!$J$5:$J$2413<>'MDOT FTA Detail'!$A$171)*(Projects!$Q$5:$Q$2413)) -> 0 | M66: =SUMPRODUCT((Projects!$A$5:$A$2413='MDOT FTA Detail'!$M$3)*(Projects!$C$5:$C$2413='MDOT FTA Detail'!$C$4)*(Projects!$L$5:$L$2413='MDOT FTA Detail'!$A66)*(Projects!$J$5:$J$2413<>'MDOT FTA Detail'!$A$171)*(Projects!$K$5:$K$2413)) -> 0 | N66: =O66-M66 -> 0 | O66: =SUMPRODUCT((Projects!$A$5:$A$2413='MDOT FTA Detail'!$M$3)*(Projects!$C$5:$C$2413='MDOT FTA Detail'!$C$4)*(Projects!$L$5:$L$2413='MDOT FTA Detail'!$A66)*(Projects!$J$5:$J$2413<>'MDOT FTA Detail'!$A$171)*(Projects!$Q$5:$Q$2413)) -> 0
A67: RP | B67: Research Project | C67: MDOT FA | D67: =SUMPRODUCT((Projects!$A$5:$A$2413='MDOT FTA Detail'!$D$3)*(Projects!$C$5:$C$2413='MDOT FTA Detail'!$C$4)*(Projects!$L$5:$L$2413='MDOT FTA Detail'!$A67)*(Projects!$J$5:$J$2413<>'MDOT FTA Detail'!$A$171)*(Projects!$K$5:K$2413)) -> 0 | E67: 0 | F67: =SUMPRODUCT((Projects!$A$5:$A$2413='MDOT FTA Detail'!$D$3)*(Projects!$C$5:$C$2413='MDOT FTA Detail'!$C$4)*(Projects!$L$5:$L$2413='MDOT FTA Detail'!$A67)*(Projects!$J$5:$J$2413<>'MDOT FTA Detail'!$A$171)*(Projects!$Q$5:Q$2413)) -> 0 | G67: =SUMPRODUCT((Projects!$A$5:$A$2413='MDOT FTA Detail'!$G$3)*(Projects!$C$5:$C$2413='MDOT FTA Detail'!$C$4)*(Projects!$L$5:$L$2413='MDOT FTA Detail'!$A67)*(Projects!$J$5:$J$2413<>'MDOT FTA Detail'!$A$171)*(Projects!$K$5:K$2413)) -> 0 | H67: 0 | I67: =SUMPRODUCT((Projects!$A$5:$A$2413='MDOT FTA Detail'!$G$3)*(Projects!$C$5:$C$2413='MDOT FTA Detail'!$C$4)*(Projects!$L$5:$L$2413='MDOT FTA Detail'!$A67)*(Projects!$J$5:$J$2413<>'MDOT FTA Detail'!$A$171)*(Projects!$Q$5:Q$2413)) -> 0 | J67: =SUMPRODUCT((Projects!$A$5:$A$2413='MDOT FTA Detail'!$J$3)*(Projects!$C$5:$C$2413='MDOT FTA Detail'!$C$4)*(Projects!$L$5:$L$2413='MDOT FTA Detail'!$A67)*(Projects!$J$5:$J$2413<>'MDOT FTA Detail'!$A$171)*(Projects!$K$5:$K$2413)) -> 0 | K67: 0 | L67: =SUMPRODUCT((Projects!$A$5:$A$2413='MDOT FTA Detail'!$J$3)*(Projects!$C$5:$C$2413='MDOT FTA Detail'!$C$4)*(Projects!$L$5:$L$2413='MDOT FTA Detail'!$A67)*(Projects!$J$5:$J$2413<>'MDOT FTA Detail'!$A$171)*(Projects!$Q$5:$Q$2413)) -> 0 | M67: =SUMPRODUCT((Projects!$A$5:$A$2413='MDOT FTA Detail'!$M$3)*(Projects!$C$5:$C$2413='MDOT FTA Detail'!$C$4)*(Projects!$L$5:$L$2413='MDOT FTA Detail'!$A67)*(Projects!$J$5:$J$2413<>'MDOT FTA Detail'!$A$171)*(Projects!$K$5:$K$2413)) -> 0 | N67: 0 | O67: =SUMPRODUCT((Projects!$A$5:$A$2413='MDOT FTA Detail'!$M$3)*(Projects!$C$5:$C$2413='MDOT FTA Detail'!$C$4)*(Projects!$L$5:$L$2413='MDOT FTA Detail'!$A67)*(Projects!$J$5:$J$2413<>'MDOT FTA Detail'!$A$171)*(Projects!$Q$5:$Q$2413)) -> 0
A68: RPH | B68: American Recovery and Reinvestment Act | C68: MDOT FA | D68: =SUMPRODUCT((Projects!$A$5:$A$2413='MDOT FTA Detail'!$D$3)*(Projects!$C$5:$C$2413='MDOT FTA Detail'!$C$4)*(Projects!$L$5:$L$2413='MDOT FTA Detail'!$A68)*(Projects!$J$5:$J$2413<>'MDOT FTA Detail'!$A$171)*(Projects!$K$5:K$2413)) -> 0 | E68: 0 | F68: =SUMPRODUCT((Projects!$A$5:$A$2413='MDOT FTA Detail'!$D$3)*(Projects!$C$5:$C$2413='MDOT FTA Detail'!$C$4)*(Projects!$L$5:$L$2413='MDOT FTA Detail'!$A68)*(Projects!$J$5:$J$2413<>'MDOT FTA Detail'!$A$171)*(Projects!$Q$5:Q$2413)) -> 0 | G68: =SUMPRODUCT((Projects!$A$5:$A$2413='MDOT FTA Detail'!$G$3)*(Projects!$C$5:$C$2413='MDOT FTA Detail'!$C$4)*(Projects!$L$5:$L$2413='MDOT FTA Detail'!$A68)*(Projects!$J$5:$J$2413<>'MDOT FTA Detail'!$A$171)*(Projects!$K$5:K$2413)) -> 0 | H68: 0 | I68: =SUMPRODUCT((Projects!$A$5:$A$2413='MDOT FTA Detail'!$G$3)*(Projects!$C$5:$C$2413='MDOT FTA Detail'!$C$4)*(Projects!$L$5:$L$2413='MDOT FTA Detail'!$A68)*(Projects!$J$5:$J$2413<>'MDOT FTA Detail'!$A$171)*(Projects!$Q$5:Q$2413)) -> 0 | J68: =SUMPRODUCT((Projects!$A$5:$A$2413='MDOT FTA Detail'!$J$3)*(Projects!$C$5:$C$2413='MDOT FTA Detail'!$C$4)*(Projects!$L$5:$L$2413='MDOT FTA Detail'!$A68)*(Projects!$J$5:$J$2413<>'MDOT FTA Detail'!$A$171)*(Projects!$K$5:$K$2413)) -> 0 | K68: 0 | L68: =SUMPRODUCT((Projects!$A$5:$A$2413='MDOT FTA Detail'!$J$3)*(Projects!$C$5:$C$2413='MDOT FTA Detail'!$C$4)*(Projects!$L$5:$L$2413='MDOT FTA Detail'!$A68)*(Projects!$J$5:$J$2413<>'MDOT FTA Detail'!$A$171)*(Projects!$Q$5:$Q$2413)) -> 0 | M68: =SUMPRODUCT((Projects!$A$5:$A$2413='MDOT FTA Detail'!$M$3)*(Projects!$C$5:$C$2413='MDOT FTA Detail'!$C$4)*(Projects!$L$5:$L$2413='MDOT FTA Detail'!$A68)*(Projects!$J$5:$J$2413<>'MDOT FTA Detail'!$A$171)*(Projects!$K$5:$K$2413)) -> 0 | N68: 0 | O68: =SUMPRODUCT((Projects!$A$5:$A$2413='MDOT FTA Detail'!$M$3)*(Projects!$C$5:$C$2413='MDOT FTA Detail'!$C$4)*(Projects!$L$5:$L$2413='MDOT FTA Detail'!$A68)*(Projects!$J$5:$J$2413<>'MDOT FTA Detail'!$A$171)*(Projects!$Q$5:$Q$2413)) -> 0
A69: SBD | B69: Scenic Byways - Discretionary | C69: MDOT FA | D69: =SUMPRODUCT((Projects!$A$5:$A$2413='MDOT FTA Detail'!$D$3)*(Projects!$C$5:$C$2413='MDOT FTA Detail'!$C$4)*(Projects!$L$5:$L$2413='MDOT FTA Detail'!$A69)*(Projects!$J$5:$J$2413<>'MDOT FTA Detail'!$A$171)*(Projects!$K$5:K$2413)) -> 0 | E69: 0 | F69: =SUMPRODUCT((Projects!$A$5:$A$2413='MDOT FTA Detail'!$D$3)*(Projects!$C$5:$C$2413='MDOT FTA Detail'!$C$4)*(Projects!$L$5:$L$2413='MDOT FTA Detail'!$A69)*(Projects!$J$5:$J$2413<>'MDOT FTA Detail'!$A$171)*(Projects!$Q$5:Q$2413)) -> 0 | G69: =SUMPRODUCT((Projects!$A$5:$A$2413='MDOT FTA Detail'!$G$3)*(Projects!$C$5:$C$2413='MDOT FTA Detail'!$C$4)*(Projects!$L$5:$L$2413='MDOT FTA Detail'!$A69)*(Projects!$J$5:$J$2413<>'MDOT FTA Detail'!$A$171)*(Projects!$K$5:K$2413)) -> 0 | H69: 0 | I69: =SUMPRODUCT((Projects!$A$5:$A$2413='MDOT FTA Detail'!$G$3)*(Projects!$C$5:$C$2413='MDOT FTA Detail'!$C$4)*(Projects!$L$5:$L$2413='MDOT FTA Detail'!$A69)*(Projects!$J$5:$J$2413<>'MDOT FTA Detail'!$A$171)*(Projects!$Q$5:Q$2413)) -> 0 | J69: =SUMPRODUCT((Projects!$A$5:$A$2413='MDOT FTA Detail'!$J$3)*(Projects!$C$5:$C$2413='MDOT FTA Detail'!$C$4)*(Projects!$L$5:$L$2413='MDOT FTA Detail'!$A69)*(Projects!$J$5:$J$2413<>'MDOT FTA Detail'!$A$171)*(Projects!$K$5:$K$2413)) -> 0 | K69: 0 | L69: =SUMPRODUCT((Projects!$A$5:$A$2413='MDOT FTA Detail'!$J$3)*(Projects!$C$5:$C$2413='MDOT FTA Detail'!$C$4)*(Projects!$L$5:$L$2413='MDOT FTA Detail'!$A69)*(Projects!$J$5:$J$2413<>'MDOT FTA Detail'!$A$171)*(Projects!$Q$5:$Q$2413)) -> 0 | M69: =SUMPRODUCT((Projects!$A$5:$A$2413='MDOT FTA Detail'!$M$3)*(Projects!$C$5:$C$2413='MDOT FTA Detail'!$C$4)*(Projects!$L$5:$L$2413='MDOT FTA Detail'!$A69)*(Projects!$J$5:$J$2413<>'MDOT FTA Detail'!$A$171)*(Projects!$K$5:$K$2413)) -> 0 | N69: 0 | O69: =SUMPRODUCT((Projects!$A$5:$A$2413='MDOT FTA Detail'!$M$3)*(Projects!$C$5:$C$2413='MDOT FTA Detail'!$C$4)*(Projects!$L$5:$L$2413='MDOT FTA Detail'!$A69)*(Projects!$J$5:$J$2413<>'MDOT FTA Detail'!$A$171)*(Projects!$Q$5:$Q$2413)) -> 0
A70: SIB | B70: State Infrastructure Bank | C70: MDOT FA | D70: =SUMPRODUCT((Projects!$A$5:$A$2413='MDOT FTA Detail'!$D$3)*(Projects!$C$5:$C$2413='MDOT FTA Detail'!$C$4)*(Projects!$L$5:$L$2413='MDOT FTA Detail'!$A70)*(Projects!$J$5:$J$2413<>'MDOT FTA Detail'!$A$171)*(Projects!$K$5:K$2413)) -> 0 | E70: 0 | F70: =SUMPRODUCT((Projects!$A$5:$A$2413='MDOT FTA Detail'!$D$3)*(Projects!$C$5:$C$2413='MDOT FTA Detail'!$C$4)*(Projects!$L$5:$L$2413='MDOT FTA Detail'!$A70)*(Projects!$J$5:$J$2413<>'MDOT FTA Detail'!$A$171)*(Projects!$Q$5:Q$2413)) -> 0 | G70: =SUMPRODUCT((Projects!$A$5:$A$2413='MDOT FTA Detail'!$G$3)*(Projects!$C$5:$C$2413='MDOT FTA Detail'!$C$4)*(Projects!$L$5:$L$2413='MDOT FTA Detail'!$A70)*(Projects!$J$5:$J$2413<>'MDOT FTA Detail'!$A$171)*(Projects!$K$5:K$2413)) -> 0 | H70: 0 | I70: =SUMPRODUCT((Projects!$A$5:$A$2413='MDOT FTA Detail'!$G$3)*(Projects!$C$5:$C$2413='MDOT FTA Detail'!$C$4)*(Projects!$L$5:$L$2413='MDOT FTA Detail'!$A70)*(Projects!$J$5:$J$2413<>'MDOT FTA Detail'!$A$171)*(Projects!$Q$5:Q$2413)) -> 0 | J70: =SUMPRODUCT((Projects!$A$5:$A$2413='MDOT FTA Detail'!$J$3)*(Projects!$C$5:$C$2413='MDOT FTA Detail'!$C$4)*(Projects!$L$5:$L$2413='MDOT FTA Detail'!$A70)*(Projects!$J$5:$J$2413<>'MDOT FTA Detail'!$A$171)*(Projects!$K$5:$K$2413)) -> 0 | K70: 0 | L70: =SUMPRODUCT((Projects!$A$5:$A$2413='MDOT FTA Detail'!$J$3)*(Projects!$C$5:$C$2413='MDOT FTA Detail'!$C$4)*(Projects!$L$5:$L$2413='MDOT FTA Detail'!$A70)*(Projects!$J$5:$J$2413<>'MDOT FTA Detail'!$A$171)*(Projects!$Q$5:$Q$2413)) -> 0 | M70: =SUMPRODUCT((Projects!$A$5:$A$2413='MDOT FTA Detail'!$M$3)*(Projects!$C$5:$C$2413='MDOT FTA Detail'!$C$4)*(Projects!$L$5:$L$2413='MDOT FTA Detail'!$A70)*(Projects!$J$5:$J$2413<>'MDOT FTA Detail'!$A$171)*(Projects!$K$5:$K$2413)) -> 0 | N70: 0 | O70: =SUMPRODUCT((Projects!$A$5:$A$2413='MDOT FTA Detail'!$M$3)*(Projects!$C$5:$C$2413='MDOT FTA Detail'!$C$4)*(Projects!$L$5:$L$2413='MDOT FTA Detail'!$A70)*(Projects!$J$5:$J$2413<>'MDOT FTA Detail'!$A$171)*(Projects!$Q$5:$Q$2413)) -> 0
A71: SLG | B71: Surface Transportation Safety | C71: MDOT FA | D71: =SUMPRODUCT((Projects!$A$5:$A$2413='MDOT FTA Detail'!$D$3)*(Projects!$C$5:$C$2413='MDOT FTA Detail'!$C$4)*(Projects!$L$5:$L$2413='MDOT FTA Detail'!$A71)*(Projects!$J$5:$J$2413<>'MDOT FTA Detail'!$A$171)*(Projects!$K$5:K$2413)) -> 0 | E71: 0 | F71: =SUMPRODUCT((Projects!$A$5:$A$2413='MDOT FTA Detail'!$D$3)*(Projects!$C$5:$C$2413='MDOT FTA Detail'!$C$4)*(Projects!$L$5:$L$2413='MDOT FTA Detail'!$A71)*(Projects!$J$5:$J$2413<>'MDOT FTA Detail'!$A$171)*(Projects!$Q$5:Q$2413)) -> 0 | G71: =SUMPRODUCT((Projects!$A$5:$A$2413='MDOT FTA Detail'!$G$3)*(Projects!$C$5:$C$2413='MDOT FTA Detail'!$C$4)*(Projects!$L$5:$L$2413='MDOT FTA Detail'!$A71)*(Projects!$J$5:$J$2413<>'MDOT FTA Detail'!$A$171)*(Projects!$K$5:K$2413)) -> 0 | H71: 0 | I71: =SUMPRODUCT((Projects!$A$5:$A$2413='MDOT FTA Detail'!$G$3)*(Projects!$C$5:$C$2413='MDOT FTA Detail'!$C$4)*(Projects!$L$5:$L$2413='MDOT FTA Detail'!$A71)*(Projects!$J$5:$J$2413<>'MDOT FTA Detail'!$A$171)*(Projects!$Q$5:Q$2413)) -> 0 | J71: =SUMPRODUCT((Projects!$A$5:$A$2413='MDOT FTA Detail'!$J$3)*(Projects!$C$5:$C$2413='MDOT FTA Detail'!$C$4)*(Projects!$L$5:$L$2413='MDOT FTA Detail'!$A71)*(Projects!$J$5:$J$2413<>'MDOT FTA Detail'!$A$171)*(Projects!$K$5:$K$2413)) -> 0 | K71: 0 | L71: =SUMPRODUCT((Projects!$A$5:$A$2413='MDOT FTA Detail'!$J$3)*(Projects!$C$5:$C$2413='MDOT FTA Detail'!$C$4)*(Projects!$L$5:$L$2413='MDOT FTA Detail'!$A71)*(Projects!$J$5:$J$2413<>'MDOT FTA Detail'!$A$171)*(Projects!$Q$5:$Q$2413)) -> 0 | M71: =SUMPRODUCT((Projects!$A$5:$A$2413='MDOT FTA Detail'!$M$3)*(Projects!$C$5:$C$2413='MDOT FTA Detail'!$C$4)*(Projects!$L$5:$L$2413='MDOT FTA Detail'!$A71)*(Projects!$J$5:$J$2413<>'MDOT FTA Detail'!$A$171)*(Projects!$K$5:$K$2413)) -> 0 | N71: 0 | O71: =SUMPRODUCT((Projects!$A$5:$A$2413='MDOT FTA Detail'!$M$3)*(Projects!$C$5:$C$2413='MDOT FTA Detail'!$C$4)*(Projects!$L$5:$L$2413='MDOT FTA Detail'!$A71)*(Projects!$J$5:$J$2413<>'MDOT FTA Detail'!$A$171)*(Projects!$Q$5:$Q$2413)) -> 0
A72: SRSE | B72: Surface Transportation Safety Highway Crossing Hazard Elimination | C72: MDOT FA | D72: =SUMPRODUCT((Projects!$A$5:$A$2413='MDOT FTA Detail'!$D$3)*(Projects!$C$5:$C$2413='MDOT FTA Detail'!$C$4)*(Projects!$L$5:$L$2413='MDOT FTA Detail'!$A72)*(Projects!$J$5:$J$2413<>'MDOT FTA Detail'!$A$171)*(Projects!$K$5:K$2413)) -> 0 | E72: 0 | F72: =SUMPRODUCT((Projects!$A$5:$A$2413='MDOT FTA Detail'!$D$3)*(Projects!$C$5:$C$2413='MDOT FTA Detail'!$C$4)*(Projects!$L$5:$L$2413='MDOT FTA Detail'!$A72)*(Projects!$J$5:$J$2413<>'MDOT FTA Detail'!$A$171)*(Projects!$Q$5:Q$2413)) -> 0 | G72: =SUMPRODUCT((Projects!$A$5:$A$2413='MDOT FTA Detail'!$G$3)*(Projects!$C$5:$C$2413='MDOT FTA Detail'!$C$4)*(Projects!$L$5:$L$2413='MDOT FTA Detail'!$A72)*(Projects!$J$5:$J$2413<>'MDOT FTA Detail'!$A$171)*(Projects!$K$5:K$2413)) -> 0 | H72: 0 | I72: =SUMPRODUCT((Projects!$A$5:$A$2413='MDOT FTA Detail'!$G$3)*(Projects!$C$5:$C$2413='MDOT FTA Detail'!$C$4)*(Projects!$L$5:$L$2413='MDOT FTA Detail'!$A72)*(Projects!$J$5:$J$2413<>'MDOT FTA Detail'!$A$171)*(Projects!$Q$5:Q$2413)) -> 0 | J72: =SUMPRODUCT((Projects!$A$5:$A$2413='MDOT FTA Detail'!$J$3)*(Projects!$C$5:$C$2413='MDOT FTA Detail'!$C$4)*(Projects!$L$5:$L$2413='MDOT FTA Detail'!$A72)*(Projects!$J$5:$J$2413<>'MDOT FTA Detail'!$A$171)*(Projects!$K$5:$K$2413)) -> 0 | K72: 0 | L72: =SUMPRODUCT((Projects!$A$5:$A$2413='MDOT FTA Detail'!$J$3)*(Projects!$C$5:$C$2413='MDOT FTA Detail'!$C$4)*(Projects!$L$5:$L$2413='MDOT FTA Detail'!$A72)*(Projects!$J$5:$J$2413<>'MDOT FTA Detail'!$A$171)*(Projects!$Q$5:$Q$2413)) -> 0 | M72: =SUMPRODUCT((Projects!$A$5:$A$2413='MDOT FTA Detail'!$M$3)*(Projects!$C$5:$C$2413='MDOT FTA Detail'!$C$4)*(Projects!$L$5:$L$2413='MDOT FTA Detail'!$A72)*(Projects!$J$5:$J$2413<>'MDOT FTA Detail'!$A$171)*(Projects!$K$5:$K$2413)) -> 0 | N72: 0 | O72: =SUMPRODUCT((Projects!$A$5:$A$2413='MDOT FTA Detail'!$M$3)*(Projects!$C$5:$C$2413='MDOT FTA Detail'!$C$4)*(Projects!$L$5:$L$2413='MDOT FTA Detail'!$A72)*(Projects!$J$5:$J$2413<>'MDOT FTA Detail'!$A$171)*(Projects!$Q$5:$Q$2413)) -> 0
A73: SRHG | B73: Surface Transportation Safety Highway Crossing Protection Devices 100% | C73: MDOT FA | D73: =SUMPRODUCT((Projects!$A$5:$A$2413='MDOT FTA Detail'!$D$3)*(Projects!$C$5:$C$2413='MDOT FTA Detail'!$C$4)*(Projects!$L$5:$L$2413='MDOT FTA Detail'!$A73)*(Projects!$J$5:$J$2413<>'MDOT FTA Detail'!$A$171)*(Projects!$K$5:K$2413)) -> 0 | E73: =F73-D73 -> 0 | F73: =SUMPRODUCT((Projects!$A$5:$A$2413='MDOT FTA Detail'!$D$3)*(Projects!$C$5:$C$2413='MDOT FTA Detail'!$C$4)*(Projects!$L$5:$L$2413='MDOT FTA Detail'!$A73)*(Projects!$J$5:$J$2413<>'MDOT FTA Detail'!$A$171)*(Projects!$Q$5:Q$2413)) -> 0 | G73: =SUMPRODUCT((Projects!$A$5:$A$2413='MDOT FTA Detail'!$G$3)*(Projects!$C$5:$C$2413='MDOT FTA Detail'!$C$4)*(Projects!$L$5:$L$2413='MDOT FTA Detail'!$A73)*(Projects!$J$5:$J$2413<>'MDOT FTA Detail'!$A$171)*(Projects!$K$5:K$2413)) -> 0 | H73: =I73-G73 -> 0 | I73: =SUMPRODUCT((Projects!$A$5:$A$2413='MDOT FTA Detail'!$G$3)*(Projects!$C$5:$C$2413='MDOT FTA Detail'!$C$4)*(Projects!$L$5:$L$2413='MDOT FTA Detail'!$A73)*(Projects!$J$5:$J$2413<>'MDOT FTA Detail'!$A$171)*(Projects!$Q$5:Q$2413)) -> 0 | J73: =SUMPRODUCT((Projects!$A$5:$A$2413='MDOT FTA Detail'!$J$3)*(Projects!$C$5:$C$2413='MDOT FTA Detail'!$C$4)*(Projects!$L$5:$L$2413='MDOT FTA Detail'!$A73)*(Projects!$J$5:$J$2413<>'MDOT FTA Detail'!$A$171)*(Projects!$K$5:$K$2413)) -> 0 | K73: =L73-J73 -> 0 | L73: =SUMPRODUCT((Projects!$A$5:$A$2413='MDOT FTA Detail'!$J$3)*(Projects!$C$5:$C$2413='MDOT FTA Detail'!$C$4)*(Projects!$L$5:$L$2413='MDOT FTA Detail'!$A73)*(Projects!$J$5:$J$2413<>'MDOT FTA Detail'!$A$171)*(Projects!$Q$5:$Q$2413)) -> 0 | M73: =SUMPRODUCT((Projects!$A$5:$A$2413='MDOT FTA Detail'!$M$3)*(Projects!$C$5:$C$2413='MDOT FTA Detail'!$C$4)*(Projects!$L$5:$L$2413='MDOT FTA Detail'!$A73)*(Projects!$J$5:$J$2413<>'MDOT FTA Detail'!$A$171)*(Projects!$K$5:$K$2413)) -> 0 | N73: =O73-M73 -> 0 | O73: =SUMPRODUCT((Projects!$A$5:$A$2413='MDOT FTA Detail'!$M$3)*(Projects!$C$5:$C$2413='MDOT FTA Detail'!$C$4)*(Projects!$L$5:$L$2413='MDOT FTA Detail'!$A73)*(Projects!$J$5:$J$2413<>'MDOT FTA Detail'!$A$171)*(Projects!$Q$5:$Q$2413)) -> 0
A74: SRPG | B74: Safe Routes to School - Either - SAFETEA-LU | C74: MDOT FA | D74: =SUMPRODUCT((Projects!$A$5:$A$2413='MDOT FTA Detail'!$D$3)*(Projects!$C$5:$C$2413='MDOT FTA Detail'!$C$4)*(Projects!$L$5:$L$2413='MDOT FTA Detail'!$A74)*(Projects!$J$5:$J$2413<>'MDOT FTA Detail'!$A$171)*(Projects!$K$5:K$2413)) -> 0 | E74: =F74-D74 -> 0 | F74: =SUMPRODUCT((Projects!$A$5:$A$2413='MDOT FTA Detail'!$D$3)*(Projects!$C$5:$C$2413='MDOT FTA Detail'!$C$4)*(Projects!$L$5:$L$2413='MDOT FTA Detail'!$A74)*(Projects!$J$5:$J$2413<>'MDOT FTA Detail'!$A$171)*(Projects!$Q$5:Q$2413)) -> 0 | G74: =SUMPRODUCT((Projects!$A$5:$A$2413='MDOT FTA Detail'!$G$3)*(Projects!$C$5:$C$2413='MDOT FTA Detail'!$C$4)*(Projects!$L$5:$L$2413='MDOT FTA Detail'!$A74)*(Projects!$J$5:$J$2413<>'MDOT FTA Detail'!$A$171)*(Projects!$K$5:K$2413)) -> 0 | H74: =I74-G74 -> 0 | I74: =SUMPRODUCT((Projects!$A$5:$A$2413='MDOT FTA Detail'!$G$3)*(Projects!$C$5:$C$2413='MDOT FTA Detail'!$C$4)*(Projects!$L$5:$L$2413='MDOT FTA Detail'!$A74)*(Projects!$J$5:$J$2413<>'MDOT FTA Detail'!$A$171)*(Projects!$Q$5:Q$2413)) -> 0 | J74: =SUMPRODUCT((Projects!$A$5:$A$2413='MDOT FTA Detail'!$J$3)*(Projects!$C$5:$C$2413='MDOT FTA Detail'!$C$4)*(Projects!$L$5:$L$2413='MDOT FTA Detail'!$A74)*(Projects!$J$5:$J$2413<>'MDOT FTA Detail'!$A$171)*(Projects!$K$5:$K$2413)) -> 0 | K74: =L74-J74 -> 0 | L74: =SUMPRODUCT((Projects!$A$5:$A$2413='MDOT FTA Detail'!$J$3)*(Projects!$C$5:$C$2413='MDOT FTA Detail'!$C$4)*(Projects!$L$5:$L$2413='MDOT FTA Detail'!$A74)*(Projects!$J$5:$J$2413<>'MDOT FTA Detail'!$A$171)*(Projects!$Q$5:$Q$2413)) -> 0 | M74: =SUMPRODUCT((Projects!$A$5:$A$2413='MDOT FTA Detail'!$M$3)*(Projects!$C$5:$C$2413='MDOT FTA Detail'!$C$4)*(Projects!$L$5:$L$2413='MDOT FTA Detail'!$A74)*(Projects!$J$5:$J$2413<>'MDOT FTA Detail'!$A$171)*(Projects!$K$5:$K$2413)) -> 0 | N74: =O74-M74 -> 0 | O74: =SUMPRODUCT((Projects!$A$5:$A$2413='MDOT FTA Detail'!$M$3)*(Projects!$C$5:$C$2413='MDOT FTA Detail'!$C$4)*(Projects!$L$5:$L$2413='MDOT FTA Detail'!$A74)*(Projects!$J$5:$J$2413<>'MDOT FTA Detail'!$A$171)*(Projects!$Q$5:$Q$2413)) -> 0
A75: SRSI | B75: Safe Routes to School - Infrastructure - SAFETEA-LU | C75: MDOT FA | D75: =SUMPRODUCT((Projects!$A$5:$A$2413='MDOT FTA Detail'!$D$3)*(Projects!$C$5:$C$2413='MDOT FTA Detail'!$C$4)*(Projects!$L$5:$L$2413='MDOT FTA Detail'!$A75)*(Projects!$J$5:$J$2413<>'MDOT FTA Detail'!$A$171)*(Projects!$K$5:K$2413)) -> 0 | E75: =F75-D75 -> 0 | F75: =SUMPRODUCT((Projects!$A$5:$A$2413='MDOT FTA Detail'!$D$3)*(Projects!$C$5:$C$2413='MDOT FTA Detail'!$C$4)*(Projects!$L$5:$L$2413='MDOT FTA Detail'!$A75)*(Projects!$J$5:$J$2413<>'MDOT FTA Detail'!$A$171)*(Projects!$Q$5:Q$2413)) -> 0 | G75: =SUMPRODUCT((Projects!$A$5:$A$2413='MDOT FTA Detail'!$G$3)*(Projects!$C$5:$C$2413='MDOT FTA Detail'!$C$4)*(Projects!$L$5:$L$2413='MDOT FTA Detail'!$A75)*(Projects!$J$5:$J$2413<>'MDOT FTA Detail'!$A$171)*(Projects!$K$5:K$2413)) -> 0 | H75: =I75-G75 -> 0 | I75: =SUMPRODUCT((Projects!$A$5:$A$2413='MDOT FTA Detail'!$G$3)*(Projects!$C$5:$C$2413='MDOT FTA Detail'!$C$4)*(Projects!$L$5:$L$2413='MDOT FTA Detail'!$A75)*(Projects!$J$5:$J$2413<>'MDOT FTA Detail'!$A$171)*(Projects!$Q$5:Q$2413)) -> 0 | J75: =SUMPRODUCT((Projects!$A$5:$A$2413='MDOT FTA Detail'!$J$3)*(Projects!$C$5:$C$2413='MDOT FTA Detail'!$C$4)*(Projects!$L$5:$L$2413='MDOT FTA Detail'!$A75)*(Projects!$J$5:$J$2413<>'MDOT FTA Detail'!$A$171)*(Projects!$K$5:$K$2413)) -> 0 | K75: =L75-J75 -> 0 | L75: =SUMPRODUCT((Projects!$A$5:$A$2413='MDOT FTA Detail'!$J$3)*(Projects!$C$5:$C$2413='MDOT FTA Detail'!$C$4)*(Projects!$L$5:$L$2413='MDOT FTA Detail'!$A75)*(Projects!$J$5:$J$2413<>'MDOT FTA Detail'!$A$171)*(Projects!$Q$5:$Q$2413)) -> 0 | M75: =SUMPRODUCT((Projects!$A$5:$A$2413='MDOT FTA Detail'!$M$3)*(Projects!$C$5:$C$2413='MDOT FTA Detail'!$C$4)*(Projects!$L$5:$L$2413='MDOT FTA Detail'!$A75)*(Projects!$J$5:$J$2413<>'MDOT FTA Detail'!$A$171)*(Projects!$K$5:$K$2413)) -> 0 | N75: =O75-M75 -> 0 | O75: =SUMPRODUCT((Projects!$A$5:$A$2413='MDOT FTA Detail'!$M$3)*(Projects!$C$5:$C$2413='MDOT FTA Detail'!$C$4)*(Projects!$L$5:$L$2413='MDOT FTA Detail'!$A75)*(Projects!$J$5:$J$2413<>'MDOT FTA Detail'!$A$171)*(Projects!$Q$5:$Q$2413)) -> 0
A76: SRSN | B76: Safe Routes to School - Non-infrastructure - SAFETEA-LU | C76: MDOT FA | D76: =SUMPRODUCT((Projects!$A$5:$A$2413='MDOT FTA Detail'!$D$3)*(Projects!$C$5:$C$2413='MDOT FTA Detail'!$C$4)*(Projects!$L$5:$L$2413='MDOT FTA Detail'!$A76)*(Projects!$J$5:$J$2413<>'MDOT FTA Detail'!$A$171)*(Projects!$K$5:K$2413)) -> 0 | E76: 0 | F76: =SUMPRODUCT((Projects!$A$5:$A$2413='MDOT FTA Detail'!$D$3)*(Projects!$C$5:$C$2413='MDOT FTA Detail'!$C$4)*(Projects!$L$5:$L$2413='MDOT FTA Detail'!$A76)*(Projects!$J$5:$J$2413<>'MDOT FTA Detail'!$A$171)*(Projects!$Q$5:Q$2413)) -> 0 | G76: =SUMPRODUCT((Projects!$A$5:$A$2413='MDOT FTA Detail'!$G$3)*(Projects!$C$5:$C$2413='MDOT FTA Detail'!$C$4)*(Projects!$L$5:$L$2413='MDOT FTA Detail'!$A76)*(Projects!$J$5:$J$2413<>'MDOT FTA Detail'!$A$171)*(Projects!$K$5:K$2413)) -> 0 | H76: 0 | I76: =SUMPRODUCT((Projects!$A$5:$A$2413='MDOT FTA Detail'!$G$3)*(Projects!$C$5:$C$2413='MDOT FTA Detail'!$C$4)*(Projects!$L$5:$L$2413='MDOT FTA Detail'!$A76)*(Projects!$J$5:$J$2413<>'MDOT FTA Detail'!$A$171)*(Projects!$Q$5:Q$2413)) -> 0 | J76: =SUMPRODUCT((Projects!$A$5:$A$2413='MDOT FTA Detail'!$J$3)*(Projects!$C$5:$C$2413='MDOT FTA Detail'!$C$4)*(Projects!$L$5:$L$2413='MDOT FTA Detail'!$A76)*(Projects!$J$5:$J$2413<>'MDOT FTA Detail'!$A$171)*(Projects!$K$5:$K$2413)) -> 0 | K76: 0 | L76: =SUMPRODUCT((Projects!$A$5:$A$2413='MDOT FTA Detail'!$J$3)*(Projects!$C$5:$C$2413='MDOT FTA Detail'!$C$4)*(Projects!$L$5:$L$2413='MDOT FTA Detail'!$A76)*(Projects!$J$5:$J$2413<>'MDOT FTA Detail'!$A$171)*(Projects!$Q$5:$Q$2413)) -> 0 | M76: =SUMPRODUCT((Projects!$A$5:$A$2413='MDOT FTA Detail'!$M$3)*(Projects!$C$5:$C$2413='MDOT FTA Detail'!$C$4)*(Projects!$L$5:$L$2413='MDOT FTA Detail'!$A76)*(Projects!$J$5:$J$2413<>'MDOT FTA Detail'!$A$171)*(Projects!$K$5:$K$2413)) -> 0 | N76: 0 | O76: =SUMPRODUCT((Projects!$A$5:$A$2413='MDOT FTA Detail'!$M$3)*(Projects!$C$5:$C$2413='MDOT FTA Detail'!$C$4)*(Projects!$L$5:$L$2413='MDOT FTA Detail'!$A76)*(Projects!$J$5:$J$2413<>'MDOT FTA Detail'!$A$171)*(Projects!$Q$5:$Q$2413)) -> 0
A77: SST | B77: Supportive Services Training | C77: MDOT FA | D77: =SUMPRODUCT((Projects!$A$5:$A$2413='MDOT FTA Detail'!$D$3)*(Projects!$C$5:$C$2413='MDOT FTA Detail'!$C$4)*(Projects!$L$5:$L$2413='MDOT FTA Detail'!$A77)*(Projects!$J$5:$J$2413<>'MDOT FTA Detail'!$A$171)*(Projects!$K$5:K$2413)) -> 0 | E77: 0 | F77: =SUMPRODUCT((Projects!$A$5:$A$2413='MDOT FTA Detail'!$D$3)*(Projects!$C$5:$C$2413='MDOT FTA Detail'!$C$4)*(Projects!$L$5:$L$2413='MDOT FTA Detail'!$A77)*(Projects!$J$5:$J$2413<>'MDOT FTA Detail'!$A$171)*(Projects!$Q$5:Q$2413)) -> 0 | G77: =SUMPRODUCT((Projects!$A$5:$A$2413='MDOT FTA Detail'!$G$3)*(Projects!$C$5:$C$2413='MDOT FTA Detail'!$C$4)*(Projects!$L$5:$L$2413='MDOT FTA Detail'!$A77)*(Projects!$J$5:$J$2413<>'MDOT FTA Detail'!$A$171)*(Projects!$K$5:K$2413)) -> 0 | H77: 0 | I77: =SUMPRODUCT((Projects!$A$5:$A$2413='MDOT FTA Detail'!$G$3)*(Projects!$C$5:$C$2413='MDOT FTA Detail'!$C$4)*(Projects!$L$5:$L$2413='MDOT FTA Detail'!$A77)*(Projects!$J$5:$J$2413<>'MDOT FTA Detail'!$A$171)*(Projects!$Q$5:Q$2413)) -> 0 | J77: =SUMPRODUCT((Projects!$A$5:$A$2413='MDOT FTA Detail'!$J$3)*(Projects!$C$5:$C$2413='MDOT FTA Detail'!$C$4)*(Projects!$L$5:$L$2413='MDOT FTA Detail'!$A77)*(Projects!$J$5:$J$2413<>'MDOT FTA Detail'!$A$171)*(Projects!$K$5:$K$2413)) -> 0 | K77: 0 | L77: =SUMPRODUCT((Projects!$A$5:$A$2413='MDOT FTA Detail'!$J$3)*(Projects!$C$5:$C$2413='MDOT FTA Detail'!$C$4)*(Projects!$L$5:$L$2413='MDOT FTA Detail'!$A77)*(Projects!$J$5:$J$2413<>'MDOT FTA Detail'!$A$171)*(Projects!$Q$5:$Q$2413)) -> 0 | M77: =SUMPRODUCT((Projects!$A$5:$A$2413='MDOT FTA Detail'!$M$3)*(Projects!$C$5:$C$2413='MDOT FTA Detail'!$C$4)*(Projects!$L$5:$L$2413='MDOT FTA Detail'!$A77)*(Projects!$J$5:$J$2413<>'MDOT FTA Detail'!$A$171)*(Projects!$K$5:$K$2413)) -> 0 | N77: 0 | O77: =SUMPRODUCT((Projects!$A$5:$A$2413='MDOT FTA Detail'!$M$3)*(Projects!$C$5:$C$2413='MDOT FTA Detail'!$C$4)*(Projects!$L$5:$L$2413='MDOT FTA Detail'!$A77)*(Projects!$J$5:$J$2413<>'MDOT FTA Detail'!$A$171)*(Projects!$Q$5:$Q$2413)) -> 0
A78: ST | B78: Surface Transportation Program (STP) - Any Area | C78: MDOT FA | D78: =SUMPRODUCT((Projects!$A$5:$A$2413='MDOT FTA Detail'!$D$3)*(Projects!$C$5:$C$2413='MDOT FTA Detail'!$C$4)*(Projects!$L$5:$L$2413='MDOT FTA Detail'!$A78)*(Projects!$J$5:$J$2413<>'MDOT FTA Detail'!$A$171)*(Projects!$K$5:K$2413)) -> 133721.0369 | E78: 29652.0915 | F78: =SUMPRODUCT((Projects!$A$5:$A$2413='MDOT FTA Detail'!$D$3)*(Projects!$C$5:$C$2413='MDOT FTA Detail'!$C$4)*(Projects!$L$5:$L$2413='MDOT FTA Detail'!$A78)*(Projects!$J$5:$J$2413<>'MDOT FTA Detail'!$A$171)*(Projects!$Q$5:Q$2413)) -> 163373.1284 | G78: =SUMPRODUCT((Projects!$A$5:$A$2413='MDOT FTA Detail'!$G$3)*(Projects!$C$5:$C$2413='MDOT FTA Detail'!$C$4)*(Projects!$L$5:$L$2413='MDOT FTA Detail'!$A78)*(Projects!$J$5:$J$2413<>'MDOT FTA Detail'!$A$171)*(Projects!$K$5:K$2413)) -> 1456930 | H78: 302370 | I78: =SUMPRODUCT((Projects!$A$5:$A$2413='MDOT FTA Detail'!$G$3)*(Projects!$C$5:$C$2413='MDOT FTA Detail'!$C$4)*(Projects!$L$5:$L$2413='MDOT FTA Detail'!$A78)*(Projects!$J$5:$J$2413<>'MDOT FTA Detail'!$A$171)*(Projects!$Q$5:Q$2413)) -> 1759300 | J78: =SUMPRODUCT((Projects!$A$5:$A$2413='MDOT FTA Detail'!$J$3)*(Projects!$C$5:$C$2413='MDOT FTA Detail'!$C$4)*(Projects!$L$5:$L$2413='MDOT FTA Detail'!$A78)*(Projects!$J$5:$J$2413<>'MDOT FTA Detail'!$A$171)*(Projects!$K$5:$K$2413)) -> 0 | K78: 0 | L78: =SUMPRODUCT((Projects!$A$5:$A$2413='MDOT FTA Detail'!$J$3)*(Projects!$C$5:$C$2413='MDOT FTA Detail'!$C$4)*(Projects!$L$5:$L$2413='MDOT FTA Detail'!$A78)*(Projects!$J$5:$J$2413<>'MDOT FTA Detail'!$A$171)*(Projects!$Q$5:$Q$2413)) -> 0 | M78: =SUMPRODUCT((Projects!$A$5:$A$2413='MDOT FTA Detail'!$M$3)*(Projects!$C$5:$C$2413='MDOT FTA Detail'!$C$4)*(Projects!$L$5:$L$2413='MDOT FTA Detail'!$A78)*(Projects!$J$5:$J$2413<>'MDOT FTA Detail'!$A$171)*(Projects!$K$5:$K$2413)) -> 0 | N78: 0 | O78: =SUMPRODUCT((Projects!$A$5:$A$2413='MDOT FTA Detail'!$M$3)*(Projects!$C$5:$C$2413='MDOT FTA Detail'!$C$4)*(Projects!$L$5:$L$2413='MDOT FTA Detail'!$A78)*(Projects!$J$5:$J$2413<>'MDOT FTA Detail'!$A$171)*(Projects!$Q$5:$Q$2413)) -> 0
A79: STE | B79: STP - Enhancement | C79: MDOT FA | D79: =SUMPRODUCT((Projects!$A$5:$A$2413='MDOT FTA Detail'!$D$3)*(Projects!$C$5:$C$2413='MDOT FTA Detail'!$C$4)*(Projects!$L$5:$L$2413='MDOT FTA Detail'!$A79)*(Projects!$J$5:$J$2413<>'MDOT FTA Detail'!$A$171)*(Projects!$K$5:K$2413)) -> 0 | E79: 0 | F79: =SUMPRODUCT((Projects!$A$5:$A$2413='MDOT FTA Detail'!$D$3)*(Projects!$C$5:$C$2413='MDOT FTA Detail'!$C$4)*(Projects!$L$5:$L$2413='MDOT FTA Detail'!$A79)*(Projects!$J$5:$J$2413<>'MDOT FTA Detail'!$A$171)*(Projects!$Q$5:Q$2413)) -> 0 | G79: =SUMPRODUCT((Projects!$A$5:$A$2413='MDOT FTA Detail'!$G$3)*(Projects!$C$5:$C$2413='MDOT FTA Detail'!$C$4)*(Projects!$L$5:$L$2413='MDOT FTA Detail'!$A79)*(Projects!$J$5:$J$2413<>'MDOT FTA Detail'!$A$171)*(Projects!$K$5:K$2413)) -> 0 | H79: 0 | I79: =SUMPRODUCT((Projects!$A$5:$A$2413='MDOT FTA Detail'!$G$3)*(Projects!$C$5:$C$2413='MDOT FTA Detail'!$C$4)*(Projects!$L$5:$L$2413='MDOT FTA Detail'!$A79)*(Projects!$J$5:$J$2413<>'MDOT FTA Detail'!$A$171)*(Projects!$Q$5:Q$2413)) -> 0 | J79: =SUMPRODUCT((Projects!$A$5:$A$2413='MDOT FTA Detail'!$J$3)*(Projects!$C$5:$C$2413='MDOT FTA Detail'!$C$4)*(Projects!$L$5:$L$2413='MDOT FTA Detail'!$A79)*(Projects!$J$5:$J$2413<>'MDOT FTA Detail'!$A$171)*(Projects!$K$5:$K$2413)) -> 0 | K79: 0 | L79: =SUMPRODUCT((Projects!$A$5:$A$2413='MDOT FTA Detail'!$J$3)*(Projects!$C$5:$C$2413='MDOT FTA Detail'!$C$4)*(Projects!$L$5:$L$2413='MDOT FTA Detail'!$A79)*(Projects!$J$5:$J$2413<>'MDOT FTA Detail'!$A$171)*(Projects!$Q$5:$Q$2413)) -> 0 | M79: =SUMPRODUCT((Projects!$A$5:$A$2413='MDOT FTA Detail'!$M$3)*(Projects!$C$5:$C$2413='MDOT FTA Detail'!$C$4)*(Projects!$L$5:$L$2413='MDOT FTA Detail'!$A79)*(Projects!$J$5:$J$2413<>'MDOT FTA Detail'!$A$171)*(Projects!$K$5:$K$2413)) -> 0 | N79: 0 | O79: =SUMPRODUCT((Projects!$A$5:$A$2413='MDOT FTA Detail'!$M$3)*(Projects!$C$5:$C$2413='MDOT FTA Detail'!$C$4)*(Projects!$L$5:$L$2413='MDOT FTA Detail'!$A79)*(Projects!$J$5:$J$2413<>'MDOT FTA Detail'!$A$171)*(Projects!$Q$5:$Q$2413)) -> 0
A80: STG | B80: STP - Safety - 100% Federal for ST | C80: MDOT FA | D80: =SUMPRODUCT((Projects!$A$5:$A$2413='MDOT FTA Detail'!$D$3)*(Projects!$C$5:$C$2413='MDOT FTA Detail'!$C$4)*(Projects!$L$5:$L$2413='MDOT FTA Detail'!$A80)*(Projects!$J$5:$J$2413<>'MDOT FTA Detail'!$A$171)*(Projects!$K$5:K$2413)) -> 133000 | E80: 0 | F80: =SUMPRODUCT((Projects!$A$5:$A$2413='MDOT FTA Detail'!$D$3)*(Projects!$C$5:$C$2413='MDOT FTA Detail'!$C$4)*(Projects!$L$5:$L$2413='MDOT FTA Detail'!$A80)*(Projects!$J$5:$J$2413<>'MDOT FTA Detail'!$A$171)*(Projects!$Q$5:Q$2413)) -> 133000 | G80: =SUMPRODUCT((Projects!$A$5:$A$2413='MDOT FTA Detail'!$G$3)*(Projects!$C$5:$C$2413='MDOT FTA Detail'!$C$4)*(Projects!$L$5:$L$2413='MDOT FTA Detail'!$A80)*(Projects!$J$5:$J$2413<>'MDOT FTA Detail'!$A$171)*(Projects!$K$5:K$2413)) -> 0 | H80: 0 | I80: =SUMPRODUCT((Projects!$A$5:$A$2413='MDOT FTA Detail'!$G$3)*(Projects!$C$5:$C$2413='MDOT FTA Detail'!$C$4)*(Projects!$L$5:$L$2413='MDOT FTA Detail'!$A80)*(Projects!$J$5:$J$2413<>'MDOT FTA Detail'!$A$171)*(Projects!$Q$5:Q$2413)) -> 0 | J80: =SUMPRODUCT((Projects!$A$5:$A$2413='MDOT FTA Detail'!$J$3)*(Projects!$C$5:$C$2413='MDOT FTA Detail'!$C$4)*(Projects!$L$5:$L$2413='MDOT FTA Detail'!$A80)*(Projects!$J$5:$J$2413<>'MDOT FTA Detail'!$A$171)*(Projects!$K$5:$K$2413)) -> 0 | K80: 0 | L80: =SUMPRODUCT((Projects!$A$5:$A$2413='MDOT FTA Detail'!$J$3)*(Projects!$C$5:$C$2413='MDOT FTA Detail'!$C$4)*(Projects!$L$5:$L$2413='MDOT FTA Detail'!$A80)*(Projects!$J$5:$J$2413<>'MDOT FTA Detail'!$A$171)*(Projects!$Q$5:$Q$2413)) -> 0 | M80: =SUMPRODUCT((Projects!$A$5:$A$2413='MDOT FTA Detail'!$M$3)*(Projects!$C$5:$C$2413='MDOT FTA Detail'!$C$4)*(Projects!$L$5:$L$2413='MDOT FTA Detail'!$A80)*(Projects!$J$5:$J$2413<>'MDOT FTA Detail'!$A$171)*(Projects!$K$5:$K$2413)) -> 0 | N80: 0 | O80: =SUMPRODUCT((Projects!$A$5:$A$2413='MDOT FTA Detail'!$M$3)*(Projects!$C$5:$C$2413='MDOT FTA Detail'!$C$4)*(Projects!$L$5:$L$2413='MDOT FTA Detail'!$A80)*(Projects!$J$5:$J$2413<>'MDOT FTA Detail'!$A$171)*(Projects!$Q$5:$Q$2413)) -> 0
A81: STH | B81: STP - Safety - Hazard Elimination | C81: MDOT FA | D81: =SUMPRODUCT((Projects!$A$5:$A$2413='MDOT FTA Detail'!$D$3)*(Projects!$C$5:$C$2413='MDOT FTA Detail'!$C$4)*(Projects!$L$5:$L$2413='MDOT FTA Detail'!$A81)*(Projects!$J$5:$J$2413<>'MDOT FTA Detail'!$A$171)*(Projects!$K$5:K$2413)) -> 0 | E81: 0 | F81: =SUMPRODUCT((Projects!$A$5:$A$2413='MDOT FTA Detail'!$D$3)*(Projects!$C$5:$C$2413='MDOT FTA Detail'!$C$4)*(Projects!$L$5:$L$2413='MDOT FTA Detail'!$A81)*(Projects!$J$5:$J$2413<>'MDOT FTA Detail'!$A$171)*(Projects!$Q$5:Q$2413)) -> 0 | G81: =SUMPRODUCT((Projects!$A$5:$A$2413='MDOT FTA Detail'!$G$3)*(Projects!$C$5:$C$2413='MDOT FTA Detail'!$C$4)*(Projects!$L$5:$L$2413='MDOT FTA Detail'!$A81)*(Projects!$J$5:$J$2413<>'MDOT FTA Detail'!$A$171)*(Projects!$K$5:K$2413)) -> 0 | H81: 0 | I81: =SUMPRODUCT((Projects!$A$5:$A$2413='MDOT FTA Detail'!$G$3)*(Projects!$C$5:$C$2413='MDOT FTA Detail'!$C$4)*(Projects!$L$5:$L$2413='MDOT FTA Detail'!$A81)*(Projects!$J$5:$J$2413<>'MDOT FTA Detail'!$A$171)*(Projects!$Q$5:Q$2413)) -> 0 | J81: =SUMPRODUCT((Projects!$A$5:$A$2413='MDOT FTA Detail'!$J$3)*(Projects!$C$5:$C$2413='MDOT FTA Detail'!$C$4)*(Projects!$L$5:$L$2413='MDOT FTA Detail'!$A81)*(Projects!$J$5:$J$2413<>'MDOT FTA Detail'!$A$171)*(Projects!$K$5:$K$2413)) -> 0 | K81: 0 | L81: =SUMPRODUCT((Projects!$A$5:$A$2413='MDOT FTA Detail'!$J$3)*(Projects!$C$5:$C$2413='MDOT FTA Detail'!$C$4)*(Projects!$L$5:$L$2413='MDOT FTA Detail'!$A81)*(Projects!$J$5:$J$2413<>'MDOT FTA Detail'!$A$171)*(Projects!$Q$5:$Q$2413)) -> 0 | M81: =SUMPRODUCT((Projects!$A$5:$A$2413='MDOT FTA Detail'!$M$3)*(Projects!$C$5:$C$2413='MDOT FTA Detail'!$C$4)*(Projects!$L$5:$L$2413='MDOT FTA Detail'!$A81)*(Projects!$J$5:$J$2413<>'MDOT FTA Detail'!$A$171)*(Projects!$K$5:$K$2413)) -> 0 | N81: 0 | O81: =SUMPRODUCT((Projects!$A$5:$A$2413='MDOT FTA Detail'!$M$3)*(Projects!$C$5:$C$2413='MDOT FTA Detail'!$C$4)*(Projects!$L$5:$L$2413='MDOT FTA Detail'!$A81)*(Projects!$J$5:$J$2413<>'MDOT FTA Detail'!$A$171)*(Projects!$Q$5:$Q$2413)) -> 0
A82: STI | B82: STP - Interstate (90%) | C82: MDOT FA | D82: =SUMPRODUCT((Projects!$A$5:$A$2413='MDOT FTA Detail'!$D$3)*(Projects!$C$5:$C$2413='MDOT FTA Detail'!$C$4)*(Projects!$L$5:$L$2413='MDOT FTA Detail'!$A82)*(Projects!$J$5:$J$2413<>'MDOT FTA Detail'!$A$171)*(Projects!$K$5:K$2413)) -> 0 | E82: 0 | F82: =SUMPRODUCT((Projects!$A$5:$A$2413='MDOT FTA Detail'!$D$3)*(Projects!$C$5:$C$2413='MDOT FTA Detail'!$C$4)*(Projects!$L$5:$L$2413='MDOT FTA Detail'!$A82)*(Projects!$J$5:$J$2413<>'MDOT FTA Detail'!$A$171)*(Projects!$Q$5:Q$2413)) -> 0 | G82: =SUMPRODUCT((Projects!$A$5:$A$2413='MDOT FTA Detail'!$G$3)*(Projects!$C$5:$C$2413='MDOT FTA Detail'!$C$4)*(Projects!$L$5:$L$2413='MDOT FTA Detail'!$A82)*(Projects!$J$5:$J$2413<>'MDOT FTA Detail'!$A$171)*(Projects!$K$5:K$2413)) -> 0 | H82: 0 | I82: =SUMPRODUCT((Projects!$A$5:$A$2413='MDOT FTA Detail'!$G$3)*(Projects!$C$5:$C$2413='MDOT FTA Detail'!$C$4)*(Projects!$L$5:$L$2413='MDOT FTA Detail'!$A82)*(Projects!$J$5:$J$2413<>'MDOT FTA Detail'!$A$171)*(Projects!$Q$5:Q$2413)) -> 0 | J82: =SUMPRODUCT((Projects!$A$5:$A$2413='MDOT FTA Detail'!$J$3)*(Projects!$C$5:$C$2413='MDOT FTA Detail'!$C$4)*(Projects!$L$5:$L$2413='MDOT FTA Detail'!$A82)*(Projects!$J$5:$J$2413<>'MDOT FTA Detail'!$A$171)*(Projects!$K$5:$K$2413)) -> 0 | K82: 0 | L82: =SUMPRODUCT((Projects!$A$5:$A$2413='MDOT FTA Detail'!$J$3)*(Projects!$C$5:$C$2413='MDOT FTA Detail'!$C$4)*(Projects!$L$5:$L$2413='MDOT FTA Detail'!$A82)*(Projects!$J$5:$J$2413<>'MDOT FTA Detail'!$A$171)*(Projects!$Q$5:$Q$2413)) -> 0 | M82: =SUMPRODUCT((Projects!$A$5:$A$2413='MDOT FTA Detail'!$M$3)*(Projects!$C$5:$C$2413='MDOT FTA Detail'!$C$4)*(Projects!$L$5:$L$2413='MDOT FTA Detail'!$A82)*(Projects!$J$5:$J$2413<>'MDOT FTA Detail'!$A$171)*(Projects!$K$5:$K$2413)) -> 0 | N82: 0 | O82: =SUMPRODUCT((Projects!$A$5:$A$2413='MDOT FTA Detail'!$M$3)*(Projects!$C$5:$C$2413='MDOT FTA Detail'!$C$4)*(Projects!$L$5:$L$2413='MDOT FTA Detail'!$A82)*(Projects!$J$5:$J$2413<>'MDOT FTA Detail'!$A$171)*(Projects!$Q$5:$Q$2413)) -> 0
A83: STL | B83: STP - Local | C83: MDOT FA | D83: =SUMPRODUCT((Projects!$A$5:$A$2413='MDOT FTA Detail'!$D$3)*(Projects!$C$5:$C$2413='MDOT FTA Detail'!$C$4)*(Projects!$L$5:$L$2413='MDOT FTA Detail'!$A83)*(Projects!$J$5:$J$2413<>'MDOT FTA Detail'!$A$171)*(Projects!$K$5:K$2413)) -> 16370 | E83: 3630 | F83: =SUMPRODUCT((Projects!$A$5:$A$2413='MDOT FTA Detail'!$D$3)*(Projects!$C$5:$C$2413='MDOT FTA Detail'!$C$4)*(Projects!$L$5:$L$2413='MDOT FTA Detail'!$A83)*(Projects!$J$5:$J$2413<>'MDOT FTA Detail'!$A$171)*(Projects!$Q$5:Q$2413)) -> 20000 | G83: =SUMPRODUCT((Projects!$A$5:$A$2413='MDOT FTA Detail'!$G$3)*(Projects!$C$5:$C$2413='MDOT FTA Detail'!$C$4)*(Projects!$L$5:$L$2413='MDOT FTA Detail'!$A83)*(Projects!$J$5:$J$2413<>'MDOT FTA Detail'!$A$171)*(Projects!$K$5:K$2413)) -> 0 | H83: 0 | I83: =SUMPRODUCT((Projects!$A$5:$A$2413='MDOT FTA Detail'!$G$3)*(Projects!$C$5:$C$2413='MDOT FTA Detail'!$C$4)*(Projects!$L$5:$L$2413='MDOT FTA Detail'!$A83)*(Projects!$J$5:$J$2413<>'MDOT FTA Detail'!$A$171)*(Projects!$Q$5:Q$2413)) -> 0 | J83: =SUMPRODUCT((Projects!$A$5:$A$2413='MDOT FTA Detail'!$J$3)*(Projects!$C$5:$C$2413='MDOT FTA Detail'!$C$4)*(Projects!$L$5:$L$2413='MDOT FTA Detail'!$A83)*(Projects!$J$5:$J$2413<>'MDOT FTA Detail'!$A$171)*(Projects!$K$5:$K$2413)) -> 0 | K83: 0 | L83: =SUMPRODUCT((Projects!$A$5:$A$2413='MDOT FTA Detail'!$J$3)*(Projects!$C$5:$C$2413='MDOT FTA Detail'!$C$4)*(Projects!$L$5:$L$2413='MDOT FTA Detail'!$A83)*(Projects!$J$5:$J$2413<>'MDOT FTA Detail'!$A$171)*(Projects!$Q$5:$Q$2413)) -> 0 | M83: =SUMPRODUCT((Projects!$A$5:$A$2413='MDOT FTA Detail'!$M$3)*(Projects!$C$5:$C$2413='MDOT FTA Detail'!$C$4)*(Projects!$L$5:$L$2413='MDOT FTA Detail'!$A83)*(Projects!$J$5:$J$2413<>'MDOT FTA Detail'!$A$171)*(Projects!$K$5:$K$2413)) -> 0 | N83: 0 | O83: =SUMPRODUCT((Projects!$A$5:$A$2413='MDOT FTA Detail'!$M$3)*(Projects!$C$5:$C$2413='MDOT FTA Detail'!$C$4)*(Projects!$L$5:$L$2413='MDOT FTA Detail'!$A83)*(Projects!$J$5:$J$2413<>'MDOT FTA Detail'!$A$171)*(Projects!$Q$5:$Q$2413)) -> 0
A84: STLG | B84: Surface Transportation Safety 100% Federal for STL Items | C84: MDOT FA | D84: =SUMPRODUCT((Projects!$A$5:$A$2413='MDOT FTA Detail'!$D$3)*(Projects!$C$5:$C$2413='MDOT FTA Detail'!$C$4)*(Projects!$L$5:$L$2413='MDOT FTA Detail'!$A84)*(Projects!$J$5:$J$2413<>'MDOT FTA Detail'!$A$171)*(Projects!$K$5:K$2413)) -> 0 | E84: =F84-D84 -> 0 | F84: =SUMPRODUCT((Projects!$A$5:$A$2413='MDOT FTA Detail'!$D$3)*(Projects!$C$5:$C$2413='MDOT FTA Detail'!$C$4)*(Projects!$L$5:$L$2413='MDOT FTA Detail'!$A84)*(Projects!$J$5:$J$2413<>'MDOT FTA Detail'!$A$171)*(Projects!$Q$5:Q$2413)) -> 0 | G84: =SUMPRODUCT((Projects!$A$5:$A$2413='MDOT FTA Detail'!$G$3)*(Projects!$C$5:$C$2413='MDOT FTA Detail'!$C$4)*(Projects!$L$5:$L$2413='MDOT FTA Detail'!$A84)*(Projects!$J$5:$J$2413<>'MDOT FTA Detail'!$A$171)*(Projects!$K$5:K$2413)) -> 0 | H84: =I84-G84 -> 0 | I84: =SUMPRODUCT((Projects!$A$5:$A$2413='MDOT FTA Detail'!$G$3)*(Projects!$C$5:$C$2413='MDOT FTA Detail'!$C$4)*(Projects!$L$5:$L$2413='MDOT FTA Detail'!$A84)*(Projects!$J$5:$J$2413<>'MDOT FTA Detail'!$A$171)*(Projects!$Q$5:Q$2413)) -> 0 | J84: =SUMPRODUCT((Projects!$A$5:$A$2413='MDOT FTA Detail'!$J$3)*(Projects!$C$5:$C$2413='MDOT FTA Detail'!$C$4)*(Projects!$L$5:$L$2413='MDOT FTA Detail'!$A84)*(Projects!$J$5:$J$2413<>'MDOT FTA Detail'!$A$171)*(Projects!$K$5:$K$2413)) -> 0 | K84: =L84-J84 -> 0 | L84: =SUMPRODUCT((Projects!$A$5:$A$2413='MDOT FTA Detail'!$J$3)*(Projects!$C$5:$C$2413='MDOT FTA Detail'!$C$4)*(Projects!$L$5:$L$2413='MDOT FTA Detail'!$A84)*(Projects!$J$5:$J$2413<>'MDOT FTA Detail'!$A$171)*(Projects!$Q$5:$Q$2413)) -> 0 | M84: =SUMPRODUCT((Projects!$A$5:$A$2413='MDOT FTA Detail'!$M$3)*(Projects!$C$5:$C$2413='MDOT FTA Detail'!$C$4)*(Projects!$L$5:$L$2413='MDOT FTA Detail'!$A84)*(Projects!$J$5:$J$2413<>'MDOT FTA Detail'!$A$171)*(Projects!$K$5:$K$2413)) -> 0 | N84: =O84-M84 -> 0 | O84: =SUMPRODUCT((Projects!$A$5:$A$2413='MDOT FTA Detail'!$M$3)*(Projects!$C$5:$C$2413='MDOT FTA Detail'!$C$4)*(Projects!$L$5:$L$2413='MDOT FTA Detail'!$A84)*(Projects!$J$5:$J$2413<>'MDOT FTA Detail'!$A$171)*(Projects!$Q$5:$Q$2413)) -> 0
A85: STR | B85: STP - Safety - Rail-Highway Crossing Protection | C85: MDOT FA | D85: =SUMPRODUCT((Projects!$A$5:$A$2413='MDOT FTA Detail'!$D$3)*(Projects!$C$5:$C$2413='MDOT FTA Detail'!$C$4)*(Projects!$L$5:$L$2413='MDOT FTA Detail'!$A85)*(Projects!$J$5:$J$2413<>'MDOT FTA Detail'!$A$171)*(Projects!$K$5:K$2413)) -> 0 | E85: 0 | F85: =SUMPRODUCT((Projects!$A$5:$A$2413='MDOT FTA Detail'!$D$3)*(Projects!$C$5:$C$2413='MDOT FTA Detail'!$C$4)*(Projects!$L$5:$L$2413='MDOT FTA Detail'!$A85)*(Projects!$J$5:$J$2413<>'MDOT FTA Detail'!$A$171)*(Projects!$Q$5:Q$2413)) -> 0 | G85: =SUMPRODUCT((Projects!$A$5:$A$2413='MDOT FTA Detail'!$G$3)*(Projects!$C$5:$C$2413='MDOT FTA Detail'!$C$4)*(Projects!$L$5:$L$2413='MDOT FTA Detail'!$A85)*(Projects!$J$5:$J$2413<>'MDOT FTA Detail'!$A$171)*(Projects!$K$5:K$2413)) -> 0 | H85: 0 | I85: =SUMPRODUCT((Projects!$A$5:$A$2413='MDOT FTA Detail'!$G$3)*(Projects!$C$5:$C$2413='MDOT FTA Detail'!$C$4)*(Projects!$L$5:$L$2413='MDOT FTA Detail'!$A85)*(Projects!$J$5:$J$2413<>'MDOT FTA Detail'!$A$171)*(Projects!$Q$5:Q$2413)) -> 0 | J85: =SUMPRODUCT((Projects!$A$5:$A$2413='MDOT FTA Detail'!$J$3)*(Projects!$C$5:$C$2413='MDOT FTA Detail'!$C$4)*(Projects!$L$5:$L$2413='MDOT FTA Detail'!$A85)*(Projects!$J$5:$J$2413<>'MDOT FTA Detail'!$A$171)*(Projects!$K$5:$K$2413)) -> 0 | K85: 0 | L85: =SUMPRODUCT((Projects!$A$5:$A$2413='MDOT FTA Detail'!$J$3)*(Projects!$C$5:$C$2413='MDOT FTA Detail'!$C$4)*(Projects!$L$5:$L$2413='MDOT FTA Detail'!$A85)*(Projects!$J$5:$J$2413<>'MDOT FTA Detail'!$A$171)*(Projects!$Q$5:$Q$2413)) -> 0 | M85: =SUMPRODUCT((Projects!$A$5:$A$2413='MDOT FTA Detail'!$M$3)*(Projects!$C$5:$C$2413='MDOT FTA Detail'!$C$4)*(Projects!$L$5:$L$2413='MDOT FTA Detail'!$A85)*(Projects!$J$5:$J$2413<>'MDOT FTA Detail'!$A$171)*(Projects!$K$5:$K$2413)) -> 0 | N85: 0 | O85: =SUMPRODUCT((Projects!$A$5:$A$2413='MDOT FTA Detail'!$M$3)*(Projects!$C$5:$C$2413='MDOT FTA Detail'!$C$4)*(Projects!$L$5:$L$2413='MDOT FTA Detail'!$A85)*(Projects!$J$5:$J$2413<>'MDOT FTA Detail'!$A$171)*(Projects!$Q$5:$Q$2413)) -> 0
A86: STRG | B86: STP - Safety Rail-Highway & Incentive Payment - 100% Federal | C86: MDOT FA | D86: =SUMPRODUCT((Projects!$A$5:$A$2413='MDOT FTA Detail'!$D$3)*(Projects!$C$5:$C$2413='MDOT FTA Detail'!$C$4)*(Projects!$L$5:$L$2413='MDOT FTA Detail'!$A86)*(Projects!$J$5:$J$2413<>'MDOT FTA Detail'!$A$171)*(Projects!$K$5:K$2413)) -> 0 | E86: 0 | F86: =SUMPRODUCT((Projects!$A$5:$A$2413='MDOT FTA Detail'!$D$3)*(Projects!$C$5:$C$2413='MDOT FTA Detail'!$C$4)*(Projects!$L$5:$L$2413='MDOT FTA Detail'!$A86)*(Projects!$J$5:$J$2413<>'MDOT FTA Detail'!$A$171)*(Projects!$Q$5:Q$2413)) -> 0 | G86: =SUMPRODUCT((Projects!$A$5:$A$2413='MDOT FTA Detail'!$G$3)*(Projects!$C$5:$C$2413='MDOT FTA Detail'!$C$4)*(Projects!$L$5:$L$2413='MDOT FTA Detail'!$A86)*(Projects!$J$5:$J$2413<>'MDOT FTA Detail'!$A$171)*(Projects!$K$5:K$2413)) -> 0 | H86: 0 | I86: =SUMPRODUCT((Projects!$A$5:$A$2413='MDOT FTA Detail'!$G$3)*(Projects!$C$5:$C$2413='MDOT FTA Detail'!$C$4)*(Projects!$L$5:$L$2413='MDOT FTA Detail'!$A86)*(Projects!$J$5:$J$2413<>'MDOT FTA Detail'!$A$171)*(Projects!$Q$5:Q$2413)) -> 0 | J86: =SUMPRODUCT((Projects!$A$5:$A$2413='MDOT FTA Detail'!$J$3)*(Projects!$C$5:$C$2413='MDOT FTA Detail'!$C$4)*(Projects!$L$5:$L$2413='MDOT FTA Detail'!$A86)*(Projects!$J$5:$J$2413<>'MDOT FTA Detail'!$A$171)*(Projects!$K$5:$K$2413)) -> 0 | K86: 0 | L86: =SUMPRODUCT((Projects!$A$5:$A$2413='MDOT FTA Detail'!$J$3)*(Projects!$C$5:$C$2413='MDOT FTA Detail'!$C$4)*(Projects!$L$5:$L$2413='MDOT FTA Detail'!$A86)*(Projects!$J$5:$J$2413<>'MDOT FTA Detail'!$A$171)*(Projects!$Q$5:$Q$2413)) -> 0 | M86: =SUMPRODUCT((Projects!$A$5:$A$2413='MDOT FTA Detail'!$M$3)*(Projects!$C$5:$C$2413='MDOT FTA Detail'!$C$4)*(Projects!$L$5:$L$2413='MDOT FTA Detail'!$A86)*(Projects!$J$5:$J$2413<>'MDOT FTA Detail'!$A$171)*(Projects!$K$5:$K$2413)) -> 0 | N86: 0 | O86: =SUMPRODUCT((Projects!$A$5:$A$2413='MDOT FTA Detail'!$M$3)*(Projects!$C$5:$C$2413='MDOT FTA Detail'!$C$4)*(Projects!$L$5:$L$2413='MDOT FTA Detail'!$A86)*(Projects!$J$5:$J$2413<>'MDOT FTA Detail'!$A$171)*(Projects!$Q$5:$Q$2413)) -> 0
A87: STRH | B87: Surface Transportation Safety Highway Crossing Hazard Elimination | C87: MDOT FA | D87: =SUMPRODUCT((Projects!$A$5:$A$2413='MDOT FTA Detail'!$D$3)*(Projects!$C$5:$C$2413='MDOT FTA Detail'!$C$4)*(Projects!$L$5:$L$2413='MDOT FTA Detail'!$A87)*(Projects!$J$5:$J$2413<>'MDOT FTA Detail'!$A$171)*(Projects!$K$5:K$2413)) -> 0 | E87: =F87-D87 -> 0 | F87: =SUMPRODUCT((Projects!$A$5:$A$2413='MDOT FTA Detail'!$D$3)*(Projects!$C$5:$C$2413='MDOT FTA Detail'!$C$4)*(Projects!$L$5:$L$2413='MDOT FTA Detail'!$A87)*(Projects!$J$5:$J$2413<>'MDOT FTA Detail'!$A$171)*(Projects!$Q$5:Q$2413)) -> 0 | G87: =SUMPRODUCT((Projects!$A$5:$A$2413='MDOT FTA Detail'!$G$3)*(Projects!$C$5:$C$2413='MDOT FTA Detail'!$C$4)*(Projects!$L$5:$L$2413='MDOT FTA Detail'!$A87)*(Projects!$J$5:$J$2413<>'MDOT FTA Detail'!$A$171)*(Projects!$K$5:K$2413)) -> 0 | H87: =I87-G87 -> 0 | I87: =SUMPRODUCT((Projects!$A$5:$A$2413='MDOT FTA Detail'!$G$3)*(Projects!$C$5:$C$2413='MDOT FTA Detail'!$C$4)*(Projects!$L$5:$L$2413='MDOT FTA Detail'!$A87)*(Projects!$J$5:$J$2413<>'MDOT FTA Detail'!$A$171)*(Projects!$Q$5:Q$2413)) -> 0 | J87: =SUMPRODUCT((Projects!$A$5:$A$2413='MDOT FTA Detail'!$J$3)*(Projects!$C$5:$C$2413='MDOT FTA Detail'!$C$4)*(Projects!$L$5:$L$2413='MDOT FTA Detail'!$A87)*(Projects!$J$5:$J$2413<>'MDOT FTA Detail'!$A$171)*(Projects!$K$5:$K$2413)) -> 0 | K87: =L87-J87 -> 0 | L87: =SUMPRODUCT((Projects!$A$5:$A$2413='MDOT FTA Detail'!$J$3)*(Projects!$C$5:$C$2413='MDOT FTA Detail'!$C$4)*(Projects!$L$5:$L$2413='MDOT FTA Detail'!$A87)*(Projects!$J$5:$J$2413<>'MDOT FTA Detail'!$A$171)*(Projects!$Q$5:$Q$2413)) -> 0 | M87: =SUMPRODUCT((Projects!$A$5:$A$2413='MDOT FTA Detail'!$M$3)*(Projects!$C$5:$C$2413='MDOT FTA Detail'!$C$4)*(Projects!$L$5:$L$2413='MDOT FTA Detail'!$A87)*(Projects!$J$5:$J$2413<>'MDOT FTA Detail'!$A$171)*(Projects!$K$5:$K$2413)) -> 0 | N87: =O87-M87 -> 0 | O87: =SUMPRODUCT((Projects!$A$5:$A$2413='MDOT FTA Detail'!$M$3)*(Projects!$C$5:$C$2413='MDOT FTA Detail'!$C$4)*(Projects!$L$5:$L$2413='MDOT FTA Detail'!$A87)*(Projects!$J$5:$J$2413<>'MDOT FTA Detail'!$A$171)*(Projects!$Q$5:$Q$2413)) -> 0
A88: STRP | B88: Surface Transportation Safety Highway Crossing Protection Devices | C88: MDOT FA | D88: =SUMPRODUCT((Projects!$A$5:$A$2413='MDOT FTA Detail'!$D$3)*(Projects!$C$5:$C$2413='MDOT FTA Detail'!$C$4)*(Projects!$L$5:$L$2413='MDOT FTA Detail'!$A88)*(Projects!$J$5:$J$2413<>'MDOT FTA Detail'!$A$171)*(Projects!$K$5:K$2413)) -> 0 | E88: =F88-D88 -> 0 | F88: =SUMPRODUCT((Projects!$A$5:$A$2413='MDOT FTA Detail'!$D$3)*(Projects!$C$5:$C$2413='MDOT FTA Detail'!$C$4)*(Projects!$L$5:$L$2413='MDOT FTA Detail'!$A88)*(Projects!$J$5:$J$2413<>'MDOT FTA Detail'!$A$171)*(Projects!$Q$5:Q$2413)) -> 0 | G88: =SUMPRODUCT((Projects!$A$5:$A$2413='MDOT FTA Detail'!$G$3)*(Projects!$C$5:$C$2413='MDOT FTA Detail'!$C$4)*(Projects!$L$5:$L$2413='MDOT FTA Detail'!$A88)*(Projects!$J$5:$J$2413<>'MDOT FTA Detail'!$A$171)*(Projects!$K$5:K$2413)) -> 0 | H88: =I88-G88 -> 0 | I88: =SUMPRODUCT((Projects!$A$5:$A$2413='MDOT FTA Detail'!$G$3)*(Projects!$C$5:$C$2413='MDOT FTA Detail'!$C$4)*(Projects!$L$5:$L$2413='MDOT FTA Detail'!$A88)*(Projects!$J$5:$J$2413<>'MDOT FTA Detail'!$A$171)*(Projects!$Q$5:Q$2413)) -> 0 | J88: =SUMPRODUCT((Projects!$A$5:$A$2413='MDOT FTA Detail'!$J$3)*(Projects!$C$5:$C$2413='MDOT FTA Detail'!$C$4)*(Projects!$L$5:$L$2413='MDOT FTA Detail'!$A88)*(Projects!$J$5:$J$2413<>'MDOT FTA Detail'!$A$171)*(Projects!$K$5:$K$2413)) -> 0 | K88: =L88-J88 -> 0 | L88: =SUMPRODUCT((Projects!$A$5:$A$2413='MDOT FTA Detail'!$J$3)*(Projects!$C$5:$C$2413='MDOT FTA Detail'!$C$4)*(Projects!$L$5:$L$2413='MDOT FTA Detail'!$A88)*(Projects!$J$5:$J$2413<>'MDOT FTA Detail'!$A$171)*(Projects!$Q$5:$Q$2413)) -> 0 | M88: =SUMPRODUCT((Projects!$A$5:$A$2413='MDOT FTA Detail'!$M$3)*(Projects!$C$5:$C$2413='MDOT FTA Detail'!$C$4)*(Projects!$L$5:$L$2413='MDOT FTA Detail'!$A88)*(Projects!$J$5:$J$2413<>'MDOT FTA Detail'!$A$171)*(Projects!$K$5:$K$2413)) -> 0 | N88: =O88-M88 -> 0 | O88: =SUMPRODUCT((Projects!$A$5:$A$2413='MDOT FTA Detail'!$M$3)*(Projects!$C$5:$C$2413='MDOT FTA Detail'!$C$4)*(Projects!$L$5:$L$2413='MDOT FTA Detail'!$A88)*(Projects!$J$5:$J$2413<>'MDOT FTA Detail'!$A$171)*(Projects!$Q$5:$Q$2413)) -> 0
A89: STS | B89: STP - Any Area- MDOT Safety Program | C89: MDOT FA | D89: =SUMPRODUCT((Projects!$A$5:$A$2413='MDOT FTA Detail'!$D$3)*(Projects!$C$5:$C$2413='MDOT FTA Detail'!$C$4)*(Projects!$L$5:$L$2413='MDOT FTA Detail'!$A89)*(Projects!$J$5:$J$2413<>'MDOT FTA Detail'!$A$171)*(Projects!$K$5:K$2413)) -> 0 | E89: 0 | F89: =SUMPRODUCT((Projects!$A$5:$A$2413='MDOT FTA Detail'!$D$3)*(Projects!$C$5:$C$2413='MDOT FTA Detail'!$C$4)*(Projects!$L$5:$L$2413='MDOT FTA Detail'!$A89)*(Projects!$J$5:$J$2413<>'MDOT FTA Detail'!$A$171)*(Projects!$Q$5:Q$2413)) -> 0 | G89: =SUMPRODUCT((Projects!$A$5:$A$2413='MDOT FTA Detail'!$G$3)*(Projects!$C$5:$C$2413='MDOT FTA Detail'!$C$4)*(Projects!$L$5:$L$2413='MDOT FTA Detail'!$A89)*(Projects!$J$5:$J$2413<>'MDOT FTA Detail'!$A$171)*(Projects!$K$5:K$2413)) -> 0 | H89: 0 | I89: =SUMPRODUCT((Projects!$A$5:$A$2413='MDOT FTA Detail'!$G$3)*(Projects!$C$5:$C$2413='MDOT FTA Detail'!$C$4)*(Projects!$L$5:$L$2413='MDOT FTA Detail'!$A89)*(Projects!$J$5:$J$2413<>'MDOT FTA Detail'!$A$171)*(Projects!$Q$5:Q$2413)) -> 0 | J89: =SUMPRODUCT((Projects!$A$5:$A$2413='MDOT FTA Detail'!$J$3)*(Projects!$C$5:$C$2413='MDOT FTA Detail'!$C$4)*(Projects!$L$5:$L$2413='MDOT FTA Detail'!$A89)*(Projects!$J$5:$J$2413<>'MDOT FTA Detail'!$A$171)*(Projects!$K$5:$K$2413)) -> 0 | K89: 0 | L89: =SUMPRODUCT((Projects!$A$5:$A$2413='MDOT FTA Detail'!$J$3)*(Projects!$C$5:$C$2413='MDOT FTA Detail'!$C$4)*(Projects!$L$5:$L$2413='MDOT FTA Detail'!$A89)*(Projects!$J$5:$J$2413<>'MDOT FTA Detail'!$A$171)*(Projects!$Q$5:$Q$2413)) -> 0 | M89: =SUMPRODUCT((Projects!$A$5:$A$2413='MDOT FTA Detail'!$M$3)*(Projects!$C$5:$C$2413='MDOT FTA Detail'!$C$4)*(Projects!$L$5:$L$2413='MDOT FTA Detail'!$A89)*(Projects!$J$5:$J$2413<>'MDOT FTA Detail'!$A$171)*(Projects!$K$5:$K$2413)) -> 0 | N89: 0 | O89: =SUMPRODUCT((Projects!$A$5:$A$2413='MDOT FTA Detail'!$M$3)*(Projects!$C$5:$C$2413='MDOT FTA Detail'!$C$4)*(Projects!$L$5:$L$2413='MDOT FTA Detail'!$A89)*(Projects!$J$5:$J$2413<>'MDOT FTA Detail'!$A$171)*(Projects!$Q$5:$Q$2413)) -> 0
A90: STT | B90: STP - Trunkline | C90: MDOT FA | D90: =SUMPRODUCT((Projects!$A$5:$A$2413='MDOT FTA Detail'!$D$3)*(Projects!$C$5:$C$2413='MDOT FTA Detail'!$C$4)*(Projects!$L$5:$L$2413='MDOT FTA Detail'!$A90)*(Projects!$J$5:$J$2413<>'MDOT FTA Detail'!$A$171)*(Projects!$K$5:K$2413)) -> 0 | E90: 0 | F90: =SUMPRODUCT((Projects!$A$5:$A$2413='MDOT FTA Detail'!$D$3)*(Projects!$C$5:$C$2413='MDOT FTA Detail'!$C$4)*(Projects!$L$5:$L$2413='MDOT FTA Detail'!$A90)*(Projects!$J$5:$J$2413<>'MDOT FTA Detail'!$A$171)*(Projects!$Q$5:Q$2413)) -> 0 | G90: =SUMPRODUCT((Projects!$A$5:$A$2413='MDOT FTA Detail'!$G$3)*(Projects!$C$5:$C$2413='MDOT FTA Detail'!$C$4)*(Projects!$L$5:$L$2413='MDOT FTA Detail'!$A90)*(Projects!$J$5:$J$2413<>'MDOT FTA Detail'!$A$171)*(Projects!$K$5:K$2413)) -> 0 | H90: 0 | I90: =SUMPRODUCT((Projects!$A$5:$A$2413='MDOT FTA Detail'!$G$3)*(Projects!$C$5:$C$2413='MDOT FTA Detail'!$C$4)*(Projects!$L$5:$L$2413='MDOT FTA Detail'!$A90)*(Projects!$J$5:$J$2413<>'MDOT FTA Detail'!$A$171)*(Projects!$Q$5:Q$2413)) -> 0 | J90: =SUMPRODUCT((Projects!$A$5:$A$2413='MDOT FTA Detail'!$J$3)*(Projects!$C$5:$C$2413='MDOT FTA Detail'!$C$4)*(Projects!$L$5:$L$2413='MDOT FTA Detail'!$A90)*(Projects!$J$5:$J$2413<>'MDOT FTA Detail'!$A$171)*(Projects!$K$5:$K$2413)) -> 0 | K90: 0 | L90: =SUMPRODUCT((Projects!$A$5:$A$2413='MDOT FTA Detail'!$J$3)*(Projects!$C$5:$C$2413='MDOT FTA Detail'!$C$4)*(Projects!$L$5:$L$2413='MDOT FTA Detail'!$A90)*(Projects!$J$5:$J$2413<>'MDOT FTA Detail'!$A$171)*(Projects!$Q$5:$Q$2413)) -> 0 | M90: =SUMPRODUCT((Projects!$A$5:$A$2413='MDOT FTA Detail'!$M$3)*(Projects!$C$5:$C$2413='MDOT FTA Detail'!$C$4)*(Projects!$L$5:$L$2413='MDOT FTA Detail'!$A90)*(Projects!$J$5:$J$2413<>'MDOT FTA Detail'!$A$171)*(Projects!$K$5:$K$2413)) -> 0 | N90: 0 | O90: =SUMPRODUCT((Projects!$A$5:$A$2413='MDOT FTA Detail'!$M$3)*(Projects!$C$5:$C$2413='MDOT FTA Detail'!$C$4)*(Projects!$L$5:$L$2413='MDOT FTA Detail'!$A90)*(Projects!$J$5:$J$2413<>'MDOT FTA Detail'!$A$171)*(Projects!$Q$5:$Q$2413)) -> 0
A91: STU | B91: STP - Urban Areas > 200,000 Population | C91: MDOT FA | D91: =SUMPRODUCT((Projects!$A$5:$A$2413='MDOT FTA Detail'!$D$3)*(Projects!$C$5:$C$2413='MDOT FTA Detail'!$C$4)*(Projects!$L$5:$L$2413='MDOT FTA Detail'!$A91)*(Projects!$J$5:$J$2413<>'MDOT FTA Detail'!$A$171)*(Projects!$K$5:K$2413)) -> 0 | E91: 0 | F91: =SUMPRODUCT((Projects!$A$5:$A$2413='MDOT FTA Detail'!$D$3)*(Projects!$C$5:$C$2413='MDOT FTA Detail'!$C$4)*(Projects!$L$5:$L$2413='MDOT FTA Detail'!$A91)*(Projects!$J$5:$J$2413<>'MDOT FTA Detail'!$A$171)*(Projects!$Q$5:Q$2413)) -> 0 | G91: =SUMPRODUCT((Projects!$A$5:$A$2413='MDOT FTA Detail'!$G$3)*(Projects!$C$5:$C$2413='MDOT FTA Detail'!$C$4)*(Projects!$L$5:$L$2413='MDOT FTA Detail'!$A91)*(Projects!$J$5:$J$2413<>'MDOT FTA Detail'!$A$171)*(Projects!$K$5:K$2413)) -> 0 | H91: 0 | I91: =SUMPRODUCT((Projects!$A$5:$A$2413='MDOT FTA Detail'!$G$3)*(Projects!$C$5:$C$2413='MDOT FTA Detail'!$C$4)*(Projects!$L$5:$L$2413='MDOT FTA Detail'!$A91)*(Projects!$J$5:$J$2413<>'MDOT FTA Detail'!$A$171)*(Projects!$Q$5:Q$2413)) -> 0 | J91: =SUMPRODUCT((Projects!$A$5:$A$2413='MDOT FTA Detail'!$J$3)*(Projects!$C$5:$C$2413='MDOT FTA Detail'!$C$4)*(Projects!$L$5:$L$2413='MDOT FTA Detail'!$A91)*(Projects!$J$5:$J$2413<>'MDOT FTA Detail'!$A$171)*(Projects!$K$5:$K$2413)) -> 0 | K91: 0 | L91: =SUMPRODUCT((Projects!$A$5:$A$2413='MDOT FTA Detail'!$J$3)*(Projects!$C$5:$C$2413='MDOT FTA Detail'!$C$4)*(Projects!$L$5:$L$2413='MDOT FTA Detail'!$A91)*(Projects!$J$5:$J$2413<>'MDOT FTA Detail'!$A$171)*(Projects!$Q$5:$Q$2413)) -> 0 | M91: =SUMPRODUCT((Projects!$A$5:$A$2413='MDOT FTA Detail'!$M$3)*(Projects!$C$5:$C$2413='MDOT FTA Detail'!$C$4)*(Projects!$L$5:$L$2413='MDOT FTA Detail'!$A91)*(Projects!$J$5:$J$2413<>'MDOT FTA Detail'!$A$171)*(Projects!$K$5:$K$2413)) -> 0 | N91: 0 | O91: =SUMPRODUCT((Projects!$A$5:$A$2413='MDOT FTA Detail'!$M$3)*(Projects!$C$5:$C$2413='MDOT FTA Detail'!$C$4)*(Projects!$L$5:$L$2413='MDOT FTA Detail'!$A91)*(Projects!$J$5:$J$2413<>'MDOT FTA Detail'!$A$171)*(Projects!$Q$5:$Q$2413)) -> 0
A92: STUG | B92: STP - Urban Areas < 200,000 Population 100% | C92: MDOT FA | D92: =SUMPRODUCT((Projects!$A$5:$A$2413='MDOT FTA Detail'!$D$3)*(Projects!$C$5:$C$2413='MDOT FTA Detail'!$C$4)*(Projects!$L$5:$L$2413='MDOT FTA Detail'!$A92)*(Projects!$J$5:$J$2413<>'MDOT FTA Detail'!$A$171)*(Projects!$K$5:K$2413)) -> 0 | E92: =F92-D92 -> 0 | F92: =SUMPRODUCT((Projects!$A$5:$A$2413='MDOT FTA Detail'!$D$3)*(Projects!$C$5:$C$2413='MDOT FTA Detail'!$C$4)*(Projects!$L$5:$L$2413='MDOT FTA Detail'!$A92)*(Projects!$J$5:$J$2413<>'MDOT FTA Detail'!$A$171)*(Projects!$Q$5:Q$2413)) -> 0 | G92: =SUMPRODUCT((Projects!$A$5:$A$2413='MDOT FTA Detail'!$G$3)*(Projects!$C$5:$C$2413='MDOT FTA Detail'!$C$4)*(Projects!$L$5:$L$2413='MDOT FTA Detail'!$A92)*(Projects!$J$5:$J$2413<>'MDOT FTA Detail'!$A$171)*(Projects!$K$5:K$2413)) -> 0 | H92: =I92-G92 -> 0 | I92: =SUMPRODUCT((Projects!$A$5:$A$2413='MDOT FTA Detail'!$G$3)*(Projects!$C$5:$C$2413='MDOT FTA Detail'!$C$4)*(Projects!$L$5:$L$2413='MDOT FTA Detail'!$A92)*(Projects!$J$5:$J$2413<>'MDOT FTA Detail'!$A$171)*(Projects!$Q$5:Q$2413)) -> 0 | J92: =SUMPRODUCT((Projects!$A$5:$A$2413='MDOT FTA Detail'!$J$3)*(Projects!$C$5:$C$2413='MDOT FTA Detail'!$C$4)*(Projects!$L$5:$L$2413='MDOT FTA Detail'!$A92)*(Projects!$J$5:$J$2413<>'MDOT FTA Detail'!$A$171)*(Projects!$K$5:$K$2413)) -> 0 | K92: =L92-J92 -> 0 | L92: =SUMPRODUCT((Projects!$A$5:$A$2413='MDOT FTA Detail'!$J$3)*(Projects!$C$5:$C$2413='MDOT FTA Detail'!$C$4)*(Projects!$L$5:$L$2413='MDOT FTA Detail'!$A92)*(Projects!$J$5:$J$2413<>'MDOT FTA Detail'!$A$171)*(Projects!$Q$5:$Q$2413)) -> 0 | M92: =SUMPRODUCT((Projects!$A$5:$A$2413='MDOT FTA Detail'!$M$3)*(Projects!$C$5:$C$2413='MDOT FTA Detail'!$C$4)*(Projects!$L$5:$L$2413='MDOT FTA Detail'!$A92)*(Projects!$J$5:$J$2413<>'MDOT FTA Detail'!$A$171)*(Projects!$K$5:$K$2413)) -> 0 | N92: =O92-M92 -> 0 | O92: =SUMPRODUCT((Projects!$A$5:$A$2413='MDOT FTA Detail'!$M$3)*(Projects!$C$5:$C$2413='MDOT FTA Detail'!$C$4)*(Projects!$L$5:$L$2413='MDOT FTA Detail'!$A92)*(Projects!$J$5:$J$2413<>'MDOT FTA Detail'!$A$171)*(Projects!$Q$5:$Q$2413)) -> 0
A93: STUL | B93: STP - Urban Areas < 200,000 Population | C93: MDOT FA | D93: =SUMPRODUCT((Projects!$A$5:$A$2413='MDOT FTA Detail'!$D$3)*(Projects!$C$5:$C$2413='MDOT FTA Detail'!$C$4)*(Projects!$L$5:$L$2413='MDOT FTA Detail'!$A93)*(Projects!$J$5:$J$2413<>'MDOT FTA Detail'!$A$171)*(Projects!$K$5:K$2413)) -> 0 | E93: 0 | F93: =SUMPRODUCT((Projects!$A$5:$A$2413='MDOT FTA Detail'!$D$3)*(Projects!$C$5:$C$2413='MDOT FTA Detail'!$C$4)*(Projects!$L$5:$L$2413='MDOT FTA Detail'!$A93)*(Projects!$J$5:$J$2413<>'MDOT FTA Detail'!$A$171)*(Projects!$Q$5:Q$2413)) -> 0 | G93: =SUMPRODUCT((Projects!$A$5:$A$2413='MDOT FTA Detail'!$G$3)*(Projects!$C$5:$C$2413='MDOT FTA Detail'!$C$4)*(Projects!$L$5:$L$2413='MDOT FTA Detail'!$A93)*(Projects!$J$5:$J$2413<>'MDOT FTA Detail'!$A$171)*(Projects!$K$5:K$2413)) -> 0 | H93: 0 | I93: =SUMPRODUCT((Projects!$A$5:$A$2413='MDOT FTA Detail'!$G$3)*(Projects!$C$5:$C$2413='MDOT FTA Detail'!$C$4)*(Projects!$L$5:$L$2413='MDOT FTA Detail'!$A93)*(Projects!$J$5:$J$2413<>'MDOT FTA Detail'!$A$171)*(Projects!$Q$5:Q$2413)) -> 0 | J93: =SUMPRODUCT((Projects!$A$5:$A$2413='MDOT FTA Detail'!$J$3)*(Projects!$C$5:$C$2413='MDOT FTA Detail'!$C$4)*(Projects!$L$5:$L$2413='MDOT FTA Detail'!$A93)*(Projects!$J$5:$J$2413<>'MDOT FTA Detail'!$A$171)*(Projects!$K$5:$K$2413)) -> 0 | K93: 0 | L93: =SUMPRODUCT((Projects!$A$5:$A$2413='MDOT FTA Detail'!$J$3)*(Projects!$C$5:$C$2413='MDOT FTA Detail'!$C$4)*(Projects!$L$5:$L$2413='MDOT FTA Detail'!$A93)*(Projects!$J$5:$J$2413<>'MDOT FTA Detail'!$A$171)*(Projects!$Q$5:$Q$2413)) -> 0 | M93: =SUMPRODUCT((Projects!$A$5:$A$2413='MDOT FTA Detail'!$M$3)*(Projects!$C$5:$C$2413='MDOT FTA Detail'!$C$4)*(Projects!$L$5:$L$2413='MDOT FTA Detail'!$A93)*(Projects!$J$5:$J$2413<>'MDOT FTA Detail'!$A$171)*(Projects!$K$5:$K$2413)) -> 0 | N93: 0 | O93: =SUMPRODUCT((Projects!$A$5:$A$2413='MDOT FTA Detail'!$M$3)*(Projects!$C$5:$C$2413='MDOT FTA Detail'!$C$4)*(Projects!$L$5:$L$2413='MDOT FTA Detail'!$A93)*(Projects!$J$5:$J$2413<>'MDOT FTA Detail'!$A$171)*(Projects!$Q$5:$Q$2413)) -> 0
A94: STUT | B94: STP - Urban Areas < 200,000 Population - Trunkline | C94: MDOT FA | D94: =SUMPRODUCT((Projects!$A$5:$A$2413='MDOT FTA Detail'!$D$3)*(Projects!$C$5:$C$2413='MDOT FTA Detail'!$C$4)*(Projects!$L$5:$L$2413='MDOT FTA Detail'!$A94)*(Projects!$J$5:$J$2413<>'MDOT FTA Detail'!$A$171)*(Projects!$K$5:K$2413)) -> 0 | E94: 0 | F94: =SUMPRODUCT((Projects!$A$5:$A$2413='MDOT FTA Detail'!$D$3)*(Projects!$C$5:$C$2413='MDOT FTA Detail'!$C$4)*(Projects!$L$5:$L$2413='MDOT FTA Detail'!$A94)*(Projects!$J$5:$J$2413<>'MDOT FTA Detail'!$A$171)*(Projects!$Q$5:Q$2413)) -> 0 | G94: =SUMPRODUCT((Projects!$A$5:$A$2413='MDOT FTA Detail'!$G$3)*(Projects!$C$5:$C$2413='MDOT FTA Detail'!$C$4)*(Projects!$L$5:$L$2413='MDOT FTA Detail'!$A94)*(Projects!$J$5:$J$2413<>'MDOT FTA Detail'!$A$171)*(Projects!$K$5:K$2413)) -> 0 | H94: 0 | I94: =SUMPRODUCT((Projects!$A$5:$A$2413='MDOT FTA Detail'!$G$3)*(Projects!$C$5:$C$2413='MDOT FTA Detail'!$C$4)*(Projects!$L$5:$L$2413='MDOT FTA Detail'!$A94)*(Projects!$J$5:$J$2413<>'MDOT FTA Detail'!$A$171)*(Projects!$Q$5:Q$2413)) -> 0 | J94: =SUMPRODUCT((Projects!$A$5:$A$2413='MDOT FTA Detail'!$J$3)*(Projects!$C$5:$C$2413='MDOT FTA Detail'!$C$4)*(Projects!$L$5:$L$2413='MDOT FTA Detail'!$A94)*(Projects!$J$5:$J$2413<>'MDOT FTA Detail'!$A$171)*(Projects!$K$5:$K$2413)) -> 0 | K94: 0 | L94: =SUMPRODUCT((Projects!$A$5:$A$2413='MDOT FTA Detail'!$J$3)*(Projects!$C$5:$C$2413='MDOT FTA Detail'!$C$4)*(Projects!$L$5:$L$2413='MDOT FTA Detail'!$A94)*(Projects!$J$5:$J$2413<>'MDOT FTA Detail'!$A$171)*(Projects!$Q$5:$Q$2413)) -> 0 | M94: =SUMPRODUCT((Projects!$A$5:$A$2413='MDOT FTA Detail'!$M$3)*(Projects!$C$5:$C$2413='MDOT FTA Detail'!$C$4)*(Projects!$L$5:$L$2413='MDOT FTA Detail'!$A94)*(Projects!$J$5:$J$2413<>'MDOT FTA Detail'!$A$171)*(Projects!$K$5:$K$2413)) -> 0 | N94: 0 | O94: =SUMPRODUCT((Projects!$A$5:$A$2413='MDOT FTA Detail'!$M$3)*(Projects!$C$5:$C$2413='MDOT FTA Detail'!$C$4)*(Projects!$L$5:$L$2413='MDOT FTA Detail'!$A94)*(Projects!$J$5:$J$2413<>'MDOT FTA Detail'!$A$171)*(Projects!$Q$5:$Q$2413)) -> 0
A95: SUG | B95: STP - Safety - 100% Federal for STU | C95: MDOT FA | D95: =SUMPRODUCT((Projects!$A$5:$A$2413='MDOT FTA Detail'!$D$3)*(Projects!$C$5:$C$2413='MDOT FTA Detail'!$C$4)*(Projects!$L$5:$L$2413='MDOT FTA Detail'!$A95)*(Projects!$J$5:$J$2413<>'MDOT FTA Detail'!$A$171)*(Projects!$K$5:K$2413)) -> 0 | E95: 0 | F95: =SUMPRODUCT((Projects!$A$5:$A$2413='MDOT FTA Detail'!$D$3)*(Projects!$C$5:$C$2413='MDOT FTA Detail'!$C$4)*(Projects!$L$5:$L$2413='MDOT FTA Detail'!$A95)*(Projects!$J$5:$J$2413<>'MDOT FTA Detail'!$A$171)*(Projects!$Q$5:Q$2413)) -> 0 | G95: =SUMPRODUCT((Projects!$A$5:$A$2413='MDOT FTA Detail'!$G$3)*(Projects!$C$5:$C$2413='MDOT FTA Detail'!$C$4)*(Projects!$L$5:$L$2413='MDOT FTA Detail'!$A95)*(Projects!$J$5:$J$2413<>'MDOT FTA Detail'!$A$171)*(Projects!$K$5:K$2413)) -> 0 | H95: 0 | I95: =SUMPRODUCT((Projects!$A$5:$A$2413='MDOT FTA Detail'!$G$3)*(Projects!$C$5:$C$2413='MDOT FTA Detail'!$C$4)*(Projects!$L$5:$L$2413='MDOT FTA Detail'!$A95)*(Projects!$J$5:$J$2413<>'MDOT FTA Detail'!$A$171)*(Projects!$Q$5:Q$2413)) -> 0 | J95: =SUMPRODUCT((Projects!$A$5:$A$2413='MDOT FTA Detail'!$J$3)*(Projects!$C$5:$C$2413='MDOT FTA Detail'!$C$4)*(Projects!$L$5:$L$2413='MDOT FTA Detail'!$A95)*(Projects!$J$5:$J$2413<>'MDOT FTA Detail'!$A$171)*(Projects!$K$5:$K$2413)) -> 0 | K95: 0 | L95: =SUMPRODUCT((Projects!$A$5:$A$2413='MDOT FTA Detail'!$J$3)*(Projects!$C$5:$C$2413='MDOT FTA Detail'!$C$4)*(Projects!$L$5:$L$2413='MDOT FTA Detail'!$A95)*(Projects!$J$5:$J$2413<>'MDOT FTA Detail'!$A$171)*(Projects!$Q$5:$Q$2413)) -> 0 | M95: =SUMPRODUCT((Projects!$A$5:$A$2413='MDOT FTA Detail'!$M$3)*(Projects!$C$5:$C$2413='MDOT FTA Detail'!$C$4)*(Projects!$L$5:$L$2413='MDOT FTA Detail'!$A95)*(Projects!$J$5:$J$2413<>'MDOT FTA Detail'!$A$171)*(Projects!$K$5:$K$2413)) -> 0 | N95: 0 | O95: =SUMPRODUCT((Projects!$A$5:$A$2413='MDOT FTA Detail'!$M$3)*(Projects!$C$5:$C$2413='MDOT FTA Detail'!$C$4)*(Projects!$L$5:$L$2413='MDOT FTA Detail'!$A95)*(Projects!$J$5:$J$2413<>'MDOT FTA Detail'!$A$171)*(Projects!$Q$5:$Q$2413)) -> 0
A96: SUL | B96: Surface Transportation Urban Areas <200,000 Population | C96: MDOT FA | D96: =SUMPRODUCT((Projects!$A$5:$A$2413='MDOT FTA Detail'!$D$3)*(Projects!$C$5:$C$2413='MDOT FTA Detail'!$C$4)*(Projects!$L$5:$L$2413='MDOT FTA Detail'!$A96)*(Projects!$J$5:$J$2413<>'MDOT FTA Detail'!$A$171)*(Projects!$K$5:K$2413)) -> 0 | E96: 0 | F96: =SUMPRODUCT((Projects!$A$5:$A$2413='MDOT FTA Detail'!$D$3)*(Projects!$C$5:$C$2413='MDOT FTA Detail'!$C$4)*(Projects!$L$5:$L$2413='MDOT FTA Detail'!$A96)*(Projects!$J$5:$J$2413<>'MDOT FTA Detail'!$A$171)*(Projects!$Q$5:Q$2413)) -> 0 | G96: =SUMPRODUCT((Projects!$A$5:$A$2413='MDOT FTA Detail'!$G$3)*(Projects!$C$5:$C$2413='MDOT FTA Detail'!$C$4)*(Projects!$L$5:$L$2413='MDOT FTA Detail'!$A96)*(Projects!$J$5:$J$2413<>'MDOT FTA Detail'!$A$171)*(Projects!$K$5:K$2413)) -> 0 | H96: 0 | I96: =SUMPRODUCT((Projects!$A$5:$A$2413='MDOT FTA Detail'!$G$3)*(Projects!$C$5:$C$2413='MDOT FTA Detail'!$C$4)*(Projects!$L$5:$L$2413='MDOT FTA Detail'!$A96)*(Projects!$J$5:$J$2413<>'MDOT FTA Detail'!$A$171)*(Projects!$Q$5:Q$2413)) -> 0 | J96: =SUMPRODUCT((Projects!$A$5:$A$2413='MDOT FTA Detail'!$J$3)*(Projects!$C$5:$C$2413='MDOT FTA Detail'!$C$4)*(Projects!$L$5:$L$2413='MDOT FTA Detail'!$A96)*(Projects!$J$5:$J$2413<>'MDOT FTA Detail'!$A$171)*(Projects!$K$5:$K$2413)) -> 0 | K96: 0 | L96: =SUMPRODUCT((Projects!$A$5:$A$2413='MDOT FTA Detail'!$J$3)*(Projects!$C$5:$C$2413='MDOT FTA Detail'!$C$4)*(Projects!$L$5:$L$2413='MDOT FTA Detail'!$A96)*(Projects!$J$5:$J$2413<>'MDOT FTA Detail'!$A$171)*(Projects!$Q$5:$Q$2413)) -> 0 | M96: =SUMPRODUCT((Projects!$A$5:$A$2413='MDOT FTA Detail'!$M$3)*(Projects!$C$5:$C$2413='MDOT FTA Detail'!$C$4)*(Projects!$L$5:$L$2413='MDOT FTA Detail'!$A96)*(Projects!$J$5:$J$2413<>'MDOT FTA Detail'!$A$171)*(Projects!$K$5:$K$2413)) -> 0 | N96: 0 | O96: =SUMPRODUCT((Projects!$A$5:$A$2413='MDOT FTA Detail'!$M$3)*(Projects!$C$5:$C$2413='MDOT FTA Detail'!$C$4)*(Projects!$L$5:$L$2413='MDOT FTA Detail'!$A96)*(Projects!$J$5:$J$2413<>'MDOT FTA Detail'!$A$171)*(Projects!$Q$5:$Q$2413)) -> 0
A97: SULG | B97: Surfcace Transportation Urban Areas <200,000 Population 100% | C97: MDOT FA | D97: =SUMPRODUCT((Projects!$A$5:$A$2413='MDOT FTA Detail'!$D$3)*(Projects!$C$5:$C$2413='MDOT FTA Detail'!$C$4)*(Projects!$L$5:$L$2413='MDOT FTA Detail'!$A97)*(Projects!$J$5:$J$2413<>'MDOT FTA Detail'!$A$171)*(Projects!$K$5:K$2413)) -> 0 | E97: 0 | F97: =SUMPRODUCT((Projects!$A$5:$A$2413='MDOT FTA Detail'!$D$3)*(Projects!$C$5:$C$2413='MDOT FTA Detail'!$C$4)*(Projects!$L$5:$L$2413='MDOT FTA Detail'!$A97)*(Projects!$J$5:$J$2413<>'MDOT FTA Detail'!$A$171)*(Projects!$Q$5:Q$2413)) -> 0 | G97: =SUMPRODUCT((Projects!$A$5:$A$2413='MDOT FTA Detail'!$G$3)*(Projects!$C$5:$C$2413='MDOT FTA Detail'!$C$4)*(Projects!$L$5:$L$2413='MDOT FTA Detail'!$A97)*(Projects!$J$5:$J$2413<>'MDOT FTA Detail'!$A$171)*(Projects!$K$5:K$2413)) -> 0 | H97: 0 | I97: =SUMPRODUCT((Projects!$A$5:$A$2413='MDOT FTA Detail'!$G$3)*(Projects!$C$5:$C$2413='MDOT FTA Detail'!$C$4)*(Projects!$L$5:$L$2413='MDOT FTA Detail'!$A97)*(Projects!$J$5:$J$2413<>'MDOT FTA Detail'!$A$171)*(Projects!$Q$5:Q$2413)) -> 0 | J97: =SUMPRODUCT((Projects!$A$5:$A$2413='MDOT FTA Detail'!$J$3)*(Projects!$C$5:$C$2413='MDOT FTA Detail'!$C$4)*(Projects!$L$5:$L$2413='MDOT FTA Detail'!$A97)*(Projects!$J$5:$J$2413<>'MDOT FTA Detail'!$A$171)*(Projects!$K$5:$K$2413)) -> 0 | K97: 0 | L97: =SUMPRODUCT((Projects!$A$5:$A$2413='MDOT FTA Detail'!$J$3)*(Projects!$C$5:$C$2413='MDOT FTA Detail'!$C$4)*(Projects!$L$5:$L$2413='MDOT FTA Detail'!$A97)*(Projects!$J$5:$J$2413<>'MDOT FTA Detail'!$A$171)*(Projects!$Q$5:$Q$2413)) -> 0 | M97: =SUMPRODUCT((Projects!$A$5:$A$2413='MDOT FTA Detail'!$M$3)*(Projects!$C$5:$C$2413='MDOT FTA Detail'!$C$4)*(Projects!$L$5:$L$2413='MDOT FTA Detail'!$A97)*(Projects!$J$5:$J$2413<>'MDOT FTA Detail'!$A$171)*(Projects!$K$5:$K$2413)) -> 0 | N97: 0 | O97: =SUMPRODUCT((Projects!$A$5:$A$2413='MDOT FTA Detail'!$M$3)*(Projects!$C$5:$C$2413='MDOT FTA Detail'!$C$4)*(Projects!$L$5:$L$2413='MDOT FTA Detail'!$A97)*(Projects!$J$5:$J$2413<>'MDOT FTA Detail'!$A$171)*(Projects!$Q$5:$Q$2413)) -> 0
A98: TA | B98: Transportation Alternatives Program Flex | C98: MDOT FA | D98: =SUMPRODUCT((Projects!$A$5:$A$2413='MDOT FTA Detail'!$D$3)*(Projects!$C$5:$C$2413='MDOT FTA Detail'!$C$4)*(Projects!$L$5:$L$2413='MDOT FTA Detail'!$A98)*(Projects!$J$5:$J$2413<>'MDOT FTA Detail'!$A$171)*(Projects!$K$5:K$2413)) -> 0 | E98: 0 | F98: =SUMPRODUCT((Projects!$A$5:$A$2413='MDOT FTA Detail'!$D$3)*(Projects!$C$5:$C$2413='MDOT FTA Detail'!$C$4)*(Projects!$L$5:$L$2413='MDOT FTA Detail'!$A98)*(Projects!$J$5:$J$2413<>'MDOT FTA Detail'!$A$171)*(Projects!$Q$5:Q$2413)) -> 0 | G98: =SUMPRODUCT((Projects!$A$5:$A$2413='MDOT FTA Detail'!$G$3)*(Projects!$C$5:$C$2413='MDOT FTA Detail'!$C$4)*(Projects!$L$5:$L$2413='MDOT FTA Detail'!$A98)*(Projects!$J$5:$J$2413<>'MDOT FTA Detail'!$A$171)*(Projects!$K$5:K$2413)) -> 0 | H98: 0 | I98: =SUMPRODUCT((Projects!$A$5:$A$2413='MDOT FTA Detail'!$G$3)*(Projects!$C$5:$C$2413='MDOT FTA Detail'!$C$4)*(Projects!$L$5:$L$2413='MDOT FTA Detail'!$A98)*(Projects!$J$5:$J$2413<>'MDOT FTA Detail'!$A$171)*(Projects!$Q$5:Q$2413)) -> 0 | J98: =SUMPRODUCT((Projects!$A$5:$A$2413='MDOT FTA Detail'!$J$3)*(Projects!$C$5:$C$2413='MDOT FTA Detail'!$C$4)*(Projects!$L$5:$L$2413='MDOT FTA Detail'!$A98)*(Projects!$J$5:$J$2413<>'MDOT FTA Detail'!$A$171)*(Projects!$K$5:$K$2413)) -> 0 | K98: 0 | L98: =SUMPRODUCT((Projects!$A$5:$A$2413='MDOT FTA Detail'!$J$3)*(Projects!$C$5:$C$2413='MDOT FTA Detail'!$C$4)*(Projects!$L$5:$L$2413='MDOT FTA Detail'!$A98)*(Projects!$J$5:$J$2413<>'MDOT FTA Detail'!$A$171)*(Projects!$Q$5:$Q$2413)) -> 0 | M98: =SUMPRODUCT((Projects!$A$5:$A$2413='MDOT FTA Detail'!$M$3)*(Projects!$C$5:$C$2413='MDOT FTA Detail'!$C$4)*(Projects!$L$5:$L$2413='MDOT FTA Detail'!$A98)*(Projects!$J$5:$J$2413<>'MDOT FTA Detail'!$A$171)*(Projects!$K$5:$K$2413)) -> 0 | N98: 0 | O98: =SUMPRODUCT((Projects!$A$5:$A$2413='MDOT FTA Detail'!$M$3)*(Projects!$C$5:$C$2413='MDOT FTA Detail'!$C$4)*(Projects!$L$5:$L$2413='MDOT FTA Detail'!$A98)*(Projects!$J$5:$J$2413<>'MDOT FTA Detail'!$A$171)*(Projects!$Q$5:$Q$2413)) -> 0
A99: TAL | B99: Transportation Alternatives Rural | C99: MDOT FA | D99: =SUMPRODUCT((Projects!$A$5:$A$2413='MDOT FTA Detail'!$D$3)*(Projects!$C$5:$C$2413='MDOT FTA Detail'!$C$4)*(Projects!$L$5:$L$2413='MDOT FTA Detail'!$A99)*(Projects!$J$5:$J$2413<>'MDOT FTA Detail'!$A$171)*(Projects!$K$5:K$2413)) -> 0 | E99: 0 | F99: =SUMPRODUCT((Projects!$A$5:$A$2413='MDOT FTA Detail'!$D$3)*(Projects!$C$5:$C$2413='MDOT FTA Detail'!$C$4)*(Projects!$L$5:$L$2413='MDOT FTA Detail'!$A99)*(Projects!$J$5:$J$2413<>'MDOT FTA Detail'!$A$171)*(Projects!$Q$5:Q$2413)) -> 0 | G99: =SUMPRODUCT((Projects!$A$5:$A$2413='MDOT FTA Detail'!$G$3)*(Projects!$C$5:$C$2413='MDOT FTA Detail'!$C$4)*(Projects!$L$5:$L$2413='MDOT FTA Detail'!$A99)*(Projects!$J$5:$J$2413<>'MDOT FTA Detail'!$A$171)*(Projects!$K$5:K$2413)) -> 0 | H99: 0 | I99: =SUMPRODUCT((Projects!$A$5:$A$2413='MDOT FTA Detail'!$G$3)*(Projects!$C$5:$C$2413='MDOT FTA Detail'!$C$4)*(Projects!$L$5:$L$2413='MDOT FTA Detail'!$A99)*(Projects!$J$5:$J$2413<>'MDOT FTA Detail'!$A$171)*(Projects!$Q$5:Q$2413)) -> 0 | J99: =SUMPRODUCT((Projects!$A$5:$A$2413='MDOT FTA Detail'!$J$3)*(Projects!$C$5:$C$2413='MDOT FTA Detail'!$C$4)*(Projects!$L$5:$L$2413='MDOT FTA Detail'!$A99)*(Projects!$J$5:$J$2413<>'MDOT FTA Detail'!$A$171)*(Projects!$K$5:$K$2413)) -> 0 | K99: 0 | L99: =SUMPRODUCT((Projects!$A$5:$A$2413='MDOT FTA Detail'!$J$3)*(Projects!$C$5:$C$2413='MDOT FTA Detail'!$C$4)*(Projects!$L$5:$L$2413='MDOT FTA Detail'!$A99)*(Projects!$J$5:$J$2413<>'MDOT FTA Detail'!$A$171)*(Projects!$Q$5:$Q$2413)) -> 0 | M99: =SUMPRODUCT((Projects!$A$5:$A$2413='MDOT FTA Detail'!$M$3)*(Projects!$C$5:$C$2413='MDOT FTA Detail'!$C$4)*(Projects!$L$5:$L$2413='MDOT FTA Detail'!$A99)*(Projects!$J$5:$J$2413<>'MDOT FTA Detail'!$A$171)*(Projects!$K$5:$K$2413)) -> 0 | N99: 0 | O99: =SUMPRODUCT((Projects!$A$5:$A$2413='MDOT FTA Detail'!$M$3)*(Projects!$C$5:$C$2413='MDOT FTA Detail'!$C$4)*(Projects!$L$5:$L$2413='MDOT FTA Detail'!$A99)*(Projects!$J$5:$J$2413<>'MDOT FTA Detail'!$A$171)*(Projects!$Q$5:$Q$2413)) -> 0
A100: TAU | B100: Transportation Alternatives Urban Areas > 200,000 Population | C100: MDOT FA | D100: =SUMPRODUCT((Projects!$A$5:$A$2413='MDOT FTA Detail'!$D$3)*(Projects!$C$5:$C$2413='MDOT FTA Detail'!$C$4)*(Projects!$L$5:$L$2413='MDOT FTA Detail'!$A100)*(Projects!$J$5:$J$2413<>'MDOT FTA Detail'!$A$171)*(Projects!$K$5:K$2413)) -> 0 | E100: 0 | F100: =SUMPRODUCT((Projects!$A$5:$A$2413='MDOT FTA Detail'!$D$3)*(Projects!$C$5:$C$2413='MDOT FTA Detail'!$C$4)*(Projects!$L$5:$L$2413='MDOT FTA Detail'!$A100)*(Projects!$J$5:$J$2413<>'MDOT FTA Detail'!$A$171)*(Projects!$Q$5:Q$2413)) -> 0 | G100: =SUMPRODUCT((Projects!$A$5:$A$2413='MDOT FTA Detail'!$G$3)*(Projects!$C$5:$C$2413='MDOT FTA Detail'!$C$4)*(Projects!$L$5:$L$2413='MDOT FTA Detail'!$A100)*(Projects!$J$5:$J$2413<>'MDOT FTA Detail'!$A$171)*(Projects!$K$5:K$2413)) -> 0 | H100: 0 | I100: =SUMPRODUCT((Projects!$A$5:$A$2413='MDOT FTA Detail'!$G$3)*(Projects!$C$5:$C$2413='MDOT FTA Detail'!$C$4)*(Projects!$L$5:$L$2413='MDOT FTA Detail'!$A100)*(Projects!$J$5:$J$2413<>'MDOT FTA Detail'!$A$171)*(Projects!$Q$5:Q$2413)) -> 0 | J100: =SUMPRODUCT((Projects!$A$5:$A$2413='MDOT FTA Detail'!$J$3)*(Projects!$C$5:$C$2413='MDOT FTA Detail'!$C$4)*(Projects!$L$5:$L$2413='MDOT FTA Detail'!$A100)*(Projects!$J$5:$J$2413<>'MDOT FTA Detail'!$A$171)*(Projects!$K$5:$K$2413)) -> 0 | K100: 0 | L100: =SUMPRODUCT((Projects!$A$5:$A$2413='MDOT FTA Detail'!$J$3)*(Projects!$C$5:$C$2413='MDOT FTA Detail'!$C$4)*(Projects!$L$5:$L$2413='MDOT FTA Detail'!$A100)*(Projects!$J$5:$J$2413<>'MDOT FTA Detail'!$A$171)*(Projects!$Q$5:$Q$2413)) -> 0 | M100: =SUMPRODUCT((Projects!$A$5:$A$2413='MDOT FTA Detail'!$M$3)*(Projects!$C$5:$C$2413='MDOT FTA Detail'!$C$4)*(Projects!$L$5:$L$2413='MDOT FTA Detail'!$A100)*(Projects!$J$5:$J$2413<>'MDOT FTA Detail'!$A$171)*(Projects!$K$5:$K$2413)) -> 0 | N100: 0 | O100: =SUMPRODUCT((Projects!$A$5:$A$2413='MDOT FTA Detail'!$M$3)*(Projects!$C$5:$C$2413='MDOT FTA Detail'!$C$4)*(Projects!$L$5:$L$2413='MDOT FTA Detail'!$A100)*(Projects!$J$5:$J$2413<>'MDOT FTA Detail'!$A$171)*(Projects!$Q$5:$Q$2413)) -> 0
A101: TAUL | B101: Transporation Alternatives Urban Areas < 200,000 Population | C101: MDOT FA | D101: =SUMPRODUCT((Projects!$A$5:$A$2413='MDOT FTA Detail'!$D$3)*(Projects!$C$5:$C$2413='MDOT FTA Detail'!$C$4)*(Projects!$L$5:$L$2413='MDOT FTA Detail'!$A101)*(Projects!$J$5:$J$2413<>'MDOT FTA Detail'!$A$171)*(Projects!$K$5:K$2413)) -> 0 | E101: 0 | F101: =SUMPRODUCT((Projects!$A$5:$A$2413='MDOT FTA Detail'!$D$3)*(Projects!$C$5:$C$2413='MDOT FTA Detail'!$C$4)*(Projects!$L$5:$L$2413='MDOT FTA Detail'!$A101)*(Projects!$J$5:$J$2413<>'MDOT FTA Detail'!$A$171)*(Projects!$Q$5:Q$2413)) -> 0 | G101: =SUMPRODUCT((Projects!$A$5:$A$2413='MDOT FTA Detail'!$G$3)*(Projects!$C$5:$C$2413='MDOT FTA Detail'!$C$4)*(Projects!$L$5:$L$2413='MDOT FTA Detail'!$A101)*(Projects!$J$5:$J$2413<>'MDOT FTA Detail'!$A$171)*(Projects!$K$5:K$2413)) -> 0 | H101: 0 | I101: =SUMPRODUCT((Projects!$A$5:$A$2413='MDOT FTA Detail'!$G$3)*(Projects!$C$5:$C$2413='MDOT FTA Detail'!$C$4)*(Projects!$L$5:$L$2413='MDOT FTA Detail'!$A101)*(Projects!$J$5:$J$2413<>'MDOT FTA Detail'!$A$171)*(Projects!$Q$5:Q$2413)) -> 0 | J101: =SUMPRODUCT((Projects!$A$5:$A$2413='MDOT FTA Detail'!$J$3)*(Projects!$C$5:$C$2413='MDOT FTA Detail'!$C$4)*(Projects!$L$5:$L$2413='MDOT FTA Detail'!$A101)*(Projects!$J$5:$J$2413<>'MDOT FTA Detail'!$A$171)*(Projects!$K$5:$K$2413)) -> 0 | K101: 0 | L101: =SUMPRODUCT((Projects!$A$5:$A$2413='MDOT FTA Detail'!$J$3)*(Projects!$C$5:$C$2413='MDOT FTA Detail'!$C$4)*(Projects!$L$5:$L$2413='MDOT FTA Detail'!$A101)*(Projects!$J$5:$J$2413<>'MDOT FTA Detail'!$A$171)*(Projects!$Q$5:$Q$2413)) -> 0 | M101: =SUMPRODUCT((Projects!$A$5:$A$2413='MDOT FTA Detail'!$M$3)*(Projects!$C$5:$C$2413='MDOT FTA Detail'!$C$4)*(Projects!$L$5:$L$2413='MDOT FTA Detail'!$A101)*(Projects!$J$5:$J$2413<>'MDOT FTA Detail'!$A$171)*(Projects!$K$5:$K$2413)) -> 0 | N101: 0 | O101: =SUMPRODUCT((Projects!$A$5:$A$2413='MDOT FTA Detail'!$M$3)*(Projects!$C$5:$C$2413='MDOT FTA Detail'!$C$4)*(Projects!$L$5:$L$2413='MDOT FTA Detail'!$A101)*(Projects!$J$5:$J$2413<>'MDOT FTA Detail'!$A$171)*(Projects!$Q$5:$Q$2413)) -> 0
A102: TBR | B102: Timber Bridge Fund | C102: MDOT FA | D102: =SUMPRODUCT((Projects!$A$5:$A$2413='MDOT FTA Detail'!$D$3)*(Projects!$C$5:$C$2413='MDOT FTA Detail'!$C$4)*(Projects!$L$5:$L$2413='MDOT FTA Detail'!$A102)*(Projects!$J$5:$J$2413<>'MDOT FTA Detail'!$A$171)*(Projects!$K$5:K$2413)) -> 0 | E102: 0 | F102: =SUMPRODUCT((Projects!$A$5:$A$2413='MDOT FTA Detail'!$D$3)*(Projects!$C$5:$C$2413='MDOT FTA Detail'!$C$4)*(Projects!$L$5:$L$2413='MDOT FTA Detail'!$A102)*(Projects!$J$5:$J$2413<>'MDOT FTA Detail'!$A$171)*(Projects!$Q$5:Q$2413)) -> 0 | G102: =SUMPRODUCT((Projects!$A$5:$A$2413='MDOT FTA Detail'!$G$3)*(Projects!$C$5:$C$2413='MDOT FTA Detail'!$C$4)*(Projects!$L$5:$L$2413='MDOT FTA Detail'!$A102)*(Projects!$J$5:$J$2413<>'MDOT FTA Detail'!$A$171)*(Projects!$K$5:K$2413)) -> 0 | H102: 0 | I102: =SUMPRODUCT((Projects!$A$5:$A$2413='MDOT FTA Detail'!$G$3)*(Projects!$C$5:$C$2413='MDOT FTA Detail'!$C$4)*(Projects!$L$5:$L$2413='MDOT FTA Detail'!$A102)*(Projects!$J$5:$J$2413<>'MDOT FTA Detail'!$A$171)*(Projects!$Q$5:Q$2413)) -> 0 | J102: =SUMPRODUCT((Projects!$A$5:$A$2413='MDOT FTA Detail'!$J$3)*(Projects!$C$5:$C$2413='MDOT FTA Detail'!$C$4)*(Projects!$L$5:$L$2413='MDOT FTA Detail'!$A102)*(Projects!$J$5:$J$2413<>'MDOT FTA Detail'!$A$171)*(Projects!$K$5:$K$2413)) -> 0 | K102: 0 | L102: =SUMPRODUCT((Projects!$A$5:$A$2413='MDOT FTA Detail'!$J$3)*(Projects!$C$5:$C$2413='MDOT FTA Detail'!$C$4)*(Projects!$L$5:$L$2413='MDOT FTA Detail'!$A102)*(Projects!$J$5:$J$2413<>'MDOT FTA Detail'!$A$171)*(Projects!$Q$5:$Q$2413)) -> 0 | M102: =SUMPRODUCT((Projects!$A$5:$A$2413='MDOT FTA Detail'!$M$3)*(Projects!$C$5:$C$2413='MDOT FTA Detail'!$C$4)*(Projects!$L$5:$L$2413='MDOT FTA Detail'!$A102)*(Projects!$J$5:$J$2413<>'MDOT FTA Detail'!$A$171)*(Projects!$K$5:$K$2413)) -> 0 | N102: 0 | O102: =SUMPRODUCT((Projects!$A$5:$A$2413='MDOT FTA Detail'!$M$3)*(Projects!$C$5:$C$2413='MDOT FTA Detail'!$C$4)*(Projects!$L$5:$L$2413='MDOT FTA Detail'!$A102)*(Projects!$J$5:$J$2413<>'MDOT FTA Detail'!$A$171)*(Projects!$Q$5:$Q$2413)) -> 0
A103: TCP | B103: Tax Compliance Program | C103: MDOT FA | D103: =SUMPRODUCT((Projects!$A$5:$A$2413='MDOT FTA Detail'!$D$3)*(Projects!$C$5:$C$2413='MDOT FTA Detail'!$C$4)*(Projects!$L$5:$L$2413='MDOT FTA Detail'!$A103)*(Projects!$J$5:$J$2413<>'MDOT FTA Detail'!$A$171)*(Projects!$K$5:K$2413)) -> 0 | E103: 0 | F103: =SUMPRODUCT((Projects!$A$5:$A$2413='MDOT FTA Detail'!$D$3)*(Projects!$C$5:$C$2413='MDOT FTA Detail'!$C$4)*(Projects!$L$5:$L$2413='MDOT FTA Detail'!$A103)*(Projects!$J$5:$J$2413<>'MDOT FTA Detail'!$A$171)*(Projects!$Q$5:Q$2413)) -> 0 | G103: =SUMPRODUCT((Projects!$A$5:$A$2413='MDOT FTA Detail'!$G$3)*(Projects!$C$5:$C$2413='MDOT FTA Detail'!$C$4)*(Projects!$L$5:$L$2413='MDOT FTA Detail'!$A103)*(Projects!$J$5:$J$2413<>'MDOT FTA Detail'!$A$171)*(Projects!$K$5:K$2413)) -> 0 | H103: 0 | I103: =SUMPRODUCT((Projects!$A$5:$A$2413='MDOT FTA Detail'!$G$3)*(Projects!$C$5:$C$2413='MDOT FTA Detail'!$C$4)*(Projects!$L$5:$L$2413='MDOT FTA Detail'!$A103)*(Projects!$J$5:$J$2413<>'MDOT FTA Detail'!$A$171)*(Projects!$Q$5:Q$2413)) -> 0 | J103: =SUMPRODUCT((Projects!$A$5:$A$2413='MDOT FTA Detail'!$J$3)*(Projects!$C$5:$C$2413='MDOT FTA Detail'!$C$4)*(Projects!$L$5:$L$2413='MDOT FTA Detail'!$A103)*(Projects!$J$5:$J$2413<>'MDOT FTA Detail'!$A$171)*(Projects!$K$5:$K$2413)) -> 0 | K103: 0 | L103: =SUMPRODUCT((Projects!$A$5:$A$2413='MDOT FTA Detail'!$J$3)*(Projects!$C$5:$C$2413='MDOT FTA Detail'!$C$4)*(Projects!$L$5:$L$2413='MDOT FTA Detail'!$A103)*(Projects!$J$5:$J$2413<>'MDOT FTA Detail'!$A$171)*(Projects!$Q$5:$Q$2413)) -> 0 | M103: =SUMPRODUCT((Projects!$A$5:$A$2413='MDOT FTA Detail'!$M$3)*(Projects!$C$5:$C$2413='MDOT FTA Detail'!$C$4)*(Projects!$L$5:$L$2413='MDOT FTA Detail'!$A103)*(Projects!$J$5:$J$2413<>'MDOT FTA Detail'!$A$171)*(Projects!$K$5:$K$2413)) -> 0 | N103: 0 | O103: =SUMPRODUCT((Projects!$A$5:$A$2413='MDOT FTA Detail'!$M$3)*(Projects!$C$5:$C$2413='MDOT FTA Detail'!$C$4)*(Projects!$L$5:$L$2413='MDOT FTA Detail'!$A103)*(Projects!$J$5:$J$2413<>'MDOT FTA Detail'!$A$171)*(Projects!$Q$5:$Q$2413)) -> 0
A104: TCSP | B104: Transportation, Community and System Preservation | C104: MDOT FA | D104: =SUMPRODUCT((Projects!$A$5:$A$2413='MDOT FTA Detail'!$D$3)*(Projects!$C$5:$C$2413='MDOT FTA Detail'!$C$4)*(Projects!$L$5:$L$2413='MDOT FTA Detail'!$A104)*(Projects!$J$5:$J$2413<>'MDOT FTA Detail'!$A$171)*(Projects!$K$5:K$2413)) -> 0 | E104: 0 | F104: =SUMPRODUCT((Projects!$A$5:$A$2413='MDOT FTA Detail'!$D$3)*(Projects!$C$5:$C$2413='MDOT FTA Detail'!$C$4)*(Projects!$L$5:$L$2413='MDOT FTA Detail'!$A104)*(Projects!$J$5:$J$2413<>'MDOT FTA Detail'!$A$171)*(Projects!$Q$5:Q$2413)) -> 0 | G104: =SUMPRODUCT((Projects!$A$5:$A$2413='MDOT FTA Detail'!$G$3)*(Projects!$C$5:$C$2413='MDOT FTA Detail'!$C$4)*(Projects!$L$5:$L$2413='MDOT FTA Detail'!$A104)*(Projects!$J$5:$J$2413<>'MDOT FTA Detail'!$A$171)*(Projects!$K$5:K$2413)) -> 0 | H104: 0 | I104: =SUMPRODUCT((Projects!$A$5:$A$2413='MDOT FTA Detail'!$G$3)*(Projects!$C$5:$C$2413='MDOT FTA Detail'!$C$4)*(Projects!$L$5:$L$2413='MDOT FTA Detail'!$A104)*(Projects!$J$5:$J$2413<>'MDOT FTA Detail'!$A$171)*(Projects!$Q$5:Q$2413)) -> 0 | J104: =SUMPRODUCT((Projects!$A$5:$A$2413='MDOT FTA Detail'!$J$3)*(Projects!$C$5:$C$2413='MDOT FTA Detail'!$C$4)*(Projects!$L$5:$L$2413='MDOT FTA Detail'!$A104)*(Projects!$J$5:$J$2413<>'MDOT FTA Detail'!$A$171)*(Projects!$K$5:$K$2413)) -> 0 | K104: 0 | L104: =SUMPRODUCT((Projects!$A$5:$A$2413='MDOT FTA Detail'!$J$3)*(Projects!$C$5:$C$2413='MDOT FTA Detail'!$C$4)*(Projects!$L$5:$L$2413='MDOT FTA Detail'!$A104)*(Projects!$J$5:$J$2413<>'MDOT FTA Detail'!$A$171)*(Projects!$Q$5:$Q$2413)) -> 0 | M104: =SUMPRODUCT((Projects!$A$5:$A$2413='MDOT FTA Detail'!$M$3)*(Projects!$C$5:$C$2413='MDOT FTA Detail'!$C$4)*(Projects!$L$5:$L$2413='MDOT FTA Detail'!$A104)*(Projects!$J$5:$J$2413<>'MDOT FTA Detail'!$A$171)*(Projects!$K$5:$K$2413)) -> 0 | N104: 0 | O104: =SUMPRODUCT((Projects!$A$5:$A$2413='MDOT FTA Detail'!$M$3)*(Projects!$C$5:$C$2413='MDOT FTA Detail'!$C$4)*(Projects!$L$5:$L$2413='MDOT FTA Detail'!$A104)*(Projects!$J$5:$J$2413<>'MDOT FTA Detail'!$A$171)*(Projects!$Q$5:$Q$2413)) -> 0
A105: TG | B105: Transportation Grant (100% Fed) | C105: MDOT FA | D105: =SUMPRODUCT((Projects!$A$5:$A$2413='MDOT FTA Detail'!$D$3)*(Projects!$C$5:$C$2413='MDOT FTA Detail'!$C$4)*(Projects!$L$5:$L$2413='MDOT FTA Detail'!$A105)*(Projects!$J$5:$J$2413<>'MDOT FTA Detail'!$A$171)*(Projects!$K$5:K$2413)) -> 0 | E105: 0 | F105: =SUMPRODUCT((Projects!$A$5:$A$2413='MDOT FTA Detail'!$D$3)*(Projects!$C$5:$C$2413='MDOT FTA Detail'!$C$4)*(Projects!$L$5:$L$2413='MDOT FTA Detail'!$A105)*(Projects!$J$5:$J$2413<>'MDOT FTA Detail'!$A$171)*(Projects!$Q$5:Q$2413)) -> 0 | G105: =SUMPRODUCT((Projects!$A$5:$A$2413='MDOT FTA Detail'!$G$3)*(Projects!$C$5:$C$2413='MDOT FTA Detail'!$C$4)*(Projects!$L$5:$L$2413='MDOT FTA Detail'!$A105)*(Projects!$J$5:$J$2413<>'MDOT FTA Detail'!$A$171)*(Projects!$K$5:K$2413)) -> 0 | H105: 0 | I105: =SUMPRODUCT((Projects!$A$5:$A$2413='MDOT FTA Detail'!$G$3)*(Projects!$C$5:$C$2413='MDOT FTA Detail'!$C$4)*(Projects!$L$5:$L$2413='MDOT FTA Detail'!$A105)*(Projects!$J$5:$J$2413<>'MDOT FTA Detail'!$A$171)*(Projects!$Q$5:Q$2413)) -> 0 | J105: =SUMPRODUCT((Projects!$A$5:$A$2413='MDOT FTA Detail'!$J$3)*(Projects!$C$5:$C$2413='MDOT FTA Detail'!$C$4)*(Projects!$L$5:$L$2413='MDOT FTA Detail'!$A105)*(Projects!$J$5:$J$2413<>'MDOT FTA Detail'!$A$171)*(Projects!$K$5:$K$2413)) -> 0 | K105: 0 | L105: =SUMPRODUCT((Projects!$A$5:$A$2413='MDOT FTA Detail'!$J$3)*(Projects!$C$5:$C$2413='MDOT FTA Detail'!$C$4)*(Projects!$L$5:$L$2413='MDOT FTA Detail'!$A105)*(Projects!$J$5:$J$2413<>'MDOT FTA Detail'!$A$171)*(Projects!$Q$5:$Q$2413)) -> 0 | M105: =SUMPRODUCT((Projects!$A$5:$A$2413='MDOT FTA Detail'!$M$3)*(Projects!$C$5:$C$2413='MDOT FTA Detail'!$C$4)*(Projects!$L$5:$L$2413='MDOT FTA Detail'!$A105)*(Projects!$J$5:$J$2413<>'MDOT FTA Detail'!$A$171)*(Projects!$K$5:$K$2413)) -> 0 | N105: 0 | O105: =SUMPRODUCT((Projects!$A$5:$A$2413='MDOT FTA Detail'!$M$3)*(Projects!$C$5:$C$2413='MDOT FTA Detail'!$C$4)*(Projects!$L$5:$L$2413='MDOT FTA Detail'!$A105)*(Projects!$J$5:$J$2413<>'MDOT FTA Detail'!$A$171)*(Projects!$Q$5:$Q$2413)) -> 0
A106: TGR2 | B106: TIGER II Discretionary Grant | C106: MDOT FA | D106: =SUMPRODUCT((Projects!$A$5:$A$2413='MDOT FTA Detail'!$D$3)*(Projects!$C$5:$C$2413='MDOT FTA Detail'!$C$4)*(Projects!$L$5:$L$2413='MDOT FTA Detail'!$A106)*(Projects!$J$5:$J$2413<>'MDOT FTA Detail'!$A$171)*(Projects!$K$5:K$2413)) -> 0 | E106: =F106-D106 -> 0 | F106: =SUMPRODUCT((Projects!$A$5:$A$2413='MDOT FTA Detail'!$D$3)*(Projects!$C$5:$C$2413='MDOT FTA Detail'!$C$4)*(Projects!$L$5:$L$2413='MDOT FTA Detail'!$A106)*(Projects!$J$5:$J$2413<>'MDOT FTA Detail'!$A$171)*(Projects!$Q$5:Q$2413)) -> 0 | G106: =SUMPRODUCT((Projects!$A$5:$A$2413='MDOT FTA Detail'!$G$3)*(Projects!$C$5:$C$2413='MDOT FTA Detail'!$C$4)*(Projects!$L$5:$L$2413='MDOT FTA Detail'!$A106)*(Projects!$J$5:$J$2413<>'MDOT FTA Detail'!$A$171)*(Projects!$K$5:K$2413)) -> 0 | H106: =I106-G106 -> 0 | I106: =SUMPRODUCT((Projects!$A$5:$A$2413='MDOT FTA Detail'!$G$3)*(Projects!$C$5:$C$2413='MDOT FTA Detail'!$C$4)*(Projects!$L$5:$L$2413='MDOT FTA Detail'!$A106)*(Projects!$J$5:$J$2413<>'MDOT FTA Detail'!$A$171)*(Projects!$Q$5:Q$2413)) -> 0 | J106: =SUMPRODUCT((Projects!$A$5:$A$2413='MDOT FTA Detail'!$J$3)*(Projects!$C$5:$C$2413='MDOT FTA Detail'!$C$4)*(Projects!$L$5:$L$2413='MDOT FTA Detail'!$A106)*(Projects!$J$5:$J$2413<>'MDOT FTA Detail'!$A$171)*(Projects!$K$5:$K$2413)) -> 0 | K106: =L106-J106 -> 0 | L106: =SUMPRODUCT((Projects!$A$5:$A$2413='MDOT FTA Detail'!$J$3)*(Projects!$C$5:$C$2413='MDOT FTA Detail'!$C$4)*(Projects!$L$5:$L$2413='MDOT FTA Detail'!$A106)*(Projects!$J$5:$J$2413<>'MDOT FTA Detail'!$A$171)*(Projects!$Q$5:$Q$2413)) -> 0 | M106: =SUMPRODUCT((Projects!$A$5:$A$2413='MDOT FTA Detail'!$M$3)*(Projects!$C$5:$C$2413='MDOT FTA Detail'!$C$4)*(Projects!$L$5:$L$2413='MDOT FTA Detail'!$A106)*(Projects!$J$5:$J$2413<>'MDOT FTA Detail'!$A$171)*(Projects!$K$5:$K$2413)) -> 0 | N106: =O106-M106 -> 0 | O106: =SUMPRODUCT((Projects!$A$5:$A$2413='MDOT FTA Detail'!$M$3)*(Projects!$C$5:$C$2413='MDOT FTA Detail'!$C$4)*(Projects!$L$5:$L$2413='MDOT FTA Detail'!$A106)*(Projects!$J$5:$J$2413<>'MDOT FTA Detail'!$A$171)*(Projects!$Q$5:$Q$2413)) -> 0
A107: TGR3 | B107: TIGER III Discretionary Grant | C107: MDOT FA | D107: =SUMPRODUCT((Projects!$A$5:$A$2413='MDOT FTA Detail'!$D$3)*(Projects!$C$5:$C$2413='MDOT FTA Detail'!$C$4)*(Projects!$L$5:$L$2413='MDOT FTA Detail'!$A107)*(Projects!$J$5:$J$2413<>'MDOT FTA Detail'!$A$171)*(Projects!$K$5:K$2413)) -> 0 | E107: =F107-D107 -> 0 | F107: =SUMPRODUCT((Projects!$A$5:$A$2413='MDOT FTA Detail'!$D$3)*(Projects!$C$5:$C$2413='MDOT FTA Detail'!$C$4)*(Projects!$L$5:$L$2413='MDOT FTA Detail'!$A107)*(Projects!$J$5:$J$2413<>'MDOT FTA Detail'!$A$171)*(Projects!$Q$5:Q$2413)) -> 0 | G107: =SUMPRODUCT((Projects!$A$5:$A$2413='MDOT FTA Detail'!$G$3)*(Projects!$C$5:$C$2413='MDOT FTA Detail'!$C$4)*(Projects!$L$5:$L$2413='MDOT FTA Detail'!$A107)*(Projects!$J$5:$J$2413<>'MDOT FTA Detail'!$A$171)*(Projects!$K$5:K$2413)) -> 0 | H107: =I107-G107 -> 0 | I107: =SUMPRODUCT((Projects!$A$5:$A$2413='MDOT FTA Detail'!$G$3)*(Projects!$C$5:$C$2413='MDOT FTA Detail'!$C$4)*(Projects!$L$5:$L$2413='MDOT FTA Detail'!$A107)*(Projects!$J$5:$J$2413<>'MDOT FTA Detail'!$A$171)*(Projects!$Q$5:Q$2413)) -> 0 | J107: =SUMPRODUCT((Projects!$A$5:$A$2413='MDOT FTA Detail'!$J$3)*(Projects!$C$5:$C$2413='MDOT FTA Detail'!$C$4)*(Projects!$L$5:$L$2413='MDOT FTA Detail'!$A107)*(Projects!$J$5:$J$2413<>'MDOT FTA Detail'!$A$171)*(Projects!$K$5:$K$2413)) -> 0 | K107: =L107-J107 -> 0 | L107: =SUMPRODUCT((Projects!$A$5:$A$2413='MDOT FTA Detail'!$J$3)*(Projects!$C$5:$C$2413='MDOT FTA Detail'!$C$4)*(Projects!$L$5:$L$2413='MDOT FTA Detail'!$A107)*(Projects!$J$5:$J$2413<>'MDOT FTA Detail'!$A$171)*(Projects!$Q$5:$Q$2413)) -> 0 | M107: =SUMPRODUCT((Projects!$A$5:$A$2413='MDOT FTA Detail'!$M$3)*(Projects!$C$5:$C$2413='MDOT FTA Detail'!$C$4)*(Projects!$L$5:$L$2413='MDOT FTA Detail'!$A107)*(Projects!$J$5:$J$2413<>'MDOT FTA Detail'!$A$171)*(Projects!$K$5:$K$2413)) -> 0 | N107: =O107-M107 -> 0 | O107: =SUMPRODUCT((Projects!$A$5:$A$2413='MDOT FTA Detail'!$M$3)*(Projects!$C$5:$C$2413='MDOT FTA Detail'!$C$4)*(Projects!$L$5:$L$2413='MDOT FTA Detail'!$A107)*(Projects!$J$5:$J$2413<>'MDOT FTA Detail'!$A$171)*(Projects!$Q$5:$Q$2413)) -> 0
A108: TIP | B108: Transportation Improvements Projects SAFETEA-LU | C108: MDOT FA | D108: =SUMPRODUCT((Projects!$A$5:$A$2413='MDOT FTA Detail'!$D$3)*(Projects!$C$5:$C$2413='MDOT FTA Detail'!$C$4)*(Projects!$L$5:$L$2413='MDOT FTA Detail'!$A108)*(Projects!$J$5:$J$2413<>'MDOT FTA Detail'!$A$171)*(Projects!$K$5:K$2413)) -> 0 | E108: =F108-D108 -> 0 | F108: =SUMPRODUCT((Projects!$A$5:$A$2413='MDOT FTA Detail'!$D$3)*(Projects!$C$5:$C$2413='MDOT FTA Detail'!$C$4)*(Projects!$L$5:$L$2413='MDOT FTA Detail'!$A108)*(Projects!$J$5:$J$2413<>'MDOT FTA Detail'!$A$171)*(Projects!$Q$5:Q$2413)) -> 0 | G108: =SUMPRODUCT((Projects!$A$5:$A$2413='MDOT FTA Detail'!$G$3)*(Projects!$C$5:$C$2413='MDOT FTA Detail'!$C$4)*(Projects!$L$5:$L$2413='MDOT FTA Detail'!$A108)*(Projects!$J$5:$J$2413<>'MDOT FTA Detail'!$A$171)*(Projects!$K$5:K$2413)) -> 0 | H108: =I108-G108 -> 0 | I108: =SUMPRODUCT((Projects!$A$5:$A$2413='MDOT FTA Detail'!$G$3)*(Projects!$C$5:$C$2413='MDOT FTA Detail'!$C$4)*(Projects!$L$5:$L$2413='MDOT FTA Detail'!$A108)*(Projects!$J$5:$J$2413<>'MDOT FTA Detail'!$A$171)*(Projects!$Q$5:Q$2413)) -> 0 | J108: =SUMPRODUCT((Projects!$A$5:$A$2413='MDOT FTA Detail'!$J$3)*(Projects!$C$5:$C$2413='MDOT FTA Detail'!$C$4)*(Projects!$L$5:$L$2413='MDOT FTA Detail'!$A108)*(Projects!$J$5:$J$2413<>'MDOT FTA Detail'!$A$171)*(Projects!$K$5:$K$2413)) -> 0 | K108: =L108-J108 -> 0 | L108: =SUMPRODUCT((Projects!$A$5:$A$2413='MDOT FTA Detail'!$J$3)*(Projects!$C$5:$C$2413='MDOT FTA Detail'!$C$4)*(Projects!$L$5:$L$2413='MDOT FTA Detail'!$A108)*(Projects!$J$5:$J$2413<>'MDOT FTA Detail'!$A$171)*(Projects!$Q$5:$Q$2413)) -> 0 | M108: =SUMPRODUCT((Projects!$A$5:$A$2413='MDOT FTA Detail'!$M$3)*(Projects!$C$5:$C$2413='MDOT FTA Detail'!$C$4)*(Projects!$L$5:$L$2413='MDOT FTA Detail'!$A108)*(Projects!$J$5:$J$2413<>'MDOT FTA Detail'!$A$171)*(Projects!$K$5:$K$2413)) -> 0 | N108: =O108-M108 -> 0 | O108: =SUMPRODUCT((Projects!$A$5:$A$2413='MDOT FTA Detail'!$M$3)*(Projects!$C$5:$C$2413='MDOT FTA Detail'!$C$4)*(Projects!$L$5:$L$2413='MDOT FTA Detail'!$A108)*(Projects!$J$5:$J$2413<>'MDOT FTA Detail'!$A$171)*(Projects!$Q$5:$Q$2413)) -> 0
A109: TPFD | B109: Truck Parking Faciilities Discretionary | C109: MDOT FA | D109: =SUMPRODUCT((Projects!$A$5:$A$2413='MDOT FTA Detail'!$D$3)*(Projects!$C$5:$C$2413='MDOT FTA Detail'!$C$4)*(Projects!$L$5:$L$2413='MDOT FTA Detail'!$A109)*(Projects!$J$5:$J$2413<>'MDOT FTA Detail'!$A$171)*(Projects!$K$5:K$2413)) -> 0 | E109: 0 | F109: =SUMPRODUCT((Projects!$A$5:$A$2413='MDOT FTA Detail'!$D$3)*(Projects!$C$5:$C$2413='MDOT FTA Detail'!$C$4)*(Projects!$L$5:$L$2413='MDOT FTA Detail'!$A109)*(Projects!$J$5:$J$2413<>'MDOT FTA Detail'!$A$171)*(Projects!$Q$5:Q$2413)) -> 0 | G109: =SUMPRODUCT((Projects!$A$5:$A$2413='MDOT FTA Detail'!$G$3)*(Projects!$C$5:$C$2413='MDOT FTA Detail'!$C$4)*(Projects!$L$5:$L$2413='MDOT FTA Detail'!$A109)*(Projects!$J$5:$J$2413<>'MDOT FTA Detail'!$A$171)*(Projects!$K$5:K$2413)) -> 0 | H109: 0 | I109: =SUMPRODUCT((Projects!$A$5:$A$2413='MDOT FTA Detail'!$G$3)*(Projects!$C$5:$C$2413='MDOT FTA Detail'!$C$4)*(Projects!$L$5:$L$2413='MDOT FTA Detail'!$A109)*(Projects!$J$5:$J$2413<>'MDOT FTA Detail'!$A$171)*(Projects!$Q$5:Q$2413)) -> 0 | J109: =SUMPRODUCT((Projects!$A$5:$A$2413='MDOT FTA Detail'!$J$3)*(Projects!$C$5:$C$2413='MDOT FTA Detail'!$C$4)*(Projects!$L$5:$L$2413='MDOT FTA Detail'!$A109)*(Projects!$J$5:$J$2413<>'MDOT FTA Detail'!$A$171)*(Projects!$K$5:$K$2413)) -> 0 | K109: 0 | L109: =SUMPRODUCT((Projects!$A$5:$A$2413='MDOT FTA Detail'!$J$3)*(Projects!$C$5:$C$2413='MDOT FTA Detail'!$C$4)*(Projects!$L$5:$L$2413='MDOT FTA Detail'!$A109)*(Projects!$J$5:$J$2413<>'MDOT FTA Detail'!$A$171)*(Projects!$Q$5:$Q$2413)) -> 0 | M109: =SUMPRODUCT((Projects!$A$5:$A$2413='MDOT FTA Detail'!$M$3)*(Projects!$C$5:$C$2413='MDOT FTA Detail'!$C$4)*(Projects!$L$5:$L$2413='MDOT FTA Detail'!$A109)*(Projects!$J$5:$J$2413<>'MDOT FTA Detail'!$A$171)*(Projects!$K$5:$K$2413)) -> 0 | N109: 0 | O109: =SUMPRODUCT((Projects!$A$5:$A$2413='MDOT FTA Detail'!$M$3)*(Projects!$C$5:$C$2413='MDOT FTA Detail'!$C$4)*(Projects!$L$5:$L$2413='MDOT FTA Detail'!$A109)*(Projects!$J$5:$J$2413<>'MDOT FTA Detail'!$A$171)*(Projects!$Q$5:$Q$2413)) -> 0
A110: CTF | B110: CTF - Comprehensive Transportation Fund | C110: Transit | D110: =SUMPRODUCT((Projects!$A$5:$A$2413='MDOT FTA Detail'!$D$3)*(Projects!$L$5:$L$2413='MDOT FTA Detail'!$A110)*(Projects!$K$5:$K$2413)) -> 0 | E110: =F110-D110 -> 0 | F110: =SUMPRODUCT((Projects!$A$5:$A$2413='MDOT FTA Detail'!$D$3)*(Projects!$L$5:$L$2413='MDOT FTA Detail'!$A110)*(Projects!$Q$5:$Q$2413)) -> 0 | G110: =SUMPRODUCT((Projects!$A$5:$A$2413='MDOT FTA Detail'!$G$3)*(Projects!$L$5:$L$2413='MDOT FTA Detail'!$A110)*(Projects!$K$5:$K$2413)) -> 0 | H110: =I110-G110 -> 0 | I110: =SUMPRODUCT((Projects!$A$5:$A$2413='MDOT FTA Detail'!$G$3)*(Projects!$L$5:$L$2413='MDOT FTA Detail'!$A110)*(Projects!$Q$5:$Q$2413)) -> 0 | J110: =SUMPRODUCT((Projects!$A$5:$A$2413='MDOT FTA Detail'!$J$3)*(Projects!$L$5:$L$2413='MDOT FTA Detail'!$A110)*(Projects!$K$5:$K$2413)) -> 0 | K110: =L110-J110 -> 0 | L110: =SUMPRODUCT((Projects!$A$5:$A$2413='MDOT FTA Detail'!$J$3)*(Projects!$L$5:$L$2413='MDOT FTA Detail'!$A110)*(Projects!$Q$5:$Q$2413)) -> 0 | M110: =SUMPRODUCT((Projects!$A$5:$A$2413='MDOT FTA Detail'!$M$3)*(Projects!$L$5:$L$2413='MDOT FTA Detail'!$A110)*(Projects!$K$5:$K$2413)) -> 0 | N110: =O110-M110 -> 0 | O110: =SUMPRODUCT((Projects!$A$5:$A$2413='MDOT FTA Detail'!$M$3)*(Projects!$L$5:$L$2413='MDOT FTA Detail'!$A110)*(Projects!$Q$5:$Q$2413)) -> 0
A111: 3038 | B111: Section 3038 - Over the Road Bus Program | C111: Transit | D111: =SUMPRODUCT((Projects!$A$5:$A$2413='MDOT FTA Detail'!$D$3)*(Projects!$L$5:$L$2413='MDOT FTA Detail'!$A111)*(Projects!$K$5:$K$2413)) -> 0 | E111: =F111-D111 -> 0 | F111: =SUMPRODUCT((Projects!$A$5:$A$2413='MDOT FTA Detail'!$D$3)*(Projects!$L$5:$L$2413='MDOT FTA Detail'!$A111)*(Projects!$Q$5:$Q$2413)) -> 0 | G111: =SUMPRODUCT((Projects!$A$5:$A$2413='MDOT FTA Detail'!$G$3)*(Projects!$L$5:$L$2413='MDOT FTA Detail'!$A111)*(Projects!$K$5:$K$2413)) -> 0 | H111: =I111-G111 -> 0 | I111: =SUMPRODUCT((Projects!$A$5:$A$2413='MDOT FTA Detail'!$G$3)*(Projects!$L$5:$L$2413='MDOT FTA Detail'!$A111)*(Projects!$Q$5:$Q$2413)) -> 0 | J111: =SUMPRODUCT((Projects!$A$5:$A$2413='MDOT FTA Detail'!$J$3)*(Projects!$L$5:$L$2413='MDOT FTA Detail'!$A111)*(Projects!$K$5:$K$2413)) -> 0 | K111: =L111-J111 -> 0 | L111: =SUMPRODUCT((Projects!$A$5:$A$2413='MDOT FTA Detail'!$J$3)*(Projects!$L$5:$L$2413='MDOT FTA Detail'!$A111)*(Projects!$Q$5:$Q$2413)) -> 0 | M111: =SUMPRODUCT((Projects!$A$5:$A$2413='MDOT FTA Detail'!$M$3)*(Projects!$L$5:$L$2413='MDOT FTA Detail'!$A111)*(Projects!$K$5:$K$2413)) -> 0 | N111: =O111-M111 -> 0 | O111: =SUMPRODUCT((Projects!$A$5:$A$2413='MDOT FTA Detail'!$M$3)*(Projects!$L$5:$L$2413='MDOT FTA Detail'!$A111)*(Projects!$Q$5:$Q$2413)) -> 0
A112: 3045 | B112: Section 3045 - National Fuel Cell Technology Development Program | C112: Transit | D112: =SUMPRODUCT((Projects!$A$5:$A$2413='MDOT FTA Detail'!$D$3)*(Projects!$L$5:$L$2413='MDOT FTA Detail'!$A112)*(Projects!$K$5:$K$2413)) -> 0 | E112: =F112-D112 -> 0 | F112: =SUMPRODUCT((Projects!$A$5:$A$2413='MDOT FTA Detail'!$D$3)*(Projects!$L$5:$L$2413='MDOT FTA Detail'!$A112)*(Projects!$Q$5:$Q$2413)) -> 0 | G112: =SUMPRODUCT((Projects!$A$5:$A$2413='MDOT FTA Detail'!$G$3)*(Projects!$L$5:$L$2413='MDOT FTA Detail'!$A112)*(Projects!$K$5:$K$2413)) -> 0 | H112: =I112-G112 -> 0 | I112: =SUMPRODUCT((Projects!$A$5:$A$2413='MDOT FTA Detail'!$G$3)*(Projects!$L$5:$L$2413='MDOT FTA Detail'!$A112)*(Projects!$Q$5:$Q$2413)) -> 0 | J112: =SUMPRODUCT((Projects!$A$5:$A$2413='MDOT FTA Detail'!$J$3)*(Projects!$L$5:$L$2413='MDOT FTA Detail'!$A112)*(Projects!$K$5:$K$2413)) -> 0 | K112: =L112-J112 -> 0 | L112: =SUMPRODUCT((Projects!$A$5:$A$2413='MDOT FTA Detail'!$J$3)*(Projects!$L$5:$L$2413='MDOT FTA Detail'!$A112)*(Projects!$Q$5:$Q$2413)) -> 0 | M112: =SUMPRODUCT((Projects!$A$5:$A$2413='MDOT FTA Detail'!$M$3)*(Projects!$L$5:$L$2413='MDOT FTA Detail'!$A112)*(Projects!$K$5:$K$2413)) -> 0 | N112: =O112-M112 -> 0 | O112: =SUMPRODUCT((Projects!$A$5:$A$2413='MDOT FTA Detail'!$M$3)*(Projects!$L$5:$L$2413='MDOT FTA Detail'!$A112)*(Projects!$Q$5:$Q$2413)) -> 0
A113: 5303 | B113: Section 5303 - Metropolitan Transportation Planning | C113: Transit | D113: =SUMPRODUCT((Projects!$A$5:$A$2413='MDOT FTA Detail'!$D$3)*(Projects!$L$5:$L$2413='MDOT FTA Detail'!$A113)*(Projects!$K$5:$K$2413)) -> 0 | E113: =F113-D113 -> 0 | F113: =SUMPRODUCT((Projects!$A$5:$A$2413='MDOT FTA Detail'!$D$3)*(Projects!$L$5:$L$2413='MDOT FTA Detail'!$A113)*(Projects!$Q$5:$Q$2413)) -> 0 | G113: =SUMPRODUCT((Projects!$A$5:$A$2413='MDOT FTA Detail'!$G$3)*(Projects!$L$5:$L$2413='MDOT FTA Detail'!$A113)*(Projects!$K$5:$K$2413)) -> 0 | H113: 0 | I113: =SUMPRODUCT((Projects!$A$5:$A$2413='MDOT FTA Detail'!$G$3)*(Projects!$L$5:$L$2413='MDOT FTA Detail'!$A113)*(Projects!$Q$5:$Q$2413)) -> 0 | J113: =SUMPRODUCT((Projects!$A$5:$A$2413='MDOT FTA Detail'!$J$3)*(Projects!$L$5:$L$2413='MDOT FTA Detail'!$A113)*(Projects!$K$5:$K$2413)) -> 0 | K113: 0 | L113: =SUMPRODUCT((Projects!$A$5:$A$2413='MDOT FTA Detail'!$J$3)*(Projects!$L$5:$L$2413='MDOT FTA Detail'!$A113)*(Projects!$Q$5:$Q$2413)) -> 0 | M113: =SUMPRODUCT((Projects!$A$5:$A$2413='MDOT FTA Detail'!$M$3)*(Projects!$L$5:$L$2413='MDOT FTA Detail'!$A113)*(Projects!$K$5:$K$2413)) -> 0 | N113: 0 | O113: =SUMPRODUCT((Projects!$A$5:$A$2413='MDOT FTA Detail'!$M$3)*(Projects!$L$5:$L$2413='MDOT FTA Detail'!$A113)*(Projects!$Q$5:$Q$2413)) -> 0
A114: 5304 | B114: Section 5304 - Statewide Transportation Planning | C114: Transit | D114: =SUMPRODUCT((Projects!$A$5:$A$2413='MDOT FTA Detail'!$D$3)*(Projects!$L$5:$L$2413='MDOT FTA Detail'!$A114)*(Projects!$K$5:$K$2413)) -> 0 | E114: 0 | F114: =SUMPRODUCT((Projects!$A$5:$A$2413='MDOT FTA Detail'!$D$3)*(Projects!$L$5:$L$2413='MDOT FTA Detail'!$A114)*(Projects!$Q$5:$Q$2413)) -> 0 | G114: =SUMPRODUCT((Projects!$A$5:$A$2413='MDOT FTA Detail'!$G$3)*(Projects!$L$5:$L$2413='MDOT FTA Detail'!$A114)*(Projects!$K$5:$K$2413)) -> 0 | H114: 0 | I114: =SUMPRODUCT((Projects!$A$5:$A$2413='MDOT FTA Detail'!$G$3)*(Projects!$L$5:$L$2413='MDOT FTA Detail'!$A114)*(Projects!$Q$5:$Q$2413)) -> 0 | J114: =SUMPRODUCT((Projects!$A$5:$A$2413='MDOT FTA Detail'!$J$3)*(Projects!$L$5:$L$2413='MDOT FTA Detail'!$A114)*(Projects!$K$5:$K$2413)) -> 0 | K114: 0 | L114: =SUMPRODUCT((Projects!$A$5:$A$2413='MDOT FTA Detail'!$J$3)*(Projects!$L$5:$L$2413='MDOT FTA Detail'!$A114)*(Projects!$Q$5:$Q$2413)) -> 0 | M114: =SUMPRODUCT((Projects!$A$5:$A$2413='MDOT FTA Detail'!$M$3)*(Projects!$L$5:$L$2413='MDOT FTA Detail'!$A114)*(Projects!$K$5:$K$2413)) -> 0 | N114: 0 | O114: =SUMPRODUCT((Projects!$A$5:$A$2413='MDOT FTA Detail'!$M$3)*(Projects!$L$5:$L$2413='MDOT FTA Detail'!$A114)*(Projects!$Q$5:$Q$2413)) -> 0
A115: 5305 | B115: Section 5305 - Metropolitan and Statewide Planning | C115: Transit | D115: =SUMPRODUCT((Projects!$A$5:$A$2413='MDOT FTA Detail'!$D$3)*(Projects!$L$5:$L$2413='MDOT FTA Detail'!$A115)*(Projects!$K$5:$K$2413)) -> 0 | E115: 0 | F115: =SUMPRODUCT((Projects!$A$5:$A$2413='MDOT FTA Detail'!$D$3)*(Projects!$L$5:$L$2413='MDOT FTA Detail'!$A115)*(Projects!$Q$5:$Q$2413)) -> 0 | G115: =SUMPRODUCT((Projects!$A$5:$A$2413='MDOT FTA Detail'!$G$3)*(Projects!$L$5:$L$2413='MDOT FTA Detail'!$A115)*(Projects!$K$5:$K$2413)) -> 0 | H115: 0 | I115: =SUMPRODUCT((Projects!$A$5:$A$2413='MDOT FTA Detail'!$G$3)*(Projects!$L$5:$L$2413='MDOT FTA Detail'!$A115)*(Projects!$Q$5:$Q$2413)) -> 0 | J115: =SUMPRODUCT((Projects!$A$5:$A$2413='MDOT FTA Detail'!$J$3)*(Projects!$L$5:$L$2413='MDOT FTA Detail'!$A115)*(Projects!$K$5:$K$2413)) -> 0 | K115: 0 | L115: =SUMPRODUCT((Projects!$A$5:$A$2413='MDOT FTA Detail'!$J$3)*(Projects!$L$5:$L$2413='MDOT FTA Detail'!$A115)*(Projects!$Q$5:$Q$2413)) -> 0 | M115: =SUMPRODUCT((Projects!$A$5:$A$2413='MDOT FTA Detail'!$M$3)*(Projects!$L$5:$L$2413='MDOT FTA Detail'!$A115)*(Projects!$K$5:$K$2413)) -> 0 | N115: 0 | O115: =SUMPRODUCT((Projects!$A$5:$A$2413='MDOT FTA Detail'!$M$3)*(Projects!$L$5:$L$2413='MDOT FTA Detail'!$A115)*(Projects!$Q$5:$Q$2413)) -> 0
A116: 5307 | B116: Section 5307 - UZA Formula | C116: Transit | D116: =SUMPRODUCT((Projects!$A$5:$A$2413='MDOT FTA Detail'!$D$3)*(Projects!$L$5:$L$2413='MDOT FTA Detail'!$A116)*(Projects!$K$5:$K$2413)) -> 291000 | E116: 265000 | F116: =SUMPRODUCT((Projects!$A$5:$A$2413='MDOT FTA Detail'!$D$3)*(Projects!$L$5:$L$2413='MDOT FTA Detail'!$A116)*(Projects!$Q$5:$Q$2413)) -> 556000 | G116: =SUMPRODUCT((Projects!$A$5:$A$2413='MDOT FTA Detail'!$G$3)*(Projects!$L$5:$L$2413='MDOT FTA Detail'!$A116)*(Projects!$K$5:$K$2413)) -> 291000 | H116: 265000 | I116: =SUMPRODUCT((Projects!$A$5:$A$2413='MDOT FTA Detail'!$G$3)*(Projects!$L$5:$L$2413='MDOT FTA Detail'!$A116)*(Projects!$Q$5:$Q$2413)) -> 556000 | J116: =SUMPRODUCT((Projects!$A$5:$A$2413='MDOT FTA Detail'!$J$3)*(Projects!$L$5:$L$2413='MDOT FTA Detail'!$A116)*(Projects!$K$5:$K$2413)) -> 291000 | K116: 265000 | L116: =SUMPRODUCT((Projects!$A$5:$A$2413='MDOT FTA Detail'!$J$3)*(Projects!$L$5:$L$2413='MDOT FTA Detail'!$A116)*(Projects!$Q$5:$Q$2413)) -> 556000 | M116: =SUMPRODUCT((Projects!$A$5:$A$2413='MDOT FTA Detail'!$M$3)*(Projects!$L$5:$L$2413='MDOT FTA Detail'!$A116)*(Projects!$K$5:$K$2413)) -> 276400 | N116: 261600 | O116: =SUMPRODUCT((Projects!$A$5:$A$2413='MDOT FTA Detail'!$M$3)*(Projects!$L$5:$L$2413='MDOT FTA Detail'!$A116)*(Projects!$Q$5:$Q$2413)) -> 538000
A117: 5308 | B117: Section 5308 - Clean Fuels Program | C117: Transit | D117: =SUMPRODUCT((Projects!$A$5:$A$2413='MDOT FTA Detail'!$D$3)*(Projects!$L$5:$L$2413='MDOT FTA Detail'!$A117)*(Projects!$K$5:$K$2413)) -> 0 | E117: 0 | F117: =SUMPRODUCT((Projects!$A$5:$A$2413='MDOT FTA Detail'!$D$3)*(Projects!$L$5:$L$2413='MDOT FTA Detail'!$A117)*(Projects!$Q$5:$Q$2413)) -> 0 | G117: =SUMPRODUCT((Projects!$A$5:$A$2413='MDOT FTA Detail'!$G$3)*(Projects!$L$5:$L$2413='MDOT FTA Detail'!$A117)*(Projects!$K$5:$K$2413)) -> 0 | H117: 0 | I117: =SUMPRODUCT((Projects!$A$5:$A$2413='MDOT FTA Detail'!$G$3)*(Projects!$L$5:$L$2413='MDOT FTA Detail'!$A117)*(Projects!$Q$5:$Q$2413)) -> 0 | J117: =SUMPRODUCT((Projects!$A$5:$A$2413='MDOT FTA Detail'!$J$3)*(Projects!$L$5:$L$2413='MDOT FTA Detail'!$A117)*(Projects!$K$5:$K$2413)) -> 0 | K117: 0 | L117: =SUMPRODUCT((Projects!$A$5:$A$2413='MDOT FTA Detail'!$J$3)*(Projects!$L$5:$L$2413='MDOT FTA Detail'!$A117)*(Projects!$Q$5:$Q$2413)) -> 0 | M117: =SUMPRODUCT((Projects!$A$5:$A$2413='MDOT FTA Detail'!$M$3)*(Projects!$L$5:$L$2413='MDOT FTA Detail'!$A117)*(Projects!$K$5:$K$2413)) -> 0 | N117: 0 | O117: =SUMPRODUCT((Projects!$A$5:$A$2413='MDOT FTA Detail'!$M$3)*(Projects!$L$5:$L$2413='MDOT FTA Detail'!$A117)*(Projects!$Q$5:$Q$2413)) -> 0
A118: 5309 | B118: Section 5309 - Fixed Guideway Capital Investment Grant | C118: Transit | D118: =SUMPRODUCT((Projects!$A$5:$A$2413='MDOT FTA Detail'!$D$3)*(Projects!$L$5:$L$2413='MDOT FTA Detail'!$A118)*(Projects!$K$5:$K$2413)) -> 0 | E118: 0 | F118: =SUMPRODUCT((Projects!$A$5:$A$2413='MDOT FTA Detail'!$D$3)*(Projects!$L$5:$L$2413='MDOT FTA Detail'!$A118)*(Projects!$Q$5:$Q$2413)) -> 0 | G118: =SUMPRODUCT((Projects!$A$5:$A$2413='MDOT FTA Detail'!$G$3)*(Projects!$L$5:$L$2413='MDOT FTA Detail'!$A118)*(Projects!$K$5:$K$2413)) -> 0 | H118: 0 | I118: =SUMPRODUCT((Projects!$A$5:$A$2413='MDOT FTA Detail'!$G$3)*(Projects!$L$5:$L$2413='MDOT FTA Detail'!$A118)*(Projects!$Q$5:$Q$2413)) -> 0 | J118: =SUMPRODUCT((Projects!$A$5:$A$2413='MDOT FTA Detail'!$J$3)*(Projects!$L$5:$L$2413='MDOT FTA Detail'!$A118)*(Projects!$K$5:$K$2413)) -> 0 | K118: 0 | L118: =SUMPRODUCT((Projects!$A$5:$A$2413='MDOT FTA Detail'!$J$3)*(Projects!$L$5:$L$2413='MDOT FTA Detail'!$A118)*(Projects!$Q$5:$Q$2413)) -> 0 | M118: =SUMPRODUCT((Projects!$A$5:$A$2413='MDOT FTA Detail'!$M$3)*(Projects!$L$5:$L$2413='MDOT FTA Detail'!$A118)*(Projects!$K$5:$K$2413)) -> 0 | N118: 0 | O118: =SUMPRODUCT((Projects!$A$5:$A$2413='MDOT FTA Detail'!$M$3)*(Projects!$L$5:$L$2413='MDOT FTA Detail'!$A118)*(Projects!$Q$5:$Q$2413)) -> 0
A119: 5310 | B119: Section 5310 - Enhanced Mobility of Seniors and Individuals with Disabilities | C119: Transit | D119: =SUMPRODUCT((Projects!$A$5:$A$2413='MDOT FTA Detail'!$D$3)*(Projects!$L$5:$L$2413='MDOT FTA Detail'!$A119)*(Projects!$K$5:$K$2413)) -> 0 | E119: 0 | F119: =SUMPRODUCT((Projects!$A$5:$A$2413='MDOT FTA Detail'!$D$3)*(Projects!$L$5:$L$2413='MDOT FTA Detail'!$A119)*(Projects!$Q$5:$Q$2413)) -> 0 | G119: =SUMPRODUCT((Projects!$A$5:$A$2413='MDOT FTA Detail'!$G$3)*(Projects!$L$5:$L$2413='MDOT FTA Detail'!$A119)*(Projects!$K$5:$K$2413)) -> 0 | H119: 0 | I119: =SUMPRODUCT((Projects!$A$5:$A$2413='MDOT FTA Detail'!$G$3)*(Projects!$L$5:$L$2413='MDOT FTA Detail'!$A119)*(Projects!$Q$5:$Q$2413)) -> 0 | J119: =SUMPRODUCT((Projects!$A$5:$A$2413='MDOT FTA Detail'!$J$3)*(Projects!$L$5:$L$2413='MDOT FTA Detail'!$A119)*(Projects!$K$5:$K$2413)) -> 0 | K119: 0 | L119: =SUMPRODUCT((Projects!$A$5:$A$2413='MDOT FTA Detail'!$J$3)*(Projects!$L$5:$L$2413='MDOT FTA Detail'!$A119)*(Projects!$Q$5:$Q$2413)) -> 0 | M119: =SUMPRODUCT((Projects!$A$5:$A$2413='MDOT FTA Detail'!$M$3)*(Projects!$L$5:$L$2413='MDOT FTA Detail'!$A119)*(Projects!$K$5:$K$2413)) -> 0 | N119: 0 | O119: =SUMPRODUCT((Projects!$A$5:$A$2413='MDOT FTA Detail'!$M$3)*(Projects!$L$5:$L$2413='MDOT FTA Detail'!$A119)*(Projects!$Q$5:$Q$2413)) -> 0
A120: 5311 | B120: Section 5311 - Non-UZA | C120: Transit | D120: =SUMPRODUCT((Projects!$A$5:$A$2413='MDOT FTA Detail'!$D$3)*(Projects!$L$5:$L$2413='MDOT FTA Detail'!$A120)*(Projects!$K$5:$K$2413)) -> 0 | E120: 0 | F120: =SUMPRODUCT((Projects!$A$5:$A$2413='MDOT FTA Detail'!$D$3)*(Projects!$L$5:$L$2413='MDOT FTA Detail'!$A120)*(Projects!$Q$5:$Q$2413)) -> 0 | G120: =SUMPRODUCT((Projects!$A$5:$A$2413='MDOT FTA Detail'!$G$3)*(Projects!$L$5:$L$2413='MDOT FTA Detail'!$A120)*(Projects!$K$5:$K$2413)) -> 31927 | H120: 176571 | I120: =SUMPRODUCT((Projects!$A$5:$A$2413='MDOT FTA Detail'!$G$3)*(Projects!$L$5:$L$2413='MDOT FTA Detail'!$A120)*(Projects!$Q$5:$Q$2413)) -> 208498 | J120: =SUMPRODUCT((Projects!$A$5:$A$2413='MDOT FTA Detail'!$J$3)*(Projects!$L$5:$L$2413='MDOT FTA Detail'!$A120)*(Projects!$K$5:$K$2413)) -> 24629 | K120: 182944 | L120: =SUMPRODUCT((Projects!$A$5:$A$2413='MDOT FTA Detail'!$J$3)*(Projects!$L$5:$L$2413='MDOT FTA Detail'!$A120)*(Projects!$Q$5:$Q$2413)) -> 207573 | M120: =SUMPRODUCT((Projects!$A$5:$A$2413='MDOT FTA Detail'!$M$3)*(Projects!$L$5:$L$2413='MDOT FTA Detail'!$A120)*(Projects!$K$5:$K$2413)) -> 0 | N120: 0 | O120: =SUMPRODUCT((Projects!$A$5:$A$2413='MDOT FTA Detail'!$M$3)*(Projects!$L$5:$L$2413='MDOT FTA Detail'!$A120)*(Projects!$Q$5:$Q$2413)) -> 0
A121: 5312 | B121: Section 5312 - Research, Development, Demonstration, and Deployment | C121: Transit | D121: =SUMPRODUCT((Projects!$A$5:$A$2413='MDOT FTA Detail'!$D$3)*(Projects!$L$5:$L$2413='MDOT FTA Detail'!$A121)*(Projects!$K$5:$K$2413)) -> 0 | E121: =F121-D121 -> 0 | F121: =SUMPRODUCT((Projects!$A$5:$A$2413='MDOT FTA Detail'!$D$3)*(Projects!$L$5:$L$2413='MDOT FTA Detail'!$A121)*(Projects!$Q$5:$Q$2413)) -> 0 | G121: =SUMPRODUCT((Projects!$A$5:$A$2413='MDOT FTA Detail'!$G$3)*(Projects!$L$5:$L$2413='MDOT FTA Detail'!$A121)*(Projects!$K$5:$K$2413)) -> 0 | H121: =I121-G121 -> 0 | I121: =SUMPRODUCT((Projects!$A$5:$A$2413='MDOT FTA Detail'!$G$3)*(Projects!$L$5:$L$2413='MDOT FTA Detail'!$A121)*(Projects!$Q$5:$Q$2413)) -> 0 | J121: =SUMPRODUCT((Projects!$A$5:$A$2413='MDOT FTA Detail'!$J$3)*(Projects!$L$5:$L$2413='MDOT FTA Detail'!$A121)*(Projects!$K$5:$K$2413)) -> 0 | K121: =L121-J121 -> 0 | L121: =SUMPRODUCT((Projects!$A$5:$A$2413='MDOT FTA Detail'!$J$3)*(Projects!$L$5:$L$2413='MDOT FTA Detail'!$A121)*(Projects!$Q$5:$Q$2413)) -> 0 | M121: =SUMPRODUCT((Projects!$A$5:$A$2413='MDOT FTA Detail'!$M$3)*(Projects!$L$5:$L$2413='MDOT FTA Detail'!$A121)*(Projects!$K$5:$K$2413)) -> 0 | N121: =O121-M121 -> 0 | O121: =SUMPRODUCT((Projects!$A$5:$A$2413='MDOT FTA Detail'!$M$3)*(Projects!$L$5:$L$2413='MDOT FTA Detail'!$A121)*(Projects!$Q$5:$Q$2413)) -> 0
A122: 5313 | B122: Section 5313 - Transit Cooperative Research Program | C122: Transit | D122: =SUMPRODUCT((Projects!$A$5:$A$2413='MDOT FTA Detail'!$D$3)*(Projects!$L$5:$L$2413='MDOT FTA Detail'!$A122)*(Projects!$K$5:$K$2413)) -> 0 | E122: 0 | F122: =SUMPRODUCT((Projects!$A$5:$A$2413='MDOT FTA Detail'!$D$3)*(Projects!$L$5:$L$2413='MDOT FTA Detail'!$A122)*(Projects!$Q$5:$Q$2413)) -> 0 | G122: =SUMPRODUCT((Projects!$A$5:$A$2413='MDOT FTA Detail'!$G$3)*(Projects!$L$5:$L$2413='MDOT FTA Detail'!$A122)*(Projects!$K$5:$K$2413)) -> 0 | H122: 0 | I122: =SUMPRODUCT((Projects!$A$5:$A$2413='MDOT FTA Detail'!$G$3)*(Projects!$L$5:$L$2413='MDOT FTA Detail'!$A122)*(Projects!$Q$5:$Q$2413)) -> 0 | J122: =SUMPRODUCT((Projects!$A$5:$A$2413='MDOT FTA Detail'!$J$3)*(Projects!$L$5:$L$2413='MDOT FTA Detail'!$A122)*(Projects!$K$5:$K$2413)) -> 0 | K122: 0 | L122: =SUMPRODUCT((Projects!$A$5:$A$2413='MDOT FTA Detail'!$J$3)*(Projects!$L$5:$L$2413='MDOT FTA Detail'!$A122)*(Projects!$Q$5:$Q$2413)) -> 0 | M122: =SUMPRODUCT((Projects!$A$5:$A$2413='MDOT FTA Detail'!$M$3)*(Projects!$L$5:$L$2413='MDOT FTA Detail'!$A122)*(Projects!$K$5:$K$2413)) -> 0 | N122: 0 | O122: =SUMPRODUCT((Projects!$A$5:$A$2413='MDOT FTA Detail'!$M$3)*(Projects!$L$5:$L$2413='MDOT FTA Detail'!$A122)*(Projects!$Q$5:$Q$2413)) -> 0
A123: 5314 | B123: Section 5314 - Technical Assistance and Standards | C123: Transit | D123: =SUMPRODUCT((Projects!$A$5:$A$2413='MDOT FTA Detail'!$D$3)*(Projects!$L$5:$L$2413='MDOT FTA Detail'!$A123)*(Projects!$K$5:$K$2413)) -> 0 | E123: 0 | F123: =SUMPRODUCT((Projects!$A$5:$A$2413='MDOT FTA Detail'!$D$3)*(Projects!$L$5:$L$2413='MDOT FTA Detail'!$A123)*(Projects!$Q$5:$Q$2413)) -> 0 | G123: =SUMPRODUCT((Projects!$A$5:$A$2413='MDOT FTA Detail'!$G$3)*(Projects!$L$5:$L$2413='MDOT FTA Detail'!$A123)*(Projects!$K$5:$K$2413)) -> 0 | H123: 0 | I123: =SUMPRODUCT((Projects!$A$5:$A$2413='MDOT FTA Detail'!$G$3)*(Projects!$L$5:$L$2413='MDOT FTA Detail'!$A123)*(Projects!$Q$5:$Q$2413)) -> 0 | J123: =SUMPRODUCT((Projects!$A$5:$A$2413='MDOT FTA Detail'!$J$3)*(Projects!$L$5:$L$2413='MDOT FTA Detail'!$A123)*(Projects!$K$5:$K$2413)) -> 0 | K123: 0 | L123: =SUMPRODUCT((Projects!$A$5:$A$2413='MDOT FTA Detail'!$J$3)*(Projects!$L$5:$L$2413='MDOT FTA Detail'!$A123)*(Projects!$Q$5:$Q$2413)) -> 0 | M123: =SUMPRODUCT((Projects!$A$5:$A$2413='MDOT FTA Detail'!$M$3)*(Projects!$L$5:$L$2413='MDOT FTA Detail'!$A123)*(Projects!$K$5:$K$2413)) -> 0 | N123: 0 | O123: =SUMPRODUCT((Projects!$A$5:$A$2413='MDOT FTA Detail'!$M$3)*(Projects!$L$5:$L$2413='MDOT FTA Detail'!$A123)*(Projects!$Q$5:$Q$2413)) -> 0
